Workbook

Sheet Introduction
B3: KSU-Farm Financial Benchmarking Tool
B5: A spreadsheet tool to for benchmarking your farm's financial measures based on regions of Kansas, crop acres, and cattle numbers
L8: Version- 10.3.2016
B28: INTRODUCTION
B29: The KSU-Farm Financial Benchmarking tool is designed for producers to compare their financial ratios to farms of similar region, size and enterprise type. The percentage of farms that falls within a range of ratio values gives a distribution so a producer can see where they rank among their peers. Ten-year averages and past year values give two different distributions to benchmark from.
B31: INSTRUCTIONS FOR THE USER:
B32: Be sure to "Enable Content" and "Enable Macros" for the spreadsheet to function correctly. Select the tab for what region of Kansas you would like to benchmark against or "state" to benchmark additional categories. Use the dropdown menus in the tan boxes to select the benchmark category. If the benchmark shows N/A, you have mismatched categories and need to "Start Over". You may add your own farm values to be graphed against benchmark values in the green boxes or leave them as 2015 benchmark averages.
B35: FOR MORE INFORMATION:
B36: Developed by: | F36: With Assistance From:
B38: Robin Reid | F38: Kevin Herbel | J38: Mark Dikeman
B39: Extension Associate | F39: Kansas Farm Management Association | J39: Kansas Farm Management Association
B40: Kansas State University | F40: Kansas State University | J40: Kansas State University
B41: robinreid@ksu.edu | F41: kherbel@ksu.edu | J41: dikemanm@ksu.edu
B42: 785-532-0964 | F42: 785-532-8706 | J42: 785-539-0373
B44: ACKNOWLEDGEMENTS:
B45: Funded in part through the 2016/2017 CoBank Research Fellow program.

Sheet State
E1: KSU FARM FINANCIAL BENCHMARKING TOOL-State of Kansas | S1: Category | T1: Lookup | U1: 2015 | W1: Operator Age<40 | AI1: 10-Year
S2: Crop Acres | T2: Acres | W2: Current Ratio | X2: Working Capital Ratio | Y2: Debt to Asset Ratio | Z2: Operating Profit Margin | AA2: ROA | AB2: ROE | AC2: Asset Turnover | AD2: Operating Expense Ratio | AE2: Depr Expense Ratio | AF2: Interest Expense Ratio | AG2: NFI Ratio | AJ2: Current Ratio | AK2: Working Capital Ratio | AL2: Debt to Asset Ratio | AM2: Operating Profit Margin | AN2: ROA | AO2: ROE | AP2: Asset Turnover | AQ2: Operating Expense Ratio | AR2: Depr Expense Ratio | AS2: Interest Expense Ratio | AT2: NFI Ratio
E3: Benchmarked by: | G3: =B16 -> Dairy | I3: =A17 ->  | K3: =IF(B17="","",B17) ->  | L3: =A18 ->  | N3: =IF(B18="","",B18) ->  | S3: Dairy | T3: Dairy | W3: 1 | X3: 10 | Y3: 11 | Z3: 8 | AA3: 23 | AB3: 43 | AC3: 1 | AD3: 7 | AE3: 4 | AF3: 11 | AG3: 4 | AJ3: 2 | AK3: 3 | AL3: 5 | AM3: 7 | AN3: 10 | AO3: 27 | AP3: 0 | AQ3: 3 | AR3: 0 | AS3: 2 | AT3: 1
S4: Operator Age | T4: Age | W4: 16 | X4: 12 | Y4: 8 | Z4: 4 | AA4: 10 | AB4: 12 | AC4: 6 | AD4: 11 | AE4: 12 | AF4: 45 | AG4: 2 | AJ4: 3 | AK4: 3 | AL4: 26 | AM4: 0 | AN4: 4 | AO4: 13 | AP4: 6 | AQ4: 14 | AR4: 12 | AS4: 87 | AT4: 2
E5: Current Ratio | W5: 32 | X5: 26 | Y5: 10 | Z5: 8 | AA5: 17 | AB5: 18 | AC5: 22 | AD5: 12 | AE5: 25 | AF5: 39 | AG5: 11 | AJ5: 26 | AK5: 23 | AL5: 30 | AM5: 4 | AN5: 21 | AO5: 27 | AP5: 25 | AQ5: 47 | AR5: 61 | AS5: 69 | AT5: 5
F6: 2015 | G6: 10-Year | T6: =B16&B17&B18 -> Dairy | W6: 16 | X6: 21 | Y6: 15 | Z6: 18 | AA6: 27 | AB6: 16 | AC6: 24 | AD6: 29 | AE6: 31 | AF6: 21 | AG6: 17 | AJ6: 42 | AK6: 56 | AL6: 26 | AM6: 12 | AN6: 35 | AO6: 33 | AP6: 39 | AQ6: 82 | AR6: 84 | AS6: 39 | AT6: 6
E7: 0 | F7: =IF($T$6=$W$1,W3/$W$13,IF($T$6=$W$17,W19/$W$29,IF($T$6=$W$33,W35/$W$45,IF($T$6=$W$49,W51/$W$61,IF($T$6=$W$65,W67/$W$77,IF($T$6=$W$81,W83/$W$93,IF($T$6=$W$97,W99/$W$109,IF($T$6=$W$113,W115/$W$125,IF($T$6=$W$129,W131/$W$141,IF($T$6=$W$145,W147/$W$157,IF($T$6=$W$161,W163/$W$173,IF($T$6=$W$177,W179/$W$189,IF($T$6=$W$193,W195/$W$205,IF($T$6=$W$209,W211/$W$221,IF($T$6=$W$225,W227/$W$237,IF($T$6=$W$241,W243/$W$253,IF($T$6=$W$257,W259/$W$269,IF($T$6=$W$273,W275/$W$285,IF($T$6=$W$289,W291/$W$301,IF($T$6=$W$305,W307/$W$317,"N/A")))))))))))))))))))) -> 0 | G7: =IF($T$6=$W$1,AJ3/$AJ$13,IF($T$6=$W$17,AJ19/$AJ$29,IF($T$6=$W$33,AJ35/$AJ$45,IF($T$6=$W$49,AJ51/$AJ$61,IF($T$6=$W$65,AJ67/$AJ$77,IF($T$6=$W$81,AJ83/$AJ$93,IF($T$6=$W$97,AJ99/$AJ$109,IF($T$6=$W$113,AJ115/$AJ$125,IF($T$6=$W$129,AJ131/$AJ$141,IF($T$6=$W$145,AJ147/$AJ$157,IF($T$6=$W$161,AJ163/$AJ$173,IF($T$6=$W$177,AJ179/$AJ$189,IF($T$6=$W$193,AJ195/$AJ$205,IF($T$6=$W$209,AJ211/$AJ$221,IF($T$6=$W$225,AJ227/$AJ$237,IF($T$6=$W$241,AJ243/$AJ$253,IF($T$6=$W$257,AJ259/$AJ$269,IF($T$6=$W$273,AJ275/$AJ$285,IF($T$6=$W$289,AJ291/$AJ$301,IF($T$6=$W$305,AJ307/$AJ$317,"N/A")))))))))))))))))))) -> 0 | W7: 10 | X7: 23 | Y7: 19 | Z7: 25 | AA7: 28 | AB7: 16 | AC7: 19 | AD7: 32 | AE7: 25 | AF7: 14 | AG7: 41 | AJ7: 21 | AK7: 61 | AL7: 41 | AM7: 30 | AN7: 44 | AO7: 43 | AP7: 50 | AQ7: 52 | AR7: 48 | AS7: 15 | AT7: 43
E8: 0.5 | F8: =IF($T$6=$W$1,W4/$W$13,IF($T$6=$W$17,W20/$W$29,IF($T$6=$W$33,W36/$W$45,IF($T$6=$W$49,W52/$W$61,IF($T$6=$W$65,W68/$W$77,IF($T$6=$W$81,W84/$W$93,IF($T$6=$W$97,W100/$W$109,IF($T$6=$W$113,W116/$W$125,IF($T$6=$W$129,W132/$W$141,IF($T$6=$W$145,W148/$W$157,IF($T$6=$W$161,W164/$W$173,IF($T$6=$W$177,W180/$W$189,IF($T$6=$W$193,W196/$W$205,IF($T$6=$W$209,W212/$W$221,IF($T$6=$W$225,W228/$W$237,IF($T$6=$W$241,W244/$W$253,IF($T$6=$W$257,W260/$W$269,IF($T$6=$W$273,W276/$W$285,IF($T$6=$W$289,W292/$W$301,IF($T$6=$W$305,W308/$W$317,"N/A")))))))))))))))))))) -> 0 | G8: =IF($T$6=$W$1,AJ4/$AJ$13,IF($T$6=$W$17,AJ20/$AJ$29,IF($T$6=$W$33,AJ36/$AJ$45,IF($T$6=$W$49,AJ52/$AJ$61,IF($T$6=$W$65,AJ68/$AJ$77,IF($T$6=$W$81,AJ84/$AJ$93,IF($T$6=$W$97,AJ100/$AJ$109,IF($T$6=$W$113,AJ116/$AJ$125,IF($T$6=$W$129,AJ132/$AJ$141,IF($T$6=$W$145,AJ148/$AJ$157,IF($T$6=$W$161,AJ164/$AJ$173,IF($T$6=$W$177,AJ180/$AJ$189,IF($T$6=$W$193,AJ196/$AJ$205,IF($T$6=$W$209,AJ212/$AJ$221,IF($T$6=$W$225,AJ228/$AJ$237,IF($T$6=$W$241,AJ244/$AJ$253,IF($T$6=$W$257,AJ260/$AJ$269,IF($T$6=$W$273,AJ276/$AJ$285,IF($T$6=$W$289,AJ292/$AJ$301,IF($T$6=$W$305,AJ308/$AJ$317,"N/A")))))))))))))))))))) -> 0 | S8: Acres | W8: 4 | X8: 16 | Y8: 17 | Z8: 38 | AA8: 10 | AB8: 7 | AC8: 20 | AD8: 19 | AE8: 20 | AF8: 4 | AG8: 33 | AJ8: 25 | AK8: 33 | AL8: 35 | AM8: 65 | AN8: 62 | AO8: 35 | AP8: 40 | AQ8: 20 | AR8: 14 | AS8: 6 | AT8: 120
E9: 1 | F9: 0 | G9: 0.05 | S9: <500 | T9: SLT | W9: 2 | X9: 12 | Y9: 16 | Z9: 20 | AA9: 10 | AB9: 4 | AC9: 8 | AD9: 8 | AE9: 7 | AF9: 1 | AG9: 17 | AJ9: 15 | AK9: 25 | AL9: 24 | AM9: 88 | AN9: 33 | AO9: 32 | AP9: 23 | AQ9: 7 | AR9: 3 | AS9: 6 | AT9: 49
E10: 1.5 | F10: 0.3448275862 | G10: 0.2 | S10: 500-1000 | T10: SIBL | W10: 3 | X10: 7 | Y10: 14 | Z10: 8 | AA10: 1 | AB10: 3 | AC10: 9 | AD10: 11 | AE10: 6 | AF10: 0 | AG10: 8 | AJ10: 8 | AK10: 16 | AL10: 19 | AM10: 23 | AN10: 13 | AO10: 5 | AP10: 20 | AQ10: 2 | AR10: 5 | AS10: 2 | AT10: 3
E11: 2 | F11: 0.03448275862 | G11: 0.175 | S11: 1000-2000 | T11: SIBH | W11: 4 | X11: 3 | Y11: 26 | Z11: 6 | AA11: 1 | AB11: 3 | AC11: 6 | AD11: 7 | AE11: 6 | AF11: 1 | AG11: 2 | AJ11: 6 | AK11: 5 | AL11: 23 | AM11: 0 | AN11: 5 | AO11: 3 | AP11: 8 | AQ11: 2 | AR11: 2 | AS11: 3 | AT11: 0
E12: 2.5 | F12: 0.06896551724 | G12: 0.075 | S12: 2000+ | T12: SGT | W12: 48 | X12: 6 | Z12: 1 | AA12: 9 | AB12: 14 | AC12: 21 | AG12: 1 | AJ12: 81 | AK12: 4 | AM12: 0 | AN12: 2 | AO12: 11 | AP12: 18 | AT12: 0
E13: 3 | F13: 0.03448275862 | G13: 0 | S13: Cattle | V13: Count | W13: 136 | X13: 136 | Y13: 136 | Z13: 136 | AA13: 136 | AB13: 136 | AC13: 136 | AD13: 136 | AE13: 136 | AF13: 136 | AG13: 136 | AI13: Count | AJ13: 229 | AK13: 229 | AL13: 229 | AM13: 229 | AN13: 229 | AO13: 229 | AP13: 229 | AQ13: 229 | AR13: 229 | AS13: 229 | AT13: 229
E14: 3.5 | F14: 0.06896551724 | G14: 0.1 | S14: None | V14: Average | W14: 1.552023017 | X14: 0.257629879 | Y14: 0.4012387167 | Z14: -0.03052369065 | AA14: -0.008994442361 | AB14: -0.03932585543 | AC14: 0.2946708661 | AD14: 0.7900394424 | AE14: 0.1030899932 | AF14: 0.04800149918 | AG14: 0.05886906519 | AI14: Average | AJ14: 2.25253778 | AK14: 0.4280914544 | AL14: 0.3476842552 | AM14: 0.1743743588 | AN14: 0.0670355154 | AO14: 0.07624729357 | AP14: 0.3844344769 | AQ14: 0.6674459913 | AR14: 0.07532904936 | AS14: 0.04194100089 | AT14: 0.2152839584
A15: BENCHMARK CATEGORY | E15: 4 | F15: 0.03448275862 | G15: 0.05 | S15: No Cows-Feedlot | V15: Non-ratio average | X15: 106297.2292 | AG15: 24289.18004 | AI15: Non-ratio average | AK15: 247710.7502 | AT15: 124571.865
A16: Benchmark by: | B16: Dairy | E16: More | F16: =IF($T$6=$W$1,W12/$W$13,IF($T$6=$W$17,W28/$W$29,IF($T$6=$W$33,W44/$W$45,IF($T$6=$W$49,W60/$W$61,IF($T$6=$W$65,W76/$W$77,IF($T$6=$W$81,W92/$W$93,IF($T$6=$W$97,W108/$W$109,IF($T$6=$W$113,W124/$W$125,IF($T$6=$W$129,W140/$W$141,IF($T$6=$W$145,W156/$W$157,IF($T$6=$W$161,W172/$W$173,IF($T$6=$W$177,W188/$W$189,IF($T$6=$W$193,W204/$W$205,IF($T$6=$W$209,W220/$W$221,IF($T$6=$W$225,W236/$W$237,IF($T$6=$W$241,W252/$W$253,IF($T$6=$W$257,W268/$W$269,IF($T$6=$W$273,W284/$W$285,IF($T$6=$W$289,W300/$W$301,IF($T$6=$W$305,W316/$W$317,"N/A")))))))))))))))))))) -> 0.4137931034 | G16: =IF($T$6=$W$1,AJ12/$AJ$13,IF($T$6=$W$17,AJ28/$AJ$29,IF($T$6=$W$33,AJ44/$AJ$45,IF($T$6=$W$49,AJ60/$AJ$61,IF($T$6=$W$65,AJ76/$AJ$77,IF($T$6=$W$81,AJ92/$AJ$93,IF($T$6=$W$97,AJ108/$AJ$109,IF($T$6=$W$113,AJ124/$AJ$125,IF($T$6=$W$129,AJ140/$AJ$141,IF($T$6=$W$145,AJ156/$AJ$157,IF($T$6=$W$161,AJ172/$AJ$173,IF($T$6=$W$177,AJ188/$AJ$189,IF($T$6=$W$193,AJ204/$AJ$205,IF($T$6=$W$209,AJ220/$AJ$221,IF($T$6=$W$225,AJ236/$AJ$237,IF($T$6=$W$241,AJ252/$AJ$253,IF($T$6=$W$257,AJ268/$AJ$269,IF($T$6=$W$273,AJ284/$AJ$285,IF($T$6=$W$289,AJ300/$AJ$301,IF($T$6=$W$305,AJ316/$AJ$317,"N/A")))))))))))))))))))) -> 0.35 | S16: <100 Cows
A17: =IF(B16="Dairy", "", "Category:") ->  | E17: Count | F17: =IF($T$6=$W$1,$W$13,IF($T$6=$W$17,$W$29,IF($T$6=$W$33,$W$45,IF($T$6=$W$49,$W$61,IF($T$6=$W$65,$W$77,IF($T$6=$W$81,$W$93,IF($T$6=$W$97,$W$109,IF($T$6=$W$113,$W$125,IF($T$6=$W$129,$W$141,IF($T$6=$W$145,$W$157,IF(T6=$W$161,$W$173,IF($T$6=$W$177,$W$189,IF($T$6=$W$193,$W$205,IF($T$6=$W$209,$W$221,IF($T$6=$W$225,$W$237,IF($T$6=$W$241,$W$253,IF($T$6=$W$257,$W$269,IF($T$6=$W$273,$W$285,IF($T$6=$W$289,$W$301,IF($T$6=$W$305,$W$317,"N/A")))))))))))))))))))) -> 29 | G17: =IF($T$6=$W$1,$AJ$13,IF($T$6=$W$17,$AJ$29,IF($T$6=$W$33,$AJ$45,IF($T$6=$W$49,$AJ$61,IF($T$6=$W$65,$AJ$77,IF($T$6=$W$81,$AJ$93,IF($T$6=$W$97,$AJ$109,IF($T$6=$W$113,$AJ$125,IF($T$6=$W$129,$AJ$141,IF($T$6=$W$145,$AJ$157, IF($T$6=$W$161,$AJ$173,IF($T$6=$W$177,$AJ$189,IF($T$6=$W$193,$AJ$205,IF($T$6=$W$209,$AJ$221,IF($T$6=$W$225,$AJ$237,IF($T$6=$W$241,$AJ$253,IF($T$6=$W$257,$AJ$269,IF($T$6=$W$273,$AJ$285,IF($T$6=$W$289,$AJ$301,IF($T$6=$W$305,$AJ$317,"N/A")))))))))))))))))))) -> 40 | S17: 100+ Cows | W17: Operator Age40-60
A18: =(IF(B16="Crop Acres","Cattle:","")) ->  | E18: Average | F18: =IF($T$6=$W$1,$W$14,IF($T$6=$W$17,$W$30,IF($T$6=$W$33,$W$46,IF($T$6=$W$49,$W$62,IF($T$6=$W$65,$W$78,IF($T$6=$W$81,$W$94,IF($T$6=$W$97,$W$110,IF($T$6=$W$113,$W$126,IF($T$6=$W$129,$W$142,IF($T$6=$W$145,$W$158,IF($T$6=$W$161,$W$174,IF($T$6=$W$177,$W$190,IF($T$6=$W$193,$W$206,IF($T$6=$W$209,$W$222,IF($T$6=$W$225,$W$238,IF($T$6=$W$241,$W$254,IF($T$6=$W$257,$W$270,IF($T$6=$W$273,$W$286,IF($T$6=$W$289,$W$302,IF($T$6=$W$305,$W$318,"N/A")))))))))))))))))))) -> 3.125717623 | G18: =IF($T$6=$W$1,$AJ$14,IF($T$6=$W$17,$AJ$30,IF($T$6=$W$33,$AJ$46,IF($T$6=$W$49,$AJ$62,IF($T$6=$W$65,$AJ$78,IF($T$6=$W$81,$AJ$94,IF($T$6=$W$97,$AJ$110,IF($T$6=$W$113,$AJ$126,IF($T$6=$W$129,$AJ$142,IF($T$6=$W$145,$AJ$158,IF($T$6=$W$161,$AJ$174,IF($T$6=$W$177,$AJ$190,IF($T$6=$W$193,$AJ$206,IF($T$6=$W$209,$AJ$222,IF($T$6=$W$225,$AJ$238,IF($T$6=$W$241,$AJ$254,IF($T$6=$W$257,$AJ$270,IF($T$6=$W$273,$AJ$286,IF($T$6=$W$289,$AJ$302,IF($T$6=$W$305,$AJ$318,"N/A")))))))))))))))))))) -> 3.511713963 | W18: Current Ratio | X18: Working Capital Ratio | Y18: Debt to Asset Ratio | Z18: Operating Profit Margin | AA18: ROA | AB18: ROE | AC18: Asset Turnover | AD18: Operating Expense Ratio | AE18: Depr Expense Ratio | AF18: Interest Expense Ratio | AG18: NFI Ratio | AJ18: Current Ratio | AK18: Working Capital Ratio | AL18: Debt to Asset Ratio | AM18: Operating Profit Margin | AN18: ROA | AO18: ROE | AP18: Asset Turnover | AQ18: Operating Expense Ratio | AR18: Depr Expense Ratio | AS18: Interest Expense Ratio | AT18: NFI Ratio
W19: 4 | X19: 26 | Y19: 33 | Z19: 54 | AA19: 63 | AB19: 121 | AC19: 2 | AD19: 2 | AE19: 1 | AF19: 49 | AG19: 32 | AJ19: 2 | AK19: 9 | AL19: 16 | AM19: 11 | AN19: 14 | AO19: 44 | AP19: 0 | AQ19: 4 | AR19: 3 | AS19: 17 | AT19: 1
F20: =IF(B22=F18,"","Your Farm") ->  | G20: =IF(B22=F18,"",B22) ->  | S20: Age | W20: 32 | X20: 31 | Y20: 85 | Z20: 19 | AA20: 63 | AB20: 81 | AC20: 64 | AD20: 12 | AE20: 21 | AF20: 161 | AG20: 26 | AJ20: 14 | AK20: 12 | AL20: 162 | AM20: 6 | AN20: 16 | AO20: 44 | AP20: 18 | AQ20: 27 | AR20: 38 | AS20: 277 | AT20: 2
A21: YOUR FARM VALUES* | S21: <40 | W21: 70 | X21: 47 | Y21: 82 | Z21: 42 | AA21: 109 | AB21: 150 | AC21: 162 | AD21: 36 | AE21: 44 | AF21: 127 | AG21: 44 | AJ21: 58 | AK21: 51 | AL21: 108 | AM21: 10 | AN21: 53 | AO21: 103 | AP21: 121 | AQ21: 138 | AR21: 150 | AS21: 198 | AT21: 7
A22: Current Ratio: | B22: =$F$18 -> 3.125717623 | S22: 40-60 | W22: 82 | X22: 81 | Y22: 81 | Z22: 85 | AA22: 162 | AB22: 81 | AC22: 121 | AD22: 71 | AE22: 98 | AF22: 71 | AG22: 106 | AJ22: 85 | AK22: 128 | AL22: 100 | AM22: 25 | AN22: 130 | AO22: 194 | AP22: 177 | AQ22: 246 | AR22: 232 | AS22: 92 | AT22: 32
A23: Working Capital Ratio: | B23: =$F$39 -> 0.4046928275 | S23: 60+ | W23: 40 | X23: 102 | Y23: 67 | Z23: 120 | AA23: 55 | AB23: 23 | AC23: 45 | AD23: 107 | AE23: 107 | AF23: 30 | AG23: 148 | AJ23: 72 | AK23: 153 | AL23: 102 | AM23: 76 | AN23: 235 | AO23: 153 | AP23: 133 | AQ23: 154 | AR23: 146 | AS23: 42 | AT23: 155
A24: Debt to Asset Ratio: | B24: =$F$59 -> 0.1902252594 | W24: 28 | X24: 73 | Y24: 44 | Z24: 108 | AA24: 13 | AB24: 5 | AC24: 37 | AD24: 100 | AE24: 81 | AF24: 22 | AG24: 92 | AJ24: 53 | AK24: 127 | AL24: 71 | AM24: 250 | AN24: 135 | AO24: 64 | AP24: 90 | AQ24: 66 | AR24: 54 | AS24: 18 | AT24: 316
A25: Operating Profit Margin | B25: =$F$81 -> 0.01498028322 | W25: 14 | X25: 36 | Y25: 32 | Z25: 41 | AA25: 6 | AB25: 4 | AC25: 18 | AD25: 67 | AE25: 58 | AF25: 8 | AG25: 25 | AJ25: 28 | AK25: 80 | AL25: 42 | AM25: 233 | AN25: 46 | AO25: 28 | AP25: 51 | AQ25: 11 | AR25: 19 | AS25: 5 | AT25: 131
A26: Rate of Return on Farm Assets | B26: =$F$102 -> 0.003284502589 | E26: Working Captial Ratio | W26: 20 | X26: 26 | Y26: 22 | Z26: 6 | AA26: 5 | AB26: 3 | AC26: 8 | AD26: 32 | AE26: 30 | AF26: 3 | AG26: 7 | AJ26: 31 | AK26: 37 | AL26: 16 | AM26: 40 | AN26: 18 | AO26: 6 | AP26: 22 | AQ26: 5 | AR26: 8 | AS26: 0 | AT26: 10
A27: Rate of Return on Farm Equity | B27: =$F$123 -> -0.004456437023 | F27: 2015 | G27: 10-Year | S27: Your Farm Line-Current Ratio | W27: 9 | X27: 13 | Y27: 34 | Z27: 3 | AA27: 1 | AB27: 3 | AC27: 7 | AD27: 53 | AE27: 40 | AF27: 9 | AG27: 0 | AJ27: 17 | AK27: 31 | AL27: 37 | AM27: 3 | AN27: 4 | AO27: 7 | AP27: 17 | AQ27: 3 | AR27: 4 | AS27: 5 | AT27: 0
A28: Asset Turnover Rate | B28: =$F$144 -> 0.2192550395 | E28: -0.5 | F28: =IF($T$6=$W$1,X3/$F$38,IF($T$6=$W$17,X19/$F$38,IF($T$6=$W$33,X35/$F$38,IF($T$6=$W$49,X51/$F$38,IF($T$6=$W$65,X67/$F$38,IF($T$6=$W$81,X83/$F$38,IF($T$6=$W$97,X99/$F$38,IF($T$6=$W$113,X115/$F$38,IF($T$6=$W$129,X131/$F$38,IF($T$6=$W$145,X147/$F$38,IF($T$6=$W$161,X163/$F$38,IF($T$6=$W$177,X179/$F$38,IF($T$6=$W$193,X195/$F$38,IF($T$6=$W$209,X211/$F$38,IF($T$6=$W$225,X227/$F$38,IF($T$6=$W$241,X243/$F$38,IF($T$6=$W$257,X259/$F$38,IF($T$6=$W$273,X275/$F$38,IF($T$6=$W$289,X291/$F$38,IF($T$6=$W$305,X307/$F$38,"N/A")))))))))))))))))))) -> 0 | G28: =IF($T$6=$W$1,AK3/$G$38,IF($T$6=$W$17,AK19/$G$38,IF($T$6=$W$33,AK35/$G$38,IF($T$6=$W$49,AK51/$G$38,IF($T$6=$W$65,AK67/$G$38,IF($T$6=$W$81,AK83/$G$38,IF($T$6=$W$97,AK99/$G$38,IF($T$6=$W$113,AK115/$G$38,IF($T$6=$W$129,AK131/$G$38,IF($T$6=$W$145,AK147/$G$38,IF($T$6=$W$161,AK163/$G$38,IF($T$6=$W$177,AK179/$G$38,IF($T$6=$W$193,AK195/$G$38,IF($T$6=$W$209,AK211/$G$38,IF($T$6=$W$225,AK227/$G$38,IF($T$6=$W$241,AK243/$G$38,IF($T$6=$W$257,AK259/$G$38,IF($T$6=$W$273,AK275/$G$38,IF($T$6=$W$289,AK291/$G$38,IF($T$6=$W$305,AK307/$G$38,"N/A")))))))))))))))))))) -> 0 | S28: X's | T28: =B22 -> 3.125717623 | U28: =B22 -> 3.125717623 | W28: 181 | X28: 45 | Z28: 2 | AA28: 3 | AB28: 9 | AC28: 16 | AG28: 0 | AJ28: 294 | AK28: 26 | AM28: 0 | AN28: 3 | AO28: 11 | AP28: 25 | AT28: 0
A29: Operating Expense Ratio | B29: =$F$164 -> 0.8216242073 | E29: =E28+0.25 -> -0.25 | F29: =IF($T$6=$W$1,X4/$F$38,IF($T$6=$W$17,X20/$F$38,IF($T$6=$W$33,X36/$F$38,IF($T$6=$W$49,X52/$F$38,IF($T$6=$W$65,X68/$F$38,IF($T$6=$W$81,X84/$F$38,IF($T$6=$W$97,X100/$F$38,IF($T$6=$W$113,X116/$F$38,IF($T$6=$W$129,X132/$F$38,IF($T$6=$W$145,X148/$F$38,IF($T$6=$W$161,X164/$F$38,IF($T$6=$W$177,X180/$F$38,IF($T$6=$W$193,X196/$F$38,IF($T$6=$W$209,X212/$F$38,IF($T$6=$W$225,X228/$F$38,IF($T$6=$W$241,X244/$F$38,IF($T$6=$W$257,X260/$F$38,IF($T$6=$W$273,X276/$F$38,IF($T$6=$W$289,X292/$F$38,IF($T$6=$W$305,X308/$F$38,"N/A")))))))))))))))))))) -> 0 | G29: =IF($T$6=$W$1,AK4/$G$38,IF($T$6=$W$17,AK20/$G$38,IF($T$6=$W$33,AK36/$G$38,IF($T$6=$W$49,AK52/$G$38,IF($T$6=$W$65,AK68/$G$38,IF($T$6=$W$81,AK84/$G$38,IF($T$6=$W$97,AK100/$G$38,IF($T$6=$W$113,AK116/$G$38,IF($T$6=$W$129,AK132/$G$38,IF($T$6=$W$145,AK148/$G$38,IF($T$6=$W$161,AK164/$G$38,IF($T$6=$W$177,AK180/$G$38,IF($T$6=$W$193,AK196/$G$38,IF($T$6=$W$209,AK212/$G$38,IF($T$6=$W$225,AK228/$G$38,IF($T$6=$W$241,AK244/$G$38,IF($T$6=$W$257,AK260/$G$38,IF($T$6=$W$273,AK276/$G$38,IF($T$6=$W$289,AK292/$G$38,IF($T$6=$W$305,AK308/$G$38,"N/A")))))))))))))))))))) -> 0 | S29: Y's | T29: 0 | U29: 0.4 | V29: Count | W29: 480 | X29: 480 | Y29: 480 | Z29: 480 | AA29: 480 | AB29: 480 | AC29: 480 | AD29: 480 | AE29: 480 | AF29: 480 | AG29: 480 | AI29: Count | AJ29: 654 | AK29: 654 | AL29: 654 | AM29: 654 | AN29: 654 | AO29: 654 | AP29: 654 | AQ29: 654 | AR29: 654 | AS29: 654 | AT29: 654
A30: Depreciation Expense Ratio | B30: =$F$185 -> 0.06856876829 | E30: =E29+0.25 -> 0 | F30: 0 | G30: 0.05 | S30: =IF(B22=F18,U1 &" Average","Your Farm") -> 2015 Average | V30: Average | W30: 2.015462656 | X30: 0.4652718155 | Y30: 0.2512277857 | Z30: -0.06012898159 | AA30: -0.01258393222 | AB30: -0.02856037645 | AC30: 0.2092823108 | AD30: 0.8244853727 | AE30: 0.1168900129 | AF30: 0.04025675101 | AG30: 0.01836786336 | AI30: Average | AJ30: 2.711197475 | AK30: 0.5178298543 | AL30: 0.2482696254 | AM30: 0.1688084422 | AN30: 0.05192838733 | AO30: 0.05280443843 | AP30: 0.3076172415 | AQ30: 0.6686314642 | AR30: 0.07959793055 | AS30: 0.03710916605 | AT30: 0.2146614392
A31: Interest Expense Ratio | B31: =$F$206 -> 0.02299528297 | E31: 0.25 | F31: 0.5862068966 | G31: 0.675 | S31: Your Farm Line-Working Capital Ratio | V31: Non-ratio average | X31: 303142.5997 | AG31: 11967.37405 | AI31: Non-ratio average | AK31: 310027.5326 | AT31: 128518.9639
A32: Net Farm Income Ratio: | B32: =$F$228 -> 0.08681174141 | E32: 0.5 | F32: 0.2068965517 | G32: 0.15 | S32: X's | T32: =B23 -> 0.4046928275 | U32: =B23 -> 0.4046928275
A33: *Defaults to Averages for 2015 if not entered | E33: 0.75 | F33: 0.03448275862 | G33: 0.025 | S33: Y's | T33: 0 | U33: 0.4 | W33: Operator Age60+
E34: 1 | F34: 0.03448275862 | G34: 0.075 | S34: =IF(B23=F39,U1 &" Average","Your Farm") -> 2015 Average | W34: Current Ratio | X34: Working Capital Ratio | Y34: Debt to Asset Ratio | Z34: Operating Profit Margin | AA34: ROA | AB34: ROE | AC34: Asset Turnover | AD34: Operating Expense Ratio | AE34: Depr Expense Ratio | AF34: Interest Expense Ratio | AG34: NFI Ratio | AJ34: Current Ratio | AK34: Working Capital Ratio | AL34: Debt to Asset Ratio | AM34: Operating Profit Margin | AN34: ROA | AO34: ROE | AP34: Asset Turnover | AQ34: Operating Expense Ratio | AR34: Depr Expense Ratio | AS34: Interest Expense Ratio | AT34: NFI Ratio
E35: 1.25 | F35: 0 | G35: 0 | W35: 6 | X35: 29 | Y35: 110 | Z35: 103 | AA35: 58 | AB35: 104 | AC35: 5 | AD35: 7 | AE35: 8 | AF35: 117 | AG35: 72 | AJ35: 1 | AK35: 5 | AL35: 32 | AM35: 6 | AN35: 7 | AO35: 21 | AP35: 0 | AQ35: 3 | AR35: 0 | AS35: 23 | AT35: 0
E36: 1.5 | F36: 0.06896551724 | G36: 0.025 | W36: 37 | X36: 27 | Y36: 178 | Z36: 31 | AA36: 71 | AB36: 99 | AC36: 184 | AD36: 9 | AE36: 22 | AF36: 220 | AG36: 32 | AJ36: 7 | AK36: 11 | AL36: 143 | AM36: 5 | AN36: 8 | AO36: 19 | AP36: 49 | AQ36: 19 | AR36: 22 | AS36: 176 | AT36: 1
E37: More | F37: =IF($T$6=$W$1,X12/$F$38,IF($T$6=$W$17,X28/$F$38,IF($T$6=$W$33,X44/$F$38,IF($T$6=$W$49,X60/$F$38,IF($T$6=$W$65,X76/$F$38,IF($T$6=$W$81,X92/$F$38,IF($T$6=$W$97,X108/$F$38,IF($T$6=$W$113,X124/$F$38,IF($T$6=$W$129,X140/$F$38,IF($T$6=$W$145,X156/$F$38,IF($T$6=$W$161,X172/$F$38,IF($T$6=$W$177,X188/$F$38,IF($T$6=$W$193,X204/$F$38,IF($T$6=$W$209,X220/$F$38,IF($T$6=$W$225,X236/$F$38,IF($T$6=$W$241,X252/$F$38,IF($T$6=$W$257,X268/$F$38,IF($T$6=$W$273,X284/$F$38,IF($T$6=$W$289,X300/$F$38,IF($T$6=$W$305,X316/$F$38,"N/A")))))))))))))))))))) -> 0.06896551724 | G37: =IF($T$6=$W$1,AK12/$G$38,IF($T$6=$W$17,AK28/$G$38,IF($T$6=$W$33,AK44/$G$38,IF($T$6=$W$49,AK60/$G$38,IF($T$6=$W$65,AK76/$G$38,IF($T$6=$W$81,AK92/$G$38,IF($T$6=$W$97,AK108/$G$38,IF($T$6=$W$113,AK124/$G$38,IF($T$6=$W$129,AK140/$G$38,IF($T$6=$W$145,AK156/$G$38,IF($T$6=$W$161,AK172/$G$38,IF($T$6=$W$177,AK188/$G$38,IF($T$6=$W$193,AK204/$G$38,IF($T$6=$W$209,AK220/$G$38,IF($T$6=$W$225,AK236/$G$38,IF($T$6=$W$241,AK252/$G$38,IF($T$6=$W$257,AK268/$G$38,IF($T$6=$W$273,AK284/$G$38,IF($T$6=$W$289,AK300/$G$38,IF($T$6=$W$305,AK316/$G$38,"N/A")))))))))))))))))))) -> 0 | S37: =$F$18 -> 3.125717623 | W37: 68 | X37: 52 | Y37: 102 | Z37: 60 | AA37: 166 | AB37: 244 | AC37: 226 | AD37: 40 | AE37: 72 | AF37: 114 | AG37: 47 | AJ37: 21 | AK37: 12 | AL37: 64 | AM37: 13 | AN37: 31 | AO37: 91 | AP37: 128 | AQ37: 81 | AR37: 104 | AS37: 99 | AT37: 1
E38: Count | F38: =F17 -> 29 | G38: =G17 -> 40 | S38: =$F$39 -> 0.4046928275 | W38: 58 | X38: 65 | Y38: 70 | Z38: 94 | AA38: 219 | AB38: 106 | AC38: 86 | AD38: 75 | AE38: 87 | AF38: 57 | AG38: 139 | AJ38: 34 | AK38: 52 | AL38: 49 | AM38: 24 | AN38: 135 | AO38: 163 | AP38: 99 | AQ38: 121 | AR38: 113 | AS38: 38 | AT38: 22
E39: Average | F39: =IF($T$6=$W$1,$X$14,IF($T$6=$W$17,$X$30,IF($T$6=$W$33,$X$46,IF($T$6=$W$49,$X$62,IF($T$6=$W$65,$X$78,IF($T$6=$W$81,$X$94,IF($T$6=$W$97,$X$110,IF($T$6=$W$113,$X$126,IF($T$6=$W$129,$X$142,IF($T$6=$W$145,$X$158,IF($T$6=$W$161,$X$174,IF($T$6=$W$177,$X$190,IF($T$6=$W$193,$X$206,IF($T$6=$W$209,$X$222,IF($T$6=$W$225,$X$238,IF($T$6=$W$241,$X$254,IF($T$6=$W$257,$X$270,IF($T$6=$W$273,$X$286,IF($T$6=$W$289,$X$302,IF($T$6=$W$305,$X$318,"N/A")))))))))))))))))))) -> 0.4046928275 | G39: =IF($T$6=$W$1,$AK$14,IF($T$6=$W$17,$AK$30,IF($T$6=$W$33,$AK$46,IF($T$6=$W$49,$AK$62,IF($T$6=$W$65,$AK$78,IF($T$6=$W$81,$AK$94,IF($T$6=$W$97,$AK$110,IF($T$6=$W$113,$AK$126,IF($T$6=$W$129,$AK$142,IF($T$6=$W$145,$AK$158,IF($T$6=$W$161,$AK$174,IF($T$6=$W$177,$AK$190,IF($T$6=$W$193,$AK$206,IF($T$6=$W$209,$AK$222,IF($T$6=$W$225,$AK$238,IF($T$6=$W$241,$AK$254,IF($T$6=$W$257,$AK$270,IF($T$6=$W$273,$AK$286,IF($T$6=$W$289,$AK$302,IF($T$6=$W$305,$AK$318,"N/A")))))))))))))))))))) -> 0.3133300867 | S39: =$F$59 -> 0.1902252594 | W39: 35 | X39: 66 | Y39: 46 | Z39: 138 | AA39: 50 | AB39: 17 | AC39: 30 | AD39: 117 | AE39: 107 | AF39: 34 | AG39: 149 | AJ39: 45 | AK39: 63 | AL39: 39 | AM39: 54 | AN39: 134 | AO39: 57 | AP39: 42 | AQ39: 90 | AR39: 71 | AS39: 23 | AT39: 95
E40: Working Capital Avg. | S40: =$F$81 -> 0.01498028322 | W40: 29 | X40: 70 | Y40: 36 | Z40: 94 | AA40: 12 | AB40: 3 | AC40: 22 | AD40: 117 | AE40: 81 | AF40: 12 | AG40: 91 | AJ40: 16 | AK40: 69 | AL40: 20 | AM40: 132 | AN40: 46 | AO40: 15 | AP40: 33 | AQ40: 44 | AR40: 39 | AS40: 10 | AT40: 158
F41: =IF($T$6=$W$1,$X$15,IF($T$6=$W$17,$X$31,IF($T$6=$W$33,$X$47,IF($T$6=$W$49,$X$63,IF($T$6=$W$65,$X$79,IF($T$6=$W$81,$X$95,IF($T$6=$W$97,$X$111,IF($T$6=$W$113,$X$127,IF($T$6=$W$129,$X$143,IF($T$6=$W$145,$X$159,IF($T$6=$W$161,$X$175,IF($T$6=$W$177,$X$191,IF($T$6=$W$193,$X$207,IF($T$6=$W$209,$X$223,IF($T$6=$W$225,$X$239,IF($T$6=$W$241,$X$255,IF($T$6=$W$257,$X$271,IF($T$6=$W$273,$X$287,IF($T$6=$W$289,$X$303,IF($T$6=$W$305,$X$319,"N/A")))))))))))))))))))) -> 439926.4672 | G41: =IF($T$6=$W$1,$AK$15,IF($T$6=$W$17,$AK$31,IF($T$6=$W$33,$AK$47,IF($T$6=$W$49,$AK$63,IF($T$6=$W$65,$AK$79,IF($T$6=$W$81,$AK$95,IF($T$6=$W$97,$AK$111,IF($T$6=$W$113,$AK$127,IF($T$6=$W$129,$AK$143,IF($T$6=$W$145,$AK$159,IF($T$6=$W$161,$AK$175,IF($T$6=$W$177,$AK$191,IF($T$6=$W$193,$AK$207,IF($T$6=$W$209,$AK$223,IF($T$6=$W$225,$AK$239,IF($T$6=$W$241,$AK$255,IF($T$6=$W$257,$AK$271,IF($T$6=$W$273,$AK$287,IF($T$6=$W$289,$AK$303,IF($T$6=$W$305,$AK$319,"N/A")))))))))))))))))))) -> 224889.4072 | S41: =$F$102 -> 0.003284502589 | W41: 13 | X41: 71 | Y41: 13 | Z41: 46 | AA41: 3 | AB41: 0 | AC41: 11 | AD41: 72 | AE41: 79 | AF41: 17 | AG41: 42 | AJ41: 19 | AK41: 65 | AL41: 11 | AM41: 116 | AN41: 8 | AO41: 0 | AP41: 8 | AQ41: 10 | AR41: 18 | AS41: 2 | AT41: 84
S42: =$F$123 -> -0.004456437023 | W42: 17 | X42: 55 | Y42: 9 | Z42: 5 | AA42: 0 | AB42: 1 | AC42: 6 | AD42: 46 | AE42: 51 | AF42: 0 | AG42: 3 | AJ42: 16 | AK42: 29 | AL42: 6 | AM42: 21 | AN42: 2 | AO42: 1 | AP42: 6 | AQ42: 3 | AR42: 1 | AS42: 0 | AT42: 11
F43: =IF(B23=F39,"","Your Farm") ->  | G43: =IF(B23=F39,"",B23) ->  | S43: =$F$144 -> 0.2192550395 | W43: 11 | X43: 40 | Y43: 17 | Z43: 4 | AA43: 1 | AB43: 4 | AC43: 3 | AD43: 98 | AE43: 74 | AF43: 10 | AG43: 3 | AJ43: 12 | AK43: 17 | AL43: 8 | AM43: 1 | AN43: 0 | AO43: 1 | AP43: 0 | AQ43: 1 | AR43: 4 | AS43: 1 | AT43: 0
S44: =$F$164 -> 0.8216242073 | W44: 307 | X44: 106 | Z44: 6 | AA44: 1 | AB44: 3 | AC44: 8 | AG44: 3 | AJ44: 201 | AK44: 49 | AM44: 0 | AN44: 1 | AO44: 4 | AP44: 7 | AT44: 0
S45: =$F$185 -> 0.06856876829 | V45: Count | W45: 581 | X45: 581 | Y45: 581 | Z45: 581 | AA45: 581 | AB45: 581 | AC45: 581 | AD45: 581 | AE45: 581 | AF45: 581 | AG45: 581 | AI45: Count | AJ45: 372 | AK45: 372 | AL45: 372 | AM45: 372 | AN45: 372 | AO45: 372 | AP45: 372 | AQ45: 372 | AR45: 372 | AS45: 372 | AT45: 372
S46: =$F$206 -> 0.02299528297 | V46: Average | W46: 2.53600642 | X46: 0.6800445632 | Y46: 0.1635856046 | Z46: -0.1305131133 | AA46: -0.01970199094 | AB46: -0.03036125279 | AC46: 0.1509579416 | AD46: 0.8575422695 | AE46: 0.1230056113 | AF46: 0.03553189155 | AG46: -0.0160797723 | AI46: Average | AJ46: 3.255340894 | AK46: 0.6497094029 | AL46: 0.1746379702 | AM46: 0.1395840967 | AN46: 0.03208790667 | AO46: 0.02831118565 | AP46: 0.2298822533 | AQ46: 0.6849264822 | AR46: 0.0809422728 | AS46: 0.03485797988 | AT46: 0.1992732652
E47: Debt to Asset Ratio | S47: =$F$228 -> 0.08681174141 | V47: Non-ratio average | X47: 319196.1909 | AG47: -7547.449604 | AI47: Non-ratio average | AK47: 298421.2065 | AT47: 91529.17896
F48: 2015 | G48: 10-Year
E49: 0 | F49: =IF($T$6=$W$1,Y3/$F$58,IF($T$6=$W$17,Y19/$F$58,IF($T$6=$W$33,Y35/$F$58,IF($T$6=$W$49,Y51/$F$58,IF($T$6=$W$65,Y67/$F$58,IF($T$6=$W$81,Y83/$F$58,IF($T$6=$W$97,Y99/$F$58,IF($T$6=$W$113,Y115/$F$58,IF($T$6=$W$129,Y131/$F$58,IF($T$6=$W$145,Y147/$F$58,IF($T$6=$W$161,Y163/$F$58, IF($T$6=$W$177,Y179/$F$58,IF($T$6=$W$193,Y195/$F$58,IF($T$6=$W$209,Y211/$F$58,IF($T$6=$W$225,Y227/$F$58,IF($T$6=$W$241,Y243/$F$58,IF($T$6=$W$257,Y259/$F$58,IF($T$6=$W$273,Y275/$F$58,IF($T$6=$W$289,Y291/$F$58,IF($T$6=$W$305,Y307/$F$58,"N/A")))))))))))))))))))) -> 0.1379310345 | G49: =IF($T$6=$W$1,AL3/$G$38,IF($T$6=$W$17,AL19/$G$38,IF($T$6=$W$33,AL35/$G$38,IF($T$6=$W$49,AL51/$G$38,IF($T$6=$W$65,AL67/$G$38,IF($T$6=$W$81,AL83/$G$38,IF($T$6=$W$97,AL99/$G$38,IF($T$6=$W$113,AL115/$G$38,IF($T$6=$W$129,AL131/$G$38,IF($T$6=$W$145,AL147/$G$38,IF($T$6=$W$161,AL163/$G$38,IF($T$6=$W$177,AL179/$G$38,IF($T$6=$W$193,AL195/$G$38,IF($T$6=$W$209,AL211/$G$38,IF($T$6=$W$225,AL227/$G$38,IF($T$6=$W$241,AL243/$G$38,IF($T$6=$W$257,AL259/$G$38,IF($T$6=$W$273,AL275/$G$38,IF($T$6=$W$289,AL291/$G$38,IF($T$6=$W$305,AL307/$G$38,"N/A")))))))))))))))))))) -> 0.05 | S49: Your Farm Line-Debt to Asset | W49: Crop Acres<500None
E50: 0.1 | F50: =IF($T$6=$W$1,Y4/$F$58,IF($T$6=$W$17,Y20/$F$58,IF($T$6=$W$33,Y36/$F$58,IF($T$6=$W$49,Y52/$F$58,IF($T$6=$W$65,Y68/$F$58,IF($T$6=$W$81,Y84/$F$58,IF($T$6=$W$97,Y100/$F$58,IF($T$6=$W$113,Y116/$F$58,IF($T$6=$W$129,Y132/$F$58,IF($T$6=$W$145,Y148/$F$58,IF($T$6=$W$161,Y164/$F$58, IF($T$6=$W$177,Y180/$F$58,IF($T$6=$W$193,Y196/$F$58,IF($T$6=$W$209,Y212/$F$58,IF($T$6=$W$225,Y228/$F$58,IF($T$6=$W$241,Y244/$F$58,IF($T$6=$W$257,Y260/$F$58,IF($T$6=$W$273,Y276/$F$58,IF($T$6=$W$289,Y292/$F$58,IF($T$6=$W$305,Y308/$F$58,"N/A")))))))))))))))))))) -> 0.1724137931 | G50: =IF($T$6=$W$1,AL4/$G$38,IF($T$6=$W$17,AL20/$G$38,IF($T$6=$W$33,AL36/$G$38,IF($T$6=$W$49,AL52/$G$38,IF($T$6=$W$65,AL68/$G$38,IF($T$6=$W$81,AL84/$G$38,IF($T$6=$W$97,AL100/$G$38,IF($T$6=$W$113,AL116/$G$38,IF($T$6=$W$129,AL132/$G$38,IF($T$6=$W$145,AL148/$G$38,IF($T$6=$W$161,AL164/$G$38,IF($T$6=$W$177,AL180/$G$38,IF($T$6=$W$193,AL196/$G$38,IF($T$6=$W$209,AL212/$G$38,IF($T$6=$W$225,AL228/$G$38,IF($T$6=$W$241,AL244/$G$38,IF($T$6=$W$257,AL260/$G$38,IF($T$6=$W$273,AL276/$G$38,IF($T$6=$W$289,AL292/$G$38,IF($T$6=$W$305,AL308/$G$38,"N/A")))))))))))))))))))) -> 0.2 | S50: X's | T50: =B24 -> 0.1902252594 | U50: =T50 -> 0.1902252594 | W50: Current Ratio | X50: Working Capital Ratio | Y50: Debt to Asset Ratio | Z50: Operating Profit Margin | AA50: ROA | AB50: ROE | AC50: Asset Turnover | AD50: Operating Expense Ratio | AE50: Depr Expense Ratio | AF50: Interest Expense Ratio | AG50: NFI Ratio | AJ50: Current Ratio | AK50: Working Capital Ratio | AL50: Debt to Asset Ratio | AM50: Operating Profit Margin | AN50: ROA | AO50: ROE | AP50: Asset Turnover | AQ50: Operating Expense Ratio | AR50: Depr Expense Ratio | AS50: Interest Expense Ratio | AT50: NFI Ratio
E51: 0.2 | F51: 0.1034482759 | G51: 0.1 | S51: Y's | T51: 0 | U51: 0.4 | W51: 2 | X51: 6 | Y51: 20 | Z51: 17 | AA51: 13 | AB51: 18 | AC51: 1 | AD51: 3 | AE51: 5 | AF51: 23 | AG51: 10 | AJ51: 0 | AK51: 1 | AL51: 8 | AM51: 6 | AN51: 8 | AO51: 10 | AP51: 0 | AQ51: 4 | AR51: 1 | AS51: 9 | AT51: 1
E52: 0.3 | F52: 0.1379310345 | G52: 0.125 | S52: =IF(B24=F59,U1 &" Average","Your Farm") -> 2015 Average | W52: 7 | X52: 3 | Y52: 16 | Z52: 10 | AA52: 6 | AB52: 7 | AC52: 30 | AD52: 2 | AE52: 6 | AF52: 24 | AG52: 4 | AJ52: 2 | AK52: 2 | AL52: 21 | AM52: 3 | AN52: 5 | AO52: 9 | AP52: 13 | AQ52: 2 | AR52: 8 | AS52: 22 | AT52: 2
E53: 0.4 | F53: 0.1724137931 | G53: 0.175 | W53: 5 | X53: 7 | Y53: 11 | Z53: 8 | AA53: 18 | AB53: 27 | AC53: 21 | AD53: 6 | AE53: 15 | AF53: 4 | AG53: 8 | AJ53: 2 | AK53: 1 | AL53: 9 | AM53: 6 | AN53: 9 | AO53: 10 | AP53: 19 | AQ53: 14 | AR53: 17 | AS53: 10 | AT53: 2
E54: 0.5 | F54: 0.2068965517 | G54: 0.125 | W54: 3 | X54: 6 | Y54: 4 | Z54: 10 | AA54: 21 | AB54: 10 | AC54: 5 | AD54: 8 | AE54: 10 | AF54: 8 | AG54: 12 | AJ54: 4 | AK54: 8 | AL54: 3 | AM54: 5 | AN54: 15 | AO54: 17 | AP54: 10 | AQ54: 12 | AR54: 15 | AS54: 8 | AT54: 4
E55: 0.6 | F55: 0.03448275862 | G55: 0.075 | W55: 1 | X55: 10 | Y55: 5 | Z55: 3 | AA55: 4 | AB55: 1 | AC55: 2 | AD55: 7 | AE55: 5 | AF55: 3 | AG55: 15 | AJ55: 3 | AK55: 12 | AL55: 7 | AM55: 10 | AN55: 12 | AO55: 3 | AP55: 2 | AQ55: 11 | AR55: 5 | AS55: 3 | AT55: 9
E56: 0.7 | F56: 0.03448275862 | G56: 0.15 | W56: 1 | X56: 7 | Y56: 2 | Z56: 14 | AA56: 3 | AB56: 1 | AC56: 1 | AD56: 12 | AE56: 5 | AF56: 2 | AG56: 7 | AJ56: 2 | AK56: 7 | AL56: 3 | AM56: 9 | AN56: 4 | AO56: 3 | AP56: 6 | AQ56: 8 | AR56: 8 | AS56: 1 | AT56: 18
E57: More | F57: =IF($T$6=$W$1,Y11/$F$58,IF($T$6=$W$17,Y27/$F$58,IF($T$6=$W$33,Y43/$F$58,IF($T$6=$W$49,Y59/$F$58,IF($T$6=$W$65,Y75/$F$58,IF($T$6=$W$81,Y91/$F$58,IF($T$6=$W$97,Y107/$F$58,IF($T$6=$W$113,Y123/$F$58,IF($T$6=$W$129,Y139/$F$58,IF($T$6=$W$145,Y155/$F$58,IF($T$6=$W$161,Y171/$F$58, IF($T$6=$W$177,Y187/$F$58,IF($T$6=$W$193,Y203/$F$58,IF($T$6=$W$209,Y219/$F$58,IF($T$6=$W$225,Y235/$F$58,IF($T$6=$W$241,Y251/$F$58,IF($T$6=$W$257,Y267/$F$58,IF($T$6=$W$273,Y283/$F$58,IF($T$6=$W$289,Y299/$F$58,IF($T$6=$W$305,Y315/$F$58,"N/A")))))))))))))))))))) -> 0 | G57: =IF($T$6=$W$1,AL11/$G$38,IF($T$6=$W$17,AL27/$G$38,IF($T$6=$W$33,AL43/$G$38,IF($T$6=$W$49,AL59/$G$38,IF($T$6=$W$65,AL75/$G$38,IF($T$6=$W$81,AL91/$G$38,IF($T$6=$W$97,AL107/$G$38,IF($T$6=$W$113,AL123/$G$38,IF($T$6=$W$129,AL139/$G$38,IF($T$6=$W$145,AL155/$G$38,IF($T$6=$W$161,AL171/$G$38,IF($T$6=$W$177,AL187/$G$38,IF($T$6=$W$193,AL203/$G$38,IF($T$6=$W$209,AL219/$G$38,IF($T$6=$W$225,AL235/$G$38,IF($T$6=$W$241,AL251/$G$38,IF($T$6=$W$257,AL267/$G$38,IF($T$6=$W$273,AL283/$G$38,IF($T$6=$W$289,AL299/$G$38,IF($T$6=$W$305,AL315/$G$38,"N/A")))))))))))))))))))) -> 0 | W57: 1 | X57: 4 | Y57: 3 | Z57: 2 | AA57: 0 | AB57: 0 | AC57: 0 | AD57: 10 | AE57: 6 | AF57: 1 | AG57: 9 | AJ57: 0 | AK57: 7 | AL57: 1 | AM57: 11 | AN57: 2 | AO57: 0 | AP57: 2 | AQ57: 1 | AR57: 2 | AS57: 2 | AT57: 15
E58: Count | F58: =F38 -> 29 | G58: =G38 -> 40 | W58: 3 | X58: 0 | Y58: 2 | Z58: 2 | AA58: 0 | AB58: 1 | AC58: 1 | AD58: 6 | AE58: 5 | AF58: 0 | AG58: 1 | AJ58: 1 | AK58: 4 | AL58: 1 | AM58: 6 | AN58: 0 | AO58: 1 | AP58: 0 | AQ58: 3 | AR58: 0 | AS58: 0 | AT58: 6
E59: Average | F59: =IF($T$6=$W$1,$Y$14,IF($T$6=$W$17,$Y$30,IF($T$6=$W$33,$Y$46,IF($T$6=$W$49,$Y$62,IF($T$6=$W$65,$Y$78,IF($T$6=$W$81,$Y$94,IF($T$6=$W$97,$Y$110,IF($T$6=$W$113,$Y$126,IF($T$6=$W$129,$Y$142,IF($T$6=$W$145,$Y$158,IF($T$6=$W$161,$Y$174,IF($T$6=$W$177,$Y$190,IF($T$6=$W$193,$Y$206,IF($T$6=$W$209,$Y$222,IF($T$6=$W$225,$Y$238,IF($T$6=$W$241,$Y$254,IF($T$6=$W$257,$Y$270,IF($T$6=$W$273,$Y$286,IF($T$6=$W$289,$Y$302,IF($T$6=$W$305,$Y$318,"N/A")))))))))))))))))))) -> 0.1902252594 | G59: =IF($T$6=$W$1,$AL$14,IF($T$6=$W$17,$AL$30,IF($T$6=$W$33,$AL$46,IF($T$6=$W$49,$AL$62,IF($T$6=$W$65,$AL$78,IF($T$6=$W$81,$AL$94,IF($T$6=$W$97,$AL$110,IF($T$6=$W$113,$AL$126,IF($T$6=$W$129,$AL$142,IF($T$6=$W$145,$AL$158,IF($T$6=$W$161,$AL$174,IF($T$6=$W$177,$AL$190,IF($T$6=$W$193,$AL$206,IF($T$6=$W$209,$AL$222,IF($T$6=$W$225,$AL$238,IF($T$6=$W$241,$AL$254,IF($T$6=$W$257,$AL$270,IF($T$6=$W$273,$AL$286,IF($T$6=$W$289,$AL$302,IF($T$6=$W$305,$AL$318,"N/A")))))))))))))))))))) -> 0.2272015052 | W59: 2 | X59: 3 | Y59: 5 | Z59: 0 | AA59: 1 | AB59: 1 | AC59: 0 | AD59: 14 | AE59: 11 | AF59: 3 | AG59: 0 | AJ59: 0 | AK59: 2 | AL59: 4 | AM59: 1 | AN59: 1 | AO59: 1 | AP59: 0 | AQ59: 2 | AR59: 1 | AS59: 2 | AT59: 0
W60: 43 | X60: 22 | Z60: 2 | AA60: 2 | AB60: 2 | AC60: 7 | AG60: 2 | AJ60: 43 | AK60: 13 | AM60: 0 | AN60: 1 | AO60: 3 | AP60: 5 | AT60: 0
V61: Count | W61: 68 | X61: 68 | Y61: 68 | Z61: 68 | AA61: 68 | AB61: 68 | AC61: 68 | AD61: 68 | AE61: 68 | AF61: 68 | AG61: 68 | AI61: Count | AJ61: 57 | AK61: 57 | AL61: 57 | AM61: 57 | AN61: 57 | AO61: 57 | AP61: 57 | AQ61: 57 | AR61: 57 | AS61: 57 | AT61: 57
V62: Average | W62: 4.888977884 | X62: 1.052233704 | Y62: 0.1061765379 | Z62: -0.2160157035 | AA62: -0.02450861169 | AB62: -0.03228623914 | AC62: 0.1134575464 | AD62: 0.8217230868 | AE62: 0.1262676121 | AF62: 0.03858169524 | AG62: 0.01342760594 | AI62: Average | AJ62: 6.508721098 | AK62: 0.8983427441 | AL62: 0.1020060182 | AM62: 0.05955637561 | AN62: 0.01045133676 | AO62: 0.005313589251 | AP62: 0.1754864471 | AQ62: 0.6251662611 | AR62: 0.07064248809 | AS62: 0.03197996486 | AT62: 0.272211286
F63: =IF(B24=F59,"","Your Farm") ->  | G63: =IF(B24=F59,"",B24) ->  | V63: Non-ratio average | X63: 127497.5886 | AG63: 1627.002985 | AI63: Non-ratio average | AK63: 97252.33208 | AT63: 29468.91101
W65: Crop Acres<500No Cows-Feedlot
W66: Current Ratio | X66: Working Capital Ratio | Y66: Debt to Asset Ratio | Z66: Operating Profit Margin | AA66: ROA | AB66: ROE | AC66: Asset Turnover | AD66: Operating Expense Ratio | AE66: Depr Expense Ratio | AF66: Interest Expense Ratio | AG66: NFI Ratio | AJ66: Current Ratio | AK66: Working Capital Ratio | AL66: Debt to Asset Ratio | AM66: Operating Profit Margin | AN66: ROA | AO66: ROE | AP66: Asset Turnover | AQ66: Operating Expense Ratio | AR66: Depr Expense Ratio | AS66: Interest Expense Ratio | AT66: NFI Ratio
W67: 0 | X67: 2 | Y67: 1 | Z67: 7 | AA67: 6 | AB67: 10 | AC67: 3 | AD67: 0 | AE67: 1 | AF67: 0 | AG67: 6 | AJ67: 1 | AK67: 1 | AL67: 1 | AM67: 0 | AN67: 1 | AO67: 5 | AP67: 0 | AQ67: 0 | AR67: 0 | AS67: 2 | AT67: 0
E68: Operating Profit Margin Ratio | W68: 1 | X68: 1 | Y68: 0 | Z68: 0 | AA68: 3 | AB68: 2 | AC68: 6 | AD68: 1 | AE68: 5 | AF68: 2 | AG68: 3 | AJ68: 0 | AK68: 0 | AL68: 2 | AM68: 0 | AN68: 0 | AO68: 3 | AP68: 3 | AQ68: 1 | AR68: 6 | AS68: 1 | AT68: 0
F69: 2015 | G69: 10-Year | W69: 3 | X69: 1 | Y69: 0 | Z69: 2 | AA69: 4 | AB69: 3 | AC69: 5 | AD69: 1 | AE69: 4 | AF69: 1 | AG69: 3 | AJ69: 4 | AK69: 3 | AL69: 1 | AM69: 2 | AN69: 4 | AO69: 5 | AP69: 8 | AQ69: 1 | AR69: 12 | AS69: 4 | AT69: 0
E70: -0.6 | F70: =IF($T$6=$W$1,Z3/$F$80,IF($T$6=$W$17,Z19/$F$80,IF($T$6=$W$33,Z35/$F$80,IF($T$6=$W$49,Z51/$F$80,IF($T$6=$W$65,Z67/$F$80,IF($T$6=$W$81,Z83/$F$80,IF($T$6=$W$97,Z99/$F$80,IF($T$6=$W$113,Z115/$F$80,IF($T$6=$W$129,Z131/$F$80,IF($T$6=$W$145,Z147/$F$80,IF($T$6=$W$161,Z163/$F$80,IF($T$6=$W$177,Z179/$F$58,IF($T$6=$W$193,Z195/$F$58,IF($T$6=$W$209,Z211/$F$58,IF($T$6=$W$225,Z227/$F$58,IF($T$6=$W$241,Z243/$F$58,IF($T$6=$W$257,Z259/$F$58,IF($T$6=$W$273,Z275/$F$58,IF($T$6=$W$289,Z291/$F$58,IF($T$6=$W$305,Z307/$F$58,"N/A")))))))))))))))))))) -> 0.06896551724 | G70: =IF($T$6=$W$1,AM3/$G$38,IF($T$6=$W$17,AM19/$G$38,IF($T$6=$W$33,AM35/$G$38,IF($T$6=$W$49,AM51/$G$38,IF($T$6=$W$65,AM67/$G$38,IF($T$6=$W$81,AM83/$G$38,IF($T$6=$W$97,AM99/$G$38,IF($T$6=$W$113,AM115/$G$38,IF($T$6=$W$129,AM131/$G$38,IF($T$6=$W$145,AM147/$G$38,IF($T$6=$W$161,AM163/$G$38,IF($T$6=$W$177,AM179/$G$38,IF($T$6=$W$193,AM195/$G$38,IF($T$6=$W$209,AM211/$G$38,IF($T$6=$W$225,AM227/$G$38,IF($T$6=$W$241,AM243/$G$38,IF($T$6=$W$257,AM259/$G$38,IF($T$6=$W$273,AM275/$G$38,IF($T$6=$W$289,AM291/$G$38,IF($T$6=$W$305,AM307/$G$38,"N/A")))))))))))))))))))) -> 0.05 | W70: 9 | X70: 3 | Y70: 4 | Z70: 2 | AA70: 3 | AB70: 0 | AC70: 3 | AD70: 1 | AE70: 1 | AF70: 3 | AG70: 2 | AJ70: 4 | AK70: 4 | AL70: 3 | AM70: 3 | AN70: 8 | AO70: 4 | AP70: 5 | AQ70: 6 | AR70: 0 | AS70: 5 | AT70: 3
E71: -0.45 | F71: =IF($T$6=$W$1,Z4/$F$80,IF($T$6=$W$17,Z20/$F$80,IF($T$6=$W$33,Z36/$F$80,IF($T$6=$W$49,Z52/$F$80,IF($T$6=$W$65,Z68/$F$80,IF($T$6=$W$81,Z84/$F$80,IF($T$6=$W$97,Z100/$F$80,IF($T$6=$W$113,Z116/$F$80,IF($T$6=$W$129,Z132/$F$80,IF($T$6=$W$145,Z148/$F$80,IF($T$6=$W$161,Z164/$F$80,IF($T$6=$W$177,Z180/$F$58,IF($T$6=$W$193,Z196/$F$58,IF($T$6=$W$209,Z212/$F$58,IF($T$6=$W$225,Z228/$F$58,IF($T$6=$W$241,Z244/$F$58,IF($T$6=$W$257,Z260/$F$58,IF($T$6=$W$273,Z276/$F$58,IF($T$6=$W$289,Z292/$F$58,IF($T$6=$W$305,Z308/$F$58,"N/A")))))))))))))))))))) -> 0 | G71: =IF($T$6=$W$1,AM4/$G$38,IF($T$6=$W$17,AM20/$G$38,IF($T$6=$W$33,AM36/$G$38,IF($T$6=$W$49,AM52/$G$38,IF($T$6=$W$65,AM68/$G$38,IF($T$6=$W$81,AM84/$G$38,IF($T$6=$W$97,AM100/$G$38,IF($T$6=$W$113,AM116/$G$38,IF($T$6=$W$129,AM132/$G$38,IF($T$6=$W$145,AM148/$G$38,IF($T$6=$W$161,AM164/$G$38,IF($T$6=$W$177,AM180/$G$38,IF($T$6=$W$193,AM196/$G$38,IF($T$6=$W$209,AM212/$G$38,IF($T$6=$W$225,AM228/$G$38,IF($T$6=$W$241,AM244/$G$38,IF($T$6=$W$257,AM260/$G$38,IF($T$6=$W$273,AM276/$G$38,IF($T$6=$W$289,AM292/$G$38,IF($T$6=$W$305,AM308/$G$38,"N/A")))))))))))))))))))) -> 0.025 | S71: Your Farm Line-Operating Profit Margin Ratio | W71: 1 | X71: 5 | Y71: 2 | Z71: 2 | AA71: 0 | AB71: 1 | AC71: 1 | AD71: 0 | AE71: 2 | AF71: 3 | AG71: 1 | AJ71: 4 | AK71: 2 | AL71: 6 | AM71: 4 | AN71: 5 | AO71: 2 | AP71: 2 | AQ71: 4 | AR71: 3 | AS71: 5 | AT71: 10
E72: -0.3 | F72: 0.1034482759 | G72: 0.05 | S72: X's | T72: =B25 -> 0.01498028322 | U72: =T72 -> 0.01498028322 | W72: 0 | X72: 2 | Y72: 4 | Z72: 0 | AA72: 1 | AB72: 0 | AC72: 0 | AD72: 4 | AE72: 2 | AF72: 4 | AG72: 1 | AJ72: 3 | AK72: 6 | AL72: 2 | AM72: 6 | AN72: 2 | AO72: 1 | AP72: 3 | AQ72: 8 | AR72: 0 | AS72: 2 | AT72: 6
E73: -0.15 | F73: 0.1034482759 | G73: 0.05 | S73: Y's | T73: 0 | U73: 0.6 | W73: 1 | X73: 2 | Y73: 3 | Z73: 1 | AA73: 1 | AB73: 0 | AC73: 0 | AD73: 0 | AE73: 2 | AF73: 1 | AG73: 1 | AJ73: 0 | AK73: 1 | AL73: 0 | AM73: 4 | AN73: 1 | AO73: 0 | AP73: 0 | AQ73: 1 | AR73: 0 | AS73: 1 | AT73: 2
E74: 0 | F74: 0.1724137931 | G74: 0.175 | S74: =IF(B25=F81,U1 &" Average","Your Farm") -> 2015 Average | W74: 0 | X74: 0 | Y74: 1 | Z74: 0 | AA74: 0 | AB74: 1 | AC74: 0 | AD74: 2 | AE74: 0 | AF74: 1 | AG74: 1 | AJ74: 1 | AK74: 0 | AL74: 1 | AM74: 1 | AN74: 0 | AO74: 0 | AP74: 0 | AQ74: 0 | AR74: 0 | AS74: 0 | AT74: 0
E75: 0.15 | F75: 0.4137931034 | G75: 0.35 | W75: 1 | X75: 0 | Y75: 3 | Z75: 1 | AA75: 0 | AB75: 0 | AC75: 0 | AD75: 9 | AE75: 1 | AF75: 3 | AG75: 0 | AJ75: 0 | AK75: 2 | AL75: 5 | AM75: 1 | AN75: 0 | AO75: 0 | AP75: 0 | AQ75: 0 | AR75: 0 | AS75: 1 | AT75: 0
E76: 0.3 | F76: 0.03448275862 | G76: 0.275 | W76: 2 | X76: 2 | Z76: 3 | AA76: 0 | AB76: 1 | AC76: 0 | AG76: 0 | AJ76: 4 | AK76: 2 | AM76: 0 | AN76: 0 | AO76: 1 | AP76: 0 | AT76: 0
E77: 0.45 | F77: 0.1034482759 | G77: 0.025 | V77: Count | W77: 18 | X77: 18 | Y77: 18 | Z77: 18 | AA77: 18 | AB77: 18 | AC77: 18 | AD77: 18 | AE77: 18 | AF77: 18 | AG77: 18 | AI77: Count | AJ77: 21 | AK77: 21 | AL77: 21 | AM77: 21 | AN77: 21 | AO77: 21 | AP77: 21 | AQ77: 21 | AR77: 21 | AS77: 21 | AT77: 21
E78: 0.6 | F78: 0 | G78: 0 | V78: Average | W78: 1.278416208 | X78: 0.5174863662 | Y78: 0.4014911721 | Z78: -1.039892025 | AA78: -0.06582840128 | AB78: -0.1374794656 | AC78: 0.06330311198 | AD78: 1.194448462 | AE78: 0.0764637056 | AF78: 0.1115385978 | AG78: -0.3824507654 | AI78: Average | AJ78: 1.763378442 | AK78: 0.5973799247 | AL78: 0.3812697558 | AM78: 0.1004575748 | AN78: 0.01964560097 | AO78: -0.004100527906 | AP78: 0.1955611711 | AQ78: 0.7726172859 | AR78: 0.03623506622 | AS78: 0.07668652679 | AT78: 0.1144611211
E79: More | F79: =IF($T$6=$W$1,Z12/$F$80,IF($T$6=$W$17,Z28/$F$80,IF($T$6=$W$33,Z44/$F$80,IF($T$6=$W$49,Z60/$F$80,IF($T$6=$W$65,Z76/$F$80,IF($T$6=$W$81,Z92/$F$80,IF($T$6=$W$97,Z108/$F$80,IF($T$6=$W$113,Z124/$F$80,IF($T$6=$W$129,Z140/$F$80,IF($T$6=$W$145,Z156/$F$80,IF($T$6=$W$161,Z172/$F$80,IF($T$6=$W$177,Z188/$F$58,IF($T$6=$W$193,Z204/$F$58,IF($T$6=$W$209,Z220/$F$58,IF($T$6=$W$225,Z236/$F$58,IF($T$6=$W$241,Z252/$F$58,IF($T$6=$W$257,Z268/$F$58,IF($T$6=$W$273,Z284/$F$58,IF($T$6=$W$289,Z300/$F$58,IF($T$6=$W$305,Z316/$F$58,"N/A")))))))))))))))))))) -> 0 | G79: =IF($T$6=$W$1,AM12/$G$38,IF($T$6=$W$17,AM28/$G$38,IF($T$6=$W$33,AM44/$G$38,IF($T$6=$W$49,AM60/$G$38,IF($T$6=$W$65,AM76/$G$38,IF($T$6=$W$81,AM92/$G$38,IF($T$6=$W$97,AM108/$G$38,IF($T$6=$W$113,AM124/$G$38,IF($T$6=$W$129,AM140/$G$38,IF($T$6=$W$145,AM156/$G$38,IF($T$6=$W$161,AM172/$G$38,IF($T$6=$W$177,AM188/$G$38,IF($T$6=$W$193,AM204/$G$38,IF($T$6=$W$209,AM220/$G$38,IF($T$6=$W$225,AM236/$G$38,IF($T$6=$W$241,AM252/$G$38,IF($T$6=$W$257,AM268/$G$38,IF($T$6=$W$273,AM284/$G$38,IF($T$6=$W$289,AM300/$G$38,IF($T$6=$W$305,AM316/$G$38,"N/A")))))))))))))))))))) -> 0 | V79: Non-ratio average | X79: 128617.5394 | AG79: -95055.40556 | AI79: Non-ratio average | AK79: 187226.1629 | AT79: 35873.51302
E80: Count | F80: =F58 -> 29 | G80: =G58 -> 40
E81: Average | F81: =IF($T$6=$W$1,$Z$14,IF($T$6=$W$17,$Z$30,IF($T$6=$W$33,$Z$46,IF($T$6=$W$49,$Z$62,IF($T$6=$W$65,$Z$78,IF($T$6=$W$81,$Z$94,IF($T$6=$W$97,$Z$110,IF($T$6=$W$113,$Z$126,IF($T$6=$W$129,$Z$142,IF($T$6=$W$145,$Z$158,IF($T$6=W161,Z174,IF($T$6=$W$177,$Z$190,IF($T$6=$W$193,$Z$206,IF($T$6=$W$209,$Z$222,IF($T$6=$W$225,$Z$238,IF($T$6=$W$241,$Z$254,IF($T$6=$W$257,$Z$270,IF($T$6=$W$273,$Z$286,IF($T$6=$W$289,$Z$302,IF($T$6=$W$305,$Z$318,"N/A")))))))))))))))))))) -> 0.01498028322 | G81: =IF($T$6=$W$1,$AM$14,IF($T$6=$W$17,$AM$30,IF($T$6=$W$33,$AM$46,IF($T$6=$W$49,$AM$62,IF($T$6=$W$65,$AM$78,IF($T$6=$W$81,$AM$94,IF($T$6=$W$97,$AM$110,IF($T$6=$W$113,$AM$126,IF($T$6=$W$129,$AM$142,IF($T$6=$W$145,$AM$158,IF($T$6=$W$161,$AM$174,IF($T$6=$W$177,$AM$190,IF($T$6=$W$193,$AM$206,IF($T$6=$W$209,$AM$222,IF($T$6=$W$225,$AM$238,IF($T$6=$W$241,$AM$254,IF($T$6=$W$257,$AM$270,IF($T$6=$W$273,$AM$286,IF($T$6=$W$289,$AM$302,IF($T$6=$W$305,$AM$318,"N/A")))))))))))))))))))) -> 0.113900614 | W81: Crop Acres<500<100 Cows
W82: Current Ratio | X82: Working Capital Ratio | Y82: Debt to Asset Ratio | Z82: Operating Profit Margin | AA82: ROA | AB82: ROE | AC82: Asset Turnover | AD82: Operating Expense Ratio | AE82: Depr Expense Ratio | AF82: Interest Expense Ratio | AG82: NFI Ratio | AJ82: Current Ratio | AK82: Working Capital Ratio | AL82: Debt to Asset Ratio | AM82: Operating Profit Margin | AN82: ROA | AO82: ROE | AP82: Asset Turnover | AQ82: Operating Expense Ratio | AR82: Depr Expense Ratio | AS82: Interest Expense Ratio | AT82: NFI Ratio
W83: 0 | X83: 6 | Y83: 21 | Z83: 31 | AA83: 15 | AB83: 24 | AC83: 0 | AD83: 7 | AE83: 2 | AF83: 21 | AG83: 16 | AJ83: 0 | AK83: 3 | AL83: 9 | AM83: 13 | AN83: 10 | AO83: 20 | AP83: 0 | AQ83: 2 | AR83: 0 | AS83: 5 | AT83: 1
W84: 7 | X84: 5 | Y84: 23 | Z84: 5 | AA84: 13 | AB84: 19 | AC84: 39 | AD84: 8 | AE84: 8 | AF84: 22 | AG84: 9 | AJ84: 3 | AK84: 3 | AL84: 30 | AM84: 7 | AN84: 8 | AO84: 12 | AP84: 21 | AQ84: 6 | AR84: 7 | AS84: 35 | AT84: 3
F85: =IF(B25=F81,"","Your Farm") ->  | G85: =IF(B25=F81,"",B25) ->  | W85: 14 | X85: 10 | Y85: 11 | Z85: 9 | AA85: 23 | AB85: 25 | AC85: 22 | AD85: 8 | AE85: 17 | AF85: 15 | AG85: 4 | AJ85: 8 | AK85: 5 | AL85: 16 | AM85: 7 | AN85: 26 | AO85: 43 | AP85: 42 | AQ85: 10 | AR85: 25 | AS85: 15 | AT85: 6
W86: 8 | X86: 6 | Y86: 9 | Z86: 9 | AA86: 20 | AB86: 8 | AC86: 10 | AD86: 6 | AE86: 18 | AF86: 8 | AG86: 10 | AJ86: 6 | AK86: 11 | AL86: 12 | AM86: 14 | AN86: 35 | AO86: 14 | AP86: 15 | AQ86: 17 | AR86: 24 | AS86: 18 | AT86: 16
W87: 2 | X87: 14 | Y87: 6 | Z87: 11 | AA87: 5 | AB87: 3 | AC87: 2 | AD87: 10 | AE87: 15 | AF87: 5 | AG87: 18 | AJ87: 11 | AK87: 20 | AL87: 9 | AM87: 26 | AN87: 10 | AO87: 3 | AP87: 9 | AQ87: 29 | AR87: 15 | AS87: 9 | AT87: 26
W88: 4 | X88: 13 | Y88: 7 | Z88: 7 | AA88: 4 | AB88: 2 | AC88: 6 | AD88: 14 | AE88: 10 | AF88: 4 | AG88: 11 | AJ88: 6 | AK88: 18 | AL88: 7 | AM88: 17 | AN88: 5 | AO88: 2 | AP88: 5 | AQ88: 20 | AR88: 9 | AS88: 6 | AT88: 28
E89: Rate of Return on Farm Assets | W89: 1 | X89: 8 | Y89: 4 | Z89: 7 | AA89: 3 | AB89: 0 | AC89: 1 | AD89: 6 | AE89: 4 | AF89: 6 | AG89: 12 | AJ89: 5 | AK89: 14 | AL89: 6 | AM89: 5 | AN89: 1 | AO89: 0 | AP89: 1 | AQ89: 4 | AR89: 4 | AS89: 3 | AT89: 13
F90: 2015 | G90: 10-Year | W90: 2 | X90: 7 | Y90: 1 | Z90: 5 | AA90: 0 | AB90: 0 | AC90: 2 | AD90: 5 | AE90: 4 | AF90: 0 | AG90: 6 | AJ90: 3 | AK90: 7 | AL90: 2 | AM90: 6 | AN90: 0 | AO90: 0 | AP90: 1 | AQ90: 4 | AR90: 4 | AS90: 1 | AT90: 2
E91: -0.1 | F91: =IF($T$6=$W$1,AA3/$F$101,IF($T$6=$W$17,AA19/$F$101,IF($T$6=$W$33,AA35/$F$101,IF($T$6=$W$49,AA51/$F$101,IF($T$6=$W$65,AA67/$F$101,IF($T$6=$W$81,AA83/$F$101,IF($T$6=$W$97,AA99/$F$101,IF($T$6=$W$113,AA115/$F$101,IF($T$6=$W$129,AA131/$F$101,IF($T$6=$W$145,AA147/$F$101,IF($T$6=$W$161,AA163/$F$101,IF($T$6=$W$177,AA179/$F$58,IF($T$6=$W$193,AA195/$F$58,IF($T$6=$W$209,AA211/$F$58,IF($T$6=$W$225,AA227/$F$58,IF($T$6=$W$241,AA243/$F$58,IF($T$6=$W$257,AA259/$F$58,IF($T$6=$W$273,AA275/$F$58,IF($T$6=$W$289,AA291/$F$58,IF($T$6=$W$305,AA307/$F$58,"N/A")))))))))))))))))))) -> 0.06896551724 | G91: =IF($T$6=$W$1,AN3/$G$38,IF($T$6=$W$17,AN19/$G$38,IF($T$6=$W$33,AN35/$G$38,IF($T$6=$W$49,AN51/$G$38,IF($T$6=$W$65,AN67/$G$38,IF($T$6=$W$81,AN83/$G$38,IF($T$6=$W$97,AN99/$G$38,IF($T$6=$W$113,AN115/$G$38,IF($T$6=$W$129,AN131/$G$38,IF($T$6=$W$145,AN147/$G$38,IF($T$6=$W$161,AN163/$G$38,IF($T$6=$W$177,AN179/$G$38,IF($T$6=$W$193,AN195/$G$38,IF($T$6=$W$209,AN211/$G$38,IF($T$6=$W$225,AN227/$G$38,IF($T$6=$W$241,AN243/$G$38,IF($T$6=$W$257,AN259/$G$38,IF($T$6=$W$273,AN275/$G$38,IF($T$6=$W$289,AN291/$G$38,IF($T$6=$W$305,AN307/$G$38,"N/A")))))))))))))))))))) -> 0.075 | W91: 1 | X91: 2 | Y91: 6 | Z91: 4 | AA91: 0 | AB91: 2 | AC91: 1 | AD91: 24 | AE91: 10 | AF91: 7 | AG91: 1 | AJ91: 3 | AK91: 6 | AL91: 4 | AM91: 0 | AN91: 0 | AO91: 0 | AP91: 0 | AQ91: 3 | AR91: 7 | AS91: 3 | AT91: 0
E92: -0.06 | F92: =IF($T$6=$W$1,AA4/$F$101,IF($T$6=$W$17,AA20/$F$101,IF($T$6=$W$33,AA36/$F$101,IF($T$6=$W$49,AA52/$F$101,IF($T$6=$W$65,AA68/$F$101,IF($T$6=$W$81,AA84/$F$101,IF($T$6=$W$97,AA100/$F$101,IF($T$6=$W$113,AA116/$F$101,IF($T$6=$W$129,AA132/$F$101,IF($T$6=$W$145,AA148/$F$101,IF($T$6=$W$161,AA164/$F$101,IF($T$6=$W$177,AA180/$F$58,IF($T$6=$W$193,AA196/$F$58,IF($T$6=$W$209,AA212/$F$58,IF($T$6=$W$225,AA228/$F$58,IF($T$6=$W$241,AA244/$F$58,IF($T$6=$W$257,AA260/$F$58,IF($T$6=$W$273,AA276/$F$58,IF($T$6=$W$289,AA292/$F$58,IF($T$6=$W$305,AA308/$F$58,"N/A")))))))))))))))))))) -> 0.1724137931 | G92: =IF($T$6=$W$1,AN4/$G$38,IF($T$6=$W$17,AN20/$G$38,IF($T$6=$W$33,AN36/$G$38,IF($T$6=$W$49,AN52/$G$38,IF($T$6=$W$65,AN68/$G$38,IF($T$6=$W$81,AN84/$G$38,IF($T$6=$W$97,AN100/$G$38,IF($T$6=$W$113,AN116/$G$38,IF($T$6=$W$129,AN132/$G$38,IF($T$6=$W$145,AN148/$G$38,IF($T$6=$W$161,AN164/$G$38,IF($T$6=$W$177,AN180/$G$38,IF($T$6=$W$193,AN196/$G$38,IF($T$6=$W$209,AN212/$G$38,IF($T$6=$W$225,AN228/$G$38,IF($T$6=$W$241,AN244/$G$38,IF($T$6=$W$257,AN260/$G$38,IF($T$6=$W$273,AN276/$G$38,IF($T$6=$W$289,AN292/$G$38,IF($T$6=$W$305,AN308/$G$38,"N/A")))))))))))))))))))) -> 0.05 | W92: 49 | X92: 17 | Z92: 0 | AA92: 5 | AB92: 5 | AC92: 5 | AG92: 1 | AJ92: 50 | AK92: 8 | AM92: 0 | AN92: 0 | AO92: 1 | AP92: 1 | AT92: 0
E93: -0.02 | F93: 0.1379310345 | G93: 0.1 | S93: Your Farm Line-Return on Assets | V93: Count | W93: 88 | X93: 88 | Y93: 88 | Z93: 88 | AA93: 88 | AB93: 88 | AC93: 88 | AD93: 88 | AE93: 88 | AF93: 88 | AG93: 88 | AI93: Count | AJ93: 95 | AK93: 95 | AL93: 95 | AM93: 95 | AN93: 95 | AO93: 95 | AP93: 95 | AQ93: 95 | AR93: 95 | AS93: 95 | AT93: 95
E94: 0.02 | F94: 0.3103448276 | G94: 0.35 | S94: X's | T94: =B26 -> 0.003284502589 | U94: =T94 -> 0.003284502589 | V94: Average | W94: 1.650160764 | X94: 0.4669797916 | Y94: 0.174775906 | Z94: -0.2893929834 | AA94: -0.03043570854 | AB94: -0.04556205183 | AC94: 0.1051708586 | AD94: 0.8622197425 | AE94: 0.08350827799 | AF94: 0.05725220864 | AG94: -0.002980229179 | AI94: Average | AJ94: 2.032744012 | AK94: 0.5297591125 | AL94: 0.2105336413 | AM94: -0.06331337857 | AN94: -0.009962028834 | AO94: -0.02730714809 | AP94: 0.1573447675 | AQ94: 0.7322508853 | AR94: 0.07714263727 | AS94: 0.06017805848 | AT94: 0.1304284189
E95: 0.06 | F95: 0.2413793103 | G95: 0.175 | S95: Y's | T95: 0 | U95: 0.5 | V95: Non-ratio average | X95: 59780.08795 | AG95: -381.5119318 | AI95: Non-ratio average | AK95: 76698.01938 | AT95: 18883.30218
E96: 0.1 | F96: 0 | G96: 0.125 | S96: =IF(B26=F102,U1 &" Average","Your Farm") -> 2015 Average
E97: 0.14 | F97: 0 | G97: 0.1 | W97: Crop Acres<500100+ Cows
E98: 0.18 | F98: 0 | G98: 0 | W98: Current Ratio | X98: Working Capital Ratio | Y98: Debt to Asset Ratio | Z98: Operating Profit Margin | AA98: ROA | AB98: ROE | AC98: Asset Turnover | AD98: Operating Expense Ratio | AE98: Depr Expense Ratio | AF98: Interest Expense Ratio | AG98: NFI Ratio | AJ98: Current Ratio | AK98: Working Capital Ratio | AL98: Debt to Asset Ratio | AM98: Operating Profit Margin | AN98: ROA | AO98: ROE | AP98: Asset Turnover | AQ98: Operating Expense Ratio | AR98: Depr Expense Ratio | AS98: Interest Expense Ratio | AT98: NFI Ratio
E99: 0.22 | F99: 0 | G99: 0.025 | W99: 0 | X99: 0 | Y99: 3 | Z99: 7 | AA99: 3 | AB99: 5 | AC99: 0 | AD99: 2 | AE99: 0 | AF99: 5 | AG99: 2 | AJ99: 0 | AK99: 2 | AL99: 2 | AM99: 1 | AN99: 0 | AO99: 4 | AP99: 0 | AQ99: 0 | AR99: 0 | AS99: 3 | AT99: 0
E100: More | F100: =IF($T$6=$W$1,AA12/$F$101,IF($T$6=$W$17,AA28/$F$101,IF($T$6=$W$33,AA44/$F$101,IF($T$6=$W$49,AA60/$F$101,IF($T$6=$W$65,AA76/$F$101,IF($T$6=$W$81,AA92/$F$101,IF($T$6=$W$97,AA108/$F$101,IF($T$6=$W$113,AA124/$F$101,IF($T$6=$W$129,AA140/$F$101,IF($T$6=$W$145,AA156/$F$101,IF($T$6=$W$161,AA172/$F$101,IF($T$6=$W$177,AA188/$F$58,IF($T$6=$W$193,AA204/$F$58,IF($T$6=$W$209,AA220/$F$58,IF($T$6=$W$225,AA236/$F$58,IF($T$6=$W$241,AA252/$F$58,IF($T$6=$W$257,AA268/$F$58,IF($T$6=$W$273,AA284/$F$58,IF($T$6=$W$289,AA300/$F$58,IF($T$6=$W$305,AA316/$F$58,"N/A")))))))))))))))))))) -> 0.06896551724 | G100: =IF($T$6=$W$1,AN12/$G$38,IF($T$6=$W$17,AN28/$G$38,IF($T$6=$W$33,AN44/$G$38,IF($T$6=$W$49,AN60/$G$38,IF($T$6=$W$65,AN76/$G$38,IF($T$6=$W$81,AN92/$G$38,IF($T$6=$W$97,AN108/$G$38,IF($T$6=$W$113,AN124/$G$38,IF($T$6=$W$129,AN140/$G$38,IF($T$6=$W$145,AN156/$G$38,IF($T$6=$W$161,AN172/$G$38,IF($T$6=$W$177,AN188/$G$38,IF($T$6=$W$193,AN204/$G$38,IF($T$6=$W$209,AN220/$G$38,IF($T$6=$W$225,AN236/$G$38,IF($T$6=$W$241,AN252/$G$38,IF($T$6=$W$257,AN268/$G$38,IF($T$6=$W$273,AN284/$G$38,IF($T$6=$W$289,AN300/$G$38,IF($T$6=$W$305,AN316/$G$38,"N/A")))))))))))))))))))) -> 0 | W100: 1 | X100: 0 | Y100: 10 | Z100: 2 | AA100: 3 | AB100: 5 | AC100: 10 | AD100: 4 | AE100: 4 | AF100: 13 | AG100: 1 | AJ100: 2 | AK100: 1 | AL100: 19 | AM100: 0 | AN100: 2 | AO100: 6 | AP100: 11 | AQ100: 4 | AR100: 5 | AS100: 18 | AT100: 0
E101: Count | F101: =F80 -> 29 | G101: =G80 -> 40 | W101: 5 | X101: 6 | Y101: 8 | Z101: 2 | AA101: 9 | AB101: 9 | AC101: 13 | AD101: 8 | AE101: 10 | AF101: 8 | AG101: 3 | AJ101: 4 | AK101: 3 | AL101: 7 | AM101: 2 | AN101: 8 | AO101: 15 | AP101: 21 | AQ101: 8 | AR101: 13 | AS101: 8 | AT101: 0
E102: Average | F102: =IF($T$6=$W$1,$AA$14,IF($T$6=$W$17,$AA$30,IF($T$6=$W$33,$AA$46,IF($T$6=$W$49,$AA$62,IF($T$6=$W$65,$AA$78,IF($T$6=$W$81,$AA$94,IF($T$6=$W$97,$AA$110,IF($T$6=$W$113,$AA$126,IF($T$6=$W$129,$AA$142,IF($T$6=$W$145,$AA$158,IF($T$6=$W$161,AA174,IF($T$6=$W$177,$AA$190,IF($T$6=$W$193,$AA$206,IF($T$6=$W$209,$AA$222,IF($T$6=$W$225,$AA$238,IF($T$6=$W$241,$AA$254,IF($T$6=$W$257,$AA$270,IF($T$6=$W$273,$AA$286,IF($T$6=$W$289,$AA$302,IF($T$6=$W$305,$AA$318,"N/A")))))))))))))))))))) -> 0.003284502589 | G102: =IF($T$6=$W$1,$AN$14,IF($T$6=$W$17,$AN$30,IF($T$6=$W$33,$AN$46,IF($T$6=$W$49,$AN$62,IF($T$6=$W$65,$AN$78,IF($T$6=$W$81,$AN$94,IF($T$6=$W$97,$AN$110,IF($T$6=$W$113,$AN$126,IF($T$6=$W$129,$AN$142,IF($T$6=$W$145,$AN$158,IF($T$6=$W$161,$AN$174,IF($T$6=$W$177,$AN$190,IF($T$6=$W$193,$AN$206,IF($T$6=$W$209,$AN$222,IF($T$6=$W$225,$AN$238,IF($T$6=$W$241,$AN$254,IF($T$6=$W$257,$AN$270,IF($T$6=$W$273,$AN$286,IF($T$6=$W$289,$AN$302,IF($T$6=$W$305,$AN$318,"N/A")))))))))))))))))))) -> 0.0375867426 | W102: 4 | X102: 3 | Y102: 3 | Z102: 3 | AA102: 9 | AB102: 9 | AC102: 5 | AD102: 4 | AE102: 5 | AF102: 4 | AG102: 2 | AJ102: 4 | AK102: 6 | AL102: 2 | AM102: 10 | AN102: 23 | AO102: 16 | AP102: 8 | AQ102: 14 | AR102: 19 | AS102: 9 | AT102: 5
W103: 1 | X103: 6 | Y103: 3 | Z103: 5 | AA103: 6 | AB103: 2 | AC103: 3 | AD103: 6 | AE103: 10 | AF103: 3 | AG103: 9 | AJ103: 4 | AK103: 9 | AL103: 6 | AM103: 9 | AN103: 9 | AO103: 2 | AP103: 4 | AQ103: 12 | AR103: 8 | AS103: 6 | AT103: 13
W104: 4 | X104: 6 | Y104: 2 | Z104: 5 | AA104: 2 | AB104: 1 | AC104: 1 | AD104: 4 | AE104: 4 | AF104: 1 | AG104: 6 | AJ104: 3 | AK104: 12 | AL104: 6 | AM104: 13 | AN104: 3 | AO104: 1 | AP104: 2 | AQ104: 9 | AR104: 2 | AS104: 3 | AT104: 18
W105: 0 | X105: 7 | Y105: 2 | Z105: 7 | AA105: 1 | AB105: 1 | AC105: 0 | AD105: 0 | AE105: 0 | AF105: 1 | AG105: 7 | AJ105: 5 | AK105: 5 | AL105: 3 | AM105: 10 | AN105: 2 | AO105: 2 | AP105: 1 | AQ105: 1 | AR105: 1 | AS105: 0 | AT105: 11
F106: =IF(B26=F102,"","Your Farm") ->  | G106: =IF(B26=F102,"",B26) ->  | W106: 1 | X106: 1 | Y106: 2 | Z106: 2 | AA106: 0 | AB106: 0 | AC106: 3 | AD106: 4 | AE106: 1 | AF106: 0 | AG106: 4 | AJ106: 0 | AK106: 6 | AL106: 1 | AM106: 3 | AN106: 0 | AO106: 0 | AP106: 0 | AQ106: 0 | AR106: 0 | AS106: 1 | AT106: 1
W107: 0 | X107: 3 | Y107: 2 | Z107: 2 | AA107: 0 | AB107: 1 | AC107: 0 | AD107: 3 | AE107: 1 | AF107: 0 | AG107: 1 | AJ107: 1 | AK107: 0 | AL107: 2 | AM107: 0 | AN107: 0 | AO107: 0 | AP107: 0 | AQ107: 0 | AR107: 0 | AS107: 0 | AT107: 0
W108: 19 | X108: 3 | Z108: 0 | AA108: 2 | AB108: 2 | AC108: 0 | AG108: 0 | AJ108: 25 | AK108: 4 | AM108: 0 | AN108: 1 | AO108: 2 | AP108: 1 | AT108: 0
V109: Count | W109: 35 | X109: 35 | Y109: 35 | Z109: 35 | AA109: 35 | AB109: 35 | AC109: 35 | AD109: 35 | AE109: 35 | AF109: 35 | AG109: 35 | AI109: Count | AJ109: 48 | AK109: 48 | AL109: 48 | AM109: 48 | AN109: 48 | AO109: 48 | AP109: 48 | AQ109: 48 | AR109: 48 | AS109: 48 | AT109: 48
E110: Rate of Return on Farm Equity | V110: Average | W110: 2.308782281 | X110: 0.6100147988 | Y110: 0.1784018505 | Z110: -0.07533609905 | AA110: -0.01011006451 | AB110: -0.02107561089 | AC110: 0.1341994693 | AD110: 0.7811865982 | AE110: 0.072449978 | AF110: 0.03779189657 | AG110: 0.1085715272 | AI110: Average | AJ110: 2.148318087 | AK110: 0.4609828544 | AL110: 0.1941753326 | AM110: 0.06541187455 | AN110: 0.01049650421 | AO110: 0.0007921069086 | AP110: 0.1604678705 | AQ110: 0.7032446402 | AR110: 0.05903101054 | AS110: 0.04749733857 | AT110: 0.1902270107
F111: 2015 | G111: 10-Year | V111: Non-ratio average | X111: 190656.7474 | AG111: 33933.4296 | AI111: Non-ratio average | AK111: 114336.7262 | AT111: 47181.65423
E112: -0.1 | F112: =IF($T$6=$W$1,AB3/$F$122,IF($T$6=$W$17,AB19/$F$122,IF($T$6=$W$33,AB35/$F$122,IF($T$6=$W$49,AB51/$F$122,IF($T$6=$W$65,AB67/$F$122,IF($T$6=$W$81,AB83/$F$122,IF($T$6=$W$97,AB99/$F$122,IF($T$6=$W$113,AB115/$F$122,IF($T$6=$W$129,AB131/$F$122,IF($T$6=$W$145,AB147/$F$122,IF($T$6=$W$161,AB163/$F$122,IF($T$6=$W$177,AB179/$F$58,IF($T$6=$W$193,AB195/$F$58,IF($T$6=$W$209,AB211/$F$58,IF($T$6=$W$225,AB227/$F$58,IF($T$6=$W$241,AB243/$F$58,IF($T$6=$W$257,AB259/$F$58,IF($T$6=$W$273,AB275/$F$58,IF($T$6=$W$289,AB291/$F$58,IF($T$6=$W$305,AB307/$F$58,"N/A")))))))))))))))))))) -> 0.1379310345 | G112: =IF($T$6=$W$1,AO3/$G$38,IF($T$6=$W$17,AO19/$G$38,IF($T$6=$W$33,AO35/$G$38,IF($T$6=$W$49,AO51/$G$38,IF($T$6=$W$65,AO67/$G$38,IF($T$6=$W$81,AO83/$G$38,IF($T$6=$W$97,AO99/$G$38,IF($T$6=$W$113,AO115/$G$38,IF($T$6=$W$129,AO131/$G$38,IF($T$6=$W$145,AO147/$G$38,IF($T$6=$W$161,AO163/$G$38,IF($T$6=$W$177,AO179/$G$38,IF($T$6=$W$193,AO195/$G$38,IF($T$6=$W$209,AO211/$G$38,IF($T$6=$W$225,AO227/$G$38,IF($T$6=$W$241,AO243/$G$38,IF($T$6=$W$257,AO259/$G$38,IF($T$6=$W$273,AO275/$G$38,IF($T$6=$W$289,AO291/$G$38,IF($T$6=$W$305,AO307/$G$38,"N/A")))))))))))))))))))) -> 0.15
E113: -0.05 | F113: =IF($T$6=$W$1,AB4/$F$122,IF($T$6=$W$17,AB20/$F$122,IF($T$6=$W$33,AB36/$F$122,IF($T$6=$W$49,AB52/$F$122,IF($T$6=$W$65,AB68/$F$122,IF($T$6=$W$81,AB84/$F$122,IF($T$6=$W$97,AB100/$F$122,IF($T$6=$W$113,AB116/$F$122,IF($T$6=$W$129,AB132/$F$122,IF($T$6=$W$145,AB148/$F$122,IF($T$6=$W$161,AB164/$F$122,IF($T$6=$W$177,AB180/$F$58,IF($T$6=$W$193,AB196/$F$58,IF($T$6=$W$209,AB212/$F$58,IF($T$6=$W$225,AB228/$F$58,IF($T$6=$W$241,AB244/$F$58,IF($T$6=$W$257,AB260/$F$58,IF($T$6=$W$273,AB276/$F$58,IF($T$6=$W$289,AB292/$F$58,IF($T$6=$W$305,AB308/$F$58,"N/A")))))))))))))))))))) -> 0.1724137931 | G113: =IF($T$6=$W$1,AO4/$G$38,IF($T$6=$W$17,AO20/$G$38,IF($T$6=$W$33,AO36/$G$38,IF($T$6=$W$49,AO52/$G$38,IF($T$6=$W$65,AO68/$G$38,IF($T$6=$W$81,AO84/$G$38,IF($T$6=$W$97,AO100/$G$38,IF($T$6=$W$113,AO116/$G$38,IF($T$6=$W$129,AO132/$G$38,IF($T$6=$W$145,AO148/$G$38,IF($T$6=$W$161,AO164/$G$38,IF($T$6=$W$177,AO180/$G$38,IF($T$6=$W$193,AO196/$G$38,IF($T$6=$W$209,AO212/$G$38,IF($T$6=$W$225,AO228/$G$38,IF($T$6=$W$241,AO244/$G$38,IF($T$6=$W$257,AO260/$G$38,IF($T$6=$W$273,AO276/$G$38,IF($T$6=$W$289,AO292/$G$38,IF($T$6=$W$305,AO308/$G$38,"N/A")))))))))))))))))))) -> 0.1 | W113: Crop Acres500-1000None
E114: 0 | F114: 0.275862069 | G114: 0.25 | W114: Current Ratio | X114: Working Capital Ratio | Y114: Debt to Asset Ratio | Z114: Operating Profit Margin | AA114: ROA | AB114: ROE | AC114: Asset Turnover | AD114: Operating Expense Ratio | AE114: Depr Expense Ratio | AF114: Interest Expense Ratio | AG114: NFI Ratio | AJ114: Current Ratio | AK114: Working Capital Ratio | AL114: Debt to Asset Ratio | AM114: Operating Profit Margin | AN114: ROA | AO114: ROE | AP114: Asset Turnover | AQ114: Operating Expense Ratio | AR114: Depr Expense Ratio | AS114: Interest Expense Ratio | AT114: NFI Ratio
E115: 0.05 | F115: 0.2413793103 | G115: 0.175 | S115: Your Farm Line-Return on Equity | W115: 1 | X115: 8 | Y115: 19 | Z115: 12 | AA115: 8 | AB115: 13 | AC115: 0 | AD115: 0 | AE115: 1 | AF115: 22 | AG115: 5 | AJ115: 0 | AK115: 1 | AL115: 9 | AM115: 1 | AN115: 2 | AO115: 5 | AP115: 0 | AQ115: 0 | AR115: 0 | AS115: 5 | AT115: 0
E116: 0.1 | F116: 0.1034482759 | G116: 0.175 | S116: X's | T116: =B27 -> -0.004456437023 | U116: =T116 -> -0.004456437023 | W116: 10 | X116: 5 | Y116: 19 | Z116: 3 | AA116: 10 | AB116: 18 | AC116: 23 | AD116: 2 | AE116: 3 | AF116: 28 | AG116: 5 | AJ116: 5 | AK116: 5 | AL116: 34 | AM116: 0 | AN116: 2 | AO116: 7 | AP116: 5 | AQ116: 7 | AR116: 6 | AS116: 47 | AT116: 0
E117: 0.15 | F117: 0 | G117: 0.025 | S117: Y's | T117: 0 | U117: 0.5 | W117: 10 | X117: 7 | Y117: 13 | Z117: 12 | AA117: 26 | AB117: 36 | AC117: 26 | AD117: 1 | AE117: 12 | AF117: 15 | AG117: 6 | AJ117: 10 | AK117: 9 | AL117: 8 | AM117: 4 | AN117: 8 | AO117: 19 | AP117: 26 | AQ117: 21 | AR117: 23 | AS117: 18 | AT117: 0
E118: 0.2 | F118: 0 | G118: 0.05 | S118: =IF(B27=F123,U1 &" Average","Your Farm") -> 2015 Average | W118: 6 | X118: 9 | Y118: 9 | Z118: 15 | AA118: 31 | AB118: 7 | AC118: 9 | AD118: 14 | AE118: 10 | AF118: 6 | AG118: 19 | AJ118: 5 | AK118: 9 | AL118: 6 | AM118: 4 | AN118: 31 | AO118: 36 | AP118: 22 | AQ118: 32 | AR118: 27 | AS118: 11 | AT118: 6
E119: 0.25 | F119: 0 | G119: 0.05 | W119: 1 | X119: 10 | Y119: 5 | Z119: 22 | AA119: 5 | AB119: 4 | AC119: 4 | AD119: 23 | AE119: 13 | AF119: 5 | AG119: 23 | AJ119: 7 | AK119: 19 | AL119: 15 | AM119: 17 | AN119: 32 | AO119: 14 | AP119: 12 | AQ119: 20 | AR119: 16 | AS119: 4 | AT119: 17
E120: 0.3 | F120: 0 | G120: 0.025 | W120: 4 | X120: 2 | Y120: 5 | Z120: 15 | AA120: 1 | AB120: 0 | AC120: 9 | AD120: 17 | AE120: 11 | AF120: 2 | AG120: 19 | AJ120: 4 | AK120: 14 | AL120: 9 | AM120: 36 | AN120: 14 | AO120: 5 | AP120: 10 | AQ120: 7 | AR120: 12 | AS120: 2 | AT120: 38
E121: More | F121: =IF($T$6=$W$1,AB12/$F$122,IF($T$6=$W$17,AB28/$F$122,IF($T$6=$W$33,AB44/$F$122,IF($T$6=$W$49,AB60/$F$122,IF($T$6=$W$65,AB76/$F$122,IF($T$6=$W$81,AB92/$F$122,IF($T$6=$W$97,AB108/$F$122,IF($T$6=$W$113,AB124/$F$122,IF($T$6=$W$129,AB140/$F$122,IF($T$6=$W$145,AB156/$F$122,IF($T$6=$W$161,AB172/$F$122,IF($T$6=$W$177,AB188/$F$58,IF($T$6=$W$193,AB204/$F$58,IF($T$6=$W$209,AB220/$F$58,IF($T$6=$W$225,AB236/$F$58,IF($T$6=$W$241,AB252/$F$58,IF($T$6=$W$257,AB268/$F$58,IF($T$6=$W$273,AB284/$F$58,IF($T$6=$W$289,AB300/$F$58,IF($T$6=$W$305,AB316/$F$58,"N/A")))))))))))))))))))) -> 0.06896551724 | G121: =IF($T$6=$W$1,AO12/$G$38,IF($T$6=$W$17,AO28/$G$38,IF($T$6=$W$33,AO44/$G$38,IF($T$6=$W$49,AO60/$G$38,IF($T$6=$W$65,AO76/$G$38,IF($T$6=$W$81,AO92/$G$38,IF($T$6=$W$97,AO108/$G$38,IF($T$6=$W$113,AO124/$G$38,IF($T$6=$W$129,AO140/$G$38,IF($T$6=$W$145,AO156/$G$38,IF($T$6=$W$161,AO172/$G$38,IF($T$6=$W$177,AO188/$G$38,IF($T$6=$W$193,AO204/$G$38,IF($T$6=$W$209,AO220/$G$38,IF($T$6=$W$225,AO236/$G$38,IF($T$6=$W$241,AO252/$G$38,IF($T$6=$W$257,AO268/$G$38,IF($T$6=$W$273,AO284/$G$38,IF($T$6=$W$289,AO300/$G$38,IF($T$6=$W$305,AO316/$G$38,"N/A")))))))))))))))))))) -> 0 | W121: 1 | X121: 12 | Y121: 2 | Z121: 2 | AA121: 0 | AB121: 0 | AC121: 4 | AD121: 10 | AE121: 13 | AF121: 2 | AG121: 4 | AJ121: 1 | AK121: 11 | AL121: 4 | AM121: 25 | AN121: 0 | AO121: 1 | AP121: 7 | AQ121: 1 | AR121: 3 | AS121: 1 | AT121: 25
E122: Count | F122: =F101 -> 29 | G122: =G101 -> 40 | W122: 3 | X122: 8 | Y122: 3 | Z122: 0 | AA122: 0 | AB122: 0 | AC122: 1 | AD122: 6 | AE122: 4 | AF122: 0 | AG122: 0 | AJ122: 3 | AK122: 5 | AL122: 1 | AM122: 2 | AN122: 0 | AO122: 0 | AP122: 6 | AQ122: 1 | AR122: 1 | AS122: 0 | AT122: 3
E123: Average | F123: =IF($T$6=$W$1,$AB$14,IF($T$6=$W$17,$AB$30,IF($T$6=$W$33,$AB$46,IF($T$6=$W$49,$AB$62,IF($T$6=$W$65,$AB$78,IF($T$6=$W$81,$AB$94,IF($T$6=$W$97,$AB$110,IF($T$6=$W$113,$AB$126,IF($T$6=$W$129,$AB$142,IF($T$6=$W$145,$AB$158,IF($T$6=W161,AB174,IF($T$6=$W$177,$AB$190,IF($T$6=$W$193,$AB$206,IF($T$6=$W$209,$AB$222,IF($T$6=$W$225,$AB$238,IF($T$6=$W$241,$AB$254,IF($T$6=$W$257,$AB$270,IF($T$6=$W$273,$AB$286,IF($T$6=$W$289,$AB$302,IF($T$6=$W$305,$AB$318,"N/A")))))))))))))))))))) -> -0.004456437023 | G123: =IF($T$6=$W$1,$AO$14,IF($T$6=$W$17,$AO$30,IF($T$6=$W$33,$AO$46,IF($T$6=$W$49,$AO$62,IF($T$6=$W$65,$AO$78,IF($T$6=$W$81,$AO$94,IF($T$6=$W$97,$AO$110,IF($T$6=$W$113,$AO$126,IF($T$6=$W$129,$AO$142,IF($T$6=$W$145,$AO$158,IF($T$6=$W$161,$AO$174,IF($T$6=$W$177,$AO$190,IF($T$6=$W$193,$AO$206,IF($T$6=$W$209,$AO$222,IF($T$6=$W$225,$AO$238,IF($T$6=$W$241,$AO$254,IF($T$6=$W$257,$AO$270,IF($T$6=$W$273,$AO$286,IF($T$6=$W$289,$AO$302,IF($T$6=$W$305,$AO$318,"N/A")))))))))))))))))))) -> 0.03281622778 | W123: 0 | X123: 7 | Y123: 6 | Z123: 0 | AA123: 0 | AB123: 0 | AC123: 2 | AD123: 8 | AE123: 14 | AF123: 1 | AG123: 0 | AJ123: 1 | AK123: 3 | AL123: 3 | AM123: 0 | AN123: 0 | AO123: 0 | AP123: 0 | AQ123: 0 | AR123: 1 | AS123: 1 | AT123: 0
W124: 45 | X124: 13 | Z124: 0 | AA124: 0 | AB124: 3 | AC124: 3 | AG124: 0 | AJ124: 53 | AK124: 13 | AM124: 0 | AN124: 0 | AO124: 2 | AP124: 1 | AT124: 0
V125: Count | W125: 81 | X125: 81 | Y125: 81 | Z125: 81 | AA125: 81 | AB125: 81 | AC125: 81 | AD125: 81 | AE125: 81 | AF125: 81 | AG125: 81 | AI125: Count | AJ125: 89 | AK125: 89 | AL125: 89 | AM125: 89 | AN125: 89 | AO125: 89 | AP125: 89 | AQ125: 89 | AR125: 89 | AS125: 89 | AT125: 89
V126: Average | W126: 3.079929502 | X126: 0.6447194168 | Y126: 0.1519220798 | Z126: -0.1544842307 | AA126: -0.02383353892 | AB126: -0.03418400134 | AC126: 0.1542781345 | AD126: 0.8038511574 | AE126: 0.1295370222 | AF126: 0.03483299885 | AG126: 0.03177882146 | AI126: Average | AJ126: 4.608252792 | AK126: 0.6622960293 | AL126: 0.1548763449 | AM126: 0.09229961624 | AN126: 0.02133958493 | AO126: 0.01554567993 | AP126: 0.2311990645 | AQ126: 0.6468632738 | AR126: 0.08554047619 | AS126: 0.03518804898 | AT126: 0.232408201
F127: =IF(B27=F123,"","Your Farm") ->  | G127: =IF(B27=F123,"",B27) ->  | V127: Non-ratio average | X127: 162856.7768 | AG127: 8027.362444 | AI127: Non-ratio average | AK127: 167346.6465 | AT127: 58724.09215
W129: Crop Acres500-1000No Cows-Feedlot
W130: Current Ratio | X130: Working Capital Ratio | Y130: Debt to Asset Ratio | Z130: Operating Profit Margin | AA130: ROA | AB130: ROE | AC130: Asset Turnover | AD130: Operating Expense Ratio | AE130: Depr Expense Ratio | AF130: Interest Expense Ratio | AG130: NFI Ratio | AJ130: Current Ratio | AK130: Working Capital Ratio | AL130: Debt to Asset Ratio | AM130: Operating Profit Margin | AN130: ROA | AO130: ROE | AP130: Asset Turnover | AQ130: Operating Expense Ratio | AR130: Depr Expense Ratio | AS130: Interest Expense Ratio | AT130: NFI Ratio
E131: Asset Turnover Rate | W131: 1 | X131: 1 | Y131: 3 | Z131: 8 | AA131: 5 | AB131: 10 | AC131: 1 | AD131: 0 | AE131: 0 | AF131: 1 | AG131: 6 | AJ131: 0 | AK131: 0 | AL131: 0 | AM131: 0 | AN131: 1 | AO131: 3 | AP131: 0 | AQ131: 0 | AR131: 0 | AS131: 0 | AT131: 0
F132: 2015 | G132: 10-Year | W132: 0 | X132: 0 | Y132: 3 | Z132: 2 | AA132: 3 | AB132: 2 | AC132: 10 | AD132: 0 | AE132: 2 | AF132: 3 | AG132: 3 | AJ132: 0 | AK132: 1 | AL132: 3 | AM132: 0 | AN132: 1 | AO132: 1 | AP132: 2 | AQ132: 2 | AR132: 3 | AS132: 8 | AT132: 0
E133: 0 | F133: =IF($T$6=$W$1,AC3/$F$143,IF($T$6=$W$17,AC19/$F$143,IF($T$6=$W$33,AC35/$F$143,IF($T$6=$W$49,AC51/$F$143,IF($T$6=$W$65,AC67/$F$143,IF($T$6=$W$81,AC83/$F$143,IF($T$6=$W$97,AC99/$F$143,IF($T$6=$W$113,AC115/$F$143,IF($T$6=$W$129,AC131/$F$143,IF($T$6=$W$145,AC147/$F$143,IF($T$6=$W$161,AC163/$F$143,IF($T$6=$W$177,AC179/$F$58,IF($T$6=$W$193,AC195/$F$58,IF($T$6=$W$209,AC211/$F$58,IF($T$6=$W$225,AC227/$F$58,IF($T$6=$W$241,AC243/$F$58,IF($T$6=$W$257,AC259/$F$58,IF($T$6=$W$273,AC275/$F$58,IF($T$6=$W$289,AC291/$F$58,IF($T$6=$W$305,AC307/$F$58,"N/A")))))))))))))))))))) -> 0 | G133: =IF($T$6=$W$1,AP3/$G$38,IF($T$6=$W$17,AP19/$G$38,IF($T$6=$W$33,AP35/$G$38,IF($T$6=$W$49,AP51/$G$38,IF($T$6=$W$65,AP67/$G$38,IF($T$6=$W$81,AP83/$G$38,IF($T$6=$W$97,AP99/$G$38,IF($T$6=$W$113,AP115/$G$38,IF($T$6=$W$129,AP131/$G$38,IF($T$6=$W$145,AP147/$G$38,IF($T$6=$W$161,AP163/$G$38,IF($T$6=$W$177,AP179/$G$38,IF($T$6=$W$193,AP195/$G$38,IF($T$6=$W$209,AP211/$G$38,IF($T$6=$W$225,AP227/$G$38,IF($T$6=$W$241,AP243/$G$38,IF($T$6=$W$257,AP259/$G$38,IF($T$6=$W$273,AP275/$G$38,IF($T$6=$W$289,AP291/$G$38,IF($T$6=$W$305,AP307/$G$38,"N/A")))))))))))))))))))) -> 0 | W133: 4 | X133: 3 | Y133: 3 | Z133: 1 | AA133: 6 | AB133: 4 | AC133: 5 | AD133: 1 | AE133: 5 | AF133: 9 | AG133: 2 | AJ133: 7 | AK133: 6 | AL133: 5 | AM133: 0 | AN133: 1 | AO133: 9 | AP133: 10 | AQ133: 2 | AR133: 10 | AS133: 12 | AT133: 0
E134: 0.1 | F134: =IF($T$6=$W$1,AC4/$F$143,IF($T$6=$W$17,AC20/$F$143,IF($T$6=$W$33,AC36/$F$143,IF($T$6=$W$49,AC52/$F$143,IF($T$6=$W$65,AC68/$F$143,IF($T$6=$W$81,AC84/$F$143,IF($T$6=$W$97,AC100/$F$143,IF($T$6=$W$113,AC116/$F$143,IF($T$6=$W$129,AC132/$F$143,IF($T$6=$W$145,AC148/$F$143,IF($T$6=$W$161,AC164/$F$143,IF($T$6=$W$177,AC180/$F$58,IF($T$6=$W$193,AC196/$F$58,IF($T$6=$W$209,AC212/$F$58,IF($T$6=$W$225,AC228/$F$58,IF($T$6=$W$241,AC244/$F$58,IF($T$6=$W$257,AC260/$F$58,IF($T$6=$W$273,AC276/$F$58,IF($T$6=$W$289,AC292/$F$58,IF($T$6=$W$305,AC308/$F$58,"N/A")))))))))))))))))))) -> 0.1034482759 | G134: =IF($T$6=$W$1,AP4/$G$38,IF($T$6=$W$17,AP20/$G$38,IF($T$6=$W$33,AP36/$G$38,IF($T$6=$W$49,AP52/$G$38,IF($T$6=$W$65,AP68/$G$38,IF($T$6=$W$81,AP84/$G$38,IF($T$6=$W$97,AP100/$G$38,IF($T$6=$W$113,AP116/$G$38,IF($T$6=$W$129,AP132/$G$38,IF($T$6=$W$145,AP148/$G$38,IF($T$6=$W$161,AP164/$G$38,IF($T$6=$W$177,AP180/$G$38,IF($T$6=$W$193,AP196/$G$38,IF($T$6=$W$209,AP212/$G$38,IF($T$6=$W$225,AP228/$G$38,IF($T$6=$W$241,AP244/$G$38,IF($T$6=$W$257,AP260/$G$38,IF($T$6=$W$273,AP276/$G$38,IF($T$6=$W$289,AP292/$G$38,IF($T$6=$W$305,AP308/$G$38,"N/A")))))))))))))))))))) -> 0.025 | W134: 4 | X134: 1 | Y134: 2 | Z134: 3 | AA134: 5 | AB134: 4 | AC134: 2 | AD134: 2 | AE134: 1 | AF134: 2 | AG134: 3 | AJ134: 3 | AK134: 2 | AL134: 6 | AM134: 2 | AN134: 10 | AO134: 12 | AP134: 6 | AQ134: 8 | AR134: 10 | AS134: 2 | AT134: 3
E135: 0.2 | F135: 0.2413793103 | G135: 0.175 | W135: 3 | X135: 3 | Y135: 1 | Z135: 0 | AA135: 1 | AB135: 0 | AC135: 2 | AD135: 3 | AE135: 5 | AF135: 1 | AG135: 1 | AJ135: 5 | AK135: 6 | AL135: 5 | AM135: 5 | AN135: 15 | AO135: 2 | AP135: 3 | AQ135: 12 | AR135: 5 | AS135: 5 | AT135: 10
E136: 0.3 | F136: 0.1724137931 | G136: 0.2 | W136: 1 | X136: 1 | Y136: 3 | Z136: 3 | AA136: 0 | AB136: 0 | AC136: 0 | AD136: 1 | AE136: 3 | AF136: 0 | AG136: 4 | AJ136: 4 | AK136: 4 | AL136: 3 | AM136: 16 | AN136: 0 | AO136: 1 | AP136: 4 | AQ136: 6 | AR136: 2 | AS136: 3 | AT136: 14
E137: 0.4 | F137: 0.1379310345 | G137: 0.25 | S137: Your Farm Line-Asset Turnover Rate | W137: 2 | X137: 3 | Y137: 2 | Z137: 2 | AA137: 0 | AB137: 0 | AC137: 0 | AD137: 3 | AE137: 2 | AF137: 1 | AG137: 1 | AJ137: 2 | AK137: 6 | AL137: 1 | AM137: 6 | AN137: 1 | AO137: 0 | AP137: 1 | AQ137: 0 | AR137: 0 | AS137: 0 | AT137: 3
E138: 0.5 | F138: 0.1379310345 | G138: 0.15 | S138: X's | T138: =B28 -> 0.2192550395 | U138: =T138 -> 0.2192550395 | W138: 0 | X138: 1 | Y138: 0 | Z138: 0 | AA138: 0 | AB138: 0 | AC138: 0 | AD138: 1 | AE138: 1 | AF138: 1 | AG138: 0 | AJ138: 0 | AK138: 1 | AL138: 5 | AM138: 1 | AN138: 0 | AO138: 0 | AP138: 1 | AQ138: 0 | AR138: 0 | AS138: 0 | AT138: 0
E139: 0.6 | F139: 0.03448275862 | G139: 0.1 | S139: Y's | T139: 0 | U139: 0.6 | W139: 0 | X139: 2 | Y139: 3 | Z139: 0 | AA139: 0 | AB139: 0 | AC139: 0 | AD139: 9 | AE139: 1 | AF139: 2 | AG139: 0 | AJ139: 1 | AK139: 2 | AL139: 2 | AM139: 0 | AN139: 1 | AO139: 1 | AP139: 1 | AQ139: 0 | AR139: 0 | AS139: 0 | AT139: 0
E140: 0.7 | F140: 0.1034482759 | G140: 0 | S140: =IF(B28=F144,U1 &" Average","Your Farm") -> 2015 Average | W140: 5 | X140: 5 | Z140: 1 | AA140: 0 | AB140: 0 | AC140: 0 | AG140: 0 | AJ140: 8 | AK140: 2 | AM140: 0 | AN140: 0 | AO140: 1 | AP140: 2 | AT140: 0
E141: 0.8 | F141: 0.03448275862 | G141: 0.025 | V141: Count | W141: 20 | X141: 20 | Y141: 20 | Z141: 20 | AA141: 20 | AB141: 20 | AC141: 20 | AD141: 20 | AE141: 20 | AF141: 20 | AG141: 20 | AI141: Count | AJ141: 30 | AK141: 30 | AL141: 30 | AM141: 30 | AN141: 30 | AO141: 30 | AP141: 30 | AQ141: 30 | AR141: 30 | AS141: 30 | AT141: 30
E142: More | F142: =IF($T$6=$W$1,AC12/$F$143,IF($T$6=$W$17,AC28/$F$143,IF($T$6=$W$33,AC44/$F$143,IF($T$6=$W$49,AC60/$F$143,IF($T$6=$W$65,AC76/$F$143,IF($T$6=$W$81,AC92/$F$143,IF($T$6=$W$97,AC108/$F$143,IF($T$6=$W$113,AC124/$F$143,IF($T$6=$W$129,AC140/$F$143,IF($T$6=$W$145,AC156/$F$143,IF($T$6=$W$161,AC172/$F$143,IF($T$6=$W$177,AC188/$F$58,IF($T$6=$W$193,AC204/$F$58,IF($T$6=$W$209,AC220/$F$58,IF($T$6=$W$225,AC236/$F$58,IF($T$6=$W$241,AC252/$F$58,IF($T$6=$W$257,AC268/$F$58,IF($T$6=$W$273,AC284/$F$58,IF($T$6=$W$289,AC300/$F$58,IF($T$6=$W$305,AC316/$F$58,"N/A")))))))))))))))))))) -> 0.03448275862 | G142: =IF($T$6=$W$1,AP12/$G$38,IF($T$6=$W$17,AP28/$G$38,IF($T$6=$W$33,AP44/$G$38,IF($T$6=$W$49,AP60/$G$38,IF($T$6=$W$65,AP76/$G$38,IF($T$6=$W$81,AP92/$G$38,IF($T$6=$W$97,AP108/$G$38,IF($T$6=$W$113,AP124/$G$38,IF($T$6=$W$129,AP140/$G$38,IF($T$6=$W$145,AP156/$G$38,IF($T$6=$W$161,AP172/$G$38,IF($T$6=$W$177,AP188/$G$38,IF($T$6=$W$193,AP204/$G$38,IF($T$6=$W$209,AP220/$G$38,IF($T$6=$W$225,AP236/$G$38,IF($T$6=$W$241,AP252/$G$38,IF($T$6=$W$257,AP268/$G$38,IF($T$6=$W$273,AP284/$G$38,IF($T$6=$W$289,AP300/$G$38,IF($T$6=$W$305,AP316/$G$38,"N/A")))))))))))))))))))) -> 0.075 | V142: Average | W142: 1.683277833 | X142: 0.9965619533 | Y142: 0.2474629807 | Z142: -0.6353483979 | AA142: -0.04977199504 | AB142: -0.07724400061 | AC142: 0.07833811371 | AD142: 1.09732342 | AE142: 0.08163011741 | AF142: 0.06634131523 | AG142: -0.2452948528 | AI142: Average | AJ142: 1.7749824 | AK142: 0.5547072631 | AL142: 0.3281706085 | AM142: 0.09040447418 | AN142: 0.01840730212 | AO142: 0.003698076321 | AP142: 0.2036105214 | AQ142: 0.7545698692 | AR142: 0.05650243258 | AS142: 0.05583766829 | AT142: 0.1330900299
E143: Count | F143: =F122 -> 29 | G143: =G122 -> 40 | V143: Non-ratio average | X143: 382886.188 | AG143: -94244.0265 | AI143: Non-ratio average | AK143: 246723.5493 | AT143: 59195.98814
E144: Average | F144: =IF($T$6=$W$1,$AC$14,IF($T$6=$W$17,$AC$30,IF($T$6=$W$33,$AC$46,IF($T$6=$W$49,$AC$62,IF($T$6=$W$65,$AC$78,IF($T$6=$W$81,$AC$94,IF($T$6=$W$97,$AC$110,IF($T$6=$W$113,$AC$126,IF($T$6=$W$129,$AC$142,IF($T$6=$W$145,$AC$158,IF($T$6=W161,AC174,IF($T$6=$W$177,$AC$190,IF($T$6=$W$193,$AC$206,IF($T$6=$W$209,$AC$222,IF($T$6=$W$225,$AC$238,IF($T$6=$W$241,$AC$254,IF($T$6=$W$257,$AC$270,IF($T$6=$W$273,$AC$286,IF($T$6=$W$289,$AC$302,IF($T$6=$W$305,$AC$318,"N/A")))))))))))))))))))) -> 0.2192550395 | G144: =IF($T$6=$W$1,$AP$14,IF($T$6=$W$17,$AP$30,IF($T$6=$W$33,$AP$46,IF($T$6=$W$49,$AP$62,IF($T$6=$W$65,$AP$78,IF($T$6=$W$81,$AP$94,IF($T$6=$W$97,$AP$110,IF($T$6=$W$113,$AP$126,IF($T$6=$W$129,$AP$142,IF($T$6=$W$145,$AP$158,IF($T$6=$W$161,$AP$174,IF($T$6=$W$177,$AP$190,IF($T$6=$W$193,$AP$206,IF($T$6=$W$209,$AP$222,IF($T$6=$W$225,$AP$238,IF($T$6=$W$241,$AP$254,IF($T$6=$W$257,$AP$270,IF($T$6=$W$273,$AP$286,IF($T$6=$W$289,$AP$302,IF($T$6=$W$305,$AP$318,"N/A")))))))))))))))))))) -> 0.3299959613
W145: Crop Acres500-1000<100 Cows
W146: Current Ratio | X146: Working Capital Ratio | Y146: Debt to Asset Ratio | Z146: Operating Profit Margin | AA146: ROA | AB146: ROE | AC146: Asset Turnover | AD146: Operating Expense Ratio | AE146: Depr Expense Ratio | AF146: Interest Expense Ratio | AG146: NFI Ratio | AJ146: Current Ratio | AK146: Working Capital Ratio | AL146: Debt to Asset Ratio | AM146: Operating Profit Margin | AN146: ROA | AO146: ROE | AP146: Asset Turnover | AQ146: Operating Expense Ratio | AR146: Depr Expense Ratio | AS146: Interest Expense Ratio | AT146: NFI Ratio
W147: 0 | X147: 6 | Y147: 10 | Z147: 12 | AA147: 13 | AB147: 24 | AC147: 0 | AD147: 1 | AE147: 0 | AF147: 13 | AG147: 8 | AJ147: 0 | AK147: 2 | AL147: 4 | AM147: 3 | AN147: 5 | AO147: 12 | AP147: 0 | AQ147: 1 | AR147: 0 | AS147: 1 | AT147: 0
F148: =IF(B28=F144,"","Your Farm") ->  | G148: =IF(B28=F144,"",B28) ->  | W148: 4 | X148: 1 | Y148: 15 | Z148: 6 | AA148: 16 | AB148: 17 | AC148: 19 | AD148: 3 | AE148: 10 | AF148: 27 | AG148: 4 | AJ148: 1 | AK148: 2 | AL148: 35 | AM148: 1 | AN148: 2 | AO148: 13 | AP148: 5 | AQ148: 2 | AR148: 10 | AS148: 54 | AT148: 0
W149: 15 | X149: 13 | Y149: 19 | Z149: 14 | AA149: 26 | AB149: 33 | AC149: 32 | AD149: 7 | AE149: 10 | AF149: 21 | AG149: 5 | AJ149: 13 | AK149: 10 | AL149: 17 | AM149: 3 | AN149: 18 | AO149: 37 | AP149: 27 | AQ149: 24 | AR149: 28 | AS149: 32 | AT149: 1
W150: 12 | X150: 16 | Y150: 13 | Z150: 18 | AA150: 23 | AB150: 6 | AC150: 15 | AD150: 11 | AE150: 15 | AF150: 14 | AG150: 21 | AJ150: 20 | AK150: 28 | AL150: 12 | AM150: 5 | AN150: 49 | AO150: 41 | AP150: 35 | AQ150: 47 | AR150: 53 | AS150: 18 | AT150: 3
W151: 6 | X151: 9 | Y151: 9 | Z151: 19 | AA151: 3 | AB151: 2 | AC151: 5 | AD151: 23 | AE151: 17 | AF151: 5 | AG151: 27 | AJ151: 9 | AK151: 25 | AL151: 20 | AM151: 34 | AN151: 35 | AO151: 9 | AP151: 22 | AQ151: 36 | AR151: 21 | AS151: 12 | AT151: 33
E152: Operating Expense Ratio | W152: 1 | X152: 13 | Y152: 6 | Z152: 13 | AA152: 2 | AB152: 0 | AC152: 7 | AD152: 14 | AE152: 14 | AF152: 5 | AG152: 11 | AJ152: 6 | AK152: 18 | AL152: 13 | AM152: 57 | AN152: 7 | AO152: 2 | AP152: 16 | AQ152: 8 | AR152: 6 | AS152: 2 | AT152: 63
F153: 2015 | G153: 10-Year | W153: 2 | X153: 9 | Y153: 4 | Z153: 2 | AA153: 1 | AB153: 3 | AC153: 4 | AD153: 13 | AE153: 8 | AF153: 1 | AG153: 8 | AJ153: 8 | AK153: 17 | AL153: 8 | AM153: 14 | AN153: 4 | AO153: 7 | AP153: 8 | AQ153: 4 | AR153: 4 | AS153: 3 | AT153: 21
E154: 0.4 | F154: =IF($T$6=$W$1,AD3/$F$143,IF($T$6=$W$17,AD19/$F$143,IF($T$6=$W$33,AD35/$F$143,IF($T$6=$W$49,AD51/$F$143,IF($T$6=$W$65,AD67/$F$143,IF($T$6=$W$81,AD83/$F$143,IF($T$6=$W$97,AD99/$F$143,IF($T$6=$W$113,AD115/$F$143,IF($T$6=$W$129,AD131/$F$143,IF($T$6=$W$145,AD147/$F$143,IF($T$6=$W$161,AD163/$F$143,IF($T$6=$W$177,AD179/$F$58,IF($T$6=$W$193,AD195/$F$58,IF($T$6=$W$209,AD211/$F$58,IF($T$6=$W$225,AD227/$F$58,IF($T$6=$W$241,AD243/$F$58,IF($T$6=$W$257,AD259/$F$58,IF($T$6=$W$273,AD275/$F$58,IF($T$6=$W$289,AD291/$F$58,IF($T$6=$W$305,AD307/$F$58,"N/A")))))))))))))))))))) -> 0 | G154: =IF($T$6=$W$1,AQ3/$G$38,IF($T$6=$W$17,AQ19/$G$38,IF($T$6=$W$33,AQ35/$G$38,IF($T$6=$W$49,AQ51/$G$38,IF($T$6=$W$65,AQ67/$G$38,IF($T$6=$W$81,AQ83/$G$38,IF($T$6=$W$97,AQ99/$G$38,IF($T$6=$W$113,AQ115/$G$38,IF($T$6=$W$129,AQ131/$G$38,IF($T$6=$W$145,AQ147/$G$38,IF($T$6=$W$161,AQ163/$G$38,IF($T$6=$W$177,AQ179/$G$38,IF($T$6=$W$193,AQ195/$G$38,IF($T$6=$W$209,AQ211/$G$38,IF($T$6=$W$225,AQ227/$G$38,IF($T$6=$W$241,AQ243/$G$38,IF($T$6=$W$257,AQ259/$G$38,IF($T$6=$W$273,AQ275/$G$38,IF($T$6=$W$289,AQ291/$G$38,IF($T$6=$W$305,AQ307/$G$38,"N/A")))))))))))))))))))) -> 0 | W154: 1 | X154: 4 | Y154: 7 | Z154: 1 | AA154: 0 | AB154: 0 | AC154: 2 | AD154: 2 | AE154: 3 | AF154: 0 | AG154: 1 | AJ154: 3 | AK154: 5 | AL154: 3 | AM154: 6 | AN154: 3 | AO154: 0 | AP154: 3 | AQ154: 0 | AR154: 1 | AS154: 0 | AT154: 2
E155: 0.5 | F155: =IF($T$6=$W$1,AD4/$F$143,IF($T$6=$W$17,AD20/$F$143,IF($T$6=$W$33,AD36/$F$143,IF($T$6=$W$49,AD52/$F$143,IF($T$6=$W$65,AD68/$F$143,IF($T$6=$W$81,AD84/$F$143,IF($T$6=$W$97,AD100/$F$143,IF($T$6=$W$113,AD116/$F$143,IF($T$6=$W$129,AD132/$F$143,IF($T$6=$W$145,AD148/$F$143,IF($T$6=$W$161,AD164/$F$143,IF($T$6=$W$177,AD180/$F$58,IF($T$6=$W$193,AD196/$F$58,IF($T$6=$W$209,AD212/$F$58,IF($T$6=$W$225,AD228/$F$58,IF($T$6=$W$241,AD244/$F$58,IF($T$6=$W$257,AD260/$F$58,IF($T$6=$W$273,AD276/$F$58,IF($T$6=$W$289,AD292/$F$58,IF($T$6=$W$305,AD308/$F$58,"N/A")))))))))))))))))))) -> 0.06896551724 | G155: =IF($T$6=$W$1,AQ4/$G$38,IF($T$6=$W$17,AQ20/$G$38,IF($T$6=$W$33,AQ36/$G$38,IF($T$6=$W$49,AQ52/$G$38,IF($T$6=$W$65,AQ68/$G$38,IF($T$6=$W$81,AQ84/$G$38,IF($T$6=$W$97,AQ100/$G$38,IF($T$6=$W$113,AQ116/$G$38,IF($T$6=$W$129,AQ132/$G$38,IF($T$6=$W$145,AQ148/$G$38,IF($T$6=$W$161,AQ164/$G$38,IF($T$6=$W$177,AQ180/$G$38,IF($T$6=$W$193,AQ196/$G$38,IF($T$6=$W$209,AQ212/$G$38,IF($T$6=$W$225,AQ228/$G$38,IF($T$6=$W$241,AQ244/$G$38,IF($T$6=$W$257,AQ260/$G$38,IF($T$6=$W$273,AQ276/$G$38,IF($T$6=$W$289,AQ292/$G$38,IF($T$6=$W$305,AQ308/$G$38,"N/A")))))))))))))))))))) -> 0.025 | W155: 2 | X155: 4 | Y155: 3 | Z155: 1 | AA155: 1 | AB155: 0 | AC155: 1 | AD155: 12 | AE155: 9 | AF155: 0 | AG155: 1 | AJ155: 3 | AK155: 8 | AL155: 11 | AM155: 0 | AN155: 0 | AO155: 0 | AP155: 1 | AQ155: 1 | AR155: 0 | AS155: 1 | AT155: 0
E156: 0.6 | F156: 0 | G156: 0.025 | W156: 43 | X156: 11 | Z156: 0 | AA156: 1 | AB156: 1 | AC156: 1 | AG156: 0 | AJ156: 60 | AK156: 8 | AM156: 0 | AN156: 0 | AO156: 2 | AP156: 6 | AT156: 0
E157: 0.7 | F157: 0.1379310345 | G157: 0.05 | V157: Count | W157: 86 | X157: 86 | Y157: 86 | Z157: 86 | AA157: 86 | AB157: 86 | AC157: 86 | AD157: 86 | AE157: 86 | AF157: 86 | AG157: 86 | AI157: Count | AJ157: 123 | AK157: 123 | AL157: 123 | AM157: 123 | AN157: 123 | AO157: 123 | AP157: 123 | AQ157: 123 | AR157: 123 | AS157: 123 | AT157: 123
E158: 0.8 | F158: 0.1724137931 | G158: 0.4 | V158: Average | W158: 2.288614785 | X158: 0.5191062197 | Y158: 0.2004310509 | Z158: -0.2139037557 | AA158: -0.03308261452 | AB158: -0.04996017975 | AC158: 0.1546612139 | AD158: 0.8204249737 | AE158: 0.1192542609 | AF158: 0.04653963399 | AG158: 0.0137811314 | AI158: Average | AJ158: 3.028194428 | AK158: 0.545892675 | AL158: 0.2397430099 | AM158: 0.06664747478 | AN158: 0.01716663609 | AO158: 0.005979112809 | AP158: 0.2575736912 | AQ158: 0.6749055857 | AR158: 0.07454287774 | AS158: 0.04574782245 | AT158: 0.2048037141
E159: 0.9 | F159: 0.3103448276 | G159: 0.425 | S159: Your Farm Line-Operating Expense Ratio | V159: Non-ratio average | X159: 121497.4378 | AG159: 3225.490453 | AI159: Non-ratio average | AK159: 139257.95 | AT159: 52245.70084
E160: 1 | F160: 0.2068965517 | G160: 0.025 | S160: X's | T160: =B29 -> 0.8216242073 | U160: =T160 -> 0.8216242073
E161: 1.1 | F161: 0.06896551724 | G161: 0.025 | S161: Y's | T161: 0 | U161: 0.5 | W161: Crop Acres500-1000100+ Cows
E162: More | F162: =IF($T$6=$W$1,AD11/$F$143,IF($T$6=$W$17,AD27/$F$143,IF($T$6=$W$33,AD43/$F$143,IF($T$6=$W$49,AD59/$F$143,IF($T$6=$W$65,AD75/$F$143,IF($T$6=$W$81,AD91/$F$143,IF($T$6=$W$97,AD107/$F$143,IF($T$6=$W$113,AD123/$F$143,IF($T$6=$W$129,AD139/$F$143,IF($T$6=$W$145,AD155/$F$143,IF($T$6=$W$161,AD171/$F$143,IF($T$6=$W$177,AD187/$F$58,IF($T$6=$W$193,AD203/$F$58,IF($T$6=$W$209,AD219/$F$58,IF($T$6=$W$225,AD235/$F$58,IF($T$6=$W$241,AD251/$F$58,IF($T$6=$W$257,AD267/$F$58,IF($T$6=$W$273,AD283/$F$58,IF($T$6=$W$289,AD299/$F$58,IF($T$6=$W$305,AD315/$F$58,"N/A")))))))))))))))))))) -> 0.03448275862 | G162: =IF($T$6=$W$1,AQ11/$G$38,IF($T$6=$W$17,AQ27/$G$38,IF($T$6=$W$33,AQ43/$G$38,IF($T$6=$W$49,AQ59/$G$38,IF($T$6=$W$65,AQ75/$G$38,IF($T$6=$W$81,AQ91/$G$38,IF($T$6=$W$97,AQ107/$G$38,IF($T$6=$W$113,AQ123/$G$38,IF($T$6=$W$129,AQ139/$G$38,IF($T$6=$W$145,AQ155/$G$38,IF($T$6=$W$161,AQ171/$G$38,IF($T$6=$W$177,AQ187/$G$38,IF($T$6=$W$193,AQ203/$G$38,IF($T$6=$W$209,AQ219/$G$38,IF($T$6=$W$225,AQ235/$G$38,IF($T$6=$W$241,AQ251/$G$38,IF($T$6=$W$257,AQ267/$G$38,IF($T$6=$W$273,AQ283/$G$38,IF($T$6=$W$289,AQ299/$G$38,IF($T$6=$W$305,AQ315/$G$38,"N/A")))))))))))))))))))) -> 0.025 | S162: =IF(B29=F164,U1 &" Average","Your Farm") -> 2015 Average | W162: Current Ratio | X162: Working Capital Ratio | Y162: Debt to Asset Ratio | Z162: Operating Profit Margin | AA162: ROA | AB162: ROE | AC162: Asset Turnover | AD162: Operating Expense Ratio | AE162: Depr Expense Ratio | AF162: Interest Expense Ratio | AG162: NFI Ratio | AJ162: Current Ratio | AK162: Working Capital Ratio | AL162: Debt to Asset Ratio | AM162: Operating Profit Margin | AN162: ROA | AO162: ROE | AP162: Asset Turnover | AQ162: Operating Expense Ratio | AR162: Depr Expense Ratio | AS162: Interest Expense Ratio | AT162: NFI Ratio
E163: Count | F163: =F143 -> 29 | G163: =G143 -> 40 | W163: 0 | X163: 1 | Y163: 6 | Z163: 6 | AA163: 5 | AB163: 5 | AC163: 1 | AD163: 1 | AE163: 0 | AF163: 7 | AG163: 4 | AJ163: 0 | AK163: 0 | AL163: 4 | AM163: 0 | AN163: 0 | AO163: 2 | AP163: 0 | AQ163: 0 | AR163: 0 | AS163: 2 | AT163: 0
E164: Average | F164: =IF($T$6=$W$1,$AD$14,IF($T$6=$W$17,$AD$30,IF($T$6=$W$33,$AD$46,IF($T$6=$W$49,$AD$62,IF($T$6=$W$65,$AD$78,IF($T$6=$W$81,$AD$94,IF($T$6=$W$97,$AD$110,IF($T$6=$W$113,$AD$126,IF($T$6=$W$129,$AD$142,IF($T$6=$W$145,$AD$158,IF($T$6=W161,AD174,IF($T$6=$W$177,$AD$190,IF($T$6=$W$193,$AD$206,IF($T$6=$W$209,$AD$222,IF($T$6=$W$225,$AD$238,IF($T$6=$W$241,$AD$254,IF($T$6=$W$257,$AD$270,IF($T$6=$W$273,$AD$286,IF($T$6=$W$289,$AD$302,IF($T$6=$W$305,$AD$318,"N/A")))))))))))))))))))) -> 0.8216242073 | G164: =IF($T$6=$W$1,$AQ$14,IF($T$6=$W$17,$AQ$30,IF($T$6=$W$33,$AQ$46,IF($T$6=$W$49,$AQ$62,IF($T$6=$W$65,$AQ$78,IF($T$6=$W$81,$AQ$94,IF($T$6=$W$97,$AQ$110,IF($T$6=$W$113,$AQ$126,IF($T$6=$W$129,$AQ$142,IF($T$6=$W$145,$AQ$158,IF($T$6=$W$161,$AQ$174,IF($T$6=$W$177,$AQ$190,IF($T$6=$W$193,$AQ$206,IF($T$6=$W$209,$AQ$222,IF($T$6=$W$225,$AQ$238,IF($T$6=$W$241,$AQ$254,IF($T$6=$W$257,$AQ$270,IF($T$6=$W$273,$AQ$286,IF($T$6=$W$289,$AQ$302,IF($T$6=$W$305,$AQ$318,"N/A")))))))))))))))))))) -> 0.7598585291 | W164: 0 | X164: 1 | Y164: 11 | Z164: 0 | AA164: 2 | AB164: 5 | AC164: 14 | AD164: 2 | AE164: 0 | AF164: 13 | AG164: 1 | AJ164: 0 | AK164: 1 | AL164: 14 | AM164: 0 | AN164: 0 | AO164: 3 | AP164: 4 | AQ164: 4 | AR164: 2 | AS164: 19 | AT164: 0
W165: 7 | X165: 5 | Y165: 13 | Z165: 2 | AA165: 8 | AB165: 25 | AC165: 23 | AD165: 6 | AE165: 6 | AF165: 15 | AG165: 1 | AJ165: 5 | AK165: 4 | AL165: 9 | AM165: 0 | AN165: 5 | AO165: 17 | AP165: 22 | AQ165: 15 | AR165: 18 | AS165: 23 | AT165: 1
W166: 4 | X166: 3 | Y166: 10 | Z166: 7 | AA166: 24 | AB166: 11 | AC166: 8 | AD166: 13 | AE166: 13 | AF166: 5 | AG166: 7 | AJ166: 7 | AK166: 10 | AL166: 13 | AM166: 1 | AN166: 28 | AO166: 27 | AP166: 20 | AQ166: 21 | AR166: 23 | AS166: 7 | AT166: 3
W167: 5 | X167: 11 | Y167: 7 | Z167: 18 | AA167: 10 | AB167: 4 | AC167: 4 | AD167: 12 | AE167: 13 | AF167: 9 | AG167: 18 | AJ167: 2 | AK167: 12 | AL167: 9 | AM167: 9 | AN167: 19 | AO167: 6 | AP167: 7 | AQ167: 11 | AR167: 10 | AS167: 4 | AT167: 12
F168: =IF(B29=F164,"","Your Farm") ->  | G168: =IF(B29=F164,"",B29) ->  | W168: 7 | X168: 11 | Y168: 2 | Z168: 9 | AA168: 2 | AB168: 0 | AC168: 1 | AD168: 9 | AE168: 6 | AF168: 0 | AG168: 11 | AJ168: 5 | AK168: 11 | AL168: 6 | AM168: 29 | AN168: 7 | AO168: 3 | AP168: 2 | AQ168: 7 | AR168: 4 | AS168: 2 | AT168: 29
W169: 1 | X169: 6 | Y169: 1 | Z169: 6 | AA169: 0 | AB169: 0 | AC169: 0 | AD169: 2 | AE169: 6 | AF169: 1 | AG169: 7 | AJ169: 2 | AK169: 11 | AL169: 2 | AM169: 17 | AN169: 0 | AO169: 0 | AP169: 1 | AQ169: 1 | AR169: 2 | AS169: 2 | AT169: 12
W170: 2 | X170: 4 | Y170: 0 | Z170: 1 | AA170: 0 | AB170: 0 | AC170: 0 | AD170: 0 | AE170: 4 | AF170: 0 | AG170: 1 | AJ170: 4 | AK170: 5 | AL170: 0 | AM170: 3 | AN170: 0 | AO170: 0 | AP170: 1 | AQ170: 0 | AR170: 0 | AS170: 0 | AT170: 2
W171: 0 | X171: 3 | Y171: 1 | Z171: 1 | AA171: 0 | AB171: 0 | AC171: 0 | AD171: 6 | AE171: 3 | AF171: 1 | AG171: 1 | AJ171: 2 | AK171: 1 | AL171: 2 | AM171: 0 | AN171: 0 | AO171: 0 | AP171: 1 | AQ171: 0 | AR171: 0 | AS171: 0 | AT171: 0
W172: 25 | X172: 6 | Z172: 1 | AA172: 0 | AB172: 1 | AC172: 0 | AG172: 0 | AJ172: 32 | AK172: 4 | AM172: 0 | AN172: 0 | AO172: 1 | AP172: 1 | AT172: 0
E173: Depreciation Expense Ratio | V173: Count | W173: 51 | X173: 51 | Y173: 51 | Z173: 51 | AA173: 51 | AB173: 51 | AC173: 51 | AD173: 51 | AE173: 51 | AF173: 51 | AG173: 51 | AI173: Count | AJ173: 59 | AK173: 59 | AL173: 59 | AM173: 59 | AN173: 59 | AO173: 59 | AP173: 59 | AQ173: 59 | AR173: 59 | AS173: 59 | AT173: 59
F174: 2015 | G174: 10-Year | V174: Average | W174: 2.646068313 | X174: 0.6619597479 | Y174: 0.1749919766 | Z174: -0.08529690671 | AA174: -0.01080092102 | AB174: -0.02238843049 | AC174: 0.1266273472 | AD174: 0.7620769286 | AE174: 0.1063172645 | AF174: 0.05228245505 | AG174: 0.07932335185 | AI174: Average | AJ174: 2.719513112 | AK174: 0.5646635393 | AL174: 0.1915414379 | AM174: 0.1097254342 | AN174: 0.02147569583 | AO174: 0.0137447404 | AP174: 0.1957221312 | AQ174: 0.6779800111 | AR174: 0.07237778758 | AS174: 0.04670407226 | AT174: 0.2029381291
E175: 0 | F175: =IF($T$6=$W$1,AE3/$F$143,IF($T$6=$W$17,AE19/$F$143,IF($T$6=$W$33,AE35/$F$143,IF($T$6=$W$49,AE51/$F$143,IF($T$6=$W$65,AE67/$F$143,IF($T$6=$W$81,AE83/$F$143,IF($T$6=$W$97,AE99/$F$143,IF($T$6=$W$113,AE115/$F$143,IF($T$6=$W$129,AE131/$F$143,IF($T$6=$W$145,AE147/$F$143,IF($T$6=$W$161,AE163/$F$143,IF($T$6=$W$177,AE179/$F$58,IF($T$6=$W$193,AE195/$F$58,IF($T$6=$W$209,AE211/$F$58,IF($T$6=$W$225,AE227/$F$58,IF($T$6=$W$241,AE243/$F$58,IF($T$6=$W$257,AE259/$F$58,IF($T$6=$W$273,AE275/$F$58,IF($T$6=$W$289,AE291/$F$58,IF($T$6=$W$305,AE307/$F$58,"N/A")))))))))))))))))))) -> 0 | G175: =IF($T$6=$W$1,AR3/$G$38,IF($T$6=$W$17,AR19/$G$38,IF($T$6=$W$33,AR35/$G$38,IF($T$6=$W$49,AR51/$G$38,IF($T$6=$W$65,AR67/$G$38,IF($T$6=$W$81,AR83/$G$38,IF($T$6=$W$97,AR99/$G$38,IF($T$6=$W$113,AR115/$G$38,IF($T$6=$W$129,AR131/$G$38,IF($T$6=$W$145,AR147/$G$38,IF($T$6=$W$161,AR163/$G$38,IF($T$6=$W$177,AR179/$G$38,IF($T$6=$W$193,AR195/$G$38,IF($T$6=$W$209,AR211/$G$38,IF($T$6=$W$225,AR227/$G$38,IF($T$6=$W$241,AR243/$G$38,IF($T$6=$W$257,AR259/$G$38,IF($T$6=$W$273,AR275/$G$38,IF($T$6=$W$289,AR291/$G$38,IF($T$6=$W$305,AR307/$G$38,"N/A")))))))))))))))))))) -> 0 | V175: Non-ratio average | X175: 234688.9443 | AG175: 28123.02978 | AI175: Non-ratio average | AK175: 211524.785 | AT175: 76021.27842
E176: 0.03 | F176: =IF($T$6=$W$1,AE4/$F$143,IF($T$6=$W$17,AE20/$F$143,IF($T$6=$W$33,AE36/$F$143,IF($T$6=$W$49,AE52/$F$143,IF($T$6=$W$65,AE68/$F$143,IF($T$6=$W$81,AE84/$F$143,IF($T$6=$W$97,AE100/$F$143,IF($T$6=$W$113,AE116/$F$143,IF($T$6=$W$129,AE132/$F$143,IF($T$6=$W$145,AE148/$F$143,IF($T$6=$W$161,AE164/$F$143,IF($T$6=$W$177,AE180/$F$58,IF($T$6=$W$193,AE196/$F$58,IF($T$6=$W$209,AE212/$F$58,IF($T$6=$W$225,AE228/$F$58,IF($T$6=$W$241,AE244/$F$58,IF($T$6=$W$257,AE260/$F$58,IF($T$6=$W$273,AE276/$F$58,IF($T$6=$W$289,AE292/$F$58,IF($T$6=$W$305,AE308/$F$58,"N/A")))))))))))))))))))) -> 0.1379310345 | G176: =IF($T$6=$W$1,AR4/$G$38,IF($T$6=$W$17,AR20/$G$38,IF($T$6=$W$33,AR36/$G$38,IF($T$6=$W$49,AR52/$G$38,IF($T$6=$W$65,AR68/$G$38,IF($T$6=$W$81,AR84/$G$38,IF($T$6=$W$97,AR100/$G$38,IF($T$6=$W$113,AR116/$G$38,IF($T$6=$W$129,AR132/$G$38,IF($T$6=$W$145,AR148/$G$38,IF($T$6=$W$161,AR164/$G$38,IF($T$6=$W$177,AR180/$G$38,IF($T$6=$W$193,AR196/$G$38,IF($T$6=$W$209,AR212/$G$38,IF($T$6=$W$225,AR228/$G$38,IF($T$6=$W$241,AR244/$G$38,IF($T$6=$W$257,AR260/$G$38,IF($T$6=$W$273,AR276/$G$38,IF($T$6=$W$289,AR292/$G$38,IF($T$6=$W$305,AR308/$G$38,"N/A")))))))))))))))))))) -> 0.05
E177: 0.06 | F177: 0.4137931034 | G177: 0.6 | W177: Crop Acres1000-2000None | AI177: 10-Year
E178: 0.09 | F178: 0.2413793103 | G178: 0.25 | W178: Current Ratio | X178: Working Capital Ratio | Y178: Debt to Asset Ratio | Z178: Operating Profit Margin | AA178: ROA | AB178: ROE | AC178: Asset Turnover | AD178: Operating Expense Ratio | AE178: Depr Expense Ratio | AF178: Interest Expense Ratio | AG178: NFI Ratio | AJ178: Current Ratio | AK178: Working Capital Ratio | AL178: Debt to Asset Ratio | AM178: Operating Profit Margin | AN178: ROA | AO178: ROE | AP178: Asset Turnover | AQ178: Operating Expense Ratio | AR178: Depr Expense Ratio | AS178: Interest Expense Ratio | AT178: NFI Ratio
E179: 0.12 | F179: 0.1379310345 | G179: 0.1 | W179: 1 | X179: 3 | Y179: 25 | Z179: 16 | AA179: 15 | AB179: 30 | AC179: 0 | AD179: 1 | AE179: 2 | AF179: 26 | AG179: 13 | AJ179: 2 | AK179: 1 | AL179: 9 | AM179: 0 | AN179: 4 | AO179: 12 | AP179: 0 | AQ179: 3 | AR179: 1 | AS179: 4 | AT179: 0
E180: 0.15 | F180: 0.06896551724 | G180: 0 | W180: 10 | X180: 13 | Y180: 46 | Z180: 4 | AA180: 17 | AB180: 20 | AC180: 26 | AD180: 6 | AE180: 5 | AF180: 72 | AG180: 4 | AJ180: 3 | AK180: 3 | AL180: 53 | AM180: 0 | AN180: 4 | AO180: 5 | AP180: 4 | AQ180: 13 | AR180: 8 | AS180: 87 | AT180: 0
E181: 0.18 | F181: 0 | G181: 0 | S181: Your Farm Line-Depreciation Expense Ratio | W181: 16 | X181: 10 | Y181: 26 | Z181: 10 | AA181: 31 | AB181: 53 | AC181: 50 | AD181: 13 | AE181: 9 | AF181: 36 | AG181: 10 | AJ181: 10 | AK181: 9 | AL181: 24 | AM181: 2 | AN181: 5 | AO181: 18 | AP181: 25 | AQ181: 47 | AR181: 28 | AS181: 46 | AT181: 1
E182: 0.21 | F182: 0 | G182: 0 | S182: X's | T182: =B30 -> 0.06856876829 | U182: =T182 -> 0.06856876829 | W182: 23 | X182: 30 | Y182: 15 | Z182: 30 | AA182: 61 | AB182: 33 | AC182: 31 | AD182: 31 | AE182: 27 | AF182: 13 | AG182: 33 | AJ182: 20 | AK182: 33 | AL182: 22 | AM182: 6 | AN182: 29 | AO182: 47 | AP182: 35 | AQ182: 54 | AR182: 51 | AS182: 15 | AT182: 3
E183: More | F183: =IF($T$6=$W$1,AE11/$F$143,IF($T$6=$W$17,AE27/$F$143,IF($T$6=$W$33,AE43/$F$143,IF($T$6=$W$49,AE59/$F$143,IF($T$6=$W$65,AE75/$F$143,IF($T$6=$W$81,AE91/$F$143,IF($T$6=$W$97,AE107/$F$143,IF($T$6=$W$113,AE123/$F$143,IF($T$6=$W$129,AE139/$F$143,IF($T$6=$W$145,AE155/$F$143,IF($T$6=$W$161,AE171/$F$143,IF($T$6=$W$177,AE187/$F$58,IF($T$6=$W$193,AE203/$F$58,IF($T$6=$W$209,AE219/$F$58,IF($T$6=$W$225,AE235/$F$58,IF($T$6=$W$241,AE251/$F$58,IF($T$6=$W$257,AE267/$F$58,IF($T$6=$W$273,AE283/$F$58,IF($T$6=$W$289,AE299/$F$58,IF($T$6=$W$305,AE315/$F$58,"N/A")))))))))))))))))))) -> 0 | G183: =IF($T$6=$W$1,AR11/$G$38,IF($T$6=$W$17,AR27/$G$38,IF($T$6=$W$33,AR43/$G$38,IF($T$6=$W$49,AR59/$G$38,IF($T$6=$W$65,AR75/$G$38,IF($T$6=$W$81,AR91/$G$38,IF($T$6=$W$97,AR107/$G$38,IF($T$6=$W$113,AR123/$G$38,IF($T$6=$W$129,AR139/$G$38,IF($T$6=$W$145,AR155/$G$38,IF($T$6=$W$161,AR171/$G$38,IF($T$6=$W$177,AR187/$G$38,IF($T$6=$W$193,AR203/$G$38,IF($T$6=$W$209,AR219/$G$38,IF($T$6=$W$225,AR235/$G$38,IF($T$6=$W$241,AR251/$G$38,IF($T$6=$W$257,AR267/$G$38,IF($T$6=$W$273,AR283/$G$38,IF($T$6=$W$289,AR299/$G$38,IF($T$6=$W$305,AR315/$G$38,"N/A")))))))))))))))))))) -> 0 | S183: Y's | T183: 0 | U183: 0.5 | W183: 7 | X183: 23 | Y183: 12 | Z183: 38 | AA183: 22 | AB183: 10 | AC183: 17 | AD183: 37 | AE183: 30 | AF183: 4 | AG183: 46 | AJ183: 14 | AK183: 36 | AL183: 15 | AM183: 17 | AN183: 58 | AO183: 36 | AP183: 34 | AQ183: 31 | AR183: 36 | AS183: 5 | AT183: 33
E184: Count | F184: =F163 -> 29 | G184: =G163 -> 40 | S184: =IF(B30=F185,U1 &" Average","Your Farm") -> 2015 Average | W184: 8 | X184: 17 | Y184: 12 | Z184: 41 | AA184: 4 | AB184: 3 | AC184: 11 | AD184: 27 | AE184: 21 | AF184: 2 | AG184: 40 | AJ184: 16 | AK184: 24 | AL184: 12 | AM184: 56 | AN184: 33 | AO184: 22 | AP184: 27 | AQ184: 10 | AR184: 18 | AS184: 4 | AT184: 74
E185: Average | F185: =IF($T$6=$W$1,$AE$14,IF($T$6=$W$17,$AE$30,IF($T$6=$W$33,$AE$46,IF($T$6=$W$49,$AE$62,IF($T$6=$W$65,$AE$78,IF($T$6=$W$81,$AE$94,IF($T$6=$W$97,$AE$110,IF($T$6=$W$113,$AE$126,IF($T$6=$W$129,$AE$142,IF($T$6=$W$145,$AE$158,IF($T$6=$W$161,AE174,IF($T$6=$W$177,$AE$190,IF($T$6=$W$193,$AE$206,IF($T$6=$W$209,$AE$222,IF($T$6=$W$225,$AE$238,IF($T$6=$W$241,$AE$254,IF($T$6=$W$257,$AE$270,IF($T$6=$W$273,$AE$286,IF($T$6=$W$289,$AE$302,IF($T$6=$W$305,$AE$318,"N/A")))))))))))))))))))) -> 0.06856876829 | G185: =IF($T$6=$W$1,$AR$14,IF($T$6=$W$17,$AR$30,IF($T$6=$W$33,$AR$46,IF($T$6=$W$49,$AR$62,IF($T$6=$W$65,$AR$78,IF($T$6=$W$81,$AR$94,IF($T$6=$W$97,$AR$110,IF($T$6=$W$113,$AR$126,IF($T$6=$W$129,$AR$142,IF($T$6=$W$145,$AR$158,IF($T$6=$W$161,$AR$174,IF($T$6=$W$177,$AR$190,IF($T$6=$W$193,$AR$206,IF($T$6=$W$209,$AR$222,IF($T$6=$W$225,$AR$238,IF($T$6=$W$241,$AR$254,IF($T$6=$W$257,$AR$270,IF($T$6=$W$273,$AR$286,IF($T$6=$W$289,$AR$302,IF($T$6=$W$305,$AR$318,"N/A")))))))))))))))))))) -> 0.0590597016 | W185: 2 | X185: 19 | Y185: 5 | Z185: 15 | AA185: 4 | AB185: 1 | AC185: 4 | AD185: 17 | AE185: 24 | AF185: 4 | AG185: 7 | AJ185: 10 | AK185: 24 | AL185: 9 | AM185: 66 | AN185: 16 | AO185: 12 | AP185: 9 | AQ185: 3 | AR185: 15 | AS185: 0 | AT185: 46
W186: 5 | X186: 16 | Y186: 3 | Z186: 2 | AA186: 1 | AB186: 2 | AC186: 3 | AD186: 10 | AE186: 13 | AF186: 0 | AG186: 3 | AJ186: 10 | AK186: 15 | AL186: 6 | AM186: 13 | AN186: 9 | AO186: 1 | AP186: 9 | AQ186: 0 | AR186: 4 | AS186: 0 | AT186: 4
W187: 4 | X187: 11 | Y187: 13 | Z187: 1 | AA187: 0 | AB187: 1 | AC187: 2 | AD187: 15 | AE187: 26 | AF187: 0 | AG187: 1 | AJ187: 3 | AK187: 7 | AL187: 11 | AM187: 1 | AN187: 2 | AO187: 4 | AP187: 8 | AQ187: 0 | AR187: 0 | AS187: 0 | AT187: 0
W188: 81 | X188: 15 | Z188: 0 | AA188: 2 | AB188: 4 | AC188: 13 | AG188: 0 | AJ188: 73 | AK188: 9 | AM188: 0 | AN188: 1 | AO188: 4 | AP188: 10 | AT188: 0
F189: =IF(B30=F185,"","Your Farm") ->  | G189: =IF(B30=F185,"",B30) ->  | V189: Count | W189: 157 | X189: 157 | Y189: 157 | Z189: 157 | AA189: 157 | AB189: 157 | AC189: 157 | AD189: 157 | AE189: 157 | AF189: 157 | AG189: 157 | AI189: Count | AJ189: 161 | AK189: 161 | AL189: 161 | AM189: 161 | AN189: 161 | AO189: 161 | AP189: 161 | AQ189: 161 | AR189: 161 | AS189: 161 | AT189: 161
V190: Average | W190: 2.865558759 | X190: 0.5761254175 | Y190: 0.1669781513 | Z190: -0.05026581636 | AA190: -0.009803574547 | AB190: -0.0188037721 | AC190: 0.1950346231 | AD190: 0.7682856515 | AE190: 0.1309917201 | AF190: 0.03017948132 | AG190: 0.07054314711 | AI190: Average | AJ190: 3.820253167 | AK190: 0.6090663672 | AL190: 0.1936803501 | AM190: 0.1660676232 | AN190: 0.05179031353 | AO190: 0.05229291542 | AP190: 0.3118627974 | AQ190: 0.6288843934 | AR190: 0.09208017413 | AS190: 0.0307218602 | AT190: 0.2483135722
V191: Non-ratio average | X191: 260952.3134 | AG191: 31952.06612 | AI191: Non-ratio average | AK191: 287707.6718 | AT191: 117297.1019
W193: Crop Acres1000-2000No Cows-Feedlot
E194: Interest Expense Ratio | W194: Current Ratio | X194: Working Capital Ratio | Y194: Debt to Asset Ratio | Z194: Operating Profit Margin | AA194: ROA | AB194: ROE | AC194: Asset Turnover | AD194: Operating Expense Ratio | AE194: Depr Expense Ratio | AF194: Interest Expense Ratio | AG194: NFI Ratio | AJ194: Current Ratio | AK194: Working Capital Ratio | AL194: Debt to Asset Ratio | AM194: Operating Profit Margin | AN194: ROA | AO194: ROE | AP194: Asset Turnover | AQ194: Operating Expense Ratio | AR194: Depr Expense Ratio | AS194: Interest Expense Ratio | AT194: NFI Ratio
F195: 2015 | G195: 10-Year | W195: 0 | X195: 4 | Y195: 1 | Z195: 7 | AA195: 4 | AB195: 10 | AC195: 0 | AD195: 0 | AE195: 0 | AF195: 3 | AG195: 6 | AJ195: 1 | AK195: 2 | AL195: 0 | AM195: 0 | AN195: 0 | AO195: 3 | AP195: 0 | AQ195: 0 | AR195: 0 | AS195: 0 | AT195: 0
E196: 0 | F196: =IF($T$6=$W$1,AF3/$F$143,IF($T$6=$W$17,AF19/$F$143,IF($T$6=$W$33,AF35/$F$143,IF($T$6=$W$49,AF51/$F$143,IF($T$6=$W$65,AF67/$F$143,IF($T$6=$W$81,AF83/$F$143,IF($T$6=$W$97,AF99/$F$143,IF($T$6=$W$113,AF115/$F$143,IF($T$6=$W$129,AF131/$F$143,IF($T$6=$W$145,AF147/$F$143,IF($T$6=$W$161,AF163/$F$143,IF($T$6=$W$177,AF179/$F$58,IF($T$6=$W$193,AF195/$F$58,IF($T$6=$W$209,AF211/$F$58,IF($T$6=$W$225,AF227/$F$58,IF($T$6=$W$241,AF243/$F$58,IF($T$6=$W$257,AF259/$F$58,IF($T$6=$W$273,AF275/$F$58,IF($T$6=$W$289,AF291/$F$58,IF($T$6=$W$305,AF307/$F$58,"N/A")))))))))))))))))))) -> 0.1034482759 | G196: =IF($T$6=$W$1,AS3/$G$38,IF($T$6=$W$17,AS19/$G$38,IF($T$6=$W$33,AS35/$G$38,IF($T$6=$W$49,AS51/$G$38,IF($T$6=$W$65,AS67/$G$38,IF($T$6=$W$81,AS83/$G$38,IF($T$6=$W$97,AS99/$G$38,IF($T$6=$W$113,AS115/$G$38,IF($T$6=$W$129,AS131/$G$38,IF($T$6=$W$145,AS147/$G$38,IF($T$6=$W$161,AS163/$G$38,IF($T$6=$W$177,AS179/$G$38,IF($T$6=$W$193,AS195/$G$38,IF($T$6=$W$209,AS211/$G$38,IF($T$6=$W$225,AS227/$G$38,IF($T$6=$W$241,AS243/$G$38,IF($T$6=$W$257,AS259/$G$38,IF($T$6=$W$273,AS275/$G$38,IF($T$6=$W$289,AS291/$G$38,IF($T$6=$W$305,AS307/$G$38,"N/A")))))))))))))))))))) -> 0.025 | W196: 2 | X196: 1 | Y196: 8 | Z196: 4 | AA196: 6 | AB196: 7 | AC196: 8 | AD196: 0 | AE196: 0 | AF196: 7 | AG196: 3 | AJ196: 1 | AK196: 2 | AL196: 9 | AM196: 0 | AN196: 0 | AO196: 1 | AP196: 0 | AQ196: 1 | AR196: 2 | AS196: 17 | AT196: 0
E197: 0.03 | F197: =IF($T$6=$W$1,AF4/$F$143,IF($T$6=$W$17,AF20/$F$143,IF($T$6=$W$33,AF36/$F$143,IF($T$6=$W$49,AF52/$F$143,IF($T$6=$W$65,AF68/$F$143,IF($T$6=$W$81,AF84/$F$143,IF($T$6=$W$97,AF100/$F$143,IF($T$6=$W$113,AF116/$F$143,IF($T$6=$W$129,AF132/$F$143,IF($T$6=$W$145,AF148/$F$143,IF($T$6=$W$161,AF164/$F$143,IF($T$6=$W$177,AF180/$F$58,IF($T$6=$W$193,AF196/$F$58,IF($T$6=$W$209,AF212/$F$58,IF($T$6=$W$225,AF228/$F$58,IF($T$6=$W$241,AF244/$F$58,IF($T$6=$W$257,AF260/$F$58,IF($T$6=$W$273,AF276/$F$58,IF($T$6=$W$289,AF292/$F$58,IF($T$6=$W$305,AF308/$F$58,"N/A")))))))))))))))))))) -> 0.6551724138 | G197: =IF($T$6=$W$1,AS4/$G$38,IF($T$6=$W$17,AS20/$G$38,IF($T$6=$W$33,AS36/$G$38,IF($T$6=$W$49,AS52/$G$38,IF($T$6=$W$65,AS68/$G$38,IF($T$6=$W$81,AS84/$G$38,IF($T$6=$W$97,AS100/$G$38,IF($T$6=$W$113,AS116/$G$38,IF($T$6=$W$129,AS132/$G$38,IF($T$6=$W$145,AS148/$G$38,IF($T$6=$W$161,AS164/$G$38,IF($T$6=$W$177,AS180/$G$38,IF($T$6=$W$193,AS196/$G$38,IF($T$6=$W$209,AS212/$G$38,IF($T$6=$W$225,AS228/$G$38,IF($T$6=$W$241,AS244/$G$38,IF($T$6=$W$257,AS260/$G$38,IF($T$6=$W$273,AS276/$G$38,IF($T$6=$W$289,AS292/$G$38,IF($T$6=$W$305,AS308/$G$38,"N/A")))))))))))))))))))) -> 0.525 | W197: 5 | X197: 2 | Y197: 2 | Z197: 4 | AA197: 12 | AB197: 9 | AC197: 13 | AD197: 0 | AE197: 4 | AF197: 4 | AG197: 6 | AJ197: 4 | AK197: 1 | AL197: 10 | AM197: 0 | AN197: 1 | AO197: 5 | AP197: 12 | AQ197: 6 | AR197: 16 | AS197: 10 | AT197: 1
E198: 0.06 | F198: 0.1379310345 | G198: 0.225 | W198: 7 | X198: 3 | Y198: 2 | Z198: 7 | AA198: 5 | AB198: 1 | AC198: 5 | AD198: 1 | AE198: 4 | AF198: 6 | AG198: 6 | AJ198: 11 | AK198: 8 | AL198: 4 | AM198: 1 | AN198: 9 | AO198: 13 | AP198: 14 | AQ198: 19 | AR198: 6 | AS198: 2 | AT198: 0
E199: 0.09 | F199: 0.06896551724 | G199: 0.075 | W199: 1 | X199: 4 | Y199: 4 | Z199: 1 | AA199: 1 | AB199: 1 | AC199: 1 | AD199: 2 | AE199: 5 | AF199: 4 | AG199: 6 | AJ199: 3 | AK199: 8 | AL199: 4 | AM199: 3 | AN199: 16 | AO199: 11 | AP199: 7 | AQ199: 11 | AR199: 11 | AS199: 7 | AT199: 8
E200: 0.12 | F200: 0.03448275862 | G200: 0.125 | W200: 1 | X200: 3 | Y200: 5 | Z200: 5 | AA200: 0 | AB200: 0 | AC200: 0 | AD200: 9 | AE200: 5 | AF200: 3 | AG200: 1 | AJ200: 1 | AK200: 2 | AL200: 2 | AM200: 15 | AN200: 9 | AO200: 5 | AP200: 4 | AQ200: 1 | AR200: 2 | AS200: 2 | AT200: 24
E201: 0.15 | F201: 0 | G201: 0.025 | W201: 1 | X201: 0 | Y201: 3 | Z201: 0 | AA201: 0 | AB201: 0 | AC201: 0 | AD201: 5 | AE201: 3 | AF201: 1 | AG201: 0 | AJ201: 3 | AK201: 5 | AL201: 5 | AM201: 14 | AN201: 3 | AO201: 1 | AP201: 0 | AQ201: 1 | AR201: 1 | AS201: 0 | AT201: 6
E202: 0.18 | F202: 0 | G202: 0 | W202: 0 | X202: 2 | Y202: 2 | Z202: 0 | AA202: 0 | AB202: 0 | AC202: 1 | AD202: 4 | AE202: 2 | AF202: 0 | AG202: 0 | AJ202: 2 | AK202: 5 | AL202: 4 | AM202: 6 | AN202: 1 | AO202: 0 | AP202: 0 | AQ202: 0 | AR202: 1 | AS202: 0 | AT202: 0
E203: 0.21 | F203: 0 | G203: 0 | S203: Your Farm Line-Interest Expense Ratio | W203: 0 | X203: 0 | Y203: 1 | Z203: 0 | AA203: 0 | AB203: 0 | AC203: 0 | AD203: 7 | AE203: 5 | AF203: 0 | AG203: 0 | AJ203: 2 | AK203: 3 | AL203: 1 | AM203: 0 | AN203: 0 | AO203: 0 | AP203: 1 | AQ203: 0 | AR203: 0 | AS203: 1 | AT203: 0
... 110 more rows

Sheet NorthWest
E1: KSU FARM FINANCIAL BENCHMARKING TOOL-Northwest Kansas | S1: Acres | T1: Lookup | U1: 2015 | W1: Less than 1500No | AI1: 10-Year
S2: Less than 1500 | T2: LT | W2: Current Ratio | X2: Working Capital Ratio | Y2: Debt to Asset Ratio | Z2: Operating Profit Margin | AA2: ROA | AB2: ROE | AC2: Asset Turnover | AD2: Operating Expense Ratio | AE2: Depr Expense Ratio | AF2: Interest Expense Ratio | AG2: NFI Ratio | AJ2: Current Ratio | AK2: Working Capital Ratio | AL2: Debt to Asset Ratio | AM2: Operating Profit Margin | AN2: ROA | AO2: ROE | AP2: Asset Turnover | AQ2: Operating Expense Ratio | AR2: Depr Expense Ratio | AS2: Interest Expense Ratio | AT2: NFI Ratio
E3: Tillable Crop Acres: | G3: =B16 -> All Farms | I3: =A17 ->  | K3: =IF(B17="","",B17) ->  | P3: =IF(B18="","",B18) ->  | S3: 1500-3000 | T3: BTW | W3: 1 | X3: 1 | Y3: 0 | Z3: 3 | AA3: 2 | AB3: 5 | AC3: 0 | AD3: 0 | AE3: 0 | AF3: 1 | AG3: 2 | AJ3: 0 | AK3: 0 | AL3: 0 | AM3: 0 | AN3: 0 | AO3: 0 | AP3: 0 | AQ3: 1 | AR3: 0 | AS3: 0 | AT3: 0
S4: Greater than 3000 | T4: GT | W4: 2 | X4: 1 | Y4: 8 | Z4: 0 | AA4: 2 | AB4: 2 | AC4: 6 | AD4: 0 | AE4: 0 | AF4: 8 | AG4: 1 | AJ4: 0 | AK4: 1 | AL4: 5 | AM4: 0 | AN4: 0 | AO4: 0 | AP4: 0 | AQ4: 1 | AR4: 2 | AS4: 7 | AT4: 0
E5: Current Ratio | S5: All Farms | T5: All | W5: 2 | X5: 2 | Y5: 2 | Z5: 4 | AA5: 5 | AB5: 5 | AC5: 3 | AD5: 0 | AE5: 3 | AF5: 3 | AG5: 3 | AJ5: 2 | AK5: 1 | AL5: 1 | AM5: 0 | AN5: 1 | AO5: 4 | AP5: 4 | AQ5: 4 | AR5: 4 | AS5: 2 | AT5: 0
F6: 2015 | G6: 10-Year | S6: LTList | T6: =B16&B17&B18 -> All Farms | W6: 3 | X6: 5 | Y6: 1 | Z6: 3 | AA6: 4 | AB6: 2 | AC6: 2 | AD6: 1 | AE6: 3 | AF6: 2 | AG6: 2 | AJ6: 0 | AK6: 1 | AL6: 2 | AM6: 0 | AN6: 4 | AO6: 5 | AP6: 4 | AQ6: 4 | AR6: 4 | AS6: 6 | AT6: 0
E7: 0 | F7: =IF($T$6=$W$1,W3/$W$13,IF($T$6=$W$17,W19/$W$29,IF($T$6=$W$33,W35/$W$45,IF($T$6=$W$49,W51/$W$61,IF($T$6=$W$65,W67/$W$77,IF($T$6=$W$81,W83/$W$93,IF($T$6=$W$97,W99/$W$109,IF($T$6=$W$113,W115/$W$125,IF($T$6=$W$129,W131/$W$141,IF($T$6=$W$145,W147/$W$157,IF($T$6=$W$161,W163/$W$173,"N/A"))))))))))) -> 0.02649006623 | G7: =IF($T$6=$W$1,AJ3/$AJ$13,IF($T$6=$W$17,AJ19/$AJ$29,IF($T$6=$W$33,AJ35/$AJ$45,IF($T$6=$W$49,AJ51/$AJ$61,IF($T$6=$W$65,AJ67/$AJ$77,IF($T$6=$W$81,AJ83/$AJ$93,IF($T$6=$W$97,AJ99/$AJ$109,IF($T$6=$W$113,AJ115/$AJ$125,IF($T$6=$W$129,AJ131/$AJ$141,IF($T$6=$W$145,AJ147/$AJ$157,IF($T$6=$W$161,AJ163/$AJ$173,"N/A"))))))))))) -> 0.008333333333 | S7: Yes | W7: 0 | X7: 2 | Y7: 1 | Z7: 2 | AA7: 2 | AB7: 0 | AC7: 1 | AD7: 2 | AE7: 1 | AF7: 0 | AG7: 5 | AJ7: 3 | AK7: 8 | AL7: 4 | AM7: 1 | AN7: 6 | AO7: 3 | AP7: 5 | AQ7: 5 | AR7: 4 | AS7: 0 | AT7: 5
E8: 0.5 | F8: =IF($T$6=$W$1,W4/$W$13,IF($T$6=$W$17,W20/$W$29,IF($T$6=$W$33,W36/$W$45,IF($T$6=$W$49,W52/$W$61,IF($T$6=$W$65,W68/$W$77,IF($T$6=$W$81,W84/$W$93,IF($T$6=$W$97,W100/$W$109,IF($T$6=$W$113,W116/$W$125,IF($T$6=$W$129,W132/$W$141,IF($T$6=$W$145,W148/$W$157,IF($T$6=$W$161,W164/$W$173,"N/A"))))))))))) -> 0.08609271523 | G8: =IF($T$6=$W$1,AJ4/$AJ$13,IF($T$6=$W$17,AJ20/$AJ$29,IF($T$6=$W$33,AJ36/$AJ$45,IF($T$6=$W$49,AJ52/$AJ$61,IF($T$6=$W$65,AJ68/$AJ$77,IF($T$6=$W$81,AJ84/$AJ$93,IF($T$6=$W$97,AJ100/$AJ$109,IF($T$6=$W$113,AJ116/$AJ$125,IF($T$6=$W$129,AJ132/$AJ$141,IF($T$6=$W$145,AJ148/$AJ$157,IF($T$6=$W$161,AJ164/$AJ$173,"N/A"))))))))))) -> 0.008333333333 | S8: No | W8: 0 | X8: 0 | Y8: 0 | Z8: 2 | AA8: 0 | AB8: 0 | AC8: 0 | AD8: 6 | AE8: 2 | AF8: 0 | AG8: 2 | AJ8: 2 | AK8: 2 | AL8: 0 | AM8: 7 | AN8: 4 | AO8: 2 | AP8: 0 | AQ8: 1 | AR8: 1 | AS8: 1 | AT8: 6
E9: 1 | F9: 0.1920529801 | G9: 0.05 | W9: 1 | X9: 0 | Y9: 0 | Z9: 1 | AA9: 0 | AB9: 0 | AC9: 0 | AD9: 4 | AE9: 2 | AF9: 0 | AG9: 0 | AJ9: 0 | AK9: 1 | AL9: 2 | AM9: 6 | AN9: 1 | AO9: 1 | AP9: 1 | AQ9: 0 | AR9: 1 | AS9: 0 | AT9: 4
E10: 1.5 | F10: 0.178807947 | G10: 0.125 | W10: 2 | X10: 1 | Y10: 1 | Z10: 0 | AA10: 0 | AB10: 0 | AC10: 1 | AD10: 0 | AE10: 0 | AF10: 0 | AG10: 0 | AJ10: 3 | AK10: 1 | AL10: 1 | AM10: 2 | AN10: 0 | AO10: 0 | AP10: 1 | AQ10: 0 | AR10: 0 | AS10: 0 | AT10: 1
E11: 2 | F11: 0.06622516556 | G11: 0.1583333333 | S11: BTWList | T11: Lookup | W11: 0 | X11: 2 | Y11: 2 | Z11: 0 | AA11: 0 | AB11: 0 | AC11: 0 | AD11: 2 | AE11: 4 | AF11: 1 | AG11: 0 | AJ11: 0 | AK11: 0 | AL11: 1 | AM11: 0 | AN11: 0 | AO11: 0 | AP11: 0 | AQ11: 0 | AR11: 0 | AS11: 0 | AT11: 0
E12: 2.5 | F12: 0.02649006623 | G12: 0.09166666667 | S12: Yes | T12: LL | W12: 4 | X12: 1 | Z12: 0 | AA12: 0 | AB12: 1 | AC12: 2 | AG12: 0 | AJ12: 6 | AK12: 1 | AM12: 0 | AN12: 0 | AO12: 1 | AP12: 1 | AT12: 0
E13: 3 | F13: 0.01986754967 | G13: 0.025 | S13: No | T13: GG | V13: Count | W13: 15 | X13: 15 | Y13: 15 | Z13: 15 | AA13: 15 | AB13: 15 | AC13: 15 | AD13: 15 | AE13: 15 | AF13: 15 | AG13: 15 | AI13: Count | AJ13: 16 | AK13: 16 | AL13: 16 | AM13: 16 | AN13: 16 | AO13: 16 | AP13: 16 | AQ13: 16 | AR13: 16 | AS13: 16 | AT13: 16
E14: 3.5 | F14: 0.06622516556 | G14: 0.075 | V14: Average | W14: 1.739886722 | X14: 0.3167528729 | Y14: 0.2498874899 | Z14: -0.1675762876 | AA14: -0.03209796468 | AB14: -0.05411908188 | AC14: 0.1915424022 | AD14: 0.891513869 | AE14: 0.1178354534 | AF14: 0.04719619153 | AG14: -0.05654551396 | AI14: Average | AJ14: 2.148434191 | AK14: 0.3946918934 | AL14: 0.3422202517 | AM14: 0.179564744 | AN14: 0.05116240167 | AO14: 0.05293430332 | AP14: 0.2849245378 | AQ14: 0.6480719431 | AR14: 0.07986602842 | AS14: 0.05652974731 | AT14: 0.2155322812
A15: BENCHMARK CATEGORY | E15: 4 | F15: 0.03311258278 | G15: 0 | V15: Non-ratio average | X15: 80996.4422 | AG15: -14459.17573 | AI15: Non-ratio average | AK15: 136909.9214 | AT15: 74763.39942
A16: Tillable Crop Acres: | B16: All Farms | E16: More | F16: =IF($T$6=$W$1,W12/$W$13,IF($T$6=$W$17,W28/$W$29,IF($T$6=$W$33,W44/$W$45,IF($T$6=$W$49,W60/$W$61,IF($T$6=$W$65,W76/$W$77,IF($T$6=$W$81,W92/$W$93,IF($T$6=$W$97,W108/$W$109,IF($T$6=$W$113,W124/$W$125,IF($T$6=$W$129,W140/$W$141,IF($T$6=$W$145,W156/$W$157,IF($T$6=$W$161,W172/$W$173,"N/A"))))))))))) -> 0.3046357616 | G16: 0.4583333333 | S16: GTList
A17: =IF(B16="All Farms","","Cow Herd:") ->  | E17: Count | F17: =IF($T$6=$W$1,$W$13,IF($T$6=$W$17,$W$29,IF($T$6=$W$33,$W$45,IF($T$6=$W$49,$W$61,IF($T$6=$W$65,$W$77,IF($T$6=$W$81,$W$93,IF($T$6=$W$97,$W$109,IF($T$6=$W$113,$W$125,IF($T$6=$W$129,$W$141,IF($T$6=$W$145,$W$157,IF(T6=$W$161,$W$173,"N/A"))))))))))) -> 151 | G17: =IF($T$6=$W$1,$AJ$13,IF($T$6=$W$17,$AJ$29,IF($T$6=$W$33,$AJ$45,IF($T$6=$W$49,$AJ$61,IF($T$6=$W$65,$AJ$77,IF($T$6=$W$81,$AJ$93,IF($T$6=$W$97,$AJ$109,IF($T$6=$W$113,$AJ$125,IF($T$6=$W$129,$AJ$141,IF($T$6=$W$145,$AJ$157, IF($T$6=$W$161,$AJ$173,"N/A"))))))))))) -> 120 | S17: Yes | W17: Less than 1500Yes
E18: Average | F18: =IF($T$6=$W$1,$W$14,IF($T$6=$W$17,$W$30,IF($T$6=$W$33,$W$46,IF($T$6=$W$49,$W$62,IF($T$6=$W$65,$W$78,IF($T$6=$W$81,$W$94,IF($T$6=$W$97,$W$110,IF($T$6=$W$113,$W$126,IF($T$6=$W$129,$W$142,IF($T$6=$W$145,$W$158, IF($T$6=$W$161,$W$174,"N/A"))))))))))) -> 2.073110291 | G18: =IF($T$6=$W$1,$AJ$14,IF($T$6=$W$17,$AJ$30,IF($T$6=$W$33,$AJ$46,IF($T$6=$W$49,$AJ$62,IF($T$6=$W$65,$AJ$78,IF($T$6=$W$81,$AJ$94,IF($T$6=$W$97,$AJ$110,IF($T$6=$W$113,$AJ$126,IF($T$6=$W$129,$AJ$142,IF($T$6=$W$145,$AJ$158, IF($T$6=$W$161,$AJ$174,"N/A"))))))))))) -> 2.871104854 | S18: No | W18: Current Ratio | X18: Working Capital Ratio | Y18: Debt to Asset Ratio | Z18: Operating Profit Margin | AA18: ROA | AB18: ROE | AC18: Asset Turnover | AD18: Operating Expense Ratio | AE18: Depr Expense Ratio | AF18: Interest Expense Ratio | AG18: NFI Ratio | AJ18: Current Ratio | AK18: Working Capital Ratio | AL18: Debt to Asset Ratio | AM18: Operating Profit Margin | AN18: ROA | AO18: ROE | AP18: Asset Turnover | AQ18: Operating Expense Ratio | AR18: Depr Expense Ratio | AS18: Interest Expense Ratio | AT18: NFI Ratio
W19: 0 | X19: 3 | Y19: 0 | Z19: 1 | AA19: 1 | AB19: 5 | AC19: 0 | AD19: 0 | AE19: 0 | AF19: 0 | AG19: 0 | AJ19: 0 | AK19: 1 | AL19: 0 | AM19: 0 | AN19: 0 | AO19: 1 | AP19: 0 | AQ19: 0 | AR19: 0 | AS19: 0 | AT19: 0
F20: =IF(B22=F18,"","Your Farm") ->  | G20: =IF(B22=F18,"",B22) ->  | W20: 2 | X20: 0 | Y20: 6 | Z20: 1 | AA20: 2 | AB20: 4 | AC20: 5 | AD20: 1 | AE20: 3 | AF20: 6 | AG20: 2 | AJ20: 0 | AK20: 1 | AL20: 4 | AM20: 0 | AN20: 0 | AO20: 1 | AP20: 0 | AQ20: 0 | AR20: 1 | AS20: 3 | AT20: 0
A21: YOUR FARM VALUES* | W21: 10 | X21: 9 | Y21: 8 | Z21: 6 | AA21: 14 | AB21: 20 | AC21: 18 | AD21: 1 | AE21: 5 | AF21: 12 | AG21: 2 | AJ21: 2 | AK21: 0 | AL21: 3 | AM21: 0 | AN21: 2 | AO21: 4 | AP21: 9 | AQ21: 6 | AR21: 9 | AS21: 10 | AT21: 0
A22: Current Ratio: | B22: =$F$18 -> 2.073110291 | S22: LLList | W22: 6 | X22: 6 | Y22: 7 | Z22: 5 | AA22: 13 | AB22: 1 | AC22: 6 | AD22: 4 | AE22: 9 | AF22: 10 | AG22: 10 | AJ22: 4 | AK22: 6 | AL22: 4 | AM22: 0 | AN22: 5 | AO22: 12 | AP22: 6 | AQ22: 10 | AR22: 5 | AS22: 5 | AT22: 0
A23: Working Capital Ratio: | B23: =$F$39 -> 0.4998618639 | S23: Yes | W23: 2 | X23: 6 | Y23: 6 | Z23: 12 | AA23: 1 | AB23: 0 | AC23: 2 | AD23: 10 | AE23: 8 | AF23: 4 | AG23: 16 | AJ23: 4 | AK23: 4 | AL23: 5 | AM23: 2 | AN23: 11 | AO23: 2 | AP23: 4 | AQ23: 3 | AR23: 3 | AS23: 0 | AT23: 5
A24: Debt to Asset Ratio: | B24: =$F$59 -> 0.2317381614 | S24: No | W24: 1 | X24: 2 | Y24: 4 | Z24: 5 | AA24: 2 | AB24: 1 | AC24: 0 | AD24: 8 | AE24: 5 | AF24: 1 | AG24: 1 | AJ24: 1 | AK24: 3 | AL24: 3 | AM24: 10 | AN24: 3 | AO24: 1 | AP24: 2 | AQ24: 2 | AR24: 1 | AS24: 3 | AT24: 12
A25: Operating Profit Margin | B25: =$F$81 -> -0.04440506727 | W25: 0 | X25: 1 | Y25: 1 | Z25: 3 | AA25: 0 | AB25: 1 | AC25: 0 | AD25: 5 | AE25: 0 | AF25: 1 | AG25: 2 | AJ25: 0 | AK25: 3 | AL25: 1 | AM25: 8 | AN25: 0 | AO25: 0 | AP25: 0 | AQ25: 0 | AR25: 2 | AS25: 0 | AT25: 4
A26: Rate of Return on Farm Assets | B26: =$F$102 -> -0.008152324741 | E26: Working Captial Ratio | W26: 2 | X26: 2 | Y26: 0 | Z26: 1 | AA26: 0 | AB26: 0 | AC26: 1 | AD26: 4 | AE26: 2 | AF26: 0 | AG26: 1 | AJ26: 1 | AK26: 0 | AL26: 0 | AM26: 1 | AN26: 0 | AO26: 0 | AP26: 0 | AQ26: 0 | AR26: 0 | AS26: 0 | AT26: 0
A27: Rate of Return on Farm Equity | B27: =$F$123 -> -0.02087336294 | F27: 2015 | G27: 10-Year | S27: Your Farm Line-Current Ratio | W27: 1 | X27: 1 | Y27: 2 | Z27: 0 | AA27: 0 | AB27: 0 | AC27: 0 | AD27: 1 | AE27: 2 | AF27: 0 | AG27: 0 | AJ27: 0 | AK27: 3 | AL27: 1 | AM27: 0 | AN27: 0 | AO27: 0 | AP27: 0 | AQ27: 0 | AR27: 0 | AS27: 0 | AT27: 0
A28: Asset Turnover Rate | B28: =$F$144 -> 0.1835899649 | E28: -0.5 | F28: =IF($T$6=$W$1,X3/$F$38,IF($T$6=$W$17,X19/$F$38,IF($T$6=$W$33,X35/$F$38,IF($T$6=$W$49,X51/$F$38,IF($T$6=$W$65,X67/$F$38,IF($T$6=$W$81,X83/$F$38,IF($T$6=$W$97,X99/$F$38,IF($T$6=$W$113,X115/$F$38,IF($T$6=$W$129,X131/$F$38,IF($T$6=$W$145,X147/$F$38,IF($T$6=$W$161,X163/$F$38,"N/A"))))))))))) -> 0.06622516556 | G28: =IF($T$6=$W$1,AK3/$G$38,IF($T$6=$W$17,AK19/$G$38,IF($T$6=$W$33,AK35/$G$38,IF($T$6=$W$49,AK51/$G$38,IF($T$6=$W$65,AK67/$G$38,IF($T$6=$W$81,AK83/$G$38,IF($T$6=$W$97,AK99/$G$38,IF($T$6=$W$113,AK115/$G$38,IF($T$6=$W$129,AK131/$G$38,IF($T$6=$W$145,AK147/$G$38,IF($T$6=$W$161,AK163/$G$38,"N/A"))))))))))) -> 0.01666666667 | S28: X's | T28: =B22 -> 2.073110291 | U28: =B22 -> 2.073110291 | W28: 10 | X28: 4 | Z28: 0 | AA28: 1 | AB28: 2 | AC28: 2 | AG28: 0 | AJ28: 9 | AK28: 0 | AM28: 0 | AN28: 0 | AO28: 0 | AP28: 0 | AT28: 0
A29: Operating Expense Ratio | B29: =$F$164 -> 0.8445583431 | E29: =E28+0.25 -> -0.25 | F29: =IF($T$6=$W$1,X4/$F$38,IF($T$6=$W$17,X20/$F$38,IF($T$6=$W$33,X36/$F$38,IF($T$6=$W$49,X52/$F$38,IF($T$6=$W$65,X68/$F$38,IF($T$6=$W$81,X84/$F$38,IF($T$6=$W$97,X100/$F$38,IF($T$6=$W$113,X116/$F$38,IF($T$6=$W$129,X132/$F$38,IF($T$6=$W$145,X148/$F$38,IF($T$6=$W$161,X164/$F$38,"N/A"))))))))))) -> 0.05298013245 | G29: =IF($T$6=$W$1,AK4/$G$38,IF($T$6=$W$17,AK20/$G$38,IF($T$6=$W$33,AK36/$G$38,IF($T$6=$W$49,AK52/$G$38,IF($T$6=$W$65,AK68/$G$38,IF($T$6=$W$81,AK84/$G$38,IF($T$6=$W$97,AK100/$G$38,IF($T$6=$W$113,AK116/$G$38,IF($T$6=$W$129,AK132/$G$38,IF($T$6=$W$145,AK148/$G$38,IF($T$6=$W$161,AK164/$G$38,"N/A"))))))))))) -> 0.01666666667 | S29: Y's | T29: 0 | U29: 0.4 | V29: Count | W29: 34 | X29: 34 | Y29: 34 | Z29: 34 | AA29: 34 | AB29: 34 | AC29: 34 | AD29: 34 | AE29: 34 | AF29: 34 | AG29: 34 | AI29: Count | AJ29: 21 | AK29: 21 | AL29: 21 | AM29: 21 | AN29: 21 | AO29: 21 | AP29: 21 | AQ29: 21 | AR29: 21 | AS29: 21 | AT29: 21
A30: Depreciation Expense Ratio | B30: =$F$185 -> 0.1134129765 | E30: =E29+0.25 -> 0 | F30: 0.1589403974 | G30: =IF($T$6=$W$1,AK5/$G$38,IF($T$6=$W$17,AK21/$G$38,IF($T$6=$W$33,AK37/$G$38,IF($T$6=$W$49,AK53/$G$38,IF($T$6=$W$65,AK69/$G$38,IF($T$6=$W$81,AK85/$G$38,IF($T$6=$W$97,AK101/$G$38,IF($T$6=$W$113,AK117/$G$38,IF($T$6=$W$129,AK133/$G$38,IF($T$6=$W$145,AK149/$G$38,IF($T$6=$W$161,AK165/$G$38,"N/A"))))))))))) -> 0.025 | S30: =IF(B22=F18,U1 &" Average","Your Farm") -> 2015 Average | V30: Average | W30: 1.558300601 | X30: 0.2986965361 | Y30: 0.2327188752 | Z30: -0.09319972863 | AA30: -0.01457606839 | AB30: -0.03331878129 | AC30: 0.156396039 | AD30: 0.8243466144 | AE30: 0.09264082234 | AF30: 0.06433835534 | AG30: 0.01867420797 | AI30: Average | AJ30: 1.916122361 | AK30: 0.3952656438 | AL30: 0.2841185821 | AM30: 0.153669585 | AN30: 0.03712006644 | AO30: 0.03015027549 | AP30: 0.241557667 | AQ30: 0.6631816286 | AR30: 0.07032065969 | AS30: 0.05917325233 | AT30: 0.2073244594
A31: Interest Expense Ratio | B31: =$F$206 -> 0.04114756181 | E31: 0.25 | F31: 0.1920529801 | G31: 0.2 | S31: Your Farm Line-Working Capital Ratio | V31: Non-ratio average | X31: 90518.93632 | AG31: 5659.153147 | AI31: Non-ratio average | AK31: 153455.5373 | AT31: 80490.39126
A32: Net Farm Income Ratio: | B32: =$F$228 -> 0.000881118555 | E32: 0.5 | F32: 0.1523178808 | G32: 0.2666666667 | S32: X's | T32: =B23 -> 0.4998618639 | U32: =B23 -> 0.4998618639
A33: *Defaults to Averages for 2015 if not entered | E33: 0.75 | F33: 0.09933774834 | G33: 0.1666666667 | S33: Y's | T33: 0 | U33: 0.4 | W33: 1500-3000No
E34: 1 | F34: 0.03973509934 | G34: 0.1416666667 | S34: =IF(B23=F39,U1 &" Average","Your Farm") -> 2015 Average | W34: Current Ratio | X34: Working Capital Ratio | Y34: Debt to Asset Ratio | Z34: Operating Profit Margin | AA34: ROA | AB34: ROE | AC34: Asset Turnover | AD34: Operating Expense Ratio | AE34: Depr Expense Ratio | AF34: Interest Expense Ratio | AG34: NFI Ratio | AJ34: Current Ratio | AK34: Working Capital Ratio | AL34: Debt to Asset Ratio | AM34: Operating Profit Margin | AN34: ROA | AO34: ROE | AP34: Asset Turnover | AQ34: Operating Expense Ratio | AR34: Depr Expense Ratio | AS34: Interest Expense Ratio | AT34: NFI Ratio
E35: 1.25 | F35: 0.07947019868 | G35: 0.075 | W35: 0 | X35: 1 | Y35: 5 | Z35: 1 | AA35: 3 | AB35: 5 | AC35: 0 | AD35: 0 | AE35: 0 | AF35: 5 | AG35: 1 | AJ35: 1 | AK35: 0 | AL35: 1 | AM35: 0 | AN35: 0 | AO35: 2 | AP35: 0 | AQ35: 0 | AR35: 0 | AS35: 0 | AT35: 0
E36: 1.5 | F36: 0.05960264901 | G36: 0.06666666667 | W36: 3 | X36: 2 | Y36: 6 | Z36: 0 | AA36: 2 | AB36: 2 | AC36: 3 | AD36: 0 | AE36: 0 | AF36: 10 | AG36: 0 | AJ36: 0 | AK36: 0 | AL36: 9 | AM36: 0 | AN36: 1 | AO36: 0 | AP36: 0 | AQ36: 1 | AR36: 1 | AS36: 15 | AT36: 0
E37: More | F37: =IF($T$6=$W$1,X12/$F$38,IF($T$6=$W$17,X28/$F$38,IF($T$6=$W$33,X44/$F$38,IF($T$6=$W$49,X60/$F$38,IF($T$6=$W$65,X76/$F$38,IF($T$6=$W$81,X92/$F$38,IF($T$6=$W$97,X108/$F$38,IF($T$6=$W$113,X124/$F$38,IF($T$6=$W$129,X140/$F$38,IF($T$6=$W$145,X156/$F$38,IF($T$6=$W$161,X172/$F$38,"N/A"))))))))))) -> 0.09933774834 | G37: 0.025 | S37: =$F$18 -> 2.073110291 | W37: 3 | X37: 3 | Y37: 2 | Z37: 1 | AA37: 2 | AB37: 7 | AC37: 7 | AD37: 3 | AE37: 2 | AF37: 5 | AG37: 2 | AJ37: 1 | AK37: 1 | AL37: 4 | AM37: 0 | AN37: 0 | AO37: 0 | AP37: 2 | AQ37: 9 | AR37: 7 | AS37: 5 | AT37: 0
E38: Count | F38: =F17 -> 151 | G38: =G17 -> 120 | S38: =$F$39 -> 0.4998618639 | W38: 5 | X38: 4 | Y38: 1 | Z38: 7 | AA38: 10 | AB38: 7 | AC38: 6 | AD38: 5 | AE38: 3 | AF38: 5 | AG38: 7 | AJ38: 2 | AK38: 4 | AL38: 0 | AM38: 0 | AN38: 1 | AO38: 3 | AP38: 6 | AQ38: 7 | AR38: 7 | AS38: 0 | AT38: 0
E39: Average | F39: =IF($T$6=$W$1,$X$14,IF($T$6=$W$17,$X$30,IF($T$6=$W$33,$X$46,IF($T$6=$W$49,$X$62,IF($T$6=$W$65,$X$78,IF($T$6=$W$81,$X$94,IF($T$6=$W$97,$X$110,IF($T$6=$W$113,$X$126,IF($T$6=$W$129,$X$142,IF($T$6=$W$145,$X$158,IF($T$6=$W$161,$X$174,"N/A"))))))))))) -> 0.4998618639 | G39: =IF($T$6=$W$1,$AK$14,IF($T$6=$W$17,$AK$30,IF($T$6=$W$33,$AK$46,IF($T$6=$W$49,$AK$62,IF($T$6=$W$65,$AK$78,IF($T$6=$W$81,$AK$94,IF($T$6=$W$97,$AK$110,IF($T$6=$W$113,$AK$126,IF($T$6=$W$129,$AK$142,IF($T$6=$W$145,$AK$158,IF($T$6=$W$161,$AK$174,"N/A"))))))))))) -> 0.5593445045 | S39: =$F$59 -> 0.2317381614 | W39: 1 | X39: 3 | Y39: 1 | Z39: 5 | AA39: 5 | AB39: 2 | AC39: 4 | AD39: 4 | AE39: 3 | AF39: 0 | AG39: 7 | AJ39: 2 | AK39: 1 | AL39: 2 | AM39: 1 | AN39: 4 | AO39: 6 | AP39: 3 | AQ39: 2 | AR39: 3 | AS39: 0 | AT39: 2
E40: Working Capital Avg. | S40: =$F$81 -> -0.04440506727 | W40: 0 | X40: 0 | Y40: 1 | Z40: 5 | AA40: 2 | AB40: 0 | AC40: 2 | AD40: 7 | AE40: 7 | AF40: 0 | AG40: 8 | AJ40: 0 | AK40: 1 | AL40: 2 | AM40: 1 | AN40: 6 | AO40: 4 | AP40: 3 | AQ40: 1 | AR40: 1 | AS40: 0 | AT40: 9
F41: =IF($T$6=$W$1,$X$15,IF($T$6=$W$17,$X$31,IF($T$6=$W$33,$X$47,IF($T$6=$W$49,$X$63,IF($T$6=$W$65,$X$79,IF($T$6=$W$81,$X$95,IF($T$6=$W$97,$X$111,IF($T$6=$W$113,$X$127,IF($T$6=$W$129,$X$143,IF($T$6=$W$145,$X$159,IF($T$6=$W$161,$X$175,"N/A"))))))))))) -> 377729.3875 | G41: =IF($T$6=$W$1,$AK$15,IF($T$6=$W$17,$AK$31,IF($T$6=$W$33,$AK$47,IF($T$6=$W$49,$AK$63,IF($T$6=$W$65,$AK$79,IF($T$6=$W$81,$AK$95,IF($T$6=$W$97,$AK$111,IF($T$6=$W$113,$AK$127,IF($T$6=$W$129,$AK$143,IF($T$6=$W$145,$AK$159,IF($T$6=$W$161,$AK$175,"N/A"))))))))))) -> 493739.7435 | S41: =$F$102 -> -0.008152324741 | W41: 0 | X41: 2 | Y41: 2 | Z41: 6 | AA41: 1 | AB41: 0 | AC41: 0 | AD41: 4 | AE41: 4 | AF41: 0 | AG41: 0 | AJ41: 0 | AK41: 6 | AL41: 0 | AM41: 16 | AN41: 5 | AO41: 4 | AP41: 1 | AQ41: 0 | AR41: 1 | AS41: 0 | AT41: 9
S42: =$F$123 -> -0.02087336294 | W42: 0 | X42: 4 | Y42: 2 | Z42: 0 | AA42: 0 | AB42: 1 | AC42: 1 | AD42: 0 | AE42: 3 | AF42: 0 | AG42: 0 | AJ42: 2 | AK42: 5 | AL42: 1 | AM42: 2 | AN42: 1 | AO42: 0 | AP42: 2 | AQ42: 0 | AR42: 0 | AS42: 0 | AT42: 0
F43: =IF(B23=F39,"","Your Farm") ->  | G43: =IF(B23=F39,"",B23) ->  | S43: =$F$144 -> 0.1835899649 | W43: 1 | X43: 2 | Y43: 5 | Z43: 0 | AA43: 0 | AB43: 0 | AC43: 0 | AD43: 2 | AE43: 3 | AF43: 0 | AG43: 0 | AJ43: 0 | AK43: 2 | AL43: 1 | AM43: 0 | AN43: 2 | AO43: 0 | AP43: 2 | AQ43: 0 | AR43: 0 | AS43: 0 | AT43: 0
S44: =$F$164 -> 0.8445583431 | W44: 12 | X44: 4 | Z44: 0 | AA44: 0 | AB44: 1 | AC44: 2 | AG44: 0 | AJ44: 12 | AK44: 0 | AM44: 0 | AN44: 0 | AO44: 1 | AP44: 1 | AT44: 0
S45: =$F$185 -> 0.1134129765 | V45: Count | W45: 25 | X45: 25 | Y45: 25 | Z45: 25 | AA45: 25 | AB45: 25 | AC45: 25 | AD45: 25 | AE45: 25 | AF45: 25 | AG45: 25 | AI45: Count | AJ45: 20 | AK45: 20 | AL45: 20 | AM45: 20 | AN45: 20 | AO45: 20 | AP45: 20 | AQ45: 20 | AR45: 20 | AS45: 20 | AT45: 20
S46: =$F$206 -> 0.04114756181 | V46: Average | W46: 3.449753704 | X46: 0.7503516907 | Y46: 0.2107747686 | Z46: 0.0336468425 | AA46: 0.007222585414 | AB46: 0.0009435203983 | AC46: 0.2146586389 | AD46: 0.7428020045 | AE46: 0.140575402 | AF46: 0.03010038743 | AG46: 0.08652220612 | AI46: Average | AJ46: 6.646898066 | AK46: 0.744451017 | AL46: 0.1460422713 | AM46: 0.2565536778 | AN46: 0.09080332093 | AO46: 0.0979470851 | AP46: 0.3539349804 | AQ46: 0.6050854006 | AR46: 0.078394369 | AS46: 0.02189183796 | AT46: 0.2946283924
E47: Debt to Asset Ratio | S47: =$F$228 -> 0.000881118555 | V47: Non-ratio average | X47: 496980.6745 | AG47: 57306.28036 | AI47: Non-ratio average | AK47: 462740.5254 | AT47: 183136.9613
F48: 2015 | G48: 10-Year
E49: 0 | F49: =IF($T$6=$W$1,Y3/$F$58,IF($T$6=$W$17,Y19/$F$58,IF($T$6=$W$33,Y35/$F$58,IF($T$6=$W$49,Y51/$F$58,IF($T$6=$W$65,Y67/$F$58,IF($T$6=$W$81,Y83/$F$58,IF($T$6=$W$97,Y99/$F$58,IF($T$6=$W$113,Y115/$F$58,IF($T$6=$W$129,Y131/$F$58,IF($T$6=$W$145,Y147/$F$58,IF($T$6=$W$161,Y163/$F$58,"N/A"))))))))))) -> 0.04635761589 | G49: =IF($T$6=$W$1,AL3/$G$38,IF($T$6=$W$17,AL19/$G$38,IF($T$6=$W$33,AL35/$G$38,IF($T$6=$W$49,AL51/$G$38,IF($T$6=$W$65,AL67/$G$38,IF($T$6=$W$81,AL83/$G$38,IF($T$6=$W$97,AL99/$G$38,IF($T$6=$W$113,AL115/$G$38,IF($T$6=$W$129,AL131/$G$38,IF($T$6=$W$145,AL147/$G$38,IF($T$6=$W$161,AL163/$G$38,"N/A"))))))))))) -> 0.008333333333 | S49: Your Farm Line-Debt to Asset | W49: 1500-3000Yes
E50: 0.1 | F50: =IF($T$6=$W$1,Y4/$F$58,IF($T$6=$W$17,Y20/$F$58,IF($T$6=$W$33,Y36/$F$58,IF($T$6=$W$49,Y52/$F$58,IF($T$6=$W$65,Y68/$F$58,IF($T$6=$W$81,Y84/$F$58,IF($T$6=$W$97,Y100/$F$58,IF($T$6=$W$113,Y116/$F$58,IF($T$6=$W$129,Y132/$F$58,IF($T$6=$W$145,Y148/$F$58,IF($T$6=$W$161,Y164/$F$58,"N/A"))))))))))) -> 0.2582781457 | G50: =IF($T$6=$W$1,AL4/$G$38,IF($T$6=$W$17,AL20/$G$38,IF($T$6=$W$33,AL36/$G$38,IF($T$6=$W$49,AL52/$G$38,IF($T$6=$W$65,AL68/$G$38,IF($T$6=$W$81,AL84/$G$38,IF($T$6=$W$97,AL100/$G$38,IF($T$6=$W$113,AL116/$G$38,IF($T$6=$W$129,AL132/$G$38,IF($T$6=$W$145,AL148/$G$38,IF($T$6=$W$161,AL164/$G$38,"N/A"))))))))))) -> 0.25 | S50: X's | T50: =B24 -> 0.2317381614 | U50: =T50 -> 0.2317381614 | W50: Current Ratio | X50: Working Capital Ratio | Y50: Debt to Asset Ratio | Z50: Operating Profit Margin | AA50: ROA | AB50: ROE | AC50: Asset Turnover | AD50: Operating Expense Ratio | AE50: Depr Expense Ratio | AF50: Interest Expense Ratio | AG50: NFI Ratio | AJ50: Current Ratio | AK50: Working Capital Ratio | AL50: Debt to Asset Ratio | AM50: Operating Profit Margin | AN50: ROA | AO50: ROE | AP50: Asset Turnover | AQ50: Operating Expense Ratio | AR50: Depr Expense Ratio | AS50: Interest Expense Ratio | AT50: NFI Ratio
E51: 0.2 | F51: 0.1920529801 | G51: 0.2166666667 | S51: Y's | T51: 0 | U51: 0.4 | W51: 1 | X51: 2 | Y51: 2 | Z51: 0 | AA51: 4 | AB51: 7 | AC51: 0 | AD51: 0 | AE51: 0 | AF51: 2 | AG51: 0 | AJ51: 0 | AK51: 1 | AL51: 0 | AM51: 0 | AN51: 0 | AO51: 1 | AP51: 0 | AQ51: 0 | AR51: 0 | AS51: 0 | AT51: 0
E52: 0.3 | F52: 0.119205298 | G52: 0.1333333333 | S52: =IF(B24=F59,U1 &" Average","Your Farm") -> 2015 Average | W52: 2 | X52: 2 | Y52: 4 | Z52: 1 | AA52: 4 | AB52: 4 | AC52: 4 | AD52: 0 | AE52: 1 | AF52: 9 | AG52: 3 | AJ52: 1 | AK52: 0 | AL52: 6 | AM52: 0 | AN52: 0 | AO52: 1 | AP52: 1 | AQ52: 0 | AR52: 0 | AS52: 11 | AT52: 0
E53: 0.4 | F53: 0.119205298 | G53: 0.1583333333 | W53: 5 | X53: 3 | Y53: 7 | Z53: 6 | AA53: 6 | AB53: 6 | AC53: 9 | AD53: 2 | AE53: 1 | AF53: 8 | AG53: 7 | AJ53: 0 | AK53: 0 | AL53: 5 | AM53: 0 | AN53: 2 | AO53: 0 | AP53: 2 | AQ53: 5 | AR53: 10 | AS53: 7 | AT53: 0
E54: 0.5 | F54: 0.07284768212 | G54: 0.09166666667 | W54: 7 | X54: 7 | Y54: 2 | Z54: 4 | AA54: 10 | AB54: 8 | AC54: 8 | AD54: 6 | AE54: 7 | AF54: 2 | AG54: 4 | AJ54: 4 | AK54: 7 | AL54: 3 | AM54: 0 | AN54: 0 | AO54: 11 | AP54: 7 | AQ54: 8 | AR54: 6 | AS54: 4 | AT54: 1
E55: 0.6 | F55: 0.05960264901 | G55: 0.06666666667 | W55: 1 | X55: 3 | Y55: 4 | Z55: 5 | AA55: 2 | AB55: 0 | AC55: 1 | AD55: 2 | AE55: 10 | AF55: 2 | AG55: 7 | AJ55: 3 | AK55: 4 | AL55: 2 | AM55: 2 | AN55: 12 | AO55: 3 | AP55: 4 | AQ55: 8 | AR55: 6 | AS55: 1 | AT55: 4
E56: 0.7 | F56: 0.03973509934 | G56: 0.04166666667 | W56: 1 | X56: 4 | Y56: 2 | Z56: 6 | AA56: 0 | AB56: 0 | AC56: 2 | AD56: 4 | AE56: 4 | AF56: 3 | AG56: 4 | AJ56: 2 | AK56: 6 | AL56: 3 | AM56: 9 | AN56: 5 | AO56: 4 | AP56: 4 | AQ56: 1 | AR56: 1 | AS56: 0 | AT56: 14
E57: More | F57: 0.09271523179 | G57: 0.03333333333 | W57: 1 | X57: 0 | Y57: 3 | Z57: 4 | AA57: 0 | AB57: 1 | AC57: 2 | AD57: 5 | AE57: 1 | AF57: 1 | AG57: 2 | AJ57: 1 | AK57: 3 | AL57: 3 | AM57: 11 | AN57: 3 | AO57: 2 | AP57: 3 | AQ57: 1 | AR57: 0 | AS57: 0 | AT57: 4
E58: Count | F58: =F38 -> 151 | G58: =G38 -> 120 | W58: 1 | X58: 2 | Y58: 0 | Z58: 1 | AA58: 1 | AB58: 0 | AC58: 0 | AD58: 7 | AE58: 2 | AF58: 0 | AG58: 0 | AJ58: 1 | AK58: 1 | AL58: 1 | AM58: 1 | AN58: 0 | AO58: 0 | AP58: 1 | AQ58: 0 | AR58: 0 | AS58: 0 | AT58: 0
E59: Average | F59: =IF($T$6=$W$1,$Y$14,IF($T$6=$W$17,$Y$30,IF($T$6=$W$33,$Y$46,IF($T$6=$W$49,$Y$62,IF($T$6=$W$65,$Y$78,IF($T$6=$W$81,$Y$94,IF($T$6=$W$97,$Y$110,IF($T$6=$W$113,$Y$126,IF($T$6=$W$129,$Y$142,IF($T$6=$W$145,$Y$158,IF($T$6=$W$161,$Y$174,"N/A"))))))))))) -> 0.2317381614 | G59: =IF($T$6=$W$1,$AL$14,IF($T$6=$W$17,$AL$30,IF($T$6=$W$33,$AL$46,IF($T$6=$W$49,$AL$62,IF($T$6=$W$65,$AL$78,IF($T$6=$W$81,$AL$94,IF($T$6=$W$97,$AL$110,IF($T$6=$W$113,$AL$126,IF($T$6=$W$129,$AL$142,IF($T$6=$W$145,$AL$158,IF($T$6=$W$161,$AL$174,"N/A"))))))))))) -> 0.253547584 | W59: 1 | X59: 3 | Y59: 3 | Z59: 0 | AA59: 0 | AB59: 0 | AC59: 0 | AD59: 1 | AE59: 1 | AF59: 0 | AG59: 0 | AJ59: 0 | AK59: 0 | AL59: 0 | AM59: 0 | AN59: 0 | AO59: 0 | AP59: 0 | AQ59: 0 | AR59: 0 | AS59: 0 | AT59: 0
W60: 7 | X60: 1 | Z60: 0 | AA60: 0 | AB60: 1 | AC60: 1 | AG60: 0 | AJ60: 11 | AK60: 1 | AM60: 0 | AN60: 1 | AO60: 1 | AP60: 1 | AT60: 0
V61: Count | W61: 27 | X61: 27 | Y61: 27 | Z61: 27 | AA61: 27 | AB61: 27 | AC61: 27 | AD61: 27 | AE61: 27 | AF61: 27 | AG61: 27 | AI61: Count | AJ61: 23 | AK61: 23 | AL61: 23 | AM61: 23 | AN61: 23 | AO61: 23 | AP61: 23 | AQ61: 23 | AR61: 23 | AS61: 23 | AT61: 23
V62: Average | W62: 1.571997051 | X62: 0.2879125151 | Y62: 0.2539167772 | Z62: -0.08114851078 | AA62: -0.01364157719 | AB62: -0.03169601598 | AC62: 0.1681063159 | AD62: 0.8503954035 | AE62: 0.1148959966 | AF62: 0.05857367796 | AG62: -0.02386507804 | AI62: Average | AJ62: 2.889526555 | AK62: 0.4958309019 | AL62: 0.2184942029 | AM62: 0.164996718 | AN62: 0.04774105537 | AO62: 0.04740159866 | AP62: 0.2893454848 | AQ62: 0.6748694473 | AR62: 0.08005719895 | AS62: 0.03570277028 | AT62: 0.2093705835
F63: =IF(B24=F59,"","Your Farm") ->  | G63: =IF(B24=F59,"",B24) ->  | V63: Non-ratio average | X63: 162379.9609 | AG63: -13459.68041 | AI63: Non-ratio average | AK63: 287991.4209 | AT63: 121607.8538
W65: Greater than 3000No
W66: Current Ratio | X66: Working Capital Ratio | Y66: Debt to Asset Ratio | Z66: Operating Profit Margin | AA66: ROA | AB66: ROE | AC66: Asset Turnover | AD66: Operating Expense Ratio | AE66: Depr Expense Ratio | AF66: Interest Expense Ratio | AG66: NFI Ratio | AJ66: Current Ratio | AK66: Working Capital Ratio | AL66: Debt to Asset Ratio | AM66: Operating Profit Margin | AN66: ROA | AO66: ROE | AP66: Asset Turnover | AQ66: Operating Expense Ratio | AR66: Depr Expense Ratio | AS66: Interest Expense Ratio | AT66: NFI Ratio
W67: 2 | X67: 0 | Y67: 0 | Z67: 0 | AA67: 1 | AB67: 2 | AC67: 0 | AD67: 0 | AE67: 0 | AF67: 1 | AG67: 0 | AJ67: 0 | AK67: 0 | AL67: 0 | AM67: 0 | AN67: 0 | AO67: 0 | AP67: 0 | AQ67: 0 | AR67: 0 | AS67: 0 | AT67: 0
E68: Operating Profit Margin Ratio | W68: 0 | X68: 0 | Y68: 8 | Z68: 0 | AA68: 0 | AB68: 2 | AC68: 0 | AD68: 0 | AE68: 0 | AF68: 13 | AG68: 0 | AJ68: 0 | AK68: 0 | AL68: 2 | AM68: 0 | AN68: 0 | AO68: 0 | AP68: 0 | AQ68: 1 | AR68: 1 | AS68: 9 | AT68: 0
F69: 2015 | G69: 10-Year | W69: 1 | X69: 1 | Y69: 3 | Z69: 1 | AA69: 4 | AB69: 4 | AC69: 9 | AD69: 0 | AE69: 0 | AF69: 4 | AG69: 1 | AJ69: 0 | AK69: 0 | AL69: 4 | AM69: 0 | AN69: 0 | AO69: 0 | AP69: 0 | AQ69: 5 | AR69: 1 | AS69: 1 | AT69: 0
E70: -0.6 | F70: =IF($T$6=$W$1,Z3/$F$80,IF($T$6=$W$17,Z19/$F$80,IF($T$6=$W$33,Z35/$F$80,IF($T$6=$W$49,Z51/$F$80,IF($T$6=$W$65,Z67/$F$80,IF($T$6=$W$81,Z83/$F$80,IF($T$6=$W$97,Z99/$F$80,IF($T$6=$W$113,Z115/$F$80,IF($T$6=$W$129,Z131/$F$80,IF($T$6=$W$145,Z147/$F$80,IF($T$6=$W$161,Z163/$F$80,"N/A"))))))))))) -> 0.05298013245 | G70: =IF($T$6=$W$1,AM3/$G$38,IF($T$6=$W$17,AM19/$G$38,IF($T$6=$W$33,AM35/$G$38,IF($T$6=$W$49,AM51/$G$38,IF($T$6=$W$65,AM67/$G$38,IF($T$6=$W$81,AM83/$G$38,IF($T$6=$W$97,AM99/$G$38,IF($T$6=$W$113,AM115/$G$38,IF($T$6=$W$129,AM131/$G$38,IF($T$6=$W$145,AM147/$G$38,IF($T$6=$W$161,AM163/$G$38,"N/A"))))))))))) -> 0 | W70: 4 | X70: 4 | Y70: 4 | Z70: 2 | AA70: 10 | AB70: 9 | AC70: 6 | AD70: 5 | AE70: 5 | AF70: 0 | AG70: 6 | AJ70: 0 | AK70: 0 | AL70: 2 | AM70: 0 | AN70: 0 | AO70: 0 | AP70: 4 | AQ70: 4 | AR70: 5 | AS70: 1 | AT70: 0
E71: -0.45 | F71: =IF($T$6=$W$1,Z4/$F$80,IF($T$6=$W$17,Z20/$F$80,IF($T$6=$W$33,Z36/$F$80,IF($T$6=$W$49,Z52/$F$80,IF($T$6=$W$65,Z68/$F$80,IF($T$6=$W$81,Z84/$F$80,IF($T$6=$W$97,Z100/$F$80,IF($T$6=$W$113,Z116/$F$80,IF($T$6=$W$129,Z132/$F$80,IF($T$6=$W$145,Z148/$F$80,IF($T$6=$W$161,Z164/$F$80,"N/A"))))))))))) -> 0.01986754967 | G71: =IF($T$6=$W$1,AM4/$G$38,IF($T$6=$W$17,AM20/$G$38,IF($T$6=$W$33,AM36/$G$38,IF($T$6=$W$49,AM52/$G$38,IF($T$6=$W$65,AM68/$G$38,IF($T$6=$W$81,AM84/$G$38,IF($T$6=$W$97,AM100/$G$38,IF($T$6=$W$113,AM116/$G$38,IF($T$6=$W$129,AM132/$G$38,IF($T$6=$W$145,AM148/$G$38,IF($T$6=$W$161,AM164/$G$38,"N/A"))))))))))) -> 0 | S71: Your Farm Line-Operating Profit Margin Ratio | W71: 2 | X71: 4 | Y71: 3 | Z71: 4 | AA71: 4 | AB71: 3 | AC71: 2 | AD71: 7 | AE71: 3 | AF71: 2 | AG71: 9 | AJ71: 0 | AK71: 4 | AL71: 2 | AM71: 0 | AN71: 1 | AO71: 6 | AP71: 4 | AQ71: 1 | AR71: 4 | AS71: 1 | AT71: 1
E72: -0.3 | F72: 0.1258278146 | G72: 0 | S72: X's | T72: =B25 -> -0.04440506727 | U72: =T72 -> -0.04440506727 | W72: 1 | X72: 5 | Y72: 0 | Z72: 9 | AA72: 1 | AB72: 0 | AC72: 2 | AD72: 5 | AE72: 3 | AF72: 0 | AG72: 4 | AJ72: 2 | AK72: 4 | AL72: 1 | AM72: 1 | AN72: 7 | AO72: 3 | AP72: 1 | AQ72: 1 | AR72: 1 | AS72: 0 | AT72: 6
E73: -0.15 | F73: 0.178807947 | G73: 0 | S73: Y's | T73: 0 | U73: 0.6 | W73: 0 | X73: 1 | Y73: 0 | Z73: 4 | AA73: 0 | AB73: 0 | AC73: 0 | AD73: 2 | AE73: 7 | AF73: 0 | AG73: 0 | AJ73: 1 | AK73: 2 | AL73: 0 | AM73: 6 | AN73: 2 | AO73: 1 | AP73: 2 | AQ73: 0 | AR73: 0 | AS73: 0 | AT73: 5
E74: 0 | F74: 0.2582781457 | G74: 0.05833333333 | S74: =IF(B25=F81,U1 &" Average","Your Farm") -> 2015 Average | W74: 3 | X74: 2 | Y74: 1 | Z74: 0 | AA74: 0 | AB74: 0 | AC74: 1 | AD74: 1 | AE74: 0 | AF74: 0 | AG74: 0 | AJ74: 1 | AK74: 1 | AL74: 0 | AM74: 5 | AN74: 1 | AO74: 1 | AP74: 1 | AQ74: 0 | AR74: 0 | AS74: 0 | AT74: 0
E75: 0.15 | F75: 0.2251655629 | G75: 0.3 | W75: 1 | X75: 1 | Y75: 1 | Z75: 0 | AA75: 0 | AB75: 0 | AC75: 0 | AD75: 0 | AE75: 2 | AF75: 0 | AG75: 0 | AJ75: 0 | AK75: 1 | AL75: 1 | AM75: 0 | AN75: 1 | AO75: 1 | AP75: 0 | AQ75: 0 | AR75: 0 | AS75: 0 | AT75: 0
E76: 0.3 | F76: 0.1258278146 | G76: 0.525 | W76: 6 | X76: 2 | Z76: 0 | AA76: 0 | AB76: 0 | AC76: 0 | AG76: 0 | AJ76: 8 | AK76: 0 | AM76: 0 | AN76: 0 | AO76: 0 | AP76: 0 | AT76: 0
E77: 0.45 | F77: 0.01324503311 | G77: 0.1166666667 | V77: Count | W77: 20 | X77: 20 | Y77: 20 | Z77: 20 | AA77: 20 | AB77: 20 | AC77: 20 | AD77: 20 | AE77: 20 | AF77: 20 | AG77: 20 | AI77: Count | AJ77: 12 | AK77: 12 | AL77: 12 | AM77: 12 | AN77: 12 | AO77: 12 | AP77: 12 | AQ77: 12 | AR77: 12 | AS77: 12 | AT77: 12
E78: 0.6 | F78: 0 | G78: 0 | V78: Average | W78: 3.074251216 | X78: 0.6579760105 | Y78: 0.1802529052 | Z78: 0.0608443884 | AA78: 0.01339712723 | AB78: 0.0102310699 | AC78: 0.2201867351 | AD78: 0.7664895074 | AE78: 0.123212947 | AF78: 0.02238618941 | AG78: 0.08791135618 | AI78: Average | AJ78: 4.510268755 | AK78: 0.6595537655 | AL78: 0.2283042266 | AM78: 0.251002186 | AN78: 0.09028694603 | AO78: 0.1031730631 | AP78: 0.3597058155 | AQ78: 0.6430538752 | AR78: 0.07500800778 | AS78: 0.02940629259 | AT78: 0.2525318244
E79: More | F79: 0 | G79: 0 | V79: Non-ratio average | X79: 1036748.429 | AG79: 138518.6678 | AI79: Non-ratio average | AK79: 1467659.355 | AT79: 561941.5943
E80: Count | F80: =F58 -> 151 | G80: =G58 -> 120
E81: Average | F81: =IF($T$6=$W$1,$Z$14,IF($T$6=$W$17,$Z$30,IF($T$6=$W$33,$Z$46,IF($T$6=$W$49,$Z$62,IF($T$6=$W$65,$Z$78,IF($T$6=$W$81,$Z$94,IF($T$6=$W$97,$Z$110,IF($T$6=$W$113,$Z$126,IF($T$6=$W$129,$Z$142,IF($T$6=$W$145,$Z$158,IF($T$6=W161,Z174,"N/A"))))))))))) -> -0.04440506727 | G81: =IF($T$6=$W$1,$AM$14,IF($T$6=$W$17,$AM$30,IF($T$6=$W$33,$AM$46,IF($T$6=$W$49,$AM$62,IF($T$6=$W$65,$AM$78,IF($T$6=$W$81,$AM$94,IF($T$6=$W$97,$AM$110,IF($T$6=$W$113,$AM$126,IF($T$6=$W$129,$AM$142,IF($T$6=$W$145,$AM$158,IF($T$6=$W$161,$AM$174,"N/A"))))))))))) -> 0.2064515018 | W81: Greater than 3000Yes
W82: Current Ratio | X82: Working Capital Ratio | Y82: Debt to Asset Ratio | Z82: Operating Profit Margin | AA82: ROA | AB82: ROE | AC82: Asset Turnover | AD82: Operating Expense Ratio | AE82: Depr Expense Ratio | AF82: Interest Expense Ratio | AG82: NFI Ratio | AJ82: Current Ratio | AK82: Working Capital Ratio | AL82: Debt to Asset Ratio | AM82: Operating Profit Margin | AN82: ROA | AO82: ROE | AP82: Asset Turnover | AQ82: Operating Expense Ratio | AR82: Depr Expense Ratio | AS82: Interest Expense Ratio | AT82: NFI Ratio
W83: 0 | X83: 2 | Y83: 0 | Z83: 2 | AA83: 1 | AB83: 5 | AC83: 0 | AD83: 0 | AE83: 0 | AF83: 1 | AG83: 1 | AJ83: 0 | AK83: 0 | AL83: 0 | AM83: 0 | AN83: 0 | AO83: 1 | AP83: 0 | AQ83: 0 | AR83: 0 | AS83: 0 | AT83: 0
W84: 3 | X84: 3 | Y84: 6 | Z84: 1 | AA84: 3 | AB84: 5 | AC84: 5 | AD84: 0 | AE84: 0 | AF84: 7 | AG84: 2 | AJ84: 0 | AK84: 0 | AL84: 2 | AM84: 0 | AN84: 0 | AO84: 0 | AP84: 0 | AQ84: 0 | AR84: 0 | AS84: 8 | AT84: 0
F85: =IF(B25=F81,"","Your Farm") ->  | G85: =IF(B25=F81,"",B25) ->  | W85: 6 | X85: 4 | Y85: 7 | Z85: 0 | AA85: 7 | AB85: 9 | AC85: 9 | AD85: 0 | AE85: 2 | AF85: 10 | AG85: 0 | AJ85: 1 | AK85: 1 | AL85: 8 | AM85: 0 | AN85: 1 | AO85: 2 | AP85: 6 | AQ85: 4 | AR85: 5 | AS85: 10 | AT85: 0
W86: 1 | X86: 2 | Y86: 3 | Z86: 5 | AA86: 11 | AB86: 5 | AC86: 6 | AD86: 0 | AE86: 6 | AF86: 6 | AG86: 14 | AJ86: 4 | AK86: 5 | AL86: 5 | AM86: 0 | AN86: 4 | AO86: 10 | AP86: 8 | AQ86: 7 | AR86: 12 | AS86: 2 | AT86: 1
W87: 3 | X87: 4 | Y87: 3 | Z87: 10 | AA87: 2 | AB87: 0 | AC87: 1 | AD87: 7 | AE87: 8 | AF87: 0 | AG87: 6 | AJ87: 4 | AK87: 8 | AL87: 3 | AM87: 1 | AN87: 10 | AO87: 6 | AP87: 3 | AQ87: 5 | AR87: 3 | AS87: 1 | AT87: 9
W88: 1 | X88: 4 | Y88: 1 | Z88: 5 | AA88: 0 | AB88: 0 | AC88: 1 | AD88: 6 | AE88: 3 | AF88: 0 | AG88: 1 | AJ88: 4 | AK88: 3 | AL88: 0 | AM88: 8 | AN88: 4 | AO88: 1 | AP88: 1 | AQ88: 4 | AR88: 1 | AS88: 0 | AT88: 8
E89: Rate of Return on Farm Assets | W89: 1 | X89: 2 | Y89: 1 | Z89: 1 | AA89: 0 | AB89: 0 | AC89: 0 | AD89: 7 | AE89: 2 | AF89: 0 | AG89: 0 | AJ89: 1 | AK89: 2 | AL89: 1 | AM89: 10 | AN89: 2 | AO89: 1 | AP89: 2 | AQ89: 1 | AR89: 0 | AS89: 0 | AT89: 3
F90: 2015 | G90: 10-Year | W90: 2 | X90: 1 | Y90: 1 | Z90: 0 | AA90: 0 | AB90: 0 | AC90: 1 | AD90: 1 | AE90: 3 | AF90: 0 | AG90: 0 | AJ90: 1 | AK90: 0 | AL90: 2 | AM90: 2 | AN90: 0 | AO90: 0 | AP90: 0 | AQ90: 0 | AR90: 0 | AS90: 0 | AT90: 0
E91: -0.1 | F91: =IF($T$6=$W$1,AA3/$F$101,IF($T$6=$W$17,AA19/$F$101,IF($T$6=$W$33,AA35/$F$101,IF($T$6=$W$49,AA51/$F$101,IF($T$6=$W$65,AA67/$F$101,IF($T$6=$W$81,AA83/$F$101,IF($T$6=$W$97,AA99/$F$101,IF($T$6=$W$113,AA115/$F$101,IF($T$6=$W$129,AA131/$F$101,IF($T$6=$W$145,AA147/$F$101,IF($T$6=$W$161,AA163/$F$101,"N/A"))))))))))) -> 0.07947019868 | G91: =IF($T$6=$W$1,AN3/$G$38,IF($T$6=$W$17,AN19/$G$38,IF($T$6=$W$33,AN35/$G$38,IF($T$6=$W$49,AN51/$G$38,IF($T$6=$W$65,AN67/$G$38,IF($T$6=$W$81,AN83/$G$38,IF($T$6=$W$97,AN99/$G$38,IF($T$6=$W$113,AN115/$G$38,IF($T$6=$W$129,AN131/$G$38,IF($T$6=$W$145,AN147/$G$38,IF($T$6=$W$161,AN163/$G$38,"N/A"))))))))))) -> 0 | W91: 1 | X91: 0 | Y91: 2 | Z91: 0 | AA91: 0 | AB91: 0 | AC91: 1 | AD91: 3 | AE91: 0 | AF91: 0 | AG91: 0 | AJ91: 0 | AK91: 2 | AL91: 0 | AM91: 0 | AN91: 0 | AO91: 0 | AP91: 0 | AQ91: 0 | AR91: 0 | AS91: 0 | AT91: 0
E92: -0.06 | F92: =IF($T$6=$W$1,AA4/$F$101,IF($T$6=$W$17,AA20/$F$101,IF($T$6=$W$33,AA36/$F$101,IF($T$6=$W$49,AA52/$F$101,IF($T$6=$W$65,AA68/$F$101,IF($T$6=$W$81,AA84/$F$101,IF($T$6=$W$97,AA100/$F$101,IF($T$6=$W$113,AA116/$F$101,IF($T$6=$W$129,AA132/$F$101,IF($T$6=$W$145,AA148/$F$101,IF($T$6=$W$161,AA164/$F$101,"N/A"))))))))))) -> 0.09933774834 | G92: =IF($T$6=$W$1,AN4/$G$38,IF($T$6=$W$17,AN20/$G$38,IF($T$6=$W$33,AN36/$G$38,IF($T$6=$W$49,AN52/$G$38,IF($T$6=$W$65,AN68/$G$38,IF($T$6=$W$81,AN84/$G$38,IF($T$6=$W$97,AN100/$G$38,IF($T$6=$W$113,AN116/$G$38,IF($T$6=$W$129,AN132/$G$38,IF($T$6=$W$145,AN148/$G$38,IF($T$6=$W$161,AN164/$G$38,"N/A"))))))))))) -> 0.008333333333 | W92: 6 | X92: 2 | Z92: 0 | AA92: 0 | AB92: 0 | AC92: 0 | AG92: 0 | AJ92: 6 | AK92: 0 | AM92: 0 | AN92: 0 | AO92: 0 | AP92: 1 | AT92: 0
E93: -0.02 | F93: 0.2649006623 | G93: 0.05 | S93: Your Farm Line-Return on Assets | V93: Count | W93: 24 | X93: 24 | Y93: 24 | Z93: 24 | AA93: 24 | AB93: 24 | AC93: 24 | AD93: 24 | AE93: 24 | AF93: 24 | AG93: 24 | AI93: Count | AJ93: 21 | AK93: 21 | AL93: 21 | AM93: 21 | AN93: 21 | AO93: 21 | AP93: 21 | AQ93: 21 | AR93: 21 | AS93: 21 | AT93: 21
E94: 0.02 | F94: 0.3973509934 | G94: 0.1166666667 | S94: X's | T94: =B26 -> -0.008152324741 | U94: =T94 -> -0.008152324741 | V94: Average | W94: 1.868050482 | X94: 0.452850873 | Y94: 0.2233654572 | Z94: -0.1499469139 | AA94: -0.02223884069 | AB94: -0.03751788023 | AC94: 0.1483114264 | AD94: 0.94282998 | AE94: 0.1074950089 | AF94: 0.04179557769 | AG94: -0.09212056658 | AI94: Average | AJ94: 2.327921199 | AK94: 0.4672382371 | AL94: 0.2722742463 | AM94: 0.1623078634 | AN94: 0.04042911005 | AO94: 0.03868083834 | AP94: 0.2490890411 | AQ94: 0.7206298603 | AR94: 0.07811099787 | AS94: 0.04404107133 | AT94: 0.1572180705
E95: 0.06 | F95: 0.1059602649 | G95: 0.375 | S95: Y's | T95: 0 | U95: 0.5 | V95: Non-ratio average | X95: 518621.8604 | AG95: -105499.9393 | AI95: Non-ratio average | AK95: 623805.2593 | AT95: 209900.3281
E96: 0.1 | F96: 0.03311258278 | G96: 0.275 | S96: =IF(B26=F102,U1 &" Average","Your Farm") -> 2015 Average
E97: 0.14 | F97: 0.006622516556 | G97: 0.1166666667 | W97: All Farms
E98: 0.18 | F98: 0.006622516556 | G98: 0.025 | W98: Current Ratio | X98: Working Capital Ratio | Y98: Debt to Asset Ratio | Z98: Operating Profit Margin | AA98: ROA | AB98: ROE | AC98: Asset Turnover | AD98: Operating Expense Ratio | AE98: Depr Expense Ratio | AF98: Interest Expense Ratio | AG98: NFI Ratio | AJ98: Current Ratio | AK98: Working Capital Ratio | AL98: Debt to Asset Ratio | AM98: Operating Profit Margin | AN98: ROA | AO98: ROE | AP98: Asset Turnover | AQ98: Operating Expense Ratio | AR98: Depr Expense Ratio | AS98: Interest Expense Ratio | AT98: NFI Ratio
E99: 0.22 | F99: 0 | G99: 0.025 | W99: 4 | X99: 10 | Y99: 7 | Z99: 8 | AA99: 12 | AB99: 32 | AC99: 0 | AD99: 0 | AE99: 0 | AF99: 10 | AG99: 4 | AJ99: 1 | AK99: 2 | AL99: 1 | AM99: 0 | AN99: 0 | AO99: 5 | AP99: 0 | AQ99: 1 | AR99: 0 | AS99: 0 | AT99: 0
E100: More | F100: 0.006622516556 | G100: 0.008333333333 | W100: 13 | X100: 8 | Y100: 39 | Z100: 3 | AA100: 15 | AB100: 19 | AC100: 24 | AD100: 1 | AE100: 5 | AF100: 54 | AG100: 9 | AJ100: 1 | AK100: 2 | AL100: 30 | AM100: 0 | AN100: 1 | AO100: 2 | AP100: 1 | AQ100: 3 | AR100: 5 | AS100: 57 | AT100: 0
E101: Count | F101: =F80 -> 151 | G101: =G80 -> 120 | W101: 29 | X101: 24 | Y101: 29 | Z101: 19 | AA101: 40 | AB101: 54 | AC101: 58 | AD101: 6 | AE101: 15 | AF101: 45 | AG101: 16 | AJ101: 6 | AK101: 3 | AL101: 26 | AM101: 0 | AN101: 6 | AO101: 10 | AP101: 23 | AQ101: 34 | AR101: 41 | AS101: 37 | AT101: 0
E102: Average | F102: =IF($T$6=$W$1,$AA$14,IF($T$6=$W$17,$AA$30,IF($T$6=$W$33,$AA$46,IF($T$6=$W$49,$AA$62,IF($T$6=$W$65,$AA$78,IF($T$6=$W$81,$AA$94,IF($T$6=$W$97,$AA$110,IF($T$6=$W$113,$AA$126,IF($T$6=$W$129,$AA$142,IF($T$6=$W$145,$AA$158,IF($T$6=$W$161,AA174,"N/A"))))))))))) -> -0.008152324741 | G102: =IF($T$6=$W$1,$AN$14,IF($T$6=$W$17,$AN$30,IF($T$6=$W$33,$AN$46,IF($T$6=$W$49,$AN$62,IF($T$6=$W$65,$AN$78,IF($T$6=$W$81,$AN$94,IF($T$6=$W$97,$AN$110,IF($T$6=$W$113,$AN$126,IF($T$6=$W$129,$AN$142,IF($T$6=$W$145,$AN$158,IF($T$6=$W$161,$AN$174,"N/A"))))))))))) -> 0.06138648392 | W102: 27 | X102: 29 | Y102: 18 | Z102: 27 | AA102: 60 | AB102: 32 | AC102: 35 | AD102: 21 | AE102: 36 | AF102: 24 | AG102: 46 | AJ102: 15 | AK102: 24 | AL102: 16 | AM102: 0 | AN102: 14 | AO102: 41 | AP102: 39 | AQ102: 45 | AR102: 41 | AS102: 19 | AT102: 2
W103: 10 | X103: 23 | Y103: 18 | Z103: 39 | AA103: 16 | AB103: 5 | AC103: 11 | AD103: 32 | AE103: 34 | AF103: 10 | AG103: 51 | AJ103: 19 | AK103: 32 | AL103: 19 | AM103: 7 | AN103: 45 | AO103: 31 | AP103: 24 | AQ103: 25 | AR103: 23 | AS103: 3 | AT103: 27
W104: 4 | X104: 15 | Y104: 11 | Z104: 34 | AA104: 5 | AB104: 1 | AC104: 7 | AD104: 38 | AE104: 24 | AF104: 4 | AG104: 20 | AJ104: 11 | AK104: 20 | AL104: 11 | AM104: 36 | AN104: 33 | AO104: 16 | AP104: 12 | AQ104: 10 | AR104: 6 | AS104: 4 | AT104: 59
W105: 3 | X105: 6 | Y105: 9 | Z105: 19 | AA105: 1 | AB105: 2 | AC105: 3 | AD105: 28 | AE105: 16 | AF105: 3 | AG105: 4 | AJ105: 3 | AK105: 17 | AL105: 8 | AM105: 63 | AN105: 14 | AO105: 9 | AP105: 9 | AQ105: 2 | AR105: 4 | AS105: 0 | AT105: 31
F106: =IF(B26=F102,"","Your Farm") ->  | G106: =IF(B26=F102,"",B26) ->  | W106: 10 | X106: 12 | Y106: 6 | Z106: 2 | AA106: 1 | AB106: 1 | AC106: 5 | AD106: 15 | AE106: 10 | AF106: 0 | AG106: 1 | AJ106: 9 | AK106: 9 | AL106: 5 | AM106: 14 | AN106: 3 | AO106: 1 | AP106: 5 | AQ106: 0 | AR106: 0 | AS106: 0 | AT106: 1
W107: 5 | X107: 9 | Y107: 14 | Z107: 0 | AA107: 0 | AB107: 0 | AC107: 1 | AD107: 10 | AE107: 11 | AF107: 1 | AG107: 0 | AJ107: 0 | AK107: 8 | AL107: 4 | AM107: 0 | AN107: 3 | AO107: 2 | AP107: 3 | AQ107: 0 | AR107: 0 | AS107: 0 | AT107: 0
W108: 46 | X108: 15 | Z108: 0 | AA108: 1 | AB108: 5 | AC108: 7 | AG108: 0 | AJ108: 55 | AK108: 3 | AM108: 0 | AN108: 1 | AO108: 3 | AP108: 4 | AT108: 0
V109: Count | W109: 151 | X109: 151 | Y109: 151 | Z109: 151 | AA109: 151 | AB109: 151 | AC109: 151 | AD109: 151 | AE109: 151 | AF109: 151 | AG109: 151 | AI109: Count | AJ109: 120 | AK109: 120 | AL109: 120 | AM109: 120 | AN109: 120 | AO109: 120 | AP109: 120 | AQ109: 120 | AR109: 120 | AS109: 120 | AT109: 120
E110: Rate of Return on Farm Equity | V110: Average | W110: 2.073110291 | X110: 0.4998618639 | Y110: 0.2317381614 | Z110: -0.04440506727 | AA110: -0.008152324741 | AB110: -0.02087336294 | AC110: 0.1835899649 | AD110: 0.8445583431 | AE110: 0.1134129765 | AF110: 0.04114756181 | AG110: 0.000881118555 | AI110: Average | AJ110: 2.871104854 | AK110: 0.5593445045 | AL110: 0.253547584 | AM110: 0.2064515018 | AN110: 0.06138648392 | AO110: 0.06626206742 | AP110: 0.2973409416 | AQ110: 0.6691841229 | AR110: 0.07544298834 | AS110: 0.03811180625 | AT110: 0.2172610825
F111: 2015 | G111: 10-Year | V111: Non-ratio average | X111: 377729.3875 | AG111: 665.8326954 | AI111: Non-ratio average | AK111: 493739.7435 | AT111: 191778.8237
E112: -0.1 | F112: =IF($T$6=$W$1,AB3/$F$122,IF($T$6=$W$17,AB19/$F$122,IF($T$6=$W$33,AB35/$F$122,IF($T$6=$W$49,AB51/$F$122,IF($T$6=$W$65,AB67/$F$122,IF($T$6=$W$81,AB83/$F$122,IF($T$6=$W$97,AB99/$F$122,IF($T$6=$W$113,AB115/$F$122,IF($T$6=$W$129,AB131/$F$122,IF($T$6=$W$145,AB147/$F$122,IF($T$6=$W$161,AB163/$F$122,"N/A"))))))))))) -> 0.2119205298 | G112: =IF($T$6=$W$1,AO3/$G$38,IF($T$6=$W$17,AO19/$G$38,IF($T$6=$W$33,AO35/$G$38,IF($T$6=$W$49,AO51/$G$38,IF($T$6=$W$65,AO67/$G$38,IF($T$6=$W$81,AO83/$G$38,IF($T$6=$W$97,AO99/$G$38,IF($T$6=$W$113,AO115/$G$38,IF($T$6=$W$129,AO131/$G$38,IF($T$6=$W$145,AO147/$G$38,IF($T$6=$W$161,AO163/$G$38,"N/A"))))))))))) -> 0.04166666667
E113: -0.05 | F113: =IF($T$6=$W$1,AB4/$F$122,IF($T$6=$W$17,AB20/$F$122,IF($T$6=$W$33,AB36/$F$122,IF($T$6=$W$49,AB52/$F$122,IF($T$6=$W$65,AB68/$F$122,IF($T$6=$W$81,AB84/$F$122,IF($T$6=$W$97,AB100/$F$122,IF($T$6=$W$113,AB116/$F$122,IF($T$6=$W$129,AB132/$F$122,IF($T$6=$W$145,AB148/$F$122,IF($T$6=$W$161,AB164/$F$122,"N/A"))))))))))) -> 0.1258278146 | G113: =IF($T$6=$W$1,AO4/$G$38,IF($T$6=$W$17,AO20/$G$38,IF($T$6=$W$33,AO36/$G$38,IF($T$6=$W$49,AO52/$G$38,IF($T$6=$W$65,AO68/$G$38,IF($T$6=$W$81,AO84/$G$38,IF($T$6=$W$97,AO100/$G$38,IF($T$6=$W$113,AO116/$G$38,IF($T$6=$W$129,AO132/$G$38,IF($T$6=$W$145,AO148/$G$38,IF($T$6=$W$161,AO164/$G$38,"N/A"))))))))))) -> 0.01666666667 | W113: Blank
E114: 0 | F114: 0.357615894 | G114: 0.08333333333 | W114: Current Ratio | X114: Working Capital Ratio | Y114: Debt to Asset Ratio | Z114: Operating Profit Margin | AA114: ROA | AB114: ROE | AC114: Asset Turnover | AD114: Operating Expense Ratio | AE114: Depr Expense Ratio | AF114: Interest Expense Ratio | AG114: NFI Ratio | AJ114: Current Ratio | AK114: Working Capital Ratio | AL114: Debt to Asset Ratio | AM114: Operating Profit Margin | AN114: ROA | AO114: ROE | AP114: Asset Turnover | AQ114: Operating Expense Ratio | AR114: Depr Expense Ratio | AS114: Interest Expense Ratio | AT114: NFI Ratio
E115: 0.05 | F115: 0.2119205298 | G115: 0.3416666667 | S115: Your Farm Line-Return on Equity
E116: 0.1 | F116: 0.03311258278 | G116: 0.2583333333 | S116: X's | T116: =B27 -> -0.02087336294 | U116: =T116 -> -0.02087336294
E117: 0.15 | F117: 0.006622516556 | G117: 0.1333333333 | S117: Y's | T117: 0 | U117: 0.5
E118: 0.2 | F118: 0.01324503311 | G118: 0.075 | S118: =IF(B27=F123,U1 &" Average","Your Farm") -> 2015 Average
E119: 0.25 | F119: 0.006622516556 | G119: 0.008333333333
E120: 0.3 | F120: 0 | G120: 0.01666666667
E121: More | F121: 0.03311258278 | G121: 0.025
E122: Count | F122: =F101 -> 151 | G122: =G101 -> 120
E123: Average | F123: =IF($T$6=$W$1,$AB$14,IF($T$6=$W$17,$AB$30,IF($T$6=$W$33,$AB$46,IF($T$6=$W$49,$AB$62,IF($T$6=$W$65,$AB$78,IF($T$6=$W$81,$AB$94,IF($T$6=$W$97,$AB$110,IF($T$6=$W$113,$AB$126,IF($T$6=$W$129,$AB$142,IF($T$6=$W$145,$AB$158,IF($T$6=W161,AB174,"N/A"))))))))))) -> -0.02087336294 | G123: =IF($T$6=$W$1,$AO$14,IF($T$6=$W$17,$AO$30,IF($T$6=$W$33,$AO$46,IF($T$6=$W$49,$AO$62,IF($T$6=$W$65,$AO$78,IF($T$6=$W$81,$AO$94,IF($T$6=$W$97,$AO$110,IF($T$6=$W$113,$AO$126,IF($T$6=$W$129,$AO$142,IF($T$6=$W$145,$AO$158,IF($T$6=$W$161,$AO$174,"N/A"))))))))))) -> 0.06626206742
V125: Count | AI125: Count
V126: Average | AI126: Average
F127: =IF(B27=F123,"","Your Farm") ->  | G127: =IF(B27=F123,"",B27) ->  | V127: Non-ratio average | AI127: Non-ratio average
W129: Blank
W130: Current Ratio | X130: Working Capital Ratio | Y130: Debt to Asset Ratio | Z130: Operating Profit Margin | AA130: ROA | AB130: ROE | AC130: Asset Turnover | AD130: Operating Expense Ratio | AE130: Depr Expense Ratio | AF130: Interest Expense Ratio | AG130: NFI Ratio | AJ130: Current Ratio | AK130: Working Capital Ratio | AL130: Debt to Asset Ratio | AM130: Operating Profit Margin | AN130: ROA | AO130: ROE | AP130: Asset Turnover | AQ130: Operating Expense Ratio | AR130: Depr Expense Ratio | AS130: Interest Expense Ratio | AT130: NFI Ratio
E131: Asset Turnover Rate
F132: 2015 | G132: 10-Year
E133: 0 | F133: =IF($T$6=$W$1,AC3/$F$143,IF($T$6=$W$17,AC19/$F$143,IF($T$6=$W$33,AC35/$F$143,IF($T$6=$W$49,AC51/$F$143,IF($T$6=$W$65,AC67/$F$143,IF($T$6=$W$81,AC83/$F$143,IF($T$6=$W$97,AC99/$F$143,IF($T$6=$W$113,AC115/$F$143,IF($T$6=$W$129,AC131/$F$143,IF($T$6=$W$145,AC147/$F$143,IF($T$6=$W$161,AC163/$F$143,"N/A"))))))))))) -> 0 | G133: =IF($T$6=$W$1,AP3/$G$38,IF($T$6=$W$17,AP19/$G$38,IF($T$6=$W$33,AP35/$G$38,IF($T$6=$W$49,AP51/$G$38,IF($T$6=$W$65,AP67/$G$38,IF($T$6=$W$81,AP83/$G$38,IF($T$6=$W$97,AP99/$G$38,IF($T$6=$W$113,AP115/$G$38,IF($T$6=$W$129,AP131/$G$38,IF($T$6=$W$145,AP147/$G$38,IF($T$6=$W$161,AP163/$G$38,"N/A"))))))))))) -> 0
E134: 0.1 | F134: =IF($T$6=$W$1,AC4/$F$143,IF($T$6=$W$17,AC20/$F$143,IF($T$6=$W$33,AC36/$F$143,IF($T$6=$W$49,AC52/$F$143,IF($T$6=$W$65,AC68/$F$143,IF($T$6=$W$81,AC84/$F$143,IF($T$6=$W$97,AC100/$F$143,IF($T$6=$W$113,AC116/$F$143,IF($T$6=$W$129,AC132/$F$143,IF($T$6=$W$145,AC148/$F$143,IF($T$6=$W$161,AC164/$F$143,"N/A"))))))))))) -> 0.1589403974 | G134: =IF($T$6=$W$1,AP4/$G$38,IF($T$6=$W$17,AP20/$G$38,IF($T$6=$W$33,AP36/$G$38,IF($T$6=$W$49,AP52/$G$38,IF($T$6=$W$65,AP68/$G$38,IF($T$6=$W$81,AP84/$G$38,IF($T$6=$W$97,AP100/$G$38,IF($T$6=$W$113,AP116/$G$38,IF($T$6=$W$129,AP132/$G$38,IF($T$6=$W$145,AP148/$G$38,IF($T$6=$W$161,AP164/$G$38,"N/A"))))))))))) -> 0.008333333333
E135: 0.2 | F135: 0.3841059603 | G135: 0.1916666667
E136: 0.3 | F136: 0.2317880795 | G136: 0.325
E137: 0.4 | F137: 0.07284768212 | G137: 0.2 | S137: Your Farm Line-Asset Turnover Rate
E138: 0.5 | F138: 0.04635761589 | G138: 0.1 | S138: X's | T138: =B28 -> 0.1835899649 | U138: =T138 -> 0.1835899649
E139: 0.6 | F139: 0.01986754967 | G139: 0.075 | S139: Y's | T139: 0 | U139: 0.6
E140: 0.7 | F140: 0.03311258278 | G140: 0.04166666667 | S140: =IF(B28=F144,U1 &" Average","Your Farm") -> 2015 Average
E141: 0.8 | F141: 0.006622516556 | G141: 0.025 | V141: Count | AI141: Count
E142: More | F142: 0.04635761589 | G142: 0.03333333333 | V142: Average | AI142: Average
E143: Count | F143: =F122 -> 151 | G143: =G122 -> 120 | V143: Non-ratio average | AI143: Non-ratio average
E144: Average | F144: =IF($T$6=$W$1,$AC$14,IF($T$6=$W$17,$AC$30,IF($T$6=$W$33,$AC$46,IF($T$6=$W$49,$AC$62,IF($T$6=$W$65,$AC$78,IF($T$6=$W$81,$AC$94,IF($T$6=$W$97,$AC$110,IF($T$6=$W$113,$AC$126,IF($T$6=$W$129,$AC$142,IF($T$6=$W$145,$AC$158,IF($T$6=W161,AC174,"N/A"))))))))))) -> 0.1835899649 | G144: =IF($T$6=$W$1,$AP$14,IF($T$6=$W$17,$AP$30,IF($T$6=$W$33,$AP$46,IF($T$6=$W$49,$AP$62,IF($T$6=$W$65,$AP$78,IF($T$6=$W$81,$AP$94,IF($T$6=$W$97,$AP$110,IF($T$6=$W$113,$AP$126,IF($T$6=$W$129,$AP$142,IF($T$6=$W$145,$AP$158,IF($T$6=$W$161,$AP$174,"N/A"))))))))))) -> 0.2973409416
W145: Blank
W146: Current Ratio | X146: Working Capital Ratio | Y146: Debt to Asset Ratio | Z146: Operating Profit Margin | AA146: ROA | AB146: ROE | AC146: Asset Turnover | AD146: Operating Expense Ratio | AE146: Depr Expense Ratio | AF146: Interest Expense Ratio | AG146: NFI Ratio | AJ146: Current Ratio | AK146: Working Capital Ratio | AL146: Debt to Asset Ratio | AM146: Operating Profit Margin | AN146: ROA | AO146: ROE | AP146: Asset Turnover | AQ146: Operating Expense Ratio | AR146: Depr Expense Ratio | AS146: Interest Expense Ratio | AT146: NFI Ratio
F148: =IF(B28=F144,"","Your Farm") ->  | G148: =IF(B28=F144,"",B28) -> 
E152: Operating Expense Ratio
F153: 2015 | G153: 10-Year
E154: 0.4 | F154: =IF($T$6=$W$1,AD3/$F$143,IF($T$6=$W$17,AD19/$F$143,IF($T$6=$W$33,AD35/$F$143,IF($T$6=$W$49,AD51/$F$143,IF($T$6=$W$65,AD67/$F$143,IF($T$6=$W$81,AD83/$F$143,IF($T$6=$W$97,AD99/$F$143,IF($T$6=$W$113,AD115/$F$143,IF($T$6=$W$129,AD131/$F$143,IF($T$6=$W$145,AD147/$F$143,IF($T$6=$W$161,AD163/$F$143,"N/A"))))))))))) -> 0 | G154: =IF($T$6=$W$1,AQ3/$G$38,IF($T$6=$W$17,AQ19/$G$38,IF($T$6=$W$33,AQ35/$G$38,IF($T$6=$W$49,AQ51/$G$38,IF($T$6=$W$65,AQ67/$G$38,IF($T$6=$W$81,AQ83/$G$38,IF($T$6=$W$97,AQ99/$G$38,IF($T$6=$W$113,AQ115/$G$38,IF($T$6=$W$129,AQ131/$G$38,IF($T$6=$W$145,AQ147/$G$38,IF($T$6=$W$161,AQ163/$G$38,"N/A"))))))))))) -> 0.008333333333
E155: 0.5 | F155: =IF($T$6=$W$1,AD4/$F$143,IF($T$6=$W$17,AD20/$F$143,IF($T$6=$W$33,AD36/$F$143,IF($T$6=$W$49,AD52/$F$143,IF($T$6=$W$65,AD68/$F$143,IF($T$6=$W$81,AD84/$F$143,IF($T$6=$W$97,AD100/$F$143,IF($T$6=$W$113,AD116/$F$143,IF($T$6=$W$129,AD132/$F$143,IF($T$6=$W$145,AD148/$F$143,IF($T$6=$W$161,AD164/$F$143,"N/A"))))))))))) -> 0.006622516556 | G155: =IF($T$6=$W$1,AQ4/$G$38,IF($T$6=$W$17,AQ20/$G$38,IF($T$6=$W$33,AQ36/$G$38,IF($T$6=$W$49,AQ52/$G$38,IF($T$6=$W$65,AQ68/$G$38,IF($T$6=$W$81,AQ84/$G$38,IF($T$6=$W$97,AQ100/$G$38,IF($T$6=$W$113,AQ116/$G$38,IF($T$6=$W$129,AQ132/$G$38,IF($T$6=$W$145,AQ148/$G$38,IF($T$6=$W$161,AQ164/$G$38,"N/A"))))))))))) -> 0.025
E156: 0.6 | F156: 0.03973509934 | G156: 0.2833333333
E157: 0.7 | F157: 0.1390728477 | G157: 0.375 | V157: Count | AI157: Count
E158: 0.8 | F158: 0.2119205298 | G158: 0.2083333333 | V158: Average | AI158: Average
E159: 0.9 | F159: 0.2516556291 | G159: 0.08333333333 | S159: Your Farm Line-Operating Expense Ratio | V159: Non-ratio average | AI159: Non-ratio average
E160: 1 | F160: 0.1854304636 | G160: 0.01666666667 | S160: X's | T160: =B29 -> 0.8445583431 | U160: =T160 -> 0.8445583431
E161: 1.1 | F161: 0.09933774834 | G161: 0 | S161: Y's | T161: 0 | U161: 0.5 | W161: Blank
E162: More | F162: 0.06622516556 | G162: 0 | S162: =IF(B29=F164,U1 &" Average","Your Farm") -> 2015 Average | W162: Current Ratio | X162: Working Capital Ratio | Y162: Debt to Asset Ratio | Z162: Operating Profit Margin | AA162: ROA | AB162: ROE | AC162: Asset Turnover | AD162: Operating Expense Ratio | AE162: Depr Expense Ratio | AF162: Interest Expense Ratio | AG162: NFI Ratio | AJ162: Current Ratio | AK162: Working Capital Ratio | AL162: Debt to Asset Ratio | AM162: Operating Profit Margin | AN162: ROA | AO162: ROE | AP162: Asset Turnover | AQ162: Operating Expense Ratio | AR162: Depr Expense Ratio | AS162: Interest Expense Ratio | AT162: NFI Ratio
E163: Count | F163: =F143 -> 151 | G163: =G143 -> 120
E164: Average | F164: =IF($T$6=$W$1,$AD$14,IF($T$6=$W$17,$AD$30,IF($T$6=$W$33,$AD$46,IF($T$6=$W$49,$AD$62,IF($T$6=$W$65,$AD$78,IF($T$6=$W$81,$AD$94,IF($T$6=$W$97,$AD$110,IF($T$6=$W$113,$AD$126,IF($T$6=$W$129,$AD$142,IF($T$6=$W$145,$AD$158,IF($T$6=W161,AD174,"N/A"))))))))))) -> 0.8445583431 | G164: =IF($T$6=$W$1,$AQ$14,IF($T$6=$W$17,$AQ$30,IF($T$6=$W$33,$AQ$46,IF($T$6=$W$49,$AQ$62,IF($T$6=$W$65,$AQ$78,IF($T$6=$W$81,$AQ$94,IF($T$6=$W$97,$AQ$110,IF($T$6=$W$113,$AQ$126,IF($T$6=$W$129,$AQ$142,IF($T$6=$W$145,$AQ$158,IF($T$6=$W$161,$AQ$174,"N/A"))))))))))) -> 0.6691841229
F168: =IF(B29=F164,"","Your Farm") ->  | G168: =IF(B29=F164,"",B29) -> 
E173: Depreciation Expense Ratio | V173: Count | AI173: Count
F174: 2015 | G174: 10-Year | V174: Average | AI174: Average
E175: 0 | F175: =IF($T$6=$W$1,AE3/$F$143,IF($T$6=$W$17,AE19/$F$143,IF($T$6=$W$33,AE35/$F$143,IF($T$6=$W$49,AE51/$F$143,IF($T$6=$W$65,AE67/$F$143,IF($T$6=$W$81,AE83/$F$143,IF($T$6=$W$97,AE99/$F$143,IF($T$6=$W$113,AE115/$F$143,IF($T$6=$W$129,AE131/$F$143,IF($T$6=$W$145,AE147/$F$143,IF($T$6=$W$161,AE163/$F$143,"N/A"))))))))))) -> 0 | G175: =IF($T$6=$W$1,AR3/$G$38,IF($T$6=$W$17,AR19/$G$38,IF($T$6=$W$33,AR35/$G$38,IF($T$6=$W$49,AR51/$G$38,IF($T$6=$W$65,AR67/$G$38,IF($T$6=$W$81,AR83/$G$38,IF($T$6=$W$97,AR99/$G$38,IF($T$6=$W$113,AR115/$G$38,IF($T$6=$W$129,AR131/$G$38,IF($T$6=$W$145,AR147/$G$38,IF($T$6=$W$161,AR163/$G$38,"N/A"))))))))))) -> 0 | V175: Non-ratio average | AI175: Non-ratio average
E176: 0.03 | F176: =IF($T$6=$W$1,AE4/$F$143,IF($T$6=$W$17,AE20/$F$143,IF($T$6=$W$33,AE36/$F$143,IF($T$6=$W$49,AE52/$F$143,IF($T$6=$W$65,AE68/$F$143,IF($T$6=$W$81,AE84/$F$143,IF($T$6=$W$97,AE100/$F$143,IF($T$6=$W$113,AE116/$F$143,IF($T$6=$W$129,AE132/$F$143,IF($T$6=$W$145,AE148/$F$143,IF($T$6=$W$161,AE164/$F$143,"N/A"))))))))))) -> 0.03311258278 | G176: =IF($T$6=$W$1,AR4/$G$38,IF($T$6=$W$17,AR20/$G$38,IF($T$6=$W$33,AR36/$G$38,IF($T$6=$W$49,AR52/$G$38,IF($T$6=$W$65,AR68/$G$38,IF($T$6=$W$81,AR84/$G$38,IF($T$6=$W$97,AR100/$G$38,IF($T$6=$W$113,AR116/$G$38,IF($T$6=$W$129,AR132/$G$38,IF($T$6=$W$145,AR148/$G$38,IF($T$6=$W$161,AR164/$G$38,"N/A"))))))))))) -> 0.04166666667
E177: 0.06 | F177: 0.09933774834 | G177: 0.3416666667
E178: 0.09 | F178: 0.238410596 | G178: 0.3416666667
E179: 0.12 | F179: 0.2251655629 | G179: 0.1916666667
E180: 0.15 | F180: 0.1589403974 | G180: 0.05
E181: 0.18 | F181: 0.1059602649 | G181: 0.03333333333 | S181: Your Farm Line-Depreciation Expense Ratio
E182: 0.21 | F182: 0.06622516556 | G182: 0 | S182: X's | T182: =B30 -> 0.1134129765 | U182: =T182 -> 0.1134129765
E183: More | F183: 0.07284768212 | G183: 0 | S183: Y's | T183: 0 | U183: 0.5
E184: Count | F184: =F163 -> 151 | G184: =G163 -> 120 | S184: =IF(B30=F185,U1 &" Average","Your Farm") -> 2015 Average
E185: Average | F185: =IF($T$6=$W$1,$AE$14,IF($T$6=$W$17,$AE$30,IF($T$6=$W$33,$AE$46,IF($T$6=$W$49,$AE$62,IF($T$6=$W$65,$AE$78,IF($T$6=$W$81,$AE$94,IF($T$6=$W$97,$AE$110,IF($T$6=$W$113,$AE$126,IF($T$6=$W$129,$AE$142,IF($T$6=$W$145,$AE$158,IF($T$6=$W$161,AE174,"N/A"))))))))))) -> 0.1134129765 | G185: =IF($T$6=$W$1,$AR$14,IF($T$6=$W$17,$AR$30,IF($T$6=$W$33,$AR$46,IF($T$6=$W$49,$AR$62,IF($T$6=$W$65,$AR$78,IF($T$6=$W$81,$AR$94,IF($T$6=$W$97,$AR$110,IF($T$6=$W$113,$AR$126,IF($T$6=$W$129,$AR$142,IF($T$6=$W$145,$AR$158,IF($T$6=$W$161,$AR$174,"N/A"))))))))))) -> 0.07544298834
F189: =IF(B30=F185,"","Your Farm") ->  | G189: =IF(B30=F185,"",B30) -> 
E194: Interest Expense Ratio
F195: 2015 | G195: 10-Year
E196: 0 | F196: =IF($T$6=$W$1,AF3/$F$143,IF($T$6=$W$17,AF19/$F$143,IF($T$6=$W$33,AF35/$F$143,IF($T$6=$W$49,AF51/$F$143,IF($T$6=$W$65,AF67/$F$143,IF($T$6=$W$81,AF83/$F$143,IF($T$6=$W$97,AF99/$F$143,IF($T$6=$W$113,AF115/$F$143,IF($T$6=$W$129,AF131/$F$143,IF($T$6=$W$145,AF147/$F$143,IF($T$6=$W$161,AF163/$F$143,"N/A"))))))))))) -> 0.06622516556 | G196: =IF($T$6=$W$1,AS3/$G$38,IF($T$6=$W$17,AS19/$G$38,IF($T$6=$W$33,AS35/$G$38,IF($T$6=$W$49,AS51/$G$38,IF($T$6=$W$65,AS67/$G$38,IF($T$6=$W$81,AS83/$G$38,IF($T$6=$W$97,AS99/$G$38,IF($T$6=$W$113,AS115/$G$38,IF($T$6=$W$129,AS131/$G$38,IF($T$6=$W$145,AS147/$G$38,IF($T$6=$W$161,AS163/$G$38,"N/A"))))))))))) -> 0
E197: 0.03 | F197: =IF($T$6=$W$1,AF4/$F$143,IF($T$6=$W$17,AF20/$F$143,IF($T$6=$W$33,AF36/$F$143,IF($T$6=$W$49,AF52/$F$143,IF($T$6=$W$65,AF68/$F$143,IF($T$6=$W$81,AF84/$F$143,IF($T$6=$W$97,AF100/$F$143,IF($T$6=$W$113,AF116/$F$143,IF($T$6=$W$129,AF132/$F$143,IF($T$6=$W$145,AF148/$F$143,IF($T$6=$W$161,AF164/$F$143,"N/A"))))))))))) -> 0.357615894 | G197: =IF($T$6=$W$1,AS4/$G$38,IF($T$6=$W$17,AS20/$G$38,IF($T$6=$W$33,AS36/$G$38,IF($T$6=$W$49,AS52/$G$38,IF($T$6=$W$65,AS68/$G$38,IF($T$6=$W$81,AS84/$G$38,IF($T$6=$W$97,AS100/$G$38,IF($T$6=$W$113,AS116/$G$38,IF($T$6=$W$129,AS132/$G$38,IF($T$6=$W$145,AS148/$G$38,IF($T$6=$W$161,AS164/$G$38,"N/A"))))))))))) -> 0.475
E198: 0.06 | F198: 0.298013245 | G198: 0.3083333333
E199: 0.09 | F199: 0.1589403974 | G199: 0.1583333333
E200: 0.12 | F200: 0.06622516556 | G200: 0.025
E201: 0.15 | F201: 0.02649006623 | G201: 0.03333333333
E202: 0.18 | F202: 0.01986754967 | G202: 0
E203: 0.21 | F203: 0 | G203: 0 | S203: Your Farm Line-Interest Expense Ratio
E204: More | F204: 0.006622516556 | G204: 0 | S204: X's | T204: =B31 -> 0.04114756181 | U204: =T204 -> 0.04114756181
E205: Count | F205: =F184 -> 151 | G205: =G184 -> 120 | S205: Y's | T205: 0 | U205: 0.5
E206: Average | F206: =IF($T$6=$W$1,$AF$14,IF($T$6=$W$17,$AF$30,IF($T$6=$W$33,$AF$46,IF($T$6=$W$49,$AF$62,IF($T$6=$W$65,$AF$78,IF($T$6=$W$81,$AF$94,IF($T$6=$W$97,$AF$110,IF($T$6=$W$113,$AF$126,IF($T$6=$W$129,$AF$142,IF($T$6=$W$145,$AF$158,IF($T$6=W161,AF174,"N/A"))))))))))) -> 0.04114756181 | G206: =IF($T$6=$W$1,$AS$14,IF($T$6=$W$17,$AS$30,IF($T$6=$W$33,$AS$46,IF($T$6=$W$49,$AS$62,IF($T$6=$W$65,$AS$78,IF($T$6=$W$81,$AS$94,IF($T$6=$W$97,$AS$110,IF($T$6=$W$113,$AS$126,IF($T$6=$W$129,$AS$142,IF($T$6=$W$145,$AS$158,IF($T$6=$W$161,$AS$174,"N/A"))))))))))) -> 0.03811180625 | S206: =IF(B31=F206,U1 &" Average","Your Farm") -> 2015 Average
F210: =IF(B31=F206,"","Your Farm") ->  | G210: =IF(B31=F206,"",B31) -> 
E215: Net Farm Income Ratio
F216: 2015 | G216: 10-Year
E217: -0.45 | F217: =IF($T$6=$W$1,AG3/$F$143,IF($T$6=$W$17,AG19/$F$143,IF($T$6=$W$33,AG35/$F$143,IF($T$6=$W$49,AG51/$F$143,IF($T$6=$W$65,AG67/$F$143,IF($T$6=$W$81,AG83/$F$143,IF($T$6=$W$97,AG99/$F$143,IF($T$6=$W$113,AG115/$F$143,IF($T$6=$W$129,AG131/$F$143,IF($T$6=$W$145,AG147/$F$143,IF($T$6=$W$161,AG163/$F$143,"N/A"))))))))))) -> 0.02649006623 | G217: =IF($T$6=$W$1,AT3/$G$38,IF($T$6=$W$17,AT19/$G$38,IF($T$6=$W$33,AT35/$G$38,IF($T$6=$W$49,AT51/$G$38,IF($T$6=$W$65,AT67/$G$38,IF($T$6=$W$81,AT83/$G$38,IF($T$6=$W$97,AT99/$G$38,IF($T$6=$W$113,AT115/$G$38,IF($T$6=$W$129,AT131/$G$38,IF($T$6=$W$145,AT147/$G$38,IF($T$6=$W$161,AT163/$G$38,"N/A"))))))))))) -> 0
E218: -0.3 | F218: =IF($T$6=$W$1,AG4/$F$143,IF($T$6=$W$17,AG20/$F$143,IF($T$6=$W$33,AG36/$F$143,IF($T$6=$W$49,AG52/$F$143,IF($T$6=$W$65,AG68/$F$143,IF($T$6=$W$81,AG84/$F$143,IF($T$6=$W$97,AG100/$F$143,IF($T$6=$W$113,AG116/$F$143,IF($T$6=$W$129,AG132/$F$143,IF($T$6=$W$145,AG148/$F$143,IF($T$6=$W$161,AG164/$F$143,"N/A"))))))))))) -> 0.05960264901 | G218: =IF($T$6=$W$1,AT4/$G$38,IF($T$6=$W$17,AT20/$G$38,IF($T$6=$W$33,AT36/$G$38,IF($T$6=$W$49,AT52/$G$38,IF($T$6=$W$65,AT68/$G$38,IF($T$6=$W$81,AT84/$G$38,IF($T$6=$W$97,AT100/$G$38,IF($T$6=$W$113,AT116/$G$38,IF($T$6=$W$129,AT132/$G$38,IF($T$6=$W$145,AT148/$G$38,IF($T$6=$W$161,AT164/$G$38,"N/A"))))))))))) -> 0
E219: -0.15 | F219: 0.1059602649 | G219: 0
E220: 0 | F220: 0.3046357616 | G220: 0.01666666667
E221: 0.15 | F221: 0.3377483444 | G221: 0.225
E222: 0.3 | F222: 0.1324503311 | G222: 0.4916666667
E223: 0.45 | F223: 0.02649006623 | G223: 0.2583333333
E224: 0.6 | F224: 0.006622516556 | G224: 0.008333333333
E225: 0.75 | F225: 0 | G225: 0 | S225: Your Farm Line-Net Farm Income Ratio
E226: More | F226: 0 | G226: 0 | S226: X's | T226: =B32 -> 0.000881118555 | U226: =T226 -> 0.000881118555
E227: Count | F227: =F205 -> 151 | G227: =G205 -> 120 | S227: Y's | T227: 0 | U227: 0.5
E228: Average | F228: =IF($T$6=$W$1,$AG$14,IF($T$6=$W$17,$AG$30,IF($T$6=$W$33,$AG$46,IF($T$6=$W$49,$AG$62,IF($T$6=$W$65,$AG$78,IF($T$6=$W$81,$AG$94,IF($T$6=$W$97,$AG$110,IF($T$6=$W$113,$AG$126,IF($T$6=$W$129,$AG$142,IF($T$6=$W$145,$AG$158,IF($T$6=W161,AG174,"N/A"))))))))))) -> 0.000881118555 | G228: =IF($T$6=$W$1,$AT$14,IF($T$6=$W$17,$AT$30,IF($T$6=$W$33,$AT$46,IF($T$6=$W$49,$AT$62,IF($T$6=$W$65,$AT$78,IF($T$6=$W$81,$AT$94,IF($T$6=$W$97,$AT$110,IF($T$6=$W$113,$AT$126,IF($T$6=$W$129,$AT$142,IF($T$6=$W$145,$AT$158,IF($T$6=$W$161,$AT$174,"N/A"))))))))))) -> 0.2172610825 | S228: =IF(B32=F228,U1 &" Average","Your Farm") -> 2015 Average
... 3 more rows

Sheet NorthCentral
E1: KSU FARM FINANCIAL BENCHMARKING TOOL-North Central Kansas | S1: Acres | T1: Lookup | U1: 2015 | W1: Less than 750No | AI1: 10-Year
S2: Less than 750 | T2: LT | W2: Current Ratio | X2: Working Capital Ratio | Y2: Debt to Asset Ratio | Z2: Operating Profit Margin | AA2: ROA | AB2: ROE | AC2: Asset Turnover | AD2: Operating Expense Ratio | AE2: Depr Expense Ratio | AF2: Interest Expense Ratio | AG2: NFI Ratio | AJ2: Current Ratio | AK2: Working Capital Ratio | AL2: Debt to Asset Ratio | AM2: Operating Profit Margin | AN2: ROA | AO2: ROE | AP2: Asset Turnover | AQ2: Operating Expense Ratio | AR2: Depr Expense Ratio | AS2: Interest Expense Ratio | AT2: NFI Ratio
E3: Tillable Crop Acres: | G3: =B16 -> All Farms | I3: =A17 ->  | K3: =IF(B17="","",B17) ->  | L3: =A18 ->  | P3: =IF(B18="","",B18) ->  | S3: 750-1250 | T3: BTW | W3: 0 | X3: 1 | Y3: 7 | Z3: 2 | AA3: 1 | AB3: 6 | AC3: 0 | AD3: 2 | AE3: 1 | AF3: 9 | AG3: 1 | AJ3: 0 | AK3: 0 | AL3: 1 | AM3: 0 | AN3: 1 | AO3: 3 | AP3: 0 | AQ3: 1 | AR3: 0 | AS3: 0 | AT3: 0
S4: Greater than 1250 | T4: GT | W4: 2 | X4: 2 | Y4: 8 | Z4: 2 | AA4: 2 | AB4: 2 | AC4: 8 | AD4: 0 | AE4: 2 | AF4: 7 | AG4: 3 | AJ4: 1 | AK4: 1 | AL4: 5 | AM4: 0 | AN4: 0 | AO4: 1 | AP4: 0 | AQ4: 1 | AR4: 1 | AS4: 7 | AT4: 0
E5: Current Ratio | S5: All Farms | T5: All | W5: 3 | X5: 2 | Y5: 2 | Z5: 3 | AA5: 8 | AB5: 10 | AC5: 10 | AD5: 2 | AE5: 6 | AF5: 4 | AG5: 1 | AJ5: 3 | AK5: 3 | AL5: 1 | AM5: 1 | AN5: 2 | AO5: 4 | AP5: 6 | AQ5: 3 | AR5: 4 | AS5: 5 | AT5: 0
F6: 2015 | G6: 10-Year | S6: LTList | T6: =B16&B17&B18 -> All Farms | W6: 1 | X6: 1 | Y6: 2 | Z6: 7 | AA6: 11 | AB6: 5 | AC6: 3 | AD6: 5 | AE6: 7 | AF6: 2 | AG6: 6 | AJ6: 1 | AK6: 3 | AL6: 3 | AM6: 0 | AN6: 5 | AO6: 5 | AP6: 4 | AQ6: 6 | AR6: 5 | AS6: 3 | AT6: 2
E7: 0 | F7: =IF($T$6=$W$1,W3/$W$13,IF($T$6=$W$17,W19/$W$29,IF($T$6=$W$33,W35/$W$45,IF($T$6=$W$49,W51/$W$61,IF($T$6=$W$65,W67/$W$77,IF($T$6=$W$81,W83/$W$93,IF($T$6=$W$97,W99/$W$109,IF($T$6=$W$113,W115/$W$125,IF($T$6=$W$129,W131/$W$141,IF($T$6=$W$145,W147/$W$157,IF($T$6=$W$161,W163/$W$173,"N/A"))))))))))) -> 0 | G7: =IF($T$6=$W$1,AJ3/$AJ$13,IF($T$6=$W$17,AJ19/$AJ$29,IF($T$6=$W$33,AJ35/$AJ$45,IF($T$6=$W$49,AJ51/$AJ$61,IF($T$6=$W$65,AJ67/$AJ$77,IF($T$6=$W$81,AJ83/$AJ$93,IF($T$6=$W$97,AJ99/$AJ$109,IF($T$6=$W$113,AJ115/$AJ$125,IF($T$6=$W$129,AJ131/$AJ$141,IF($T$6=$W$145,AJ147/$AJ$157,IF($T$6=$W$161,AJ163/$AJ$173,"N/A"))))))))))) -> 0.004347826087 | S7: Yes | W7: 1 | X7: 7 | Y7: 2 | Z7: 3 | AA7: 2 | AB7: 2 | AC7: 0 | AD7: 4 | AE7: 3 | AF7: 2 | AG7: 7 | AJ7: 1 | AK7: 3 | AL7: 3 | AM7: 6 | AN7: 7 | AO7: 3 | AP7: 1 | AQ7: 0 | AR7: 2 | AS7: 2 | AT7: 6
E8: 0.5 | F8: =IF($T$6=$W$1,W4/$W$13,IF($T$6=$W$17,W20/$W$29,IF($T$6=$W$33,W36/$W$45,IF($T$6=$W$49,W52/$W$61,IF($T$6=$W$65,W68/$W$77,IF($T$6=$W$81,W84/$W$93,IF($T$6=$W$97,W100/$W$109,IF($T$6=$W$113,W116/$W$125,IF($T$6=$W$129,W132/$W$141,IF($T$6=$W$145,W148/$W$157,IF($T$6=$W$161,W164/$W$173,"N/A"))))))))))) -> 0.05785123967 | G8: =IF($T$6=$W$1,AJ4/$AJ$13,IF($T$6=$W$17,AJ20/$AJ$29,IF($T$6=$W$33,AJ36/$AJ$45,IF($T$6=$W$49,AJ52/$AJ$61,IF($T$6=$W$65,AJ68/$AJ$77,IF($T$6=$W$81,AJ84/$AJ$93,IF($T$6=$W$97,AJ100/$AJ$109,IF($T$6=$W$113,AJ116/$AJ$125,IF($T$6=$W$129,AJ132/$AJ$141,IF($T$6=$W$145,AJ148/$AJ$157,IF($T$6=$W$161,AJ164/$AJ$173,"N/A"))))))))))) -> 0.02173913043 | S8: No | W8: 2 | X8: 1 | Y8: 3 | Z8: 7 | AA8: 2 | AB8: 1 | AC8: 2 | AD8: 6 | AE8: 1 | AF8: 0 | AG8: 6 | AJ8: 3 | AK8: 2 | AL8: 1 | AM8: 4 | AN8: 2 | AO8: 0 | AP8: 3 | AQ8: 6 | AR8: 4 | AS8: 0 | AT8: 4
E9: 1 | F9: 0.1363636364 | G9: 0.09565217391 | W9: 0 | X9: 3 | Y9: 1 | Z9: 0 | AA9: 0 | AB9: 0 | AC9: 0 | AD9: 2 | AE9: 4 | AF9: 1 | AG9: 1 | AJ9: 0 | AK9: 2 | AL9: 2 | AM9: 4 | AN9: 0 | AO9: 1 | AP9: 1 | AQ9: 0 | AR9: 0 | AS9: 0 | AT9: 4
E10: 1.5 | F10: 0.152892562 | G10: 0.1260869565 | W10: 2 | X10: 3 | Y10: 2 | Z10: 2 | AA10: 0 | AB10: 0 | AC10: 0 | AD10: 2 | AE10: 2 | AF10: 1 | AG10: 1 | AJ10: 0 | AK10: 1 | AL10: 0 | AM10: 2 | AN10: 0 | AO10: 0 | AP10: 1 | AQ10: 0 | AR10: 0 | AS10: 0 | AT10: 1
E11: 2 | F11: 0.0826446281 | G11: 0.08260869565 | S11: BTWList | W11: 1 | X11: 0 | Y11: 0 | Z11: 0 | AA11: 0 | AB11: 0 | AC11: 0 | AD11: 4 | AE11: 1 | AF11: 1 | AG11: 0 | AJ11: 1 | AK11: 0 | AL11: 1 | AM11: 0 | AN11: 0 | AO11: 0 | AP11: 0 | AQ11: 0 | AR11: 1 | AS11: 0 | AT11: 0
E12: 2.5 | F12: 0.09504132231 | G12: 0.1 | S12: None | W12: 15 | X12: 7 | Z12: 1 | AA12: 1 | AB12: 1 | AC12: 4 | AG12: 1 | AJ12: 7 | AK12: 2 | AM12: 0 | AN12: 0 | AO12: 0 | AP12: 1 | AT12: 0
E13: 3 | F13: 0.02066115702 | G13: 0.04347826087 | S13: <100 | V13: Count | W13: 27 | X13: 27 | Y13: 27 | Z13: 27 | AA13: 27 | AB13: 27 | AC13: 27 | AD13: 27 | AE13: 27 | AF13: 27 | AG13: 27 | AI13: Count | AJ13: 17 | AK13: 17 | AL13: 17 | AM13: 17 | AN13: 17 | AO13: 17 | AP13: 17 | AQ13: 17 | AR13: 17 | AS13: 17 | AT13: 17
E14: 3.5 | F14: 0.02479338843 | G14: 0.04782608696 | S14: 100+ | V14: Average | W14: 5.495758708 | X14: 0.910099923 | Y14: 0.1026586239 | Z14: -0.005460342585 | AA14: -0.0007960583205 | AB14: -0.005751043222 | AC14: 0.1457890797 | AD14: 0.7296418648 | AE14: 0.09577408039 | AF14: 0.02982614947 | AG14: 0.1447579053 | AI14: Average | AJ14: 3.399277131 | AK14: 0.5059684727 | AL14: 0.2026391904 | AM14: 0.1078217077 | AN14: 0.02699045447 | AO14: 0.02031471466 | AP14: 0.2503248653 | AQ14: 0.6415306238 | AR14: 0.09940161857 | AS14: 0.04259700058 | AT14: 0.2164707571
A15: BENCHMARK CATEGORY | E15: 4 | F15: 0.01239669421 | G15: 0.02173913043 | V15: Non-ratio average | X15: 154851.6915 | AG15: 24630.26963 | AI15: Non-ratio average | AK15: 93106.57484 | AT15: 39834.20278
A16: Tillable Crop Acres: | B16: All Farms | E16: More | F16: =IF($T$6=$W$1,W12/$W$13,IF($T$6=$W$17,W28/$W$29,IF($T$6=$W$33,W44/$W$45,IF($T$6=$W$49,W60/$W$61,IF($T$6=$W$65,W76/$W$77,IF($T$6=$W$81,W92/$W$93,IF($T$6=$W$97,W108/$W$109,IF($T$6=$W$113,W124/$W$125,IF($T$6=$W$129,W140/$W$141,IF($T$6=$W$145,W156/$W$157,IF($T$6=$W$161,W172/$W$173,"N/A"))))))))))) -> 0.4173553719 | G16: 0.4565217391 | S16: GTList
A17: =IF(B16="Less than 750", "Beef Cows:", IF(B16="All Farms","", "Head of Beef Cows:")) ->  | E17: Count | F17: =IF($T$6=$W$1,$W$13,IF($T$6=$W$17,$W$29,IF($T$6=$W$33,$W$45,IF($T$6=$W$49,$W$61,IF($T$6=$W$65,$W$77,IF($T$6=$W$81,$W$93,IF($T$6=$W$97,$W$109,IF($T$6=$W$113,$W$125,IF($T$6=$W$129,$W$141,IF($T$6=$W$145,$W$157,IF(T6=$W$161,$W$173,"N/A"))))))))))) -> 242 | G17: =IF($T$6=$W$1,$AJ$13,IF($T$6=$W$17,$AJ$29,IF($T$6=$W$33,$AJ$45,IF($T$6=$W$49,$AJ$61,IF($T$6=$W$65,$AJ$77,IF($T$6=$W$81,$AJ$93,IF($T$6=$W$97,$AJ$109,IF($T$6=$W$113,$AJ$125,IF($T$6=$W$129,$AJ$141,IF($T$6=$W$145,$AJ$157, IF($T$6=$W$161,$AJ$173,"N/A"))))))))))) -> 230 | S17: None | W17: Less than 750Yes
A18: =IF(B16="Less than 750","",IF(B17="None", "Backgrounding or Finishing:","")) ->  | E18: Average | F18: =IF($T$6=$W$1,$W$14,IF($T$6=$W$17,$W$30,IF($T$6=$W$33,$W$46,IF($T$6=$W$49,$W$62,IF($T$6=$W$65,$W$78,IF($T$6=$W$81,$W$94,IF($T$6=$W$97,$W$110,IF($T$6=$W$113,$W$126,IF($T$6=$W$129,$W$142,IF($T$6=$W$145,$W$158, IF($T$6=$W$161,$W$174,"N/A"))))))))))) -> 1.891226676 | G18: =IF($T$6=$W$1,$AJ$14,IF($T$6=$W$17,$AJ$30,IF($T$6=$W$33,$AJ$46,IF($T$6=$W$49,$AJ$62,IF($T$6=$W$65,$AJ$78,IF($T$6=$W$81,$AJ$94,IF($T$6=$W$97,$AJ$110,IF($T$6=$W$113,$AJ$126,IF($T$6=$W$129,$AJ$142,IF($T$6=$W$145,$AJ$158, IF($T$6=$W$161,$AJ$174,"N/A"))))))))))) -> 2.474502565 | S18: <100 | W18: Current Ratio | X18: Working Capital Ratio | Y18: Debt to Asset Ratio | Z18: Operating Profit Margin | AA18: ROA | AB18: ROE | AC18: Asset Turnover | AD18: Operating Expense Ratio | AE18: Depr Expense Ratio | AF18: Interest Expense Ratio | AG18: NFI Ratio | AJ18: Current Ratio | AK18: Working Capital Ratio | AL18: Debt to Asset Ratio | AM18: Operating Profit Margin | AN18: ROA | AO18: ROE | AP18: Asset Turnover | AQ18: Operating Expense Ratio | AR18: Depr Expense Ratio | AS18: Interest Expense Ratio | AT18: NFI Ratio
S19: 100+ | W19: 0 | X19: 5 | Y19: 5 | Z19: 6 | AA19: 6 | AB19: 8 | AC19: 1 | AD19: 1 | AE19: 0 | AF19: 6 | AG19: 5 | AJ19: 0 | AK19: 2 | AL19: 3 | AM19: 0 | AN19: 2 | AO19: 5 | AP19: 0 | AQ19: 1 | AR19: 0 | AS19: 2 | AT19: 0
F20: =IF(B22=F18,"","Your Farm") ->  | G20: =IF(B22=F18,"",B22) ->  | W20: 3 | X20: 0 | Y20: 9 | Z20: 4 | AA20: 3 | AB20: 8 | AC20: 13 | AD20: 7 | AE20: 5 | AF20: 13 | AG20: 1 | AJ20: 1 | AK20: 0 | AL20: 13 | AM20: 0 | AN20: 1 | AO20: 1 | AP20: 3 | AQ20: 4 | AR20: 2 | AS20: 14 | AT20: 0
A21: YOUR FARM VALUES* | W21: 5 | X21: 3 | Y21: 8 | Z21: 4 | AA21: 14 | AB21: 13 | AC21: 15 | AD21: 4 | AE21: 8 | AF21: 9 | AG21: 2 | AJ21: 1 | AK21: 0 | AL21: 9 | AM21: 2 | AN21: 8 | AO21: 17 | AP21: 17 | AQ21: 10 | AR21: 16 | AS21: 11 | AT21: 0
A22: Current Ratio: | B22: =$F$18 -> 1.891226676 | S22: None | W22: 8 | X22: 8 | Y22: 4 | Z22: 7 | AA22: 12 | AB22: 8 | AC22: 6 | AD22: 6 | AE22: 9 | AF22: 8 | AG22: 7 | AJ22: 5 | AK22: 6 | AL22: 3 | AM22: 6 | AN22: 18 | AO22: 13 | AP22: 13 | AQ22: 13 | AR22: 11 | AS22: 10 | AT22: 3
A23: Working Capital Ratio: | B23: =$F$39 -> 0.5241608572 | S23: Yes | W23: 3 | X23: 9 | Y23: 6 | Z23: 6 | AA23: 3 | AB23: 1 | AC23: 0 | AD23: 5 | AE23: 8 | AF23: 2 | AG23: 11 | AJ23: 4 | AK23: 8 | AL23: 7 | AM23: 9 | AN23: 11 | AO23: 3 | AP23: 5 | AQ23: 10 | AR23: 7 | AS23: 5 | AT23: 11
A24: Debt to Asset Ratio: | B24: =$F$59 -> 0.2338842145 | S24: No | W24: 6 | X24: 7 | Y24: 4 | Z24: 7 | AA24: 1 | AB24: 0 | AC24: 2 | AD24: 7 | AE24: 5 | AF24: 1 | AG24: 7 | AJ24: 3 | AK24: 10 | AL24: 4 | AM24: 14 | AN24: 1 | AO24: 2 | AP24: 3 | AQ24: 4 | AR24: 5 | AS24: 0 | AT24: 17
A25: Operating Profit Margin | B25: =$F$81 -> -0.0917911036 | W25: 0 | X25: 6 | Y25: 3 | Z25: 3 | AA25: 1 | AB25: 0 | AC25: 1 | AD25: 5 | AE25: 5 | AF25: 2 | AG25: 6 | AJ25: 1 | AK25: 10 | AL25: 2 | AM25: 9 | AN25: 1 | AO25: 1 | AP25: 1 | AQ25: 1 | AR25: 2 | AS25: 1 | AT25: 10
A26: Rate of Return on Farm Assets | B26: =$F$102 -> -0.01500609527 | E26: Working Captial Ratio | W26: 1 | X26: 0 | Y26: 1 | Z26: 4 | AA26: 0 | AB26: 0 | AC26: 3 | AD26: 2 | AE26: 0 | AF26: 0 | AG26: 3 | AJ26: 2 | AK26: 1 | AL26: 0 | AM26: 3 | AN26: 1 | AO26: 0 | AP26: 0 | AQ26: 0 | AR26: 0 | AS26: 0 | AT26: 2
A27: Rate of Return on Farm Equity | B27: =$F$123 -> -0.03005738497 | F27: 2015 | G27: 10-Year | S27: Your Farm Line-Current Ratio | W27: 0 | X27: 1 | Y27: 3 | Z27: 1 | AA27: 0 | AB27: 1 | AC27: 0 | AD27: 6 | AE27: 3 | AF27: 2 | AG27: 0 | AJ27: 0 | AK27: 2 | AL27: 2 | AM27: 0 | AN27: 0 | AO27: 0 | AP27: 0 | AQ27: 0 | AR27: 0 | AS27: 0 | AT27: 0
A28: Asset Turnover Rate | B28: =$F$144 -> 0.1634809331 | E28: -0.5 | F28: =IF($T$6=$W$1,X3/$F$38,IF($T$6=$W$17,X19/$F$38,IF($T$6=$W$33,X35/$F$38,IF($T$6=$W$49,X51/$F$38,IF($T$6=$W$65,X67/$F$38,IF($T$6=$W$81,X83/$F$38,IF($T$6=$W$97,X99/$F$38,IF($T$6=$W$113,X115/$F$38,IF($T$6=$W$129,X131/$F$38,IF($T$6=$W$145,X147/$F$38,IF($T$6=$W$161,X163/$F$38,"N/A"))))))))))) -> 0.06611570248 | G28: =IF($T$6=$W$1,AK3/$G$38,IF($T$6=$W$17,AK19/$G$38,IF($T$6=$W$33,AK35/$G$38,IF($T$6=$W$49,AK51/$G$38,IF($T$6=$W$65,AK67/$G$38,IF($T$6=$W$81,AK83/$G$38,IF($T$6=$W$97,AK99/$G$38,IF($T$6=$W$113,AK115/$G$38,IF($T$6=$W$129,AK131/$G$38,IF($T$6=$W$145,AK147/$G$38,IF($T$6=$W$161,AK163/$G$38,"N/A"))))))))))) -> 0.02173913043 | S28: X's | T28: =B22 -> 1.891226676 | U28: =B22 -> 1.891226676 | W28: 17 | X28: 4 | Z28: 1 | AA28: 3 | AB28: 4 | AC28: 2 | AG28: 1 | AJ28: 26 | AK28: 4 | AM28: 0 | AN28: 0 | AO28: 1 | AP28: 1 | AT28: 0
A29: Operating Expense Ratio | B29: =$F$164 -> 0.8183788614 | E29: =E28+0.25 -> -0.25 | F29: =IF($T$6=$W$1,X4/$F$38,IF($T$6=$W$17,X20/$F$38,IF($T$6=$W$33,X36/$F$38,IF($T$6=$W$49,X52/$F$38,IF($T$6=$W$65,X68/$F$38,IF($T$6=$W$81,X84/$F$38,IF($T$6=$W$97,X100/$F$38,IF($T$6=$W$113,X116/$F$38,IF($T$6=$W$129,X132/$F$38,IF($T$6=$W$145,X148/$F$38,IF($T$6=$W$161,X164/$F$38,"N/A"))))))))))) -> 0.02479338843 | G29: =IF($T$6=$W$1,AK4/$G$38,IF($T$6=$W$17,AK20/$G$38,IF($T$6=$W$33,AK36/$G$38,IF($T$6=$W$49,AK52/$G$38,IF($T$6=$W$65,AK68/$G$38,IF($T$6=$W$81,AK84/$G$38,IF($T$6=$W$97,AK100/$G$38,IF($T$6=$W$113,AK116/$G$38,IF($T$6=$W$129,AK132/$G$38,IF($T$6=$W$145,AK148/$G$38,IF($T$6=$W$161,AK164/$G$38,"N/A"))))))))))) -> 0.01304347826 | S29: Y's | T29: 0 | U29: 0.4 | V29: Count | W29: 43 | X29: 43 | Y29: 43 | Z29: 43 | AA29: 43 | AB29: 43 | AC29: 43 | AD29: 43 | AE29: 43 | AF29: 43 | AG29: 43 | AI29: Count | AJ29: 43 | AK29: 43 | AL29: 43 | AM29: 43 | AN29: 43 | AO29: 43 | AP29: 43 | AQ29: 43 | AR29: 43 | AS29: 43 | AT29: 43
A30: Depreciation Expense Ratio | B30: =$F$185 -> 0.1155668073 | E30: =E29+0.25 -> 0 | F30: 0.1033057851 | G30: =IF($T$6=$W$1,AK5/$G$38,IF($T$6=$W$17,AK21/$G$38,IF($T$6=$W$33,AK37/$G$38,IF($T$6=$W$49,AK53/$G$38,IF($T$6=$W$65,AK69/$G$38,IF($T$6=$W$81,AK85/$G$38,IF($T$6=$W$97,AK101/$G$38,IF($T$6=$W$113,AK117/$G$38,IF($T$6=$W$129,AK133/$G$38,IF($T$6=$W$145,AK149/$G$38,IF($T$6=$W$161,AK165/$G$38,"N/A"))))))))))) -> 0.08260869565 | S30: =IF(B22=F18,U1 &" Average","Your Farm") -> 2015 Average | V30: Average | W30: 1.811354808 | X30: 0.4808050207 | Y30: 0.1845829379 | Z30: -0.161076718 | AA30: -0.0184035028 | AB30: -0.03182859463 | AC30: 0.1142530282 | AD30: 0.7893278233 | AE30: 0.08576182948 | AF30: 0.05810285048 | AG30: 0.06680749673 | AI30: Average | AJ30: 4.253437324 | AK30: 0.7184555215 | AL30: 0.1612946367 | AM30: 0.07770003251 | AN30: 0.01469411888 | AO30: 0.00656990947 | AP30: 0.18911342 | AQ30: 0.6370985411 | AR30: 0.07636928769 | AS30: 0.04600347664 | AT30: 0.2405286945
A31: Interest Expense Ratio | B31: =$F$206 -> 0.0457618881 | E31: 0.25 | F31: 0.1446280992 | G31: 0.1608695652 | S31: Your Farm Line-Working Capital Ratio | V31: Non-ratio average | X31: 87203.10209 | AG31: 12116.80558 | AI31: Non-ratio average | AK31: 129225.1825 | AT31: 43262.75394
A32: Net Farm Income Ratio: | B32: =$F$228 -> 0.02029244328 | E32: 0.5 | F32: 0.1611570248 | G32: 0.2086956522 | S32: X's | T32: =B23 -> 0.5241608572 | U32: =B23 -> 0.5241608572
A33: *Defaults to Averages for 2015 if not entered | E33: 0.75 | F33: 0.1652892562 | G33: 0.2217391304 | S33: Y's | T33: 0 | U33: 0.4 | W33: 750-1250NoneYes
E34: 1 | F34: 0.1239669421 | G34: 0.1565217391 | S34: =IF(B23=F39,U1 &" Average","Your Farm") -> 2015 Average | W34: Current Ratio | X34: Working Capital Ratio | Y34: Debt to Asset Ratio | Z34: Operating Profit Margin | AA34: ROA | AB34: ROE | AC34: Asset Turnover | AD34: Operating Expense Ratio | AE34: Depr Expense Ratio | AF34: Interest Expense Ratio | AG34: NFI Ratio | AJ34: Current Ratio | AK34: Working Capital Ratio | AL34: Debt to Asset Ratio | AM34: Operating Profit Margin | AN34: ROA | AO34: ROE | AP34: Asset Turnover | AQ34: Operating Expense Ratio | AR34: Depr Expense Ratio | AS34: Interest Expense Ratio | AT34: NFI Ratio
E35: 1.25 | F35: 0.09090909091 | G35: 0.06086956522 | W35: 0 | X35: 2 | Y35: 0 | Z35: 4 | AA35: 4 | AB35: 8 | AC35: 1 | AD35: 0 | AE35: 0 | AF35: 0 | AG35: 4 | AJ35: 0 | AK35: 0 | AL35: 0 | AM35: 0 | AN35: 0 | AO35: 0 | AP35: 0 | AQ35: 0 | AR35: 0 | AS35: 0 | AT35: 0
E36: 1.5 | F36: 0.01652892562 | G36: 0.0347826087 | W36: 0 | X36: 0 | Y36: 1 | Z36: 3 | AA36: 2 | AB36: 2 | AC36: 3 | AD36: 0 | AE36: 2 | AF36: 1 | AG36: 2 | AJ36: 0 | AK36: 0 | AL36: 3 | AM36: 0 | AN36: 0 | AO36: 1 | AP36: 1 | AQ36: 1 | AR36: 1 | AS36: 6 | AT36: 0
E37: More | F37: =IF($T$6=$W$1,X12/$F$38,IF($T$6=$W$17,X28/$F$38,IF($T$6=$W$33,X44/$F$38,IF($T$6=$W$49,X60/$F$38,IF($T$6=$W$65,X76/$F$38,IF($T$6=$W$81,X92/$F$38,IF($T$6=$W$97,X108/$F$38,IF($T$6=$W$113,X124/$F$38,IF($T$6=$W$129,X140/$F$38,IF($T$6=$W$145,X156/$F$38,IF($T$6=$W$161,X172/$F$38,"N/A"))))))))))) -> 0.1033057851 | G37: 0.03913043478 | S37: =$F$18 -> 1.891226676 | W37: 4 | X37: 2 | Y37: 0 | Z37: 1 | AA37: 4 | AB37: 0 | AC37: 4 | AD37: 0 | AE37: 0 | AF37: 3 | AG37: 1 | AJ37: 1 | AK37: 1 | AL37: 1 | AM37: 0 | AN37: 1 | AO37: 3 | AP37: 2 | AQ37: 2 | AR37: 1 | AS37: 3 | AT37: 0
E38: Count | F38: =F17 -> 242 | G38: =G17 -> 230 | S38: =$F$39 -> 0.5241608572 | W38: 2 | X38: 0 | Y38: 2 | Z38: 1 | AA38: 0 | AB38: 0 | AC38: 1 | AD38: 0 | AE38: 0 | AF38: 3 | AG38: 3 | AJ38: 2 | AK38: 1 | AL38: 2 | AM38: 0 | AN38: 1 | AO38: 5 | AP38: 5 | AQ38: 3 | AR38: 4 | AS38: 0 | AT38: 0
E39: Average | F39: =IF($T$6=$W$1,$X$14,IF($T$6=$W$17,$X$30,IF($T$6=$W$33,$X$46,IF($T$6=$W$49,$X$62,IF($T$6=$W$65,$X$78,IF($T$6=$W$81,$X$94,IF($T$6=$W$97,$X$110,IF($T$6=$W$113,$X$126,IF($T$6=$W$129,$X$142,IF($T$6=$W$145,$X$158,IF($T$6=$W$161,$X$174,"N/A"))))))))))) -> 0.5241608572 | G39: =IF($T$6=$W$1,$AK$14,IF($T$6=$W$17,$AK$30,IF($T$6=$W$33,$AK$46,IF($T$6=$W$49,$AK$62,IF($T$6=$W$65,$AK$78,IF($T$6=$W$81,$AK$94,IF($T$6=$W$97,$AK$110,IF($T$6=$W$113,$AK$126,IF($T$6=$W$129,$AK$142,IF($T$6=$W$145,$AK$158,IF($T$6=$W$161,$AK$174,"N/A"))))))))))) -> 0.5078339456 | S39: =$F$59 -> 0.2338842145 | W39: 2 | X39: 1 | Y39: 1 | Z39: 0 | AA39: 0 | AB39: 0 | AC39: 1 | AD39: 0 | AE39: 2 | AF39: 0 | AG39: 0 | AJ39: 1 | AK39: 3 | AL39: 1 | AM39: 1 | AN39: 8 | AO39: 1 | AP39: 0 | AQ39: 4 | AR39: 3 | AS39: 2 | AT39: 3
E40: Working Capital Avg. | S40: =$F$81 -> -0.0917911036 | W40: 1 | X40: 1 | Y40: 4 | Z40: 0 | AA40: 0 | AB40: 0 | AC40: 0 | AD40: 1 | AE40: 2 | AF40: 0 | AG40: 0 | AJ40: 3 | AK40: 3 | AL40: 2 | AM40: 5 | AN40: 0 | AO40: 1 | AP40: 1 | AQ40: 1 | AR40: 2 | AS40: 0 | AT40: 5
F41: =IF($T$6=$W$1,$X$15,IF($T$6=$W$17,$X$31,IF($T$6=$W$33,$X$47,IF($T$6=$W$49,$X$63,IF($T$6=$W$65,$X$79,IF($T$6=$W$81,$X$95,IF($T$6=$W$97,$X$111,IF($T$6=$W$113,$X$127,IF($T$6=$W$129,$X$143,IF($T$6=$W$145,$X$159,IF($T$6=$W$161,$X$175,"N/A"))))))))))) -> 228718.0491 | G41: =IF($T$6=$W$1,$AK$15,IF($T$6=$W$17,$AK$31,IF($T$6=$W$33,$AK$47,IF($T$6=$W$49,$AK$63,IF($T$6=$W$65,$AK$79,IF($T$6=$W$81,$AK$95,IF($T$6=$W$97,$AK$111,IF($T$6=$W$113,$AK$127,IF($T$6=$W$129,$AK$143,IF($T$6=$W$145,$AK$159,IF($T$6=$W$161,$AK$175,"N/A"))))))))))) -> 240623.7253 | S41: =$F$102 -> -0.01500609527 | W41: 0 | X41: 2 | Y41: 1 | Z41: 0 | AA41: 0 | AB41: 0 | AC41: 0 | AD41: 4 | AE41: 1 | AF41: 1 | AG41: 0 | AJ41: 0 | AK41: 2 | AL41: 0 | AM41: 4 | AN41: 1 | AO41: 0 | AP41: 1 | AQ41: 0 | AR41: 0 | AS41: 0 | AT41: 3
S42: =$F$123 -> -0.03005738497 | W42: 0 | X42: 0 | Y42: 0 | Z42: 0 | AA42: 0 | AB42: 0 | AC42: 0 | AD42: 0 | AE42: 1 | AF42: 0 | AG42: 0 | AJ42: 0 | AK42: 0 | AL42: 2 | AM42: 1 | AN42: 0 | AO42: 0 | AP42: 0 | AQ42: 0 | AR42: 0 | AS42: 0 | AT42: 0
F43: =IF(B23=F39,"","Your Farm") ->  | G43: =IF(B23=F39,"",B23) ->  | S43: =$F$144 -> 0.1634809331 | W43: 0 | X43: 0 | Y43: 1 | Z43: 0 | AA43: 0 | AB43: 0 | AC43: 0 | AD43: 5 | AE43: 2 | AF43: 2 | AG43: 0 | AJ43: 0 | AK43: 0 | AL43: 0 | AM43: 0 | AN43: 0 | AO43: 0 | AP43: 1 | AQ43: 0 | AR43: 0 | AS43: 0 | AT43: 0
S44: =$F$164 -> 0.8183788614 | W44: 1 | X44: 2 | Z44: 1 | AA44: 0 | AB44: 0 | AC44: 0 | AG44: 0 | AJ44: 4 | AK44: 1 | AM44: 0 | AN44: 0 | AO44: 0 | AP44: 0 | AT44: 0
S45: =$F$185 -> 0.1155668073 | V45: Count | W45: 10 | X45: 10 | Y45: 10 | Z45: 10 | AA45: 10 | AB45: 10 | AC45: 10 | AD45: 10 | AE45: 10 | AF45: 10 | AG45: 10 | AI45: Count | AJ45: 11 | AK45: 11 | AL45: 11 | AM45: 11 | AN45: 11 | AO45: 11 | AP45: 11 | AQ45: 11 | AR45: 11 | AS45: 11 | AT45: 11
S46: =$F$206 -> 0.0457618881 | V46: Average | W46: 1.321832372 | X46: 0.620753286 | Y46: 0.4403979729 | Z46: -1.076635519 | AA46: -0.0841832546 | AB46: -0.1682214442 | AC46: 0.07819104339 | AD46: 1.213983203 | AE46: 0.08789725956 | AF46: 0.07804236205 | AG46: -0.3799228248 | AI46: Average | AJ46: 1.519829464 | AK46: 0.4611137327 | AL46: 0.3596850547 | AM46: 0.1478206209 | AN46: 0.02893500715 | AO46: 0.02258913634 | AP46: 0.1957440509 | AQ46: 0.7535084063 | AR46: 0.05391941923 | AS46: 0.04646143766 | AT46: 0.1461107369
E47: Debt to Asset Ratio | S47: =$F$228 -> 0.02029244328 | V47: Non-ratio average | X47: 262366.703 | AG47: -160577.642 | AI47: Non-ratio average | AK47: 241034.069 | AT47: 76375.22575
F48: 2015 | G48: 10-Year
E49: 0 | F49: =IF($T$6=$W$1,Y3/$F$58,IF($T$6=$W$17,Y19/$F$58,IF($T$6=$W$33,Y35/$F$58,IF($T$6=$W$49,Y51/$F$58,IF($T$6=$W$65,Y67/$F$58,IF($T$6=$W$81,Y83/$F$58,IF($T$6=$W$97,Y99/$F$58,IF($T$6=$W$113,Y115/$F$58,IF($T$6=$W$129,Y131/$F$58,IF($T$6=$W$145,Y147/$F$58,IF($T$6=$W$161,Y163/$F$58,"N/A"))))))))))) -> 0.1033057851 | G49: =IF($T$6=$W$1,AL3/$G$38,IF($T$6=$W$17,AL19/$G$38,IF($T$6=$W$33,AL35/$G$38,IF($T$6=$W$49,AL51/$G$38,IF($T$6=$W$65,AL67/$G$38,IF($T$6=$W$81,AL83/$G$38,IF($T$6=$W$97,AL99/$G$38,IF($T$6=$W$113,AL115/$G$38,IF($T$6=$W$129,AL131/$G$38,IF($T$6=$W$145,AL147/$G$38,IF($T$6=$W$161,AL163/$G$38,"N/A"))))))))))) -> 0.0347826087 | S49: Your Farm Line-Debt to Asset | W49: 750-1250NoneNo
E50: 0.1 | F50: =IF($T$6=$W$1,Y4/$F$58,IF($T$6=$W$17,Y20/$F$58,IF($T$6=$W$33,Y36/$F$58,IF($T$6=$W$49,Y52/$F$58,IF($T$6=$W$65,Y68/$F$58,IF($T$6=$W$81,Y84/$F$58,IF($T$6=$W$97,Y100/$F$58,IF($T$6=$W$113,Y116/$F$58,IF($T$6=$W$129,Y132/$F$58,IF($T$6=$W$145,Y148/$F$58,IF($T$6=$W$161,Y164/$F$58,"N/A"))))))))))) -> 0.2107438017 | G50: =IF($T$6=$W$1,AL4/$G$38,IF($T$6=$W$17,AL20/$G$38,IF($T$6=$W$33,AL36/$G$38,IF($T$6=$W$49,AL52/$G$38,IF($T$6=$W$65,AL68/$G$38,IF($T$6=$W$81,AL84/$G$38,IF($T$6=$W$97,AL100/$G$38,IF($T$6=$W$113,AL116/$G$38,IF($T$6=$W$129,AL132/$G$38,IF($T$6=$W$145,AL148/$G$38,IF($T$6=$W$161,AL164/$G$38,"N/A"))))))))))) -> 0.247826087 | S50: X's | T50: =B24 -> 0.2338842145 | U50: =T50 -> 0.2338842145 | W50: Current Ratio | X50: Working Capital Ratio | Y50: Debt to Asset Ratio | Z50: Operating Profit Margin | AA50: ROA | AB50: ROE | AC50: Asset Turnover | AD50: Operating Expense Ratio | AE50: Depr Expense Ratio | AF50: Interest Expense Ratio | AG50: NFI Ratio | AJ50: Current Ratio | AK50: Working Capital Ratio | AL50: Debt to Asset Ratio | AM50: Operating Profit Margin | AN50: ROA | AO50: ROE | AP50: Asset Turnover | AQ50: Operating Expense Ratio | AR50: Depr Expense Ratio | AS50: Interest Expense Ratio | AT50: NFI Ratio
E51: 0.2 | F51: 0.1776859504 | G51: 0.1347826087 | S51: Y's | T51: 0 | U51: 0.4 | W51: 0 | X51: 2 | Y51: 2 | Z51: 0 | AA51: 0 | AB51: 1 | AC51: 0 | AD51: 0 | AE51: 0 | AF51: 3 | AG51: 0 | AJ51: 1 | AK51: 1 | AL51: 1 | AM51: 0 | AN51: 0 | AO51: 1 | AP51: 0 | AQ51: 0 | AR51: 0 | AS51: 0 | AT51: 0
E52: 0.3 | F52: 0.132231405 | G52: 0.1695652174 | S52: =IF(B24=F59,U1 &" Average","Your Farm") -> 2015 Average | W52: 3 | X52: 0 | Y52: 4 | Z52: 0 | AA52: 1 | AB52: 4 | AC52: 2 | AD52: 1 | AE52: 1 | AF52: 7 | AG52: 0 | AJ52: 1 | AK52: 0 | AL52: 8 | AM52: 0 | AN52: 0 | AO52: 5 | AP52: 0 | AQ52: 1 | AR52: 2 | AS52: 14 | AT52: 0
E53: 0.4 | F53: 0.1280991736 | G53: 0.1608695652 | W53: 1 | X53: 2 | Y53: 6 | Z53: 3 | AA53: 6 | AB53: 7 | AC53: 10 | AD53: 0 | AE53: 1 | AF53: 3 | AG53: 2 | AJ53: 2 | AK53: 2 | AL53: 3 | AM53: 1 | AN53: 3 | AO53: 2 | AP53: 6 | AQ53: 9 | AR53: 3 | AS53: 1 | AT53: 1
E54: 0.5 | F54: 0.1198347107 | G54: 0.1 | W54: 2 | X54: 3 | Y54: 1 | Z54: 5 | AA54: 9 | AB54: 5 | AC54: 2 | AD54: 6 | AE54: 3 | AF54: 2 | AG54: 3 | AJ54: 0 | AK54: 3 | AL54: 3 | AM54: 2 | AN54: 5 | AO54: 8 | AP54: 7 | AQ54: 2 | AR54: 7 | AS54: 2 | AT54: 1
E55: 0.6 | F55: 0.04958677686 | G55: 0.06086956522 | W55: 0 | X55: 3 | Y55: 2 | Z55: 4 | AA55: 2 | AB55: 0 | AC55: 1 | AD55: 5 | AE55: 3 | AF55: 1 | AG55: 7 | AJ55: 1 | AK55: 4 | AL55: 1 | AM55: 3 | AN55: 11 | AO55: 4 | AP55: 4 | AQ55: 4 | AR55: 4 | AS55: 0 | AT55: 4
E56: 0.7 | F56: 0.02066115702 | G56: 0.01739130435 | W56: 2 | X56: 2 | Y56: 1 | Z56: 6 | AA56: 0 | AB56: 0 | AC56: 2 | AD56: 3 | AE56: 3 | AF56: 1 | AG56: 6 | AJ56: 2 | AK56: 2 | AL56: 1 | AM56: 5 | AN56: 1 | AO56: 0 | AP56: 2 | AQ56: 2 | AR56: 2 | AS56: 2 | AT56: 7
E57: More | F57: 0.05785123967 | G57: 0.07391304348 | W57: 0 | X57: 4 | Y57: 0 | Z57: 0 | AA57: 0 | AB57: 0 | AC57: 1 | AD57: 2 | AE57: 4 | AF57: 1 | AG57: 0 | AJ57: 1 | AK57: 5 | AL57: 2 | AM57: 8 | AN57: 0 | AO57: 0 | AP57: 0 | AQ57: 2 | AR57: 1 | AS57: 1 | AT57: 7
E58: Count | F58: =F38 -> 242 | G58: =G38 -> 230 | W58: 0 | X58: 2 | Y58: 0 | Z58: 0 | AA58: 0 | AB58: 0 | AC58: 0 | AD58: 0 | AE58: 2 | AF58: 0 | AG58: 0 | AJ58: 1 | AK58: 2 | AL58: 0 | AM58: 1 | AN58: 0 | AO58: 0 | AP58: 0 | AQ58: 0 | AR58: 1 | AS58: 0 | AT58: 0
E59: Average | F59: =IF($T$6=$W$1,$Y$14,IF($T$6=$W$17,$Y$30,IF($T$6=$W$33,$Y$46,IF($T$6=$W$49,$Y$62,IF($T$6=$W$65,$Y$78,IF($T$6=$W$81,$Y$94,IF($T$6=$W$97,$Y$110,IF($T$6=$W$113,$Y$126,IF($T$6=$W$129,$Y$142,IF($T$6=$W$145,$Y$158,IF($T$6=$W$161,$Y$174,"N/A"))))))))))) -> 0.2338842145 | G59: =IF($T$6=$W$1,$AL$14,IF($T$6=$W$17,$AL$30,IF($T$6=$W$33,$AL$46,IF($T$6=$W$49,$AL$62,IF($T$6=$W$65,$AL$78,IF($T$6=$W$81,$AL$94,IF($T$6=$W$97,$AL$110,IF($T$6=$W$113,$AL$126,IF($T$6=$W$129,$AL$142,IF($T$6=$W$145,$AL$158,IF($T$6=$W$161,$AL$174,"N/A"))))))))))) -> 0.2602924218 | W59: 0 | X59: 0 | Y59: 2 | Z59: 0 | AA59: 0 | AB59: 0 | AC59: 0 | AD59: 1 | AE59: 1 | AF59: 0 | AG59: 0 | AJ59: 0 | AK59: 0 | AL59: 1 | AM59: 0 | AN59: 0 | AO59: 0 | AP59: 0 | AQ59: 0 | AR59: 0 | AS59: 0 | AT59: 0
W60: 10 | X60: 0 | Z60: 0 | AA60: 0 | AB60: 1 | AC60: 0 | AG60: 0 | AJ60: 11 | AK60: 1 | AM60: 0 | AN60: 0 | AO60: 0 | AP60: 1 | AT60: 0
V61: Count | W61: 18 | X61: 18 | Y61: 18 | Z61: 18 | AA61: 18 | AB61: 18 | AC61: 18 | AD61: 18 | AE61: 18 | AF61: 18 | AG61: 18 | AI61: Count | AJ61: 20 | AK61: 20 | AL61: 20 | AM61: 20 | AN61: 20 | AO61: 20 | AP61: 20 | AQ61: 20 | AR61: 20 | AS61: 20 | AT61: 20
V62: Average | W62: 2.33579375 | X62: 0.3592474699 | Y62: 0.1588879462 | Z62: -0.05737464824 | AA62: -0.008916421905 | AB62: -0.01836600429 | AC62: 0.1554069991 | AD62: 0.7437399414 | AE62: 0.1271668446 | AF62: 0.03996152336 | AG62: 0.08913169069 | AI62: Average | AJ62: 5.522681455 | AK62: 0.613038733 | AL62: 0.1705583138 | AM62: 0.1205507699 | AN62: 0.02890158001 | AO62: 0.02454939658 | AP62: 0.2397461254 | AQ62: 0.6414044211 | AR62: 0.09060244749 | AS62: 0.0352463711 | AT62: 0.2327467603
F63: =IF(B24=F59,"","Your Farm") ->  | G63: =IF(B24=F59,"",B24) ->  | V63: Non-ratio average | X63: 115857.0528 | AG63: 28744.90667 | AI63: Non-ratio average | AK63: 187679.2604 | AT63: 71254.45339
W65: 750-1250<100
W66: Current Ratio | X66: Working Capital Ratio | Y66: Debt to Asset Ratio | Z66: Operating Profit Margin | AA66: ROA | AB66: ROE | AC66: Asset Turnover | AD66: Operating Expense Ratio | AE66: Depr Expense Ratio | AF66: Interest Expense Ratio | AG66: NFI Ratio | AJ66: Current Ratio | AK66: Working Capital Ratio | AL66: Debt to Asset Ratio | AM66: Operating Profit Margin | AN66: ROA | AO66: ROE | AP66: Asset Turnover | AQ66: Operating Expense Ratio | AR66: Depr Expense Ratio | AS66: Interest Expense Ratio | AT66: NFI Ratio
W67: 0 | X67: 1 | Y67: 3 | Z67: 1 | AA67: 1 | AB67: 1 | AC67: 0 | AD67: 1 | AE67: 0 | AF67: 2 | AG67: 0 | AJ67: 0 | AK67: 0 | AL67: 1 | AM67: 0 | AN67: 0 | AO67: 2 | AP67: 0 | AQ67: 0 | AR67: 0 | AS67: 1 | AT67: 0
E68: Operating Profit Margin Ratio | W68: 0 | X68: 0 | Y68: 6 | Z68: 0 | AA68: 2 | AB68: 5 | AC68: 5 | AD68: 0 | AE68: 1 | AF68: 11 | AG68: 0 | AJ68: 0 | AK68: 1 | AL68: 4 | AM68: 0 | AN68: 0 | AO68: 0 | AP68: 1 | AQ68: 1 | AR68: 2 | AS68: 9 | AT68: 0
F69: 2015 | G69: 10-Year | W69: 4 | X69: 3 | Y69: 5 | Z69: 1 | AA69: 5 | AB69: 13 | AC69: 11 | AD69: 2 | AE69: 7 | AF69: 3 | AG69: 2 | AJ69: 2 | AK69: 1 | AL69: 3 | AM69: 0 | AN69: 1 | AO69: 3 | AP69: 1 | AQ69: 4 | AR69: 6 | AS69: 6 | AT69: 0
E70: -0.6 | F70: =IF($T$6=$W$1,Z3/$F$80,IF($T$6=$W$17,Z19/$F$80,IF($T$6=$W$33,Z35/$F$80,IF($T$6=$W$49,Z51/$F$80,IF($T$6=$W$65,Z67/$F$80,IF($T$6=$W$81,Z83/$F$80,IF($T$6=$W$97,Z99/$F$80,IF($T$6=$W$113,Z115/$F$80,IF($T$6=$W$129,Z131/$F$80,IF($T$6=$W$145,Z147/$F$80,IF($T$6=$W$161,Z163/$F$80,"N/A"))))))))))) -> 0.0867768595 | G70: =IF($T$6=$W$1,AM3/$G$38,IF($T$6=$W$17,AM19/$G$38,IF($T$6=$W$33,AM35/$G$38,IF($T$6=$W$49,AM51/$G$38,IF($T$6=$W$65,AM67/$G$38,IF($T$6=$W$81,AM83/$G$38,IF($T$6=$W$97,AM99/$G$38,IF($T$6=$W$113,AM115/$G$38,IF($T$6=$W$129,AM131/$G$38,IF($T$6=$W$145,AM147/$G$38,IF($T$6=$W$161,AM163/$G$38,"N/A"))))))))))) -> 0 | W70: 5 | X70: 5 | Y70: 2 | Z70: 5 | AA70: 13 | AB70: 5 | AC70: 4 | AD70: 7 | AE70: 4 | AF70: 6 | AG70: 3 | AJ70: 6 | AK70: 5 | AL70: 2 | AM70: 0 | AN70: 7 | AO70: 8 | AP70: 8 | AQ70: 10 | AR70: 11 | AS70: 4 | AT70: 0
E71: -0.45 | F71: =IF($T$6=$W$1,Z4/$F$80,IF($T$6=$W$17,Z20/$F$80,IF($T$6=$W$33,Z36/$F$80,IF($T$6=$W$49,Z52/$F$80,IF($T$6=$W$65,Z68/$F$80,IF($T$6=$W$81,Z84/$F$80,IF($T$6=$W$97,Z100/$F$80,IF($T$6=$W$113,Z116/$F$80,IF($T$6=$W$129,Z132/$F$80,IF($T$6=$W$145,Z148/$F$80,IF($T$6=$W$161,Z164/$F$80,"N/A"))))))))))) -> 0.04958677686 | G71: =IF($T$6=$W$1,AM4/$G$38,IF($T$6=$W$17,AM20/$G$38,IF($T$6=$W$33,AM36/$G$38,IF($T$6=$W$49,AM52/$G$38,IF($T$6=$W$65,AM68/$G$38,IF($T$6=$W$81,AM84/$G$38,IF($T$6=$W$97,AM100/$G$38,IF($T$6=$W$113,AM116/$G$38,IF($T$6=$W$129,AM132/$G$38,IF($T$6=$W$145,AM148/$G$38,IF($T$6=$W$161,AM164/$G$38,"N/A"))))))))))) -> 0 | S71: Your Farm Line-Operating Profit Margin Ratio | W71: 2 | X71: 4 | Y71: 3 | Z71: 9 | AA71: 3 | AB71: 0 | AC71: 2 | AD71: 9 | AE71: 6 | AF71: 1 | AG71: 11 | AJ71: 0 | AK71: 3 | AL71: 5 | AM71: 2 | AN71: 9 | AO71: 5 | AP71: 3 | AQ71: 6 | AR71: 2 | AS71: 1 | AT71: 5
E72: -0.3 | F72: 0.09090909091 | G72: 0.01739130435 | S72: X's | T72: =B25 -> -0.0917911036 | U72: =T72 -> -0.0917911036 | W72: 3 | X72: 2 | Y72: 3 | Z72: 8 | AA72: 0 | AB72: 0 | AC72: 1 | AD72: 2 | AE72: 2 | AF72: 2 | AG72: 6 | AJ72: 1 | AK72: 5 | AL72: 3 | AM72: 12 | AN72: 3 | AO72: 2 | AP72: 6 | AQ72: 1 | AR72: 1 | AS72: 1 | AT72: 11
E73: -0.15 | F73: 0.1694214876 | G73: 0.04347826087 | S73: Y's | T73: 0 | U73: 0.6 | W73: 0 | X73: 3 | Y73: 2 | Z73: 0 | AA73: 0 | AB73: 0 | AC73: 1 | AD73: 2 | AE73: 1 | AF73: 0 | AG73: 2 | AJ73: 2 | AK73: 1 | AL73: 0 | AM73: 7 | AN73: 2 | AO73: 2 | AP73: 2 | AQ73: 0 | AR73: 0 | AS73: 0 | AT73: 5
E74: 0 | F74: 0.2520661157 | G74: 0.1260869565 | S74: =IF(B25=F81,U1 &" Average","Your Farm") -> 2015 Average | W74: 0 | X74: 3 | Y74: 1 | Z74: 0 | AA74: 0 | AB74: 0 | AC74: 0 | AD74: 2 | AE74: 2 | AF74: 0 | AG74: 0 | AJ74: 0 | AK74: 3 | AL74: 1 | AM74: 1 | AN74: 0 | AO74: 0 | AP74: 0 | AQ74: 0 | AR74: 0 | AS74: 0 | AT74: 1
E75: 0.15 | F75: 0.2231404959 | G75: 0.3782608696 | W75: 0 | X75: 1 | Y75: 0 | Z75: 1 | AA75: 0 | AB75: 0 | AC75: 1 | AD75: 0 | AE75: 2 | AF75: 0 | AG75: 1 | AJ75: 0 | AK75: 2 | AL75: 3 | AM75: 0 | AN75: 0 | AO75: 0 | AP75: 0 | AQ75: 0 | AR75: 0 | AS75: 0 | AT75: 0
E76: 0.3 | F76: 0.07851239669 | G76: 0.3782608696 | W76: 11 | X76: 3 | Z76: 0 | AA76: 1 | AB76: 1 | AC76: 0 | AG76: 0 | AJ76: 11 | AK76: 1 | AM76: 0 | AN76: 0 | AO76: 0 | AP76: 1 | AT76: 0
E77: 0.45 | F77: 0.02892561983 | G77: 0.05652173913 | V77: Count | W77: 25 | X77: 25 | Y77: 25 | Z77: 25 | AA77: 25 | AB77: 25 | AC77: 25 | AD77: 25 | AE77: 25 | AF77: 25 | AG77: 25 | AI77: Count | AJ77: 22 | AK77: 22 | AL77: 22 | AM77: 22 | AN77: 22 | AO77: 22 | AP77: 22 | AQ77: 22 | AR77: 22 | AS77: 22 | AT77: 22
E78: 0.6 | F78: 0.00826446281 | G78: 0 | V78: Average | W78: 2.457439852 | X78: 0.6732523114 | Y78: 0.1948629759 | Z78: -0.06502879776 | AA78: -0.009892074217 | AB78: -0.02092725512 | AC78: 0.1521183623 | AD78: 0.7476528992 | AE78: 0.1105083736 | AF78: 0.04410552874 | AG78: 0.09773319849 | AI78: Average | AJ78: 3.192048449 | AK78: 0.6677754684 | AL78: 0.2808412623 | AM78: 0.1305800839 | AN78: 0.03675033907 | AO78: 0.03375947095 | AP78: 0.281439083 | AQ78: 0.6682073968 | AR78: 0.07166668404 | AS78: 0.04056719597 | AT78: 0.2195587232
E79: More | F79: 0.01239669421 | G79: 0 | V79: Non-ratio average | X79: 199826.9075 | AG79: 29008.02936 | AI79: Non-ratio average | AK79: 235448.1303 | AT79: 77413.2823
E80: Count | F80: =F58 -> 242 | G80: =G58 -> 230
E81: Average | F81: =IF($T$6=$W$1,$Z$14,IF($T$6=$W$17,$Z$30,IF($T$6=$W$33,$Z$46,IF($T$6=$W$49,$Z$62,IF($T$6=$W$65,$Z$78,IF($T$6=$W$81,$Z$94,IF($T$6=$W$97,$Z$110,IF($T$6=$W$113,$Z$126,IF($T$6=$W$129,$Z$142,IF($T$6=$W$145,$Z$158,IF($T$6=W161,Z174,"N/A"))))))))))) -> -0.0917911036 | G81: =IF($T$6=$W$1,$AM$14,IF($T$6=$W$17,$AM$30,IF($T$6=$W$33,$AM$46,IF($T$6=$W$49,$AM$62,IF($T$6=$W$65,$AM$78,IF($T$6=$W$81,$AM$94,IF($T$6=$W$97,$AM$110,IF($T$6=$W$113,$AM$126,IF($T$6=$W$129,$AM$142,IF($T$6=$W$145,$AM$158,IF($T$6=$W$161,$AM$174,"N/A"))))))))))) -> 0.1516640979 | W81: 750-1250100+
W82: Current Ratio | X82: Working Capital Ratio | Y82: Debt to Asset Ratio | Z82: Operating Profit Margin | AA82: ROA | AB82: ROE | AC82: Asset Turnover | AD82: Operating Expense Ratio | AE82: Depr Expense Ratio | AF82: Interest Expense Ratio | AG82: NFI Ratio | AJ82: Current Ratio | AK82: Working Capital Ratio | AL82: Debt to Asset Ratio | AM82: Operating Profit Margin | AN82: ROA | AO82: ROE | AP82: Asset Turnover | AQ82: Operating Expense Ratio | AR82: Depr Expense Ratio | AS82: Interest Expense Ratio | AT82: NFI Ratio
W83: 0 | X83: 0 | Y83: 1 | Z83: 1 | AA83: 0 | AB83: 0 | AC83: 0 | AD83: 0 | AE83: 0 | AF83: 1 | AG83: 1 | AJ83: 0 | AK83: 1 | AL83: 1 | AM83: 0 | AN83: 0 | AO83: 1 | AP83: 0 | AQ83: 0 | AR83: 0 | AS83: 1 | AT83: 0
W84: 0 | X84: 0 | Y84: 5 | Z84: 0 | AA84: 2 | AB84: 5 | AC84: 3 | AD84: 0 | AE84: 0 | AF84: 5 | AG84: 0 | AJ84: 0 | AK84: 1 | AL84: 1 | AM84: 0 | AN84: 0 | AO84: 3 | AP84: 0 | AQ84: 0 | AR84: 2 | AS84: 5 | AT84: 0
F85: =IF(B25=F81,"","Your Farm") ->  | G85: =IF(B25=F81,"",B25) ->  | W85: 1 | X85: 1 | Y85: 2 | Z85: 1 | AA85: 4 | AB85: 8 | AC85: 8 | AD85: 1 | AE85: 4 | AF85: 5 | AG85: 0 | AJ85: 3 | AK85: 1 | AL85: 2 | AM85: 0 | AN85: 1 | AO85: 4 | AP85: 4 | AQ85: 4 | AR85: 6 | AS85: 6 | AT85: 0
W86: 2 | X86: 1 | Y86: 5 | Z86: 5 | AA86: 7 | AB86: 1 | AC86: 3 | AD86: 3 | AE86: 2 | AF86: 3 | AG86: 8 | AJ86: 2 | AK86: 3 | AL86: 5 | AM86: 0 | AN86: 9 | AO86: 8 | AP86: 10 | AQ86: 8 | AR86: 7 | AS86: 3 | AT86: 1
W87: 3 | X87: 4 | Y87: 2 | Z87: 5 | AA87: 4 | AB87: 3 | AC87: 3 | AD87: 4 | AE87: 5 | AF87: 3 | AG87: 3 | AJ87: 2 | AK87: 6 | AL87: 8 | AM87: 2 | AN87: 8 | AO87: 5 | AP87: 4 | AQ87: 7 | AR87: 6 | AS87: 4 | AT87: 7
W88: 2 | X88: 5 | Y88: 2 | Z88: 3 | AA88: 0 | AB88: 0 | AC88: 0 | AD88: 6 | AE88: 1 | AF88: 0 | AG88: 3 | AJ88: 1 | AK88: 6 | AL88: 1 | AM88: 14 | AN88: 4 | AO88: 1 | AP88: 2 | AQ88: 3 | AR88: 1 | AS88: 3 | AT88: 11
E89: Rate of Return on Farm Assets | W89: 0 | X89: 1 | Y89: 0 | Z89: 2 | AA89: 0 | AB89: 0 | AC89: 0 | AD89: 2 | AE89: 3 | AF89: 0 | AG89: 2 | AJ89: 2 | AK89: 3 | AL89: 2 | AM89: 6 | AN89: 0 | AO89: 0 | AP89: 0 | AQ89: 0 | AR89: 0 | AS89: 0 | AT89: 3
F90: 2015 | G90: 10-Year | W90: 1 | X90: 3 | Y90: 0 | Z90: 0 | AA90: 0 | AB90: 0 | AC90: 0 | AD90: 0 | AE90: 2 | AF90: 0 | AG90: 0 | AJ90: 3 | AK90: 1 | AL90: 0 | AM90: 0 | AN90: 0 | AO90: 0 | AP90: 1 | AQ90: 0 | AR90: 0 | AS90: 0 | AT90: 0
E91: -0.1 | F91: =IF($T$6=$W$1,AA3/$F$101,IF($T$6=$W$17,AA19/$F$101,IF($T$6=$W$33,AA35/$F$101,IF($T$6=$W$49,AA51/$F$101,IF($T$6=$W$65,AA67/$F$101,IF($T$6=$W$81,AA83/$F$101,IF($T$6=$W$97,AA99/$F$101,IF($T$6=$W$113,AA115/$F$101,IF($T$6=$W$129,AA131/$F$101,IF($T$6=$W$145,AA147/$F$101,IF($T$6=$W$161,AA163/$F$101,"N/A"))))))))))) -> 0.07851239669 | G91: =IF($T$6=$W$1,AN3/$G$38,IF($T$6=$W$17,AN19/$G$38,IF($T$6=$W$33,AN35/$G$38,IF($T$6=$W$49,AN51/$G$38,IF($T$6=$W$65,AN67/$G$38,IF($T$6=$W$81,AN83/$G$38,IF($T$6=$W$97,AN99/$G$38,IF($T$6=$W$113,AN115/$G$38,IF($T$6=$W$129,AN131/$G$38,IF($T$6=$W$145,AN147/$G$38,IF($T$6=$W$161,AN163/$G$38,"N/A"))))))))))) -> 0.01739130435 | W91: 0 | X91: 1 | Y91: 0 | Z91: 0 | AA91: 0 | AB91: 0 | AC91: 0 | AD91: 1 | AE91: 0 | AF91: 0 | AG91: 0 | AJ91: 1 | AK91: 0 | AL91: 2 | AM91: 0 | AN91: 0 | AO91: 0 | AP91: 0 | AQ91: 0 | AR91: 0 | AS91: 0 | AT91: 0
E92: -0.06 | F92: =IF($T$6=$W$1,AA4/$F$101,IF($T$6=$W$17,AA20/$F$101,IF($T$6=$W$33,AA36/$F$101,IF($T$6=$W$49,AA52/$F$101,IF($T$6=$W$65,AA68/$F$101,IF($T$6=$W$81,AA84/$F$101,IF($T$6=$W$97,AA100/$F$101,IF($T$6=$W$113,AA116/$F$101,IF($T$6=$W$129,AA132/$F$101,IF($T$6=$W$145,AA148/$F$101,IF($T$6=$W$161,AA164/$F$101,"N/A"))))))))))) -> 0.1115702479 | G92: =IF($T$6=$W$1,AN4/$G$38,IF($T$6=$W$17,AN20/$G$38,IF($T$6=$W$33,AN36/$G$38,IF($T$6=$W$49,AN52/$G$38,IF($T$6=$W$65,AN68/$G$38,IF($T$6=$W$81,AN84/$G$38,IF($T$6=$W$97,AN100/$G$38,IF($T$6=$W$113,AN116/$G$38,IF($T$6=$W$129,AN132/$G$38,IF($T$6=$W$145,AN148/$G$38,IF($T$6=$W$161,AN164/$G$38,"N/A"))))))))))) -> 0.004347826087 | W92: 8 | X92: 1 | Z92: 0 | AA92: 0 | AB92: 0 | AC92: 0 | AG92: 0 | AJ92: 8 | AK92: 0 | AM92: 0 | AN92: 0 | AO92: 0 | AP92: 1 | AT92: 0
E93: -0.02 | F93: 0.2396694215 | G93: 0.08260869565 | S93: Your Farm Line-Return on Assets | V93: Count | W93: 17 | X93: 17 | Y93: 17 | Z93: 17 | AA93: 17 | AB93: 17 | AC93: 17 | AD93: 17 | AE93: 17 | AF93: 17 | AG93: 17 | AI93: Count | AJ93: 22 | AK93: 22 | AL93: 22 | AM93: 22 | AN93: 22 | AO93: 22 | AP93: 22 | AQ93: 22 | AR93: 22 | AS93: 22 | AT93: 22
E94: 0.02 | F94: 0.3884297521 | G94: 0.2434782609 | S94: X's | T94: =B26 -> -0.01500609527 | U94: =T94 -> -0.01500609527 | V94: Average | W94: 2.871668238 | X94: 0.6798039308 | Y94: 0.1871600319 | Z94: -0.1106883329 | AA94: -0.01572782788 | AB94: -0.02767861058 | AC94: 0.1420911082 | AD94: 0.8047940401 | AE94: 0.1055464272 | AF94: 0.04344597781 | AG94: 0.04621355486 | AI94: Average | AJ94: 2.097868604 | AK94: 0.386219143 | AL94: 0.3203713996 | AM94: 0.1081019481 | AN94: 0.03023473765 | AO94: 0.01823320234 | AP94: 0.2796872599 | AQ94: 0.6905237374 | AR94: 0.07314371821 | AS94: 0.05918593076 | AT94: 0.1771466136
E95: 0.06 | F95: 0.1404958678 | G95: 0.4043478261 | S95: Y's | T95: 0 | U95: 0.5 | V95: Non-ratio average | X95: 257859.8388 | AG95: 17529.49529 | AI95: Non-ratio average | AK95: 161651.7127 | AT95: 74144.57313
E96: 0.1 | F96: 0.01652892562 | G96: 0.1739130435 | S96: =IF(B26=F102,U1 &" Average","Your Farm") -> 2015 Average
E97: 0.14 | F97: 0.004132231405 | G97: 0.05652173913 | W97: Greater than 1250NoneYes
E98: 0.18 | F98: 0 | G98: 0.01304347826 | W98: Current Ratio | X98: Working Capital Ratio | Y98: Debt to Asset Ratio | Z98: Operating Profit Margin | AA98: ROA | AB98: ROE | AC98: Asset Turnover | AD98: Operating Expense Ratio | AE98: Depr Expense Ratio | AF98: Interest Expense Ratio | AG98: NFI Ratio | AJ98: Current Ratio | AK98: Working Capital Ratio | AL98: Debt to Asset Ratio | AM98: Operating Profit Margin | AN98: ROA | AO98: ROE | AP98: Asset Turnover | AQ98: Operating Expense Ratio | AR98: Depr Expense Ratio | AS98: Interest Expense Ratio | AT98: NFI Ratio
E99: 0.22 | F99: 0 | G99: 0.004347826087 | W99: 0 | X99: 1 | Y99: 0 | Z99: 4 | AA99: 1 | AB99: 4 | AC99: 0 | AD99: 0 | AE99: 0 | AF99: 0 | AG99: 3 | AJ99: 0 | AK99: 0 | AL99: 0 | AM99: 0 | AN99: 0 | AO99: 0 | AP99: 0 | AQ99: 0 | AR99: 0 | AS99: 0 | AT99: 0
E100: More | F100: 0.02066115702 | G100: 0 | W100: 0 | X100: 0 | Y100: 1 | Z100: 1 | AA100: 4 | AB100: 1 | AC100: 1 | AD100: 0 | AE100: 0 | AF100: 3 | AG100: 1 | AJ100: 0 | AK100: 0 | AL100: 0 | AM100: 0 | AN100: 0 | AO100: 0 | AP100: 0 | AQ100: 0 | AR100: 0 | AS100: 4 | AT100: 0
E101: Count | F101: =F80 -> 242 | G101: =G80 -> 230 | W101: 1 | X101: 0 | Y101: 4 | Z101: 0 | AA101: 1 | AB101: 3 | AC101: 7 | AD101: 0 | AE101: 1 | AF101: 1 | AG101: 2 | AJ101: 1 | AK101: 1 | AL101: 2 | AM101: 0 | AN101: 0 | AO101: 2 | AP101: 2 | AQ101: 0 | AR101: 1 | AS101: 5 | AT101: 0
E102: Average | F102: =IF($T$6=$W$1,$AA$14,IF($T$6=$W$17,$AA$30,IF($T$6=$W$33,$AA$46,IF($T$6=$W$49,$AA$62,IF($T$6=$W$65,$AA$78,IF($T$6=$W$81,$AA$94,IF($T$6=$W$97,$AA$110,IF($T$6=$W$113,$AA$126,IF($T$6=$W$129,$AA$142,IF($T$6=$W$145,$AA$158,IF($T$6=$W$161,AA174,"N/A"))))))))))) -> -0.01500609527 | G102: =IF($T$6=$W$1,$AN$14,IF($T$6=$W$17,$AN$30,IF($T$6=$W$33,$AN$46,IF($T$6=$W$49,$AN$62,IF($T$6=$W$65,$AN$78,IF($T$6=$W$81,$AN$94,IF($T$6=$W$97,$AN$110,IF($T$6=$W$113,$AN$126,IF($T$6=$W$129,$AN$142,IF($T$6=$W$145,$AN$158,IF($T$6=$W$161,$AN$174,"N/A"))))))))))) -> 0.045105334 | W102: 4 | X102: 2 | Y102: 0 | Z102: 1 | AA102: 3 | AB102: 2 | AC102: 2 | AD102: 2 | AE102: 2 | AF102: 4 | AG102: 0 | AJ102: 3 | AK102: 2 | AL102: 5 | AM102: 0 | AN102: 2 | AO102: 2 | AP102: 4 | AQ102: 6 | AR102: 4 | AS102: 2 | AT102: 0
W103: 1 | X103: 2 | Y103: 1 | Z103: 1 | AA103: 2 | AB103: 1 | AC103: 0 | AD103: 2 | AE103: 2 | AF103: 3 | AG103: 4 | AJ103: 2 | AK103: 3 | AL103: 0 | AM103: 0 | AN103: 5 | AO103: 6 | AP103: 2 | AQ103: 4 | AR103: 2 | AS103: 0 | AT103: 5
W104: 2 | X104: 3 | Y104: 3 | Z104: 3 | AA104: 0 | AB104: 0 | AC104: 0 | AD104: 2 | AE104: 2 | AF104: 0 | AG104: 1 | AJ104: 0 | AK104: 3 | AL104: 2 | AM104: 4 | AN104: 3 | AO104: 0 | AP104: 2 | AQ104: 1 | AR104: 2 | AS104: 0 | AT104: 6
W105: 1 | X105: 1 | Y105: 0 | Z105: 1 | AA105: 0 | AB105: 0 | AC105: 0 | AD105: 0 | AE105: 0 | AF105: 0 | AG105: 0 | AJ105: 1 | AK105: 2 | AL105: 2 | AM105: 7 | AN105: 0 | AO105: 0 | AP105: 0 | AQ105: 0 | AR105: 2 | AS105: 0 | AT105: 0
F106: =IF(B26=F102,"","Your Farm") ->  | G106: =IF(B26=F102,"",B26) ->  | W106: 0 | X106: 0 | Y106: 1 | Z106: 0 | AA106: 0 | AB106: 0 | AC106: 1 | AD106: 0 | AE106: 1 | AF106: 0 | AG106: 0 | AJ106: 2 | AK106: 0 | AL106: 0 | AM106: 0 | AN106: 0 | AO106: 0 | AP106: 0 | AQ106: 0 | AR106: 0 | AS106: 0 | AT106: 0
W107: 0 | X107: 0 | Y107: 1 | Z107: 0 | AA107: 0 | AB107: 0 | AC107: 0 | AD107: 5 | AE107: 3 | AF107: 0 | AG107: 0 | AJ107: 1 | AK107: 0 | AL107: 0 | AM107: 0 | AN107: 1 | AO107: 0 | AP107: 0 | AQ107: 0 | AR107: 0 | AS107: 0 | AT107: 0
W108: 2 | X108: 2 | Z108: 0 | AA108: 0 | AB108: 0 | AC108: 0 | AG108: 0 | AJ108: 1 | AK108: 0 | AM108: 0 | AN108: 0 | AO108: 1 | AP108: 1 | AT108: 0
V109: Count | W109: 11 | X109: 11 | Y109: 11 | Z109: 11 | AA109: 11 | AB109: 11 | AC109: 11 | AD109: 11 | AE109: 11 | AF109: 11 | AG109: 11 | AI109: Count | AJ109: 11 | AK109: 11 | AL109: 11 | AM109: 11 | AN109: 11 | AO109: 11 | AP109: 11 | AQ109: 11 | AR109: 11 | AS109: 11 | AT109: 11
E110: Rate of Return on Farm Equity | V110: Average | W110: 1.346208131 | X110: 0.5354678008 | Y110: 0.3865121376 | Z110: -0.2280594382 | AA110: -0.03118235647 | AB110: -0.06664410934 | AC110: 0.1367290769 | AD110: 0.9564935553 | AE110: 0.1145240013 | AF110: 0.05891526509 | AG110: -0.1299328217 | AI110: Average | AJ110: 1.853870716 | AK110: 0.434175733 | AL110: 0.3166925989 | AM110: 0.1636576194 | AN110: 0.05221984974 | AO110: 0.05585083029 | AP110: 0.3190798567 | AQ110: 0.7008870174 | AR110: 0.09492842571 | AS110: 0.03934177692 | AT110: 0.1648427799
F111: 2015 | G111: 10-Year | V111: Non-ratio average | X111: 556200.8945 | AG111: -134963.7673 | AI111: Non-ratio average | AK111: 394898.5026 | AT111: 149930.4591
E112: -0.1 | F112: =IF($T$6=$W$1,AB3/$F$122,IF($T$6=$W$17,AB19/$F$122,IF($T$6=$W$33,AB35/$F$122,IF($T$6=$W$49,AB51/$F$122,IF($T$6=$W$65,AB67/$F$122,IF($T$6=$W$81,AB83/$F$122,IF($T$6=$W$97,AB99/$F$122,IF($T$6=$W$113,AB115/$F$122,IF($T$6=$W$129,AB131/$F$122,IF($T$6=$W$145,AB147/$F$122,IF($T$6=$W$161,AB163/$F$122,"N/A"))))))))))) -> 0.194214876 | G112: =IF($T$6=$W$1,AO3/$G$38,IF($T$6=$W$17,AO19/$G$38,IF($T$6=$W$33,AO35/$G$38,IF($T$6=$W$49,AO51/$G$38,IF($T$6=$W$65,AO67/$G$38,IF($T$6=$W$81,AO83/$G$38,IF($T$6=$W$97,AO99/$G$38,IF($T$6=$W$113,AO115/$G$38,IF($T$6=$W$129,AO131/$G$38,IF($T$6=$W$145,AO147/$G$38,IF($T$6=$W$161,AO163/$G$38,"N/A"))))))))))) -> 0.07826086957
E113: -0.05 | F113: =IF($T$6=$W$1,AB4/$F$122,IF($T$6=$W$17,AB20/$F$122,IF($T$6=$W$33,AB36/$F$122,IF($T$6=$W$49,AB52/$F$122,IF($T$6=$W$65,AB68/$F$122,IF($T$6=$W$81,AB84/$F$122,IF($T$6=$W$97,AB100/$F$122,IF($T$6=$W$113,AB116/$F$122,IF($T$6=$W$129,AB132/$F$122,IF($T$6=$W$145,AB148/$F$122,IF($T$6=$W$161,AB164/$F$122,"N/A"))))))))))) -> 0.1280991736 | G113: =IF($T$6=$W$1,AO4/$G$38,IF($T$6=$W$17,AO20/$G$38,IF($T$6=$W$33,AO36/$G$38,IF($T$6=$W$49,AO52/$G$38,IF($T$6=$W$65,AO68/$G$38,IF($T$6=$W$81,AO84/$G$38,IF($T$6=$W$97,AO100/$G$38,IF($T$6=$W$113,AO116/$G$38,IF($T$6=$W$129,AO132/$G$38,IF($T$6=$W$145,AO148/$G$38,IF($T$6=$W$161,AO164/$G$38,"N/A"))))))))))) -> 0.05217391304 | W113: Greater than 1250NoneNo
E114: 0 | F114: 0.3801652893 | G114: 0.1695652174 | W114: Current Ratio | X114: Working Capital Ratio | Y114: Debt to Asset Ratio | Z114: Operating Profit Margin | AA114: ROA | AB114: ROE | AC114: Asset Turnover | AD114: Operating Expense Ratio | AE114: Depr Expense Ratio | AF114: Interest Expense Ratio | AG114: NFI Ratio | AJ114: Current Ratio | AK114: Working Capital Ratio | AL114: Debt to Asset Ratio | AM114: Operating Profit Margin | AN114: ROA | AO114: ROE | AP114: Asset Turnover | AQ114: Operating Expense Ratio | AR114: Depr Expense Ratio | AS114: Interest Expense Ratio | AT114: NFI Ratio
E115: 0.05 | F115: 0.2024793388 | G115: 0.3086956522 | S115: Your Farm Line-Return on Equity | W115: 0 | X115: 2 | Y115: 4 | Z115: 1 | AA115: 3 | AB115: 6 | AC115: 0 | AD115: 0 | AE115: 0 | AF115: 4 | AG115: 1 | AJ115: 0 | AK115: 1 | AL115: 1 | AM115: 0 | AN115: 0 | AO115: 0 | AP115: 0 | AQ115: 0 | AR115: 0 | AS115: 1 | AT115: 0
E116: 0.1 | F116: 0.05371900826 | G116: 0.2695652174 | S116: X's | T116: =B27 -> -0.03005738497 | U116: =T116 -> -0.03005738497 | W116: 3 | X116: 2 | Y116: 7 | Z116: 0 | AA116: 5 | AB116: 1 | AC116: 2 | AD116: 1 | AE116: 0 | AF116: 13 | AG116: 0 | AJ116: 2 | AK116: 0 | AL116: 6 | AM116: 0 | AN116: 0 | AO116: 0 | AP116: 0 | AQ116: 1 | AR116: 0 | AS116: 10 | AT116: 0
E117: 0.15 | F117: 0.004132231405 | G117: 0.06086956522 | S117: Y's | T117: 0 | U117: 0.5 | W117: 3 | X117: 2 | Y117: 6 | Z117: 2 | AA117: 1 | AB117: 12 | AC117: 10 | AD117: 2 | AE117: 1 | AF117: 9 | AG117: 1 | AJ117: 0 | AK117: 1 | AL117: 3 | AM117: 0 | AN117: 0 | AO117: 1 | AP117: 0 | AQ117: 4 | AR117: 2 | AS117: 5 | AT117: 0
E118: 0.2 | F118: 0 | G118: 0.0347826087 | S118: =IF(B27=F123,U1 &" Average","Your Farm") -> 2015 Average | W118: 4 | X118: 4 | Y118: 5 | Z118: 4 | AA118: 15 | AB118: 8 | AC118: 8 | AD118: 5 | AE118: 5 | AF118: 3 | AG118: 10 | AJ118: 1 | AK118: 1 | AL118: 3 | AM118: 0 | AN118: 1 | AO118: 4 | AP118: 5 | AQ118: 10 | AR118: 9 | AS118: 1 | AT118: 0
E119: 0.25 | F119: 0 | G119: 0.008695652174 | W119: 0 | X119: 4 | Y119: 1 | Z119: 12 | AA119: 6 | AB119: 2 | AC119: 2 | AD119: 11 | AE119: 5 | AF119: 1 | AG119: 10 | AJ119: 0 | AK119: 3 | AL119: 3 | AM119: 1 | AN119: 7 | AO119: 9 | AP119: 5 | AQ119: 3 | AR119: 5 | AS119: 1 | AT119: 2
E120: 0.3 | F120: 0.004132231405 | G120: 0 | W120: 3 | X120: 5 | Y120: 1 | Z120: 8 | AA120: 0 | AB120: 0 | AC120: 4 | AD120: 7 | AE120: 3 | AF120: 0 | AG120: 5 | AJ120: 2 | AK120: 6 | AL120: 1 | AM120: 7 | AN120: 7 | AO120: 1 | AP120: 1 | AQ120: 0 | AR120: 2 | AS120: 0 | AT120: 10
E121: More | F121: 0.03305785124 | G121: 0.01739130435 | W121: 0 | X121: 3 | Y121: 2 | Z121: 3 | AA121: 0 | AB121: 0 | AC121: 1 | AD121: 2 | AE121: 9 | AF121: 0 | AG121: 3 | AJ121: 0 | AK121: 2 | AL121: 0 | AM121: 9 | AN121: 2 | AO121: 1 | AP121: 4 | AQ121: 0 | AR121: 0 | AS121: 0 | AT121: 6
E122: Count | F122: =F101 -> 242 | G122: =G101 -> 230 | W122: 1 | X122: 4 | Y122: 0 | Z122: 0 | AA122: 0 | AB122: 0 | AC122: 0 | AD122: 1 | AE122: 3 | AF122: 0 | AG122: 0 | AJ122: 1 | AK122: 2 | AL122: 0 | AM122: 1 | AN122: 1 | AO122: 1 | AP122: 1 | AQ122: 0 | AR122: 0 | AS122: 0 | AT122: 0
E123: Average | F123: =IF($T$6=$W$1,$AB$14,IF($T$6=$W$17,$AB$30,IF($T$6=$W$33,$AB$46,IF($T$6=$W$49,$AB$62,IF($T$6=$W$65,$AB$78,IF($T$6=$W$81,$AB$94,IF($T$6=$W$97,$AB$110,IF($T$6=$W$113,$AB$126,IF($T$6=$W$129,$AB$142,IF($T$6=$W$145,$AB$158,IF($T$6=W161,AB174,"N/A"))))))))))) -> -0.03005738497 | G123: =IF($T$6=$W$1,$AO$14,IF($T$6=$W$17,$AO$30,IF($T$6=$W$33,$AO$46,IF($T$6=$W$49,$AO$62,IF($T$6=$W$65,$AO$78,IF($T$6=$W$81,$AO$94,IF($T$6=$W$97,$AO$110,IF($T$6=$W$113,$AO$126,IF($T$6=$W$129,$AO$142,IF($T$6=$W$145,$AO$158,IF($T$6=$W$161,$AO$174,"N/A"))))))))))) -> 0.04399688663 | W123: 0 | X123: 0 | Y123: 4 | Z123: 0 | AA123: 0 | AB123: 0 | AC123: 0 | AD123: 1 | AE123: 4 | AF123: 0 | AG123: 0 | AJ123: 1 | AK123: 2 | AL123: 1 | AM123: 0 | AN123: 0 | AO123: 0 | AP123: 1 | AQ123: 0 | AR123: 0 | AS123: 0 | AT123: 0
W124: 16 | X124: 4 | Z124: 0 | AA124: 0 | AB124: 1 | AC124: 3 | AG124: 0 | AJ124: 11 | AK124: 0 | AM124: 0 | AN124: 0 | AO124: 1 | AP124: 1 | AT124: 0
V125: Count | W125: 30 | X125: 30 | Y125: 30 | Z125: 30 | AA125: 30 | AB125: 30 | AC125: 30 | AD125: 30 | AE125: 30 | AF125: 30 | AG125: 30 | AI125: Count | AJ125: 18 | AK125: 18 | AL125: 18 | AM125: 18 | AN125: 18 | AO125: 18 | AP125: 18 | AQ125: 18 | AR125: 18 | AS125: 18 | AT125: 18
V126: Average | W126: 3.0475653 | X126: 0.5835852858 | Y126: 0.1795071612 | Z126: -0.06049892185 | AA126: -0.01400754263 | AB126: -0.02387512603 | AC126: 0.2315337563 | AD126: 0.7872537366 | AE126: 0.141751873 | AF126: 0.02500124595 | AG126: 0.0459931444 | AI126: Average | AJ126: 4.763584817 | AK126: 0.6641015756 | AL126: 0.1807549121 | AM126: 0.1766430025 | AN126: 0.0710036029 | AO126: 0.07575159828 | AP126: 0.4019610282 | AQ126: 0.6398309374 | AR126: 0.08471962466 | AS126: 0.02236452256 | AT126: 0.2530849154
F127: =IF(B27=F123,"","Your Farm") ->  | G127: =IF(B27=F123,"",B27) ->  | V127: Non-ratio average | X127: 345323.9407 | AG127: 27215.44607 | AI127: Non-ratio average | AK127: 454660.6157 | AT127: 173268.2886
W129: Greater than 1250<100
W130: Current Ratio | X130: Working Capital Ratio | Y130: Debt to Asset Ratio | Z130: Operating Profit Margin | AA130: ROA | AB130: ROE | AC130: Asset Turnover | AD130: Operating Expense Ratio | AE130: Depr Expense Ratio | AF130: Interest Expense Ratio | AG130: NFI Ratio | AJ130: Current Ratio | AK130: Working Capital Ratio | AL130: Debt to Asset Ratio | AM130: Operating Profit Margin | AN130: ROA | AO130: ROE | AP130: Asset Turnover | AQ130: Operating Expense Ratio | AR130: Depr Expense Ratio | AS130: Interest Expense Ratio | AT130: NFI Ratio
E131: Asset Turnover Rate | W131: 0 | X131: 2 | Y131: 2 | Z131: 1 | AA131: 1 | AB131: 4 | AC131: 0 | AD131: 0 | AE131: 0 | AF131: 2 | AG131: 1 | AJ131: 0 | AK131: 0 | AL131: 0 | AM131: 0 | AN131: 0 | AO131: 0 | AP131: 0 | AQ131: 0 | AR131: 0 | AS131: 0 | AT131: 0
F132: 2015 | G132: 10-Year | W132: 2 | X132: 1 | Y132: 3 | Z132: 1 | AA132: 3 | AB132: 0 | AC132: 3 | AD132: 0 | AE132: 0 | AF132: 8 | AG132: 1 | AJ132: 0 | AK132: 0 | AL132: 9 | AM132: 0 | AN132: 0 | AO132: 0 | AP132: 0 | AQ132: 3 | AR132: 0 | AS132: 15 | AT132: 0
E133: 0 | F133: =IF($T$6=$W$1,AC3/$F$143,IF($T$6=$W$17,AC19/$F$143,IF($T$6=$W$33,AC35/$F$143,IF($T$6=$W$49,AC51/$F$143,IF($T$6=$W$65,AC67/$F$143,IF($T$6=$W$81,AC83/$F$143,IF($T$6=$W$97,AC99/$F$143,IF($T$6=$W$113,AC115/$F$143,IF($T$6=$W$129,AC131/$F$143,IF($T$6=$W$145,AC147/$F$143,IF($T$6=$W$161,AC163/$F$143,"N/A"))))))))))) -> 0.00826446281 | G133: =IF($T$6=$W$1,AP3/$G$38,IF($T$6=$W$17,AP19/$G$38,IF($T$6=$W$33,AP35/$G$38,IF($T$6=$W$49,AP51/$G$38,IF($T$6=$W$65,AP67/$G$38,IF($T$6=$W$81,AP83/$G$38,IF($T$6=$W$97,AP99/$G$38,IF($T$6=$W$113,AP115/$G$38,IF($T$6=$W$129,AP131/$G$38,IF($T$6=$W$145,AP147/$G$38,IF($T$6=$W$161,AP163/$G$38,"N/A"))))))))))) -> 0 | W133: 4 | X133: 3 | Y133: 9 | Z133: 3 | AA133: 5 | AB133: 13 | AC133: 16 | AD133: 4 | AE133: 2 | AF133: 9 | AG133: 1 | AJ133: 1 | AK133: 1 | AL133: 6 | AM133: 0 | AN133: 1 | AO133: 2 | AP133: 1 | AQ133: 8 | AR133: 8 | AS133: 18 | AT133: 0
E134: 0.1 | F134: =IF($T$6=$W$1,AC4/$F$143,IF($T$6=$W$17,AC20/$F$143,IF($T$6=$W$33,AC36/$F$143,IF($T$6=$W$49,AC52/$F$143,IF($T$6=$W$65,AC68/$F$143,IF($T$6=$W$81,AC84/$F$143,IF($T$6=$W$97,AC100/$F$143,IF($T$6=$W$113,AC116/$F$143,IF($T$6=$W$129,AC132/$F$143,IF($T$6=$W$145,AC148/$F$143,IF($T$6=$W$161,AC164/$F$143,"N/A"))))))))))) -> 0.1776859504 | G134: =IF($T$6=$W$1,AP4/$G$38,IF($T$6=$W$17,AP20/$G$38,IF($T$6=$W$33,AP36/$G$38,IF($T$6=$W$49,AP52/$G$38,IF($T$6=$W$65,AP68/$G$38,IF($T$6=$W$81,AP84/$G$38,IF($T$6=$W$97,AP100/$G$38,IF($T$6=$W$113,AP116/$G$38,IF($T$6=$W$129,AP132/$G$38,IF($T$6=$W$145,AP148/$G$38,IF($T$6=$W$161,AP164/$G$38,"N/A"))))))))))) -> 0.02608695652 | W134: 3 | X134: 6 | Y134: 4 | Z134: 3 | AA134: 12 | AB134: 9 | AC134: 7 | AD134: 8 | AE134: 5 | AF134: 3 | AG134: 6 | AJ134: 6 | AK134: 8 | AL134: 10 | AM134: 0 | AN134: 3 | AO134: 10 | AP134: 14 | AQ134: 17 | AR134: 16 | AS134: 3 | AT134: 0
E135: 0.2 | F135: 0.4504132231 | G135: 0.1739130435 | W135: 4 | X135: 2 | Y135: 6 | Z135: 8 | AA135: 6 | AB135: 2 | AC135: 1 | AD135: 6 | AE135: 7 | AF135: 3 | AG135: 7 | AJ135: 4 | AK135: 10 | AL135: 3 | AM135: 1 | AN135: 15 | AO135: 16 | AP135: 11 | AQ135: 7 | AR135: 7 | AS135: 0 | AT135: 5
E136: 0.3 | F136: 0.1818181818 | G136: 0.3347826087 | W136: 1 | X136: 5 | Y136: 1 | Z136: 7 | AA136: 1 | AB136: 0 | AC136: 1 | AD136: 4 | AE136: 7 | AF136: 2 | AG136: 9 | AJ136: 5 | AK136: 9 | AL136: 4 | AM136: 14 | AN136: 12 | AO136: 4 | AP136: 3 | AQ136: 1 | AR136: 5 | AS136: 0 | AT136: 20
E137: 0.4 | F137: 0.04545454545 | G137: 0.2130434783 | S137: Your Farm Line-Asset Turnover Rate | W137: 2 | X137: 5 | Y137: 2 | Z137: 5 | AA137: 0 | AB137: 0 | AC137: 0 | AD137: 4 | AE137: 3 | AF137: 1 | AG137: 3 | AJ137: 3 | AK137: 5 | AL137: 3 | AM137: 19 | AN137: 5 | AO137: 3 | AP137: 4 | AQ137: 0 | AR137: 0 | AS137: 0 | AT137: 11
E138: 0.5 | F138: 0.05371900826 | G138: 0.1086956522 | S138: X's | T138: =B28 -> 0.1634809331 | U138: =T138 -> 0.1634809331 | W138: 0 | X138: 2 | Y138: 0 | Z138: 0 | AA138: 0 | AB138: 0 | AC138: 0 | AD138: 0 | AE138: 3 | AF138: 0 | AG138: 0 | AJ138: 0 | AK138: 2 | AL138: 1 | AM138: 2 | AN138: 0 | AO138: 1 | AP138: 1 | AQ138: 0 | AR138: 0 | AS138: 0 | AT138: 0
E139: 0.6 | F139: 0.02066115702 | G139: 0.0652173913 | S139: Y's | T139: 0 | U139: 0.6 | W139: 2 | X139: 1 | Y139: 1 | Z139: 0 | AA139: 0 | AB139: 0 | AC139: 0 | AD139: 2 | AE139: 1 | AF139: 0 | AG139: 0 | AJ139: 1 | AK139: 1 | AL139: 0 | AM139: 0 | AN139: 0 | AO139: 0 | AP139: 2 | AQ139: 0 | AR139: 0 | AS139: 0 | AT139: 0
E140: 0.7 | F140: 0.01652892562 | G140: 0.02173913043 | S140: =IF(B28=F144,U1 &" Average","Your Farm") -> 2015 Average | W140: 10 | X140: 1 | Z140: 0 | AA140: 0 | AB140: 0 | AC140: 0 | AG140: 0 | AJ140: 16 | AK140: 0 | AM140: 0 | AN140: 0 | AO140: 0 | AP140: 0 | AT140: 0
E141: 0.8 | F141: 0.00826446281 | G141: 0.02173913043 | V141: Count | W141: 28 | X141: 28 | Y141: 28 | Z141: 28 | AA141: 28 | AB141: 28 | AC141: 28 | AD141: 28 | AE141: 28 | AF141: 28 | AG141: 28 | AI141: Count | AJ141: 36 | AK141: 36 | AL141: 36 | AM141: 36 | AN141: 36 | AO141: 36 | AP141: 36 | AQ141: 36 | AR141: 36 | AS141: 36 | AT141: 36
E142: More | F142: 0.03719008264 | G142: 0.0347826087 | V142: Average | W142: 2.046971797 | X142: 0.4237924886 | Y142: 0.2140639689 | Z142: -0.01528456928 | AA142: -0.002562829648 | AB142: -0.01374626024 | AC142: 0.1676743127 | AD142: 0.7452839272 | AE142: 0.1226655421 | AF142: 0.04804759638 | AG142: 0.08400293439 | AI142: Average | AJ142: 2.810271874 | AK142: 0.5071981648 | AL142: 0.2349039042 | AM142: 0.1903490173 | AN142: 0.0611425537 | AO142: 0.0664457715 | AP142: 0.3212128677 | AQ142: 0.6440627141 | AR142: 0.08425501034 | AS142: 0.03029413676 | AT142: 0.2413881388
E143: Count | F143: =F122 -> 242 | G143: =G122 -> 230 | V143: Non-ratio average | X143: 217019.3343 | AG143: 43016.95143 | AI143: Non-ratio average | AK143: 314716.8851 | AT143: 149781.5418
E144: Average | F144: =IF($T$6=$W$1,$AC$14,IF($T$6=$W$17,$AC$30,IF($T$6=$W$33,$AC$46,IF($T$6=$W$49,$AC$62,IF($T$6=$W$65,$AC$78,IF($T$6=$W$81,$AC$94,IF($T$6=$W$97,$AC$110,IF($T$6=$W$113,$AC$126,IF($T$6=$W$129,$AC$142,IF($T$6=$W$145,$AC$158,IF($T$6=W161,AC174,"N/A"))))))))))) -> 0.1634809331 | G144: =IF($T$6=$W$1,$AP$14,IF($T$6=$W$17,$AP$30,IF($T$6=$W$33,$AP$46,IF($T$6=$W$49,$AP$62,IF($T$6=$W$65,$AP$78,IF($T$6=$W$81,$AP$94,IF($T$6=$W$97,$AP$110,IF($T$6=$W$113,$AP$126,IF($T$6=$W$129,$AP$142,IF($T$6=$W$145,$AP$158,IF($T$6=$W$161,$AP$174,"N/A"))))))))))) -> 0.2974028437
W145: Greater than 1250100+
W146: Current Ratio | X146: Working Capital Ratio | Y146: Debt to Asset Ratio | Z146: Operating Profit Margin | AA146: ROA | AB146: ROE | AC146: Asset Turnover | AD146: Operating Expense Ratio | AE146: Depr Expense Ratio | AF146: Interest Expense Ratio | AG146: NFI Ratio | AJ146: Current Ratio | AK146: Working Capital Ratio | AL146: Debt to Asset Ratio | AM146: Operating Profit Margin | AN146: ROA | AO146: ROE | AP146: Asset Turnover | AQ146: Operating Expense Ratio | AR146: Depr Expense Ratio | AS146: Interest Expense Ratio | AT146: NFI Ratio
W147: 0 | X147: 0 | Y147: 1 | Z147: 0 | AA147: 1 | AB147: 6 | AC147: 0 | AD147: 0 | AE147: 0 | AF147: 1 | AG147: 0 | AJ147: 0 | AK147: 0 | AL147: 0 | AM147: 0 | AN147: 0 | AO147: 2 | AP147: 0 | AQ147: 0 | AR147: 0 | AS147: 0 | AT147: 0
F148: =IF(B28=F144,"","Your Farm") ->  | G148: =IF(B28=F144,"",B28) ->  | W148: 1 | X148: 1 | Y148: 7 | Z148: 1 | AA148: 3 | AB148: 3 | AC148: 2 | AD148: 0 | AE148: 0 | AF148: 12 | AG148: 1 | AJ148: 0 | AK148: 0 | AL148: 8 | AM148: 0 | AN148: 0 | AO148: 1 | AP148: 0 | AQ148: 0 | AR148: 1 | AS148: 10 | AT148: 0
W149: 5 | X149: 5 | Y149: 1 | Z149: 2 | AA149: 8 | AB149: 14 | AC149: 17 | AD149: 2 | AE149: 2 | AF149: 7 | AG149: 3 | AJ149: 6 | AK149: 6 | AL149: 0 | AM149: 0 | AN149: 0 | AO149: 0 | AP149: 2 | AQ149: 4 | AR149: 4 | AS149: 10 | AT149: 0
W150: 5 | X150: 5 | Y150: 7 | Z150: 3 | AA150: 12 | AB150: 5 | AC150: 7 | AD150: 4 | AE150: 7 | AF150: 7 | AG150: 9 | AJ150: 3 | AK150: 5 | AL150: 2 | AM150: 0 | AN150: 3 | AO150: 9 | AP150: 6 | AQ150: 10 | AR150: 14 | AS150: 4 | AT150: 2
W151: 4 | X151: 3 | Y151: 7 | Z151: 13 | AA151: 6 | AB151: 2 | AC151: 1 | AD151: 7 | AE151: 7 | AF151: 1 | AG151: 9 | AJ151: 3 | AK151: 3 | AL151: 6 | AM151: 2 | AN151: 12 | AO151: 9 | AP151: 10 | AQ151: 8 | AR151: 4 | AS151: 1 | AT151: 5
E152: Operating Expense Ratio | W152: 1 | X152: 8 | Y152: 5 | Z152: 5 | AA152: 0 | AB152: 0 | AC152: 1 | AD152: 8 | AE152: 9 | AF152: 1 | AG152: 7 | AJ152: 2 | AK152: 5 | AL152: 4 | AM152: 6 | AN152: 7 | AO152: 3 | AP152: 2 | AQ152: 3 | AR152: 1 | AS152: 0 | AT152: 13
F153: 2015 | G153: 10-Year | W153: 2 | X153: 2 | Y153: 1 | Z153: 5 | AA153: 0 | AB153: 0 | AC153: 1 | AD153: 6 | AE153: 4 | AF153: 0 | AG153: 1 | AJ153: 0 | AK153: 4 | AL153: 1 | AM153: 15 | AN153: 2 | AO153: 0 | AP153: 2 | AQ153: 0 | AR153: 1 | AS153: 0 | AT153: 5
E154: 0.4 | F154: =IF($T$6=$W$1,AD3/$F$143,IF($T$6=$W$17,AD19/$F$143,IF($T$6=$W$33,AD35/$F$143,IF($T$6=$W$49,AD51/$F$143,IF($T$6=$W$65,AD67/$F$143,IF($T$6=$W$81,AD83/$F$143,IF($T$6=$W$97,AD99/$F$143,IF($T$6=$W$113,AD115/$F$143,IF($T$6=$W$129,AD131/$F$143,IF($T$6=$W$145,AD147/$F$143,IF($T$6=$W$161,AD163/$F$143,"N/A"))))))))))) -> 0.01652892562 | G154: =IF($T$6=$W$1,AQ3/$G$38,IF($T$6=$W$17,AQ19/$G$38,IF($T$6=$W$33,AQ35/$G$38,IF($T$6=$W$49,AQ51/$G$38,IF($T$6=$W$65,AQ67/$G$38,IF($T$6=$W$81,AQ83/$G$38,IF($T$6=$W$97,AQ99/$G$38,IF($T$6=$W$113,AQ115/$G$38,IF($T$6=$W$129,AQ131/$G$38,IF($T$6=$W$145,AQ147/$G$38,IF($T$6=$W$161,AQ163/$G$38,"N/A"))))))))))) -> 0.008695652174 | W154: 1 | X154: 5 | Y154: 0 | Z154: 1 | AA154: 0 | AB154: 0 | AC154: 0 | AD154: 2 | AE154: 1 | AF154: 1 | AG154: 0 | AJ154: 2 | AK154: 1 | AL154: 0 | AM154: 2 | AN154: 1 | AO154: 0 | AP154: 1 | AQ154: 0 | AR154: 0 | AS154: 0 | AT154: 0
E155: 0.5 | F155: =IF($T$6=$W$1,AD4/$F$143,IF($T$6=$W$17,AD20/$F$143,IF($T$6=$W$33,AD36/$F$143,IF($T$6=$W$49,AD52/$F$143,IF($T$6=$W$65,AD68/$F$143,IF($T$6=$W$81,AD84/$F$143,IF($T$6=$W$97,AD100/$F$143,IF($T$6=$W$113,AD116/$F$143,IF($T$6=$W$129,AD132/$F$143,IF($T$6=$W$145,AD148/$F$143,IF($T$6=$W$161,AD164/$F$143,"N/A"))))))))))) -> 0.03719008264 | G155: =IF($T$6=$W$1,AQ4/$G$38,IF($T$6=$W$17,AQ20/$G$38,IF($T$6=$W$33,AQ36/$G$38,IF($T$6=$W$49,AQ52/$G$38,IF($T$6=$W$65,AQ68/$G$38,IF($T$6=$W$81,AQ84/$G$38,IF($T$6=$W$97,AQ100/$G$38,IF($T$6=$W$113,AQ116/$G$38,IF($T$6=$W$129,AQ132/$G$38,IF($T$6=$W$145,AQ148/$G$38,IF($T$6=$W$161,AQ164/$G$38,"N/A"))))))))))) -> 0.05217391304 | W155: 0 | X155: 0 | Y155: 1 | Z155: 0 | AA155: 0 | AB155: 0 | AC155: 1 | AD155: 1 | AE155: 0 | AF155: 0 | AG155: 0 | AJ155: 0 | AK155: 1 | AL155: 4 | AM155: 0 | AN155: 0 | AO155: 0 | AP155: 1 | AQ155: 0 | AR155: 0 | AS155: 0 | AT155: 0
E156: 0.6 | F156: 0.07024793388 | G156: 0.2043478261 | W156: 11 | X156: 1 | Z156: 0 | AA156: 0 | AB156: 0 | AC156: 0 | AG156: 0 | AJ156: 9 | AK156: 0 | AM156: 0 | AN156: 0 | AO156: 1 | AP156: 1 | AT156: 0
E157: 0.7 | F157: 0.1900826446 | G157: 0.3695652174 | V157: Count | W157: 30 | X157: 30 | Y157: 30 | Z157: 30 | AA157: 30 | AB157: 30 | AC157: 30 | AD157: 30 | AE157: 30 | AF157: 30 | AG157: 30 | AI157: Count | AJ157: 25 | AK157: 25 | AL157: 25 | AM157: 25 | AN157: 25 | AO157: 25 | AP157: 25 | AQ157: 25 | AR157: 25 | AS157: 25 | AT157: 25
E158: 0.8 | F158: 0.2190082645 | G158: 0.247826087 | V158: Average | W158: 2.001332419 | X158: 0.4235346618 | Y158: 0.2683776528 | Z158: -0.02946147287 | AA158: -0.005644307431 | AB158: -0.02094534752 | AC158: 0.1915826631 | AD158: 0.8122748555 | AE158: 0.1132466089 | AF158: 0.04852269538 | AG158: 0.02595584022 | AI158: Average | AJ158: 1.938435954 | AK158: 0.3743999814 | AL158: 0.3312007917 | AM158: 0.1707991907 | AN158: 0.06130505719 | AO158: 0.06739788553 | AP158: 0.3589306069 | AQ158: 0.6905922141 | AR158: 0.07268749372 | AS158: 0.04143553351 | AT158: 0.1952847586
E159: 0.9 | F159: 0.194214876 | G159: 0.1043478261 | S159: Your Farm Line-Operating Expense Ratio | V159: Non-ratio average | X159: 360183.0547 | AG159: 22073.409 | AI159: Non-ratio average | AK159: 351121.2006 | AT159: 183142.6878
E160: 1 | F160: 0.1239669421 | G160: 0.01304347826 | S160: X's | T160: =B29 -> 0.8183788614 | U160: =T160 -> 0.8183788614
E161: 1.1 | F161: 0.03719008264 | G161: 0 | S161: Y's | T161: 0 | U161: 0.5 | W161: All Farms
E162: More | F162: 0.1115702479 | G162: 0 | S162: =IF(B29=F164,U1 &" Average","Your Farm") -> 2015 Average | W162: Current Ratio | X162: Working Capital Ratio | Y162: Debt to Asset Ratio | Z162: Operating Profit Margin | AA162: ROA | AB162: ROE | AC162: Asset Turnover | AD162: Operating Expense Ratio | AE162: Depr Expense Ratio | AF162: Interest Expense Ratio | AG162: NFI Ratio | AJ162: Current Ratio | AK162: Working Capital Ratio | AL162: Debt to Asset Ratio | AM162: Operating Profit Margin | AN162: ROA | AO162: ROE | AP162: Asset Turnover | AQ162: Operating Expense Ratio | AR162: Depr Expense Ratio | AS162: Interest Expense Ratio | AT162: NFI Ratio
E163: Count | F163: =F143 -> 242 | G163: =G143 -> 230 | W163: 0 | X163: 16 | Y163: 25 | Z163: 21 | AA163: 19 | AB163: 47 | AC163: 2 | AD163: 4 | AE163: 1 | AF163: 28 | AG163: 17 | AJ163: 1 | AK163: 5 | AL163: 8 | AM163: 0 | AN163: 4 | AO163: 18 | AP163: 0 | AQ163: 2 | AR163: 0 | AS163: 5 | AT163: 0
E164: Average | F164: =IF($T$6=$W$1,$AD$14,IF($T$6=$W$17,$AD$30,IF($T$6=$W$33,$AD$46,IF($T$6=$W$49,$AD$62,IF($T$6=$W$65,$AD$78,IF($T$6=$W$81,$AD$94,IF($T$6=$W$97,$AD$110,IF($T$6=$W$113,$AD$126,IF($T$6=$W$129,$AD$142,IF($T$6=$W$145,$AD$158,IF($T$6=W161,AD174,"N/A"))))))))))) -> 0.8183788614 | G164: =IF($T$6=$W$1,$AQ$14,IF($T$6=$W$17,$AQ$30,IF($T$6=$W$33,$AQ$46,IF($T$6=$W$49,$AQ$62,IF($T$6=$W$65,$AQ$78,IF($T$6=$W$81,$AQ$94,IF($T$6=$W$97,$AQ$110,IF($T$6=$W$113,$AQ$126,IF($T$6=$W$129,$AQ$142,IF($T$6=$W$145,$AQ$158,IF($T$6=$W$161,$AQ$174,"N/A"))))))))))) -> 0.6710956677 | W164: 14 | X164: 6 | Y164: 51 | Z164: 12 | AA164: 27 | AB164: 31 | AC164: 43 | AD164: 9 | AE164: 12 | AF164: 81 | AG164: 9 | AJ164: 5 | AK164: 3 | AL164: 57 | AM164: 0 | AN164: 1 | AO164: 12 | AP164: 6 | AQ164: 12 | AR164: 12 | AS164: 94 | AT164: 0
W165: 33 | X165: 25 | Y165: 43 | Z165: 22 | AA165: 58 | AB165: 92 | AC165: 109 | AD165: 17 | AE165: 33 | AF165: 54 | AG165: 16 | AJ165: 22 | AK165: 19 | AL165: 31 | AM165: 4 | AN165: 19 | AO165: 39 | AP165: 40 | AQ165: 47 | AR165: 54 | AS165: 72 | AT165: 1
W166: 37 | X166: 35 | Y166: 32 | Z166: 41 | AA166: 94 | AB166: 49 | AC166: 44 | AD166: 46 | AE166: 44 | AF166: 41 | AG166: 55 | AJ166: 29 | AK166: 37 | AL166: 39 | AM166: 10 | AN166: 56 | AO166: 71 | AP166: 77 | AQ166: 85 | AR166: 89 | AS166: 33 | AT166: 10
W167: 20 | X167: 39 | Y167: 31 | Z167: 61 | AA167: 34 | AB167: 13 | AC167: 11 | AD167: 53 | AE167: 49 | AF167: 16 | AG167: 69 | AJ167: 19 | AK167: 48 | AL167: 37 | AM167: 29 | AN167: 93 | AO167: 62 | AP167: 49 | AQ167: 57 | AR167: 42 | AS167: 16 | AT167: 55
F168: =IF(B29=F164,"","Your Farm") ->  | G168: =IF(B29=F164,"",B29) ->  | W168: 23 | X168: 40 | Y168: 29 | Z168: 54 | AA168: 4 | AB168: 1 | AC168: 13 | AD168: 47 | AE168: 34 | AF168: 7 | AG168: 51 | AJ168: 23 | AK168: 51 | AL168: 23 | AM168: 87 | AN168: 40 | AO168: 14 | AP168: 25 | AQ168: 24 | AR168: 25 | AS168: 6 | AT168: 107
W169: 5 | X169: 30 | Y169: 12 | Z169: 19 | AA169: 1 | AB169: 0 | AC169: 5 | AD169: 30 | AE169: 35 | AF169: 8 | AG169: 18 | AJ169: 10 | AK169: 36 | AL169: 14 | AM169: 87 | AN169: 13 | AO169: 8 | AP169: 15 | AQ169: 3 | AR169: 6 | AS169: 3 | AT169: 53
W170: 6 | X170: 22 | Y170: 5 | Z170: 7 | AA170: 0 | AB170: 0 | AC170: 4 | AD170: 9 | AE170: 17 | AF170: 2 | AG170: 4 | AJ170: 11 | AK170: 14 | AL170: 4 | AM170: 13 | AN170: 3 | AO170: 2 | AP170: 5 | AQ170: 0 | AR170: 1 | AS170: 0 | AT170: 4
W171: 3 | X171: 4 | Y171: 14 | Z171: 2 | AA171: 0 | AB171: 1 | AC171: 2 | AD171: 27 | AE171: 17 | AF171: 5 | AG171: 1 | AJ171: 5 | AK171: 8 | AL171: 17 | AM171: 0 | AN171: 1 | AO171: 0 | AP171: 5 | AQ171: 0 | AR171: 1 | AS171: 1 | AT171: 0
W172: 101 | X172: 25 | Z172: 3 | AA172: 5 | AB172: 8 | AC172: 9 | AG172: 2 | AJ172: 105 | AK172: 9 | AM172: 0 | AN172: 0 | AO172: 4 | AP172: 8 | AT172: 0
E173: Depreciation Expense Ratio | V173: Count | W173: 242 | X173: 242 | Y173: 242 | Z173: 242 | AA173: 242 | AB173: 242 | AC173: 242 | AD173: 242 | AE173: 242 | AF173: 242 | AG173: 242 | AI173: Count | AJ173: 230 | AK173: 230 | AL173: 230 | AM173: 230 | AN173: 230 | AO173: 230 | AP173: 230 | AQ173: 230 | AR173: 230 | AS173: 230 | AT173: 230
F174: 2015 | G174: 10-Year | V174: Average | W174: 1.891226676 | X174: 0.5241608572 | Y174: 0.2338842145 | Z174: -0.0917911036 | AA174: -0.01500609527 | AB174: -0.03005738497 | AC174: 0.1634809331 | AD174: 0.8183788614 | AE174: 0.1155668073 | AF174: 0.0457618881 | AG174: 0.02029244328 | AI174: Average | AJ174: 2.474502565 | AK174: 0.5078339456 | AL174: 0.2602924218 | AM174: 0.1516640979 | AN174: 0.045105334 | AO174: 0.04399688663 | AP174: 0.2974028437 | AQ174: 0.6710956677 | AR174: 0.07920909753 | AS174: 0.03902057297 | AT174: 0.2106746618
E175: 0 | F175: =IF($T$6=$W$1,AE3/$F$143,IF($T$6=$W$17,AE19/$F$143,IF($T$6=$W$33,AE35/$F$143,IF($T$6=$W$49,AE51/$F$143,IF($T$6=$W$65,AE67/$F$143,IF($T$6=$W$81,AE83/$F$143,IF($T$6=$W$97,AE99/$F$143,IF($T$6=$W$113,AE115/$F$143,IF($T$6=$W$129,AE131/$F$143,IF($T$6=$W$145,AE147/$F$143,IF($T$6=$W$161,AE163/$F$143,"N/A"))))))))))) -> 0.004132231405 | G175: =IF($T$6=$W$1,AR3/$G$38,IF($T$6=$W$17,AR19/$G$38,IF($T$6=$W$33,AR35/$G$38,IF($T$6=$W$49,AR51/$G$38,IF($T$6=$W$65,AR67/$G$38,IF($T$6=$W$81,AR83/$G$38,IF($T$6=$W$97,AR99/$G$38,IF($T$6=$W$113,AR115/$G$38,IF($T$6=$W$129,AR131/$G$38,IF($T$6=$W$145,AR147/$G$38,IF($T$6=$W$161,AR163/$G$38,"N/A"))))))))))) -> 0 | V175: Non-ratio average | X175: 228718.0491 | AG175: 8854.625397 | AI175: Non-ratio average | AK175: 240623.7253 | AT175: 99822.63375
E176: 0.03 | F176: =IF($T$6=$W$1,AE4/$F$143,IF($T$6=$W$17,AE20/$F$143,IF($T$6=$W$33,AE36/$F$143,IF($T$6=$W$49,AE52/$F$143,IF($T$6=$W$65,AE68/$F$143,IF($T$6=$W$81,AE84/$F$143,IF($T$6=$W$97,AE100/$F$143,IF($T$6=$W$113,AE116/$F$143,IF($T$6=$W$129,AE132/$F$143,IF($T$6=$W$145,AE148/$F$143,IF($T$6=$W$161,AE164/$F$143,"N/A"))))))))))) -> 0.04958677686 | G176: =IF($T$6=$W$1,AR4/$G$38,IF($T$6=$W$17,AR20/$G$38,IF($T$6=$W$33,AR36/$G$38,IF($T$6=$W$49,AR52/$G$38,IF($T$6=$W$65,AR68/$G$38,IF($T$6=$W$81,AR84/$G$38,IF($T$6=$W$97,AR100/$G$38,IF($T$6=$W$113,AR116/$G$38,IF($T$6=$W$129,AR132/$G$38,IF($T$6=$W$145,AR148/$G$38,IF($T$6=$W$161,AR164/$G$38,"N/A"))))))))))) -> 0.05217391304
E177: 0.06 | F177: 0.1363636364 | G177: 0.2347826087
E178: 0.09 | F178: 0.1818181818 | G178: 0.3869565217
E179: 0.12 | F179: 0.2024793388 | G179: 0.1826086957
E180: 0.15 | F180: 0.1404958678 | G180: 0.1086956522
E181: 0.18 | F181: 0.1446280992 | G181: 0.02608695652 | S181: Your Farm Line-Depreciation Expense Ratio
E182: 0.21 | F182: 0.07024793388 | G182: 0.004347826087 | S182: X's | T182: =B30 -> 0.1155668073 | U182: =T182 -> 0.1155668073
E183: More | F183: 0.07024793388 | G183: 0.004347826087 | S183: Y's | T183: 0 | U183: 0.5
E184: Count | F184: =F163 -> 242 | G184: =G163 -> 230 | S184: =IF(B30=F185,U1 &" Average","Your Farm") -> 2015 Average
E185: Average | F185: =IF($T$6=$W$1,$AE$14,IF($T$6=$W$17,$AE$30,IF($T$6=$W$33,$AE$46,IF($T$6=$W$49,$AE$62,IF($T$6=$W$65,$AE$78,IF($T$6=$W$81,$AE$94,IF($T$6=$W$97,$AE$110,IF($T$6=$W$113,$AE$126,IF($T$6=$W$129,$AE$142,IF($T$6=$W$145,$AE$158,IF($T$6=$W$161,AE174,"N/A"))))))))))) -> 0.1155668073 | G185: =IF($T$6=$W$1,$AR$14,IF($T$6=$W$17,$AR$30,IF($T$6=$W$33,$AR$46,IF($T$6=$W$49,$AR$62,IF($T$6=$W$65,$AR$78,IF($T$6=$W$81,$AR$94,IF($T$6=$W$97,$AR$110,IF($T$6=$W$113,$AR$126,IF($T$6=$W$129,$AR$142,IF($T$6=$W$145,$AR$158,IF($T$6=$W$161,$AR$174,"N/A"))))))))))) -> 0.07920909753
F189: =IF(B30=F185,"","Your Farm") ->  | G189: =IF(B30=F185,"",B30) -> 
E194: Interest Expense Ratio
F195: 2015 | G195: 10-Year
E196: 0 | F196: =IF($T$6=$W$1,AF3/$F$143,IF($T$6=$W$17,AF19/$F$143,IF($T$6=$W$33,AF35/$F$143,IF($T$6=$W$49,AF51/$F$143,IF($T$6=$W$65,AF67/$F$143,IF($T$6=$W$81,AF83/$F$143,IF($T$6=$W$97,AF99/$F$143,IF($T$6=$W$113,AF115/$F$143,IF($T$6=$W$129,AF131/$F$143,IF($T$6=$W$145,AF147/$F$143,IF($T$6=$W$161,AF163/$F$143,"N/A"))))))))))) -> 0.1157024793 | G196: =IF($T$6=$W$1,AS3/$G$38,IF($T$6=$W$17,AS19/$G$38,IF($T$6=$W$33,AS35/$G$38,IF($T$6=$W$49,AS51/$G$38,IF($T$6=$W$65,AS67/$G$38,IF($T$6=$W$81,AS83/$G$38,IF($T$6=$W$97,AS99/$G$38,IF($T$6=$W$113,AS115/$G$38,IF($T$6=$W$129,AS131/$G$38,IF($T$6=$W$145,AS147/$G$38,IF($T$6=$W$161,AS163/$G$38,"N/A"))))))))))) -> 0.02173913043
E197: 0.03 | F197: =IF($T$6=$W$1,AF4/$F$143,IF($T$6=$W$17,AF20/$F$143,IF($T$6=$W$33,AF36/$F$143,IF($T$6=$W$49,AF52/$F$143,IF($T$6=$W$65,AF68/$F$143,IF($T$6=$W$81,AF84/$F$143,IF($T$6=$W$97,AF100/$F$143,IF($T$6=$W$113,AF116/$F$143,IF($T$6=$W$129,AF132/$F$143,IF($T$6=$W$145,AF148/$F$143,IF($T$6=$W$161,AF164/$F$143,"N/A"))))))))))) -> 0.3347107438 | G197: =IF($T$6=$W$1,AS4/$G$38,IF($T$6=$W$17,AS20/$G$38,IF($T$6=$W$33,AS36/$G$38,IF($T$6=$W$49,AS52/$G$38,IF($T$6=$W$65,AS68/$G$38,IF($T$6=$W$81,AS84/$G$38,IF($T$6=$W$97,AS100/$G$38,IF($T$6=$W$113,AS116/$G$38,IF($T$6=$W$129,AS132/$G$38,IF($T$6=$W$145,AS148/$G$38,IF($T$6=$W$161,AS164/$G$38,"N/A"))))))))))) -> 0.4086956522
E198: 0.06 | F198: 0.2231404959 | G198: 0.3130434783
E199: 0.09 | F199: 0.1694214876 | G199: 0.1434782609
E200: 0.12 | F200: 0.06611570248 | G200: 0.06956521739
E201: 0.15 | F201: 0.02892561983 | G201: 0.02608695652
E202: 0.18 | F202: 0.03305785124 | G202: 0.01304347826
E203: 0.21 | F203: 0.00826446281 | G203: 0 | S203: Your Farm Line-Interest Expense Ratio
E204: More | F204: 0.02066115702 | G204: 0.004347826087 | S204: X's | T204: =B31 -> 0.0457618881 | U204: =T204 -> 0.0457618881
E205: Count | F205: =F184 -> 242 | G205: =G184 -> 230 | S205: Y's | T205: 0 | U205: 0.5
E206: Average | F206: =IF($T$6=$W$1,$AF$14,IF($T$6=$W$17,$AF$30,IF($T$6=$W$33,$AF$46,IF($T$6=$W$49,$AF$62,IF($T$6=$W$65,$AF$78,IF($T$6=$W$81,$AF$94,IF($T$6=$W$97,$AF$110,IF($T$6=$W$113,$AF$126,IF($T$6=$W$129,$AF$142,IF($T$6=$W$145,$AF$158,IF($T$6=W161,AF174,"N/A"))))))))))) -> 0.0457618881 | G206: =IF($T$6=$W$1,$AS$14,IF($T$6=$W$17,$AS$30,IF($T$6=$W$33,$AS$46,IF($T$6=$W$49,$AS$62,IF($T$6=$W$65,$AS$78,IF($T$6=$W$81,$AS$94,IF($T$6=$W$97,$AS$110,IF($T$6=$W$113,$AS$126,IF($T$6=$W$129,$AS$142,IF($T$6=$W$145,$AS$158,IF($T$6=$W$161,$AS$174,"N/A"))))))))))) -> 0.03902057297 | S206: =IF(B31=F206,U1 &" Average","Your Farm") -> 2015 Average
F210: =IF(B31=F206,"","Your Farm") ->  | G210: =IF(B31=F206,"",B31) -> 
E215: Net Farm Income Ratio
F216: 2015 | G216: 10-Year
... 15 more rows

Sheet NorthEast
E1: KSU FARM FINANCIAL BENCHMARKING TOOL-Northeast Kansas | S1: Acres | T1: Lookup | U1: 2015 | W1: Less than 500No | AI1: 10-Year
S2: Less than 500 | T2: LT | W2: Current Ratio | X2: Working Capital Ratio | Y2: Debt to Asset Ratio | Z2: Operating Profit Margin | AA2: ROA | AB2: ROE | AC2: Asset Turnover | AD2: Operating Expense Ratio | AE2: Depr Expense Ratio | AF2: Interest Expense Ratio | AG2: NFI Ratio | AJ2: Current Ratio | AK2: Working Capital Ratio | AL2: Debt to Asset Ratio | AM2: Operating Profit Margin | AN2: ROA | AO2: ROE | AP2: Asset Turnover | AQ2: Operating Expense Ratio | AR2: Depr Expense Ratio | AS2: Interest Expense Ratio | AT2: NFI Ratio
E3: Tillable Crop Acres: | G3: =B16 -> All Farms | I3: =A17 ->  | K3: =IF(B17="","",B17) ->  | P3: =IF(B18="","",B18) ->  | S3: 500-1000 | T3: BTW | W3: 1 | X3: 3 | Y3: 10 | Z3: 7 | AA3: 5 | AB3: 5 | AC3: 1 | AD3: 1 | AE3: 2 | AF3: 9 | AG3: 4 | AJ3: 0 | AK3: 0 | AL3: 2 | AM3: 1 | AN3: 1 | AO3: 0 | AP3: 0 | AQ3: 0 | AR3: 0 | AS3: 4 | AT3: 0
S4: Greater than 1000 | T4: GT | W4: 1 | X4: 1 | Y4: 3 | Z4: 3 | AA4: 1 | AB4: 2 | AC4: 13 | AD4: 1 | AE4: 3 | AF4: 8 | AG4: 1 | AJ4: 0 | AK4: 0 | AL4: 6 | AM4: 0 | AN4: 0 | AO4: 3 | AP4: 2 | AQ4: 0 | AR4: 3 | AS4: 6 | AT4: 0
E5: Current Ratio | S5: All Farms | T5: All | W5: 2 | X5: 1 | Y5: 3 | Z5: 3 | AA5: 6 | AB5: 10 | AC5: 4 | AD5: 2 | AE5: 2 | AF5: 1 | AG5: 2 | AJ5: 0 | AK5: 0 | AL5: 2 | AM5: 1 | AN5: 2 | AO5: 2 | AP5: 6 | AQ5: 5 | AR5: 4 | AS5: 2 | AT5: 1
F6: 2015 | G6: 10-Year | S6: LTList | T6: =B16&B17&B18 -> All Farms | W6: 0 | X6: 1 | Y6: 1 | Z6: 3 | AA6: 6 | AB6: 2 | AC6: 0 | AD6: 0 | AE6: 2 | AF6: 1 | AG6: 6 | AJ6: 1 | AK6: 2 | AL6: 1 | AM6: 1 | AN6: 6 | AO6: 7 | AP6: 3 | AQ6: 7 | AR6: 5 | AS6: 2 | AT6: 1
E7: 0 | F7: =IF($T$6=$W$1,W3/$W$13,IF($T$6=$W$17,W19/$W$29,IF($T$6=$W$33,W35/$W$45,IF($T$6=$W$49,W51/$W$61,IF($T$6=$W$65,W67/$W$77,IF($T$6=$W$81,W83/$W$93,IF($T$6=$W$97,W99/$W$109,IF($T$6=$W$113,W115/$W$125,IF($T$6=$W$129,W131/$W$141,IF($T$6=$W$145,W147/$W$157,IF($T$6=$W$161,W163/$W$173,"N/A"))))))))))) -> 0.01546391753 | G7: =IF($T$6=$W$1,AJ3/$AJ$13,IF($T$6=$W$17,AJ19/$AJ$29,IF($T$6=$W$33,AJ35/$AJ$45,IF($T$6=$W$49,AJ51/$AJ$61,IF($T$6=$W$65,AJ67/$AJ$77,IF($T$6=$W$81,AJ83/$AJ$93,IF($T$6=$W$97,AJ99/$AJ$109,IF($T$6=$W$113,AJ115/$AJ$125,IF($T$6=$W$129,AJ131/$AJ$141,IF($T$6=$W$145,AJ147/$AJ$157,IF($T$6=$W$161,AJ163/$AJ$173,"N/A"))))))))))) -> 0 | S7: Yes | W7: 0 | X7: 1 | Y7: 2 | Z7: 0 | AA7: 1 | AB7: 0 | AC7: 1 | AD7: 1 | AE7: 3 | AF7: 0 | AG7: 3 | AJ7: 2 | AK7: 3 | AL7: 3 | AM7: 2 | AN7: 4 | AO7: 0 | AP7: 0 | AQ7: 1 | AR7: 1 | AS7: 1 | AT7: 2
E8: 0.5 | F8: =IF($T$6=$W$1,W4/$W$13,IF($T$6=$W$17,W20/$W$29,IF($T$6=$W$33,W36/$W$45,IF($T$6=$W$49,W52/$W$61,IF($T$6=$W$65,W68/$W$77,IF($T$6=$W$81,W84/$W$93,IF($T$6=$W$97,W100/$W$109,IF($T$6=$W$113,W116/$W$125,IF($T$6=$W$129,W132/$W$141,IF($T$6=$W$145,W148/$W$157,IF($T$6=$W$161,W164/$W$173,"N/A"))))))))))) -> 0.03608247423 | G8: =IF($T$6=$W$1,AJ4/$AJ$13,IF($T$6=$W$17,AJ20/$AJ$29,IF($T$6=$W$33,AJ36/$AJ$45,IF($T$6=$W$49,AJ52/$AJ$61,IF($T$6=$W$65,AJ68/$AJ$77,IF($T$6=$W$81,AJ84/$AJ$93,IF($T$6=$W$97,AJ100/$AJ$109,IF($T$6=$W$113,AJ116/$AJ$125,IF($T$6=$W$129,AJ132/$AJ$141,IF($T$6=$W$145,AJ148/$AJ$157,IF($T$6=$W$161,AJ164/$AJ$173,"N/A"))))))))))) -> 0.005208333333 | S8: No | W8: 0 | X8: 1 | Y8: 0 | Z8: 2 | AA8: 0 | AB8: 0 | AC8: 0 | AD8: 3 | AE8: 1 | AF8: 0 | AG8: 0 | AJ8: 1 | AK8: 2 | AL8: 0 | AM8: 5 | AN8: 0 | AO8: 1 | AP8: 2 | AQ8: 3 | AR8: 2 | AS8: 0 | AT8: 5
E9: 1 | F9: 0.1082474227 | G9: 0.0625 | W9: 0 | X9: 0 | Y9: 0 | Z9: 1 | AA9: 0 | AB9: 0 | AC9: 0 | AD9: 4 | AE9: 2 | AF9: 0 | AG9: 3 | AJ9: 0 | AK9: 1 | AL9: 0 | AM9: 6 | AN9: 2 | AO9: 0 | AP9: 1 | AQ9: 0 | AR9: 1 | AS9: 0 | AT9: 7
E10: 1.5 | F10: 0.1546391753 | G10: 0.0625 | W10: 0 | X10: 0 | Y10: 0 | Z10: 0 | AA10: 0 | AB10: 1 | AC10: 0 | AD10: 3 | AE10: 1 | AF10: 0 | AG10: 0 | AJ10: 0 | AK10: 0 | AL10: 1 | AM10: 0 | AN10: 0 | AO10: 1 | AP10: 0 | AQ10: 0 | AR10: 0 | AS10: 0 | AT10: 0
E11: 2 | F11: 0.04639175258 | G11: 0.1354166667 | S11: BTWList | T11: Lookup | W11: 1 | X11: 2 | Y11: 1 | Z11: 0 | AA11: 1 | AB11: 0 | AC11: 0 | AD11: 5 | AE11: 4 | AF11: 1 | AG11: 0 | AJ11: 0 | AK11: 1 | AL11: 1 | AM11: 0 | AN11: 0 | AO11: 0 | AP11: 0 | AQ11: 0 | AR11: 0 | AS11: 1 | AT11: 0
E12: 2.5 | F12: 0.0412371134 | G12: 0.1197916667 | S12: Yes | T12: LL | W12: 15 | X12: 10 | Z12: 1 | AA12: 0 | AB12: 0 | AC12: 1 | AG12: 1 | AJ12: 12 | AK12: 7 | AM12: 0 | AN12: 1 | AO12: 2 | AP12: 2 | AT12: 0
E13: 3 | F13: 0.03092783505 | G13: 0.06770833333 | S13: No | T13: GG | V13: Count | W13: 20 | X13: 20 | Y13: 20 | Z13: 20 | AA13: 20 | AB13: 20 | AC13: 20 | AD13: 20 | AE13: 20 | AF13: 20 | AG13: 20 | AI13: Count | AJ13: 16 | AK13: 16 | AL13: 16 | AM13: 16 | AN13: 16 | AO13: 16 | AP13: 16 | AQ13: 16 | AR13: 16 | AS13: 16 | AT13: 16
E14: 3.5 | F14: 0.0206185567 | G14: 0.046875 | V14: Average | W14: 5.753202799 | X14: 2.102215877 | Y14: 0.06701768967 | Z14: -0.5025680064 | AA14: -0.0396647505 | AB14: -0.04392776895 | AC14: 0.07892414557 | AD14: 0.9885954821 | AE14: 0.1477942822 | AF14: 0.02076138468 | AG14: -0.1571511489 | AI14: Average | AJ14: 10.37805281 | AK14: 1.298454115 | AL14: 0.1220465752 | AM14: 0.09509167874 | AN14: 0.02124515013 | AO14: 0.01680058981 | AP14: 0.2234175526 | AQ14: 0.6448319604 | AR14: 0.05699517531 | AS14: 0.02826082189 | AT14: 0.2699120424
A15: BENCHMARK CATEGORY | E15: 4 | F15: 0.04639175258 | G15: 0.03645833333 | V15: Non-ratio average | X15: 192910.6535 | AG15: -14421.036 | AI15: Non-ratio average | AK15: 155040.2588 | AT15: 32228.50344
A16: Tillable Crop Acres: | B16: All Farms | E16: More | F16: =IF($T$6=$W$1,W12/$W$13,IF($T$6=$W$17,W28/$W$29,IF($T$6=$W$33,W44/$W$45,IF($T$6=$W$49,W60/$W$61,IF($T$6=$W$65,W76/$W$77,IF($T$6=$W$81,W92/$W$93,IF($T$6=$W$97,W108/$W$109,IF($T$6=$W$113,W124/$W$125,IF($T$6=$W$129,W140/$W$141,IF($T$6=$W$145,W156/$W$157,IF($T$6=$W$161,W172/$W$173,"N/A"))))))))))) -> 0.5 | G16: 0.4635416667 | S16: GTList
A17: =IF(B16="All Farms", "", "Beef Cows:") ->  | E17: Count | F17: =IF($T$6=$W$1,$W$13,IF($T$6=$W$17,$W$29,IF($T$6=$W$33,$W$45,IF($T$6=$W$49,$W$61,IF($T$6=$W$65,$W$77,IF($T$6=$W$81,$W$93,IF($T$6=$W$97,$W$109,IF($T$6=$W$113,$W$125,IF($T$6=$W$129,$W$141,IF($T$6=$W$145,$W$157,IF(T6=$W$161,$W$173,"N/A"))))))))))) -> 194 | G17: =IF($T$6=$W$1,$AJ$13,IF($T$6=$W$17,$AJ$29,IF($T$6=$W$33,$AJ$45,IF($T$6=$W$49,$AJ$61,IF($T$6=$W$65,$AJ$77,IF($T$6=$W$81,$AJ$93,IF($T$6=$W$97,$AJ$109,IF($T$6=$W$113,$AJ$125,IF($T$6=$W$129,$AJ$141,IF($T$6=$W$145,$AJ$157, IF($T$6=$W$161,$AJ$173,"N/A"))))))))))) -> 192 | S17: Yes | W17: Less than 500Yes
E18: Average | F18: =IF($T$6=$W$1,$W$14,IF($T$6=$W$17,$W$30,IF($T$6=$W$33,$W$46,IF($T$6=$W$49,$W$62,IF($T$6=$W$65,$W$78,IF($T$6=$W$81,$W$94,IF($T$6=$W$97,$W$110,IF($T$6=$W$113,$W$126,IF($T$6=$W$129,$W$142,IF($T$6=$W$145,$W$158, IF($T$6=$W$161,$W$174,"N/A"))))))))))) -> 2.475120422 | G18: =IF($T$6=$W$1,$AJ$14,IF($T$6=$W$17,$AJ$30,IF($T$6=$W$33,$AJ$46,IF($T$6=$W$49,$AJ$62,IF($T$6=$W$65,$AJ$78,IF($T$6=$W$81,$AJ$94,IF($T$6=$W$97,$AJ$110,IF($T$6=$W$113,$AJ$126,IF($T$6=$W$129,$AJ$142,IF($T$6=$W$145,$AJ$158, IF($T$6=$W$161,$AJ$174,"N/A"))))))))))) -> 3.080673159 | S18: No | W18: Current Ratio | X18: Working Capital Ratio | Y18: Debt to Asset Ratio | Z18: Operating Profit Margin | AA18: ROA | AB18: ROE | AC18: Asset Turnover | AD18: Operating Expense Ratio | AE18: Depr Expense Ratio | AF18: Interest Expense Ratio | AG18: NFI Ratio | AJ18: Current Ratio | AK18: Working Capital Ratio | AL18: Debt to Asset Ratio | AM18: Operating Profit Margin | AN18: ROA | AO18: ROE | AP18: Asset Turnover | AQ18: Operating Expense Ratio | AR18: Depr Expense Ratio | AS18: Interest Expense Ratio | AT18: NFI Ratio
S19: 100+ | W19: 0 | X19: 1 | Y19: 10 | Z19: 18 | AA19: 8 | AB19: 11 | AC19: 0 | AD19: 1 | AE19: 0 | AF19: 10 | AG19: 11 | AJ19: 0 | AK19: 1 | AL19: 5 | AM19: 4 | AN19: 3 | AO19: 8 | AP19: 0 | AQ19: 0 | AR19: 0 | AS19: 3 | AT19: 1
F20: =IF(B22=F18,"","Your Farm") ->  | G20: =IF(B22=F18,"",B22) ->  | W20: 0 | X20: 2 | Y20: 6 | Z20: 1 | AA20: 7 | AB20: 7 | AC20: 20 | AD20: 2 | AE20: 2 | AF20: 3 | AG20: 5 | AJ20: 1 | AK20: 4 | AL20: 10 | AM20: 4 | AN20: 5 | AO20: 5 | AP20: 7 | AQ20: 2 | AR20: 4 | AS20: 13 | AT20: 1
A21: YOUR FARM VALUES* | W21: 6 | X21: 3 | Y21: 1 | Z21: 2 | AA21: 7 | AB21: 8 | AC21: 6 | AD21: 3 | AE21: 4 | AF21: 6 | AG21: 1 | AJ21: 5 | AK21: 1 | AL21: 3 | AM21: 3 | AN21: 7 | AO21: 9 | AP21: 15 | AQ21: 5 | AR21: 9 | AS21: 4 | AT21: 2
A22: Current Ratio: | B22: =$F$18 -> 2.475120422 | S22: AllList | W22: 3 | X22: 1 | Y22: 2 | Z22: 3 | AA22: 6 | AB22: 2 | AC22: 3 | AD22: 1 | AE22: 7 | AF22: 2 | AG22: 5 | AJ22: 2 | AK22: 2 | AL22: 2 | AM22: 4 | AN22: 11 | AO22: 7 | AP22: 3 | AQ22: 1 | AR22: 5 | AS22: 5 | AT22: 6
A23: Working Capital Ratio: | B23: =$F$39 -> 0.6360833042 | S23: Yes | W23: 0 | X23: 3 | Y23: 4 | Z23: 3 | AA23: 1 | AB23: 1 | AC23: 1 | AD23: 1 | AE23: 6 | AF23: 1 | AG23: 1 | AJ23: 2 | AK23: 5 | AL23: 1 | AM23: 6 | AN23: 3 | AO23: 0 | AP23: 3 | AQ23: 10 | AR23: 5 | AS23: 2 | AT23: 8
A24: Debt to Asset Ratio: | B24: =$F$59 -> 0.1942832656 | S24: No | W24: 1 | X24: 4 | Y24: 4 | Z24: 2 | AA24: 1 | AB24: 0 | AC24: 0 | AD24: 2 | AE24: 3 | AF24: 3 | AG24: 1 | AJ24: 2 | AK24: 6 | AL24: 6 | AM24: 5 | AN24: 1 | AO24: 1 | AP24: 2 | AQ24: 7 | AR24: 2 | AS24: 1 | AT24: 7
A25: Operating Profit Margin | B25: =$F$81 -> -0.1718115234 | W25: 1 | X25: 3 | Y25: 1 | Z25: 0 | AA25: 0 | AB25: 0 | AC25: 0 | AD25: 1 | AE25: 1 | AF25: 3 | AG25: 4 | AJ25: 1 | AK25: 3 | AL25: 2 | AM25: 4 | AN25: 0 | AO25: 0 | AP25: 0 | AQ25: 2 | AR25: 1 | AS25: 1 | AT25: 4
A26: Rate of Return on Farm Assets | B26: =$F$102 -> -0.02758507149 | E26: Working Captial Ratio | W26: 2 | X26: 1 | Y26: 1 | Z26: 1 | AA26: 0 | AB26: 0 | AC26: 0 | AD26: 5 | AE26: 2 | AF26: 0 | AG26: 2 | AJ26: 1 | AK26: 3 | AL26: 1 | AM26: 0 | AN26: 0 | AO26: 0 | AP26: 0 | AQ26: 2 | AR26: 1 | AS26: 0 | AT26: 1
A27: Rate of Return on Farm Equity | B27: =$F$123 -> -0.04370811013 | F27: 2015 | G27: 10-Year | S27: Your Farm Line-Current Ratio | W27: 0 | X27: 1 | Y27: 1 | Z27: 0 | AA27: 0 | AB27: 0 | AC27: 0 | AD27: 14 | AE27: 5 | AF27: 2 | AG27: 0 | AJ27: 2 | AK27: 2 | AL27: 0 | AM27: 0 | AN27: 0 | AO27: 0 | AP27: 0 | AQ27: 1 | AR27: 3 | AS27: 1 | AT27: 0
A28: Asset Turnover Rate | B28: =$F$144 -> 0.160554257 | E28: -0.5 | F28: =IF($T$6=$W$1,X3/$F$38,IF($T$6=$W$17,X19/$F$38,IF($T$6=$W$33,X35/$F$38,IF($T$6=$W$49,X51/$F$38,IF($T$6=$W$65,X67/$F$38,IF($T$6=$W$81,X83/$F$38,IF($T$6=$W$97,X99/$F$38,IF($T$6=$W$113,X115/$F$38,IF($T$6=$W$129,X131/$F$38,IF($T$6=$W$145,X147/$F$38,IF($T$6=$W$161,X163/$F$38,"N/A"))))))))))) -> 0.04639175258 | G28: =IF($T$6=$W$1,AK3/$G$38,IF($T$6=$W$17,AK19/$G$38,IF($T$6=$W$33,AK35/$G$38,IF($T$6=$W$49,AK51/$G$38,IF($T$6=$W$65,AK67/$G$38,IF($T$6=$W$81,AK83/$G$38,IF($T$6=$W$97,AK99/$G$38,IF($T$6=$W$113,AK115/$G$38,IF($T$6=$W$129,AK131/$G$38,IF($T$6=$W$145,AK147/$G$38,IF($T$6=$W$161,AK163/$G$38,"N/A"))))))))))) -> 0.005208333333 | S28: X's | T28: =B22 -> 2.475120422 | U28: =B22 -> 2.475120422 | W28: 17 | X28: 11 | Z28: 0 | AA28: 0 | AB28: 1 | AC28: 0 | AG28: 0 | AJ28: 14 | AK28: 3 | AM28: 0 | AN28: 0 | AO28: 0 | AP28: 0 | AT28: 0
A29: Operating Expense Ratio | B29: =$F$164 -> 0.8661604147 | E29: =E28+0.25 -> -0.25 | F29: =IF($T$6=$W$1,X4/$F$38,IF($T$6=$W$17,X20/$F$38,IF($T$6=$W$33,X36/$F$38,IF($T$6=$W$49,X52/$F$38,IF($T$6=$W$65,X68/$F$38,IF($T$6=$W$81,X84/$F$38,IF($T$6=$W$97,X100/$F$38,IF($T$6=$W$113,X116/$F$38,IF($T$6=$W$129,X132/$F$38,IF($T$6=$W$145,X148/$F$38,IF($T$6=$W$161,X164/$F$38,"N/A"))))))))))) -> 0.04639175258 | G29: =IF($T$6=$W$1,AK4/$G$38,IF($T$6=$W$17,AK20/$G$38,IF($T$6=$W$33,AK36/$G$38,IF($T$6=$W$49,AK52/$G$38,IF($T$6=$W$65,AK68/$G$38,IF($T$6=$W$81,AK84/$G$38,IF($T$6=$W$97,AK100/$G$38,IF($T$6=$W$113,AK116/$G$38,IF($T$6=$W$129,AK132/$G$38,IF($T$6=$W$145,AK148/$G$38,IF($T$6=$W$161,AK164/$G$38,"N/A"))))))))))) -> 0.03125 | S29: Y's | T29: 0 | U29: 0.4 | V29: Count | W29: 30 | X29: 30 | Y29: 30 | Z29: 30 | AA29: 30 | AB29: 30 | AC29: 30 | AD29: 30 | AE29: 30 | AF29: 30 | AG29: 30 | AI29: Count | AJ29: 30 | AK29: 30 | AL29: 30 | AM29: 30 | AN29: 30 | AO29: 30 | AP29: 30 | AQ29: 30 | AR29: 30 | AS29: 30 | AT29: 30
A30: Depreciation Expense Ratio | B30: =$F$185 -> 0.1243616558 | E30: =E29+0.25 -> 0 | F30: 0.05670103093 | G30: =IF($T$6=$W$1,AK5/$G$38,IF($T$6=$W$17,AK21/$G$38,IF($T$6=$W$33,AK37/$G$38,IF($T$6=$W$49,AK53/$G$38,IF($T$6=$W$65,AK69/$G$38,IF($T$6=$W$81,AK85/$G$38,IF($T$6=$W$97,AK101/$G$38,IF($T$6=$W$113,AK117/$G$38,IF($T$6=$W$129,AK133/$G$38,IF($T$6=$W$145,AK149/$G$38,IF($T$6=$W$161,AK165/$G$38,"N/A"))))))))))) -> 0.03125 | S30: =IF(B22=F18,U1 &" Average","Your Farm") -> 2015 Average | V30: Average | W30: 1.882254672 | X30: 0.688520927 | Y30: 0.2041002176 | Z30: -0.7276249603 | AA30: -0.05759368651 | AB30: -0.08244998559 | AC30: 0.07915298354 | AD30: 1.082898983 | AE30: 0.09479910245 | AF30: 0.06975597466 | AG30: -0.2474540596 | AI30: Average | AJ30: 2.163431918 | AK30: 0.4918860906 | AL30: 0.1705617957 | AM30: -0.05388040475 | AN30: -0.008605156897 | AO30: -0.02073674665 | AP30: 0.159708468 | AQ30: 0.7656943638 | AR30: 0.06759163539 | AS30: 0.04218066588 | AT30: 0.1245333349
A31: Interest Expense Ratio | B31: =$F$206 -> 0.04447235114 | E31: 0.25 | F31: 0.118556701 | G31: 0.1302083333 | S31: Your Farm Line-Working Capital Ratio | V31: Non-ratio average | X31: 116337.4757 | AG31: -41811.62767 | AI31: Non-ratio average | AK31: 90133.14402 | AT31: 22819.47228
A32: Net Farm Income Ratio: | B32: =$F$228 -> -0.03499442166 | E32: 0.5 | F32: 0.1649484536 | G32: 0.2552083333 | S32: X's | T32: =B23 -> 0.6360833042 | U32: =B23 -> 0.6360833042
A33: *Defaults to Averages for 2015 if not entered | E33: 0.75 | F33: 0.1340206186 | G33: 0.21875 | S33: Y's | T33: 0 | U33: 0.4 | W33: 500-1000No
E34: 1 | F34: 0.1082474227 | G34: 0.1354166667 | S34: =IF(B23=F39,U1 &" Average","Your Farm") -> 2015 Average | W34: Current Ratio | X34: Working Capital Ratio | Y34: Debt to Asset Ratio | Z34: Operating Profit Margin | AA34: ROA | AB34: ROE | AC34: Asset Turnover | AD34: Operating Expense Ratio | AE34: Depr Expense Ratio | AF34: Interest Expense Ratio | AG34: NFI Ratio | AJ34: Current Ratio | AK34: Working Capital Ratio | AL34: Debt to Asset Ratio | AM34: Operating Profit Margin | AN34: ROA | AO34: ROE | AP34: Asset Turnover | AQ34: Operating Expense Ratio | AR34: Depr Expense Ratio | AS34: Interest Expense Ratio | AT34: NFI Ratio
E35: 1.25 | F35: 0.0618556701 | G35: 0.03125 | W35: 1 | X35: 1 | Y35: 2 | Z35: 1 | AA35: 0 | AB35: 2 | AC35: 0 | AD35: 0 | AE35: 0 | AF35: 3 | AG35: 0 | AJ35: 0 | AK35: 0 | AL35: 1 | AM35: 1 | AN35: 0 | AO35: 0 | AP35: 0 | AQ35: 0 | AR35: 0 | AS35: 2 | AT35: 0
E36: 1.5 | F36: 0.05154639175 | G36: 0.05208333333 | W36: 2 | X36: 1 | Y36: 5 | Z36: 0 | AA36: 2 | AB36: 2 | AC36: 2 | AD36: 0 | AE36: 1 | AF36: 6 | AG36: 1 | AJ36: 0 | AK36: 0 | AL36: 4 | AM36: 0 | AN36: 1 | AO36: 1 | AP36: 0 | AQ36: 2 | AR36: 1 | AS36: 3 | AT36: 0
E37: More | F37: =IF($T$6=$W$1,X12/$F$38,IF($T$6=$W$17,X28/$F$38,IF($T$6=$W$33,X44/$F$38,IF($T$6=$W$49,X60/$F$38,IF($T$6=$W$65,X76/$F$38,IF($T$6=$W$81,X92/$F$38,IF($T$6=$W$97,X108/$F$38,IF($T$6=$W$113,X124/$F$38,IF($T$6=$W$129,X140/$F$38,IF($T$6=$W$145,X156/$F$38,IF($T$6=$W$161,X172/$F$38,"N/A"))))))))))) -> 0.2113402062 | G37: 0.109375 | S37: =$F$18 -> 2.475120422 | W37: 1 | X37: 1 | Y37: 2 | Z37: 2 | AA37: 4 | AB37: 10 | AC37: 9 | AD37: 0 | AE37: 3 | AF37: 3 | AG37: 0 | AJ37: 0 | AK37: 0 | AL37: 0 | AM37: 0 | AN37: 0 | AO37: 0 | AP37: 4 | AQ37: 3 | AR37: 1 | AS37: 3 | AT37: 0
E38: Count | F38: =F17 -> 194 | G38: =G17 -> 192 | S38: =$F$39 -> 0.6360833042 | W38: 2 | X38: 2 | Y38: 2 | Z38: 3 | AA38: 8 | AB38: 0 | AC38: 0 | AD38: 2 | AE38: 1 | AF38: 1 | AG38: 5 | AJ38: 1 | AK38: 2 | AL38: 1 | AM38: 0 | AN38: 3 | AO38: 5 | AP38: 3 | AQ38: 2 | AR38: 5 | AS38: 0 | AT38: 1
E39: Average | F39: =IF($T$6=$W$1,$X$14,IF($T$6=$W$17,$X$30,IF($T$6=$W$33,$X$46,IF($T$6=$W$49,$X$62,IF($T$6=$W$65,$X$78,IF($T$6=$W$81,$X$94,IF($T$6=$W$97,$X$110,IF($T$6=$W$113,$X$126,IF($T$6=$W$129,$X$142,IF($T$6=$W$145,$X$158,IF($T$6=$W$161,$X$174,"N/A"))))))))))) -> 0.6360833042 | G39: =IF($T$6=$W$1,$AK$14,IF($T$6=$W$17,$AK$30,IF($T$6=$W$33,$AK$46,IF($T$6=$W$49,$AK$62,IF($T$6=$W$65,$AK$78,IF($T$6=$W$81,$AK$94,IF($T$6=$W$97,$AK$110,IF($T$6=$W$113,$AK$126,IF($T$6=$W$129,$AK$142,IF($T$6=$W$145,$AK$158,IF($T$6=$W$161,$AK$174,"N/A"))))))))))) -> 0.5639655524 | S39: =$F$59 -> 0.1942832656 | W39: 0 | X39: 2 | Y39: 3 | Z39: 6 | AA39: 0 | AB39: 1 | AC39: 1 | AD39: 7 | AE39: 4 | AF39: 1 | AG39: 4 | AJ39: 1 | AK39: 1 | AL39: 2 | AM39: 0 | AN39: 2 | AO39: 3 | AP39: 0 | AQ39: 1 | AR39: 2 | AS39: 1 | AT39: 0
E40: Working Capital Avg. | S40: =$F$81 -> -0.1718115234 | W40: 0 | X40: 0 | Y40: 0 | Z40: 3 | AA40: 1 | AB40: 0 | AC40: 0 | AD40: 3 | AE40: 2 | AF40: 1 | AG40: 5 | AJ40: 1 | AK40: 2 | AL40: 1 | AM40: 5 | AN40: 3 | AO40: 0 | AP40: 1 | AQ40: 0 | AR40: 0 | AS40: 0 | AT40: 4
F41: =IF($T$6=$W$1,$X$15,IF($T$6=$W$17,$X$31,IF($T$6=$W$33,$X$47,IF($T$6=$W$49,$X$63,IF($T$6=$W$65,$X$79,IF($T$6=$W$81,$X$95,IF($T$6=$W$97,$X$111,IF($T$6=$W$113,$X$127,IF($T$6=$W$129,$X$143,IF($T$6=$W$145,$X$159,IF($T$6=$W$161,$X$175,"N/A"))))))))))) -> 286610.2627 | G41: =IF($T$6=$W$1,$AK$15,IF($T$6=$W$17,$AK$31,IF($T$6=$W$33,$AK$47,IF($T$6=$W$49,$AK$63,IF($T$6=$W$65,$AK$79,IF($T$6=$W$81,$AK$95,IF($T$6=$W$97,$AK$111,IF($T$6=$W$113,$AK$127,IF($T$6=$W$129,$AK$143,IF($T$6=$W$145,$AK$159,IF($T$6=$W$161,$AK$175,"N/A"))))))))))) -> 322428.3325 | S41: =$F$102 -> -0.02758507149 | W41: 1 | X41: 2 | Y41: 1 | Z41: 0 | AA41: 0 | AB41: 0 | AC41: 2 | AD41: 1 | AE41: 2 | AF41: 0 | AG41: 0 | AJ41: 0 | AK41: 0 | AL41: 0 | AM41: 2 | AN41: 0 | AO41: 0 | AP41: 0 | AQ41: 0 | AR41: 0 | AS41: 0 | AT41: 3
S42: =$F$123 -> -0.04370811013 | W42: 0 | X42: 0 | Y42: 0 | Z42: 0 | AA42: 0 | AB42: 0 | AC42: 0 | AD42: 2 | AE42: 0 | AF42: 0 | AG42: 0 | AJ42: 0 | AK42: 0 | AL42: 0 | AM42: 1 | AN42: 0 | AO42: 0 | AP42: 1 | AQ42: 1 | AR42: 0 | AS42: 0 | AT42: 1
F43: =IF(B23=F39,"","Your Farm") ->  | G43: =IF(B23=F39,"",B23) ->  | S43: =$F$144 -> 0.160554257 | W43: 0 | X43: 4 | Y43: 0 | Z43: 0 | AA43: 0 | AB43: 0 | AC43: 0 | AD43: 0 | AE43: 2 | AF43: 0 | AG43: 0 | AJ43: 0 | AK43: 1 | AL43: 0 | AM43: 0 | AN43: 0 | AO43: 0 | AP43: 0 | AQ43: 0 | AR43: 0 | AS43: 0 | AT43: 0
S44: =$F$164 -> 0.8661604147 | W44: 8 | X44: 2 | Z44: 0 | AA44: 0 | AB44: 0 | AC44: 1 | AG44: 0 | AJ44: 6 | AK44: 3 | AM44: 0 | AN44: 0 | AO44: 0 | AP44: 0 | AT44: 0
S45: =$F$185 -> 0.1243616558 | V45: Count | W45: 15 | X45: 15 | Y45: 15 | Z45: 15 | AA45: 15 | AB45: 15 | AC45: 15 | AD45: 15 | AE45: 15 | AF45: 15 | AG45: 15 | AI45: Count | AJ45: 9 | AK45: 9 | AL45: 9 | AM45: 9 | AN45: 9 | AO45: 9 | AP45: 9 | AQ45: 9 | AR45: 9 | AS45: 9 | AT45: 9
S46: =$F$206 -> 0.04447235114 | V46: Average | W46: 3.707304656 | X46: 0.7417211253 | Y46: 0.1429518141 | Z46: -0.1163409011 | AA46: -0.01644055938 | AB46: -0.02459830026 | AC46: 0.1413136672 | AD46: 0.7928188516 | AE46: 0.1153077739 | AF46: 0.03486150317 | AG46: 0.05701187138 | AI46: Average | AJ46: 9.376351193 | AK46: 0.958128988 | AL46: 0.08811159813 | AM46: 0.09114596076 | AN46: 0.0173473642 | AO46: 0.013492162 | AP46: 0.1903251011 | AQ46: 0.6378638302 | AR46: 0.07828926379 | AS46: 0.02593964083 | AT46: 0.2579072652
E47: Debt to Asset Ratio | S47: =$F$228 -> -0.03499442166 | V47: Non-ratio average | X47: 236051.0733 | AG47: 18143.89933 | AI47: Non-ratio average | AK47: 313579.263 | AT47: 84408.64554
F48: 2015 | G48: 10-Year
E49: 0 | F49: =IF($T$6=$W$1,Y3/$F$58,IF($T$6=$W$17,Y19/$F$58,IF($T$6=$W$33,Y35/$F$58,IF($T$6=$W$49,Y51/$F$58,IF($T$6=$W$65,Y67/$F$58,IF($T$6=$W$81,Y83/$F$58,IF($T$6=$W$97,Y99/$F$58,IF($T$6=$W$113,Y115/$F$58,IF($T$6=$W$129,Y131/$F$58,IF($T$6=$W$145,Y147/$F$58,IF($T$6=$W$161,Y163/$F$58,"N/A"))))))))))) -> 0.1804123711 | G49: =IF($T$6=$W$1,AL3/$G$38,IF($T$6=$W$17,AL19/$G$38,IF($T$6=$W$33,AL35/$G$38,IF($T$6=$W$49,AL51/$G$38,IF($T$6=$W$65,AL67/$G$38,IF($T$6=$W$81,AL83/$G$38,IF($T$6=$W$97,AL99/$G$38,IF($T$6=$W$113,AL115/$G$38,IF($T$6=$W$129,AL131/$G$38,IF($T$6=$W$145,AL147/$G$38,IF($T$6=$W$161,AL163/$G$38,"N/A"))))))))))) -> 0.0625 | S49: Your Farm Line-Debt to Asset | W49: 500-1000Yes
E50: 0.1 | F50: =IF($T$6=$W$1,Y4/$F$58,IF($T$6=$W$17,Y20/$F$58,IF($T$6=$W$33,Y36/$F$58,IF($T$6=$W$49,Y52/$F$58,IF($T$6=$W$65,Y68/$F$58,IF($T$6=$W$81,Y84/$F$58,IF($T$6=$W$97,Y100/$F$58,IF($T$6=$W$113,Y116/$F$58,IF($T$6=$W$129,Y132/$F$58,IF($T$6=$W$145,Y148/$F$58,IF($T$6=$W$161,Y164/$F$58,"N/A"))))))))))) -> 0.2010309278 | G50: =IF($T$6=$W$1,AL4/$G$38,IF($T$6=$W$17,AL20/$G$38,IF($T$6=$W$33,AL36/$G$38,IF($T$6=$W$49,AL52/$G$38,IF($T$6=$W$65,AL68/$G$38,IF($T$6=$W$81,AL84/$G$38,IF($T$6=$W$97,AL100/$G$38,IF($T$6=$W$113,AL116/$G$38,IF($T$6=$W$129,AL132/$G$38,IF($T$6=$W$145,AL148/$G$38,IF($T$6=$W$161,AL164/$G$38,"N/A"))))))))))) -> 0.2395833333 | S50: X's | T50: =B24 -> 0.1942832656 | U50: =T50 -> 0.1942832656 | W50: Current Ratio | X50: Working Capital Ratio | Y50: Debt to Asset Ratio | Z50: Operating Profit Margin | AA50: ROA | AB50: ROE | AC50: Asset Turnover | AD50: Operating Expense Ratio | AE50: Depr Expense Ratio | AF50: Interest Expense Ratio | AG50: NFI Ratio | AJ50: Current Ratio | AK50: Working Capital Ratio | AL50: Debt to Asset Ratio | AM50: Operating Profit Margin | AN50: ROA | AO50: ROE | AP50: Asset Turnover | AQ50: Operating Expense Ratio | AR50: Depr Expense Ratio | AS50: Interest Expense Ratio | AT50: NFI Ratio
E51: 0.2 | F51: 0.1134020619 | G51: 0.1458333333 | S51: Y's | T51: 0 | U51: 0.4 | W51: 0 | X51: 2 | Y51: 4 | Z51: 3 | AA51: 3 | AB51: 9 | AC51: 0 | AD51: 0 | AE51: 0 | AF51: 2 | AG51: 2 | AJ51: 0 | AK51: 0 | AL51: 3 | AM51: 0 | AN51: 0 | AO51: 0 | AP51: 0 | AQ51: 0 | AR51: 0 | AS51: 1 | AT51: 0
E52: 0.3 | F52: 0.1907216495 | G52: 0.1666666667 | S52: =IF(B24=F59,U1 &" Average","Your Farm") -> 2015 Average | W52: 1 | X52: 2 | Y52: 6 | Z52: 4 | AA52: 7 | AB52: 8 | AC52: 10 | AD52: 1 | AE52: 3 | AF52: 10 | AG52: 2 | AJ52: 0 | AK52: 1 | AL52: 10 | AM52: 1 | AN52: 0 | AO52: 4 | AP52: 3 | AQ52: 0 | AR52: 3 | AS52: 16 | AT52: 0
E53: 0.4 | F53: 0.1237113402 | G53: 0.1822916667 | W53: 5 | X53: 2 | Y53: 5 | Z53: 5 | AA53: 9 | AB53: 12 | AC53: 11 | AD53: 3 | AE53: 1 | AF53: 10 | AG53: 3 | AJ53: 3 | AK53: 2 | AL53: 4 | AM53: 0 | AN53: 5 | AO53: 11 | AP53: 10 | AQ53: 13 | AR53: 8 | AS53: 12 | AT53: 0
E54: 0.5 | F54: 0.08762886598 | G54: 0.09895833333 | W54: 4 | X54: 5 | Y54: 6 | Z54: 6 | AA54: 10 | AB54: 1 | AC54: 4 | AD54: 3 | AE54: 7 | AF54: 3 | AG54: 8 | AJ54: 2 | AK54: 5 | AL54: 5 | AM54: 3 | AN54: 16 | AO54: 17 | AP54: 13 | AQ54: 15 | AR54: 13 | AS54: 7 | AT54: 2
E55: 0.6 | F55: 0.0206185567 | G55: 0.046875 | W55: 2 | X55: 2 | Y55: 3 | Z55: 9 | AA55: 1 | AB55: 0 | AC55: 1 | AD55: 8 | AE55: 4 | AF55: 3 | AG55: 10 | AJ55: 2 | AK55: 12 | AL55: 10 | AM55: 7 | AN55: 13 | AO55: 5 | AP55: 8 | AQ55: 7 | AR55: 9 | AS55: 2 | AT55: 9
E56: 0.7 | F56: 0.0412371134 | G56: 0.03125 | W56: 2 | X56: 6 | Y56: 2 | Z56: 3 | AA56: 0 | AB56: 0 | AC56: 3 | AD56: 7 | AE56: 5 | AF56: 2 | AG56: 4 | AJ56: 8 | AK56: 7 | AL56: 2 | AM56: 21 | AN56: 4 | AO56: 0 | AP56: 2 | AQ56: 5 | AR56: 5 | AS56: 0 | AT56: 18
E57: More | F57: 0.0412371134 | G57: 0.02604166667 | W57: 0 | X57: 4 | Y57: 0 | Z57: 1 | AA57: 1 | AB57: 1 | AC57: 1 | AD57: 4 | AE57: 4 | AF57: 1 | AG57: 2 | AJ57: 3 | AK57: 4 | AL57: 3 | AM57: 5 | AN57: 1 | AO57: 2 | AP57: 2 | AQ57: 0 | AR57: 1 | AS57: 2 | AT57: 11
E58: Count | F58: =F38 -> 194 | G58: =G38 -> 192 | W58: 0 | X58: 1 | Y58: 4 | Z58: 0 | AA58: 0 | AB58: 0 | AC58: 0 | AD58: 1 | AE58: 3 | AF58: 0 | AG58: 0 | AJ58: 3 | AK58: 0 | AL58: 2 | AM58: 3 | AN58: 1 | AO58: 0 | AP58: 0 | AQ58: 0 | AR58: 1 | AS58: 0 | AT58: 0
E59: Average | F59: =IF($T$6=$W$1,$Y$14,IF($T$6=$W$17,$Y$30,IF($T$6=$W$33,$Y$46,IF($T$6=$W$49,$Y$62,IF($T$6=$W$65,$Y$78,IF($T$6=$W$81,$Y$94,IF($T$6=$W$97,$Y$110,IF($T$6=$W$113,$Y$126,IF($T$6=$W$129,$Y$142,IF($T$6=$W$145,$Y$158,IF($T$6=$W$161,$Y$174,"N/A"))))))))))) -> 0.1942832656 | G59: =IF($T$6=$W$1,$AL$14,IF($T$6=$W$17,$AL$30,IF($T$6=$W$33,$AL$46,IF($T$6=$W$49,$AL$62,IF($T$6=$W$65,$AL$78,IF($T$6=$W$81,$AL$94,IF($T$6=$W$97,$AL$110,IF($T$6=$W$113,$AL$126,IF($T$6=$W$129,$AL$142,IF($T$6=$W$145,$AL$158,IF($T$6=$W$161,$AL$174,"N/A"))))))))))) -> 0.2314707532 | W59: 0 | X59: 0 | Y59: 1 | Z59: 0 | AA59: 0 | AB59: 0 | AC59: 0 | AD59: 4 | AE59: 4 | AF59: 0 | AG59: 0 | AJ59: 0 | AK59: 3 | AL59: 1 | AM59: 0 | AN59: 0 | AO59: 0 | AP59: 1 | AQ59: 0 | AR59: 0 | AS59: 0 | AT59: 0
W60: 17 | X60: 7 | Z60: 0 | AA60: 0 | AB60: 0 | AC60: 1 | AG60: 0 | AJ60: 19 | AK60: 6 | AM60: 0 | AN60: 0 | AO60: 1 | AP60: 1 | AT60: 0
V61: Count | W61: 31 | X61: 31 | Y61: 31 | Z61: 31 | AA61: 31 | AB61: 31 | AC61: 31 | AD61: 31 | AE61: 31 | AF61: 31 | AG61: 31 | AI61: Count | AJ61: 40 | AK61: 40 | AL61: 40 | AM61: 40 | AN61: 40 | AO61: 40 | AP61: 40 | AQ61: 40 | AR61: 40 | AS61: 40 | AT61: 40
V62: Average | W62: 2.251609243 | X62: 0.5839252618 | Y62: 0.2002993367 | Z62: -0.2128094434 | AA62: -0.03030029057 | AB62: -0.04699554202 | AC62: 0.142382265 | AD62: 0.8209046028 | AE62: 0.1361898039 | AF62: 0.04982973459 | AG62: -0.00692414129 | AI62: Average | AJ62: 3.340563961 | AK62: 0.6576508748 | AL62: 0.2170995152 | AM62: 0.09316301085 | AN62: 0.02098944107 | AO62: 0.01275367292 | AP62: 0.2252980113 | AQ62: 0.6547914551 | AR62: 0.08533431565 | AS62: 0.04568358767 | AT62: 0.2141906416
F63: =IF(B24=F59,"","Your Farm") ->  | G63: =IF(B24=F59,"",B24) ->  | V63: Non-ratio average | X63: 187520.5868 | AG63: -2223.604839 | AI63: Non-ratio average | AK63: 218932.2233 | AT63: 71304.14504
W65: Blank
W66: Current Ratio | X66: Working Capital Ratio | Y66: Debt to Asset Ratio | Z66: Operating Profit Margin | AA66: ROA | AB66: ROE | AC66: Asset Turnover | AD66: Operating Expense Ratio | AE66: Depr Expense Ratio | AF66: Interest Expense Ratio | AG66: NFI Ratio | AJ66: Current Ratio | AK66: Working Capital Ratio | AL66: Debt to Asset Ratio | AM66: Operating Profit Margin | AN66: ROA | AO66: ROE | AP66: Asset Turnover | AQ66: Operating Expense Ratio | AR66: Depr Expense Ratio | AS66: Interest Expense Ratio | AT66: NFI Ratio
E68: Operating Profit Margin Ratio
F69: 2015 | G69: 10-Year
E70: -0.6 | F70: =IF($T$6=$W$1,Z3/$F$80,IF($T$6=$W$17,Z19/$F$80,IF($T$6=$W$33,Z35/$F$80,IF($T$6=$W$49,Z51/$F$80,IF($T$6=$W$65,Z67/$F$80,IF($T$6=$W$81,Z83/$F$80,IF($T$6=$W$97,Z99/$F$80,IF($T$6=$W$113,Z115/$F$80,IF($T$6=$W$129,Z131/$F$80,IF($T$6=$W$145,Z147/$F$80,IF($T$6=$W$161,Z163/$F$80,"N/A"))))))))))) -> 0.2422680412 | G70: =IF($T$6=$W$1,AM3/$G$38,IF($T$6=$W$17,AM19/$G$38,IF($T$6=$W$33,AM35/$G$38,IF($T$6=$W$49,AM51/$G$38,IF($T$6=$W$65,AM67/$G$38,IF($T$6=$W$81,AM83/$G$38,IF($T$6=$W$97,AM99/$G$38,IF($T$6=$W$113,AM115/$G$38,IF($T$6=$W$129,AM131/$G$38,IF($T$6=$W$145,AM147/$G$38,IF($T$6=$W$161,AM163/$G$38,"N/A"))))))))))) -> 0.03125
E71: -0.45 | F71: =IF($T$6=$W$1,Z4/$F$80,IF($T$6=$W$17,Z20/$F$80,IF($T$6=$W$33,Z36/$F$80,IF($T$6=$W$49,Z52/$F$80,IF($T$6=$W$65,Z68/$F$80,IF($T$6=$W$81,Z84/$F$80,IF($T$6=$W$97,Z100/$F$80,IF($T$6=$W$113,Z116/$F$80,IF($T$6=$W$129,Z132/$F$80,IF($T$6=$W$145,Z148/$F$80,IF($T$6=$W$161,Z164/$F$80,"N/A"))))))))))) -> 0.05670103093 | G71: =IF($T$6=$W$1,AM4/$G$38,IF($T$6=$W$17,AM20/$G$38,IF($T$6=$W$33,AM36/$G$38,IF($T$6=$W$49,AM52/$G$38,IF($T$6=$W$65,AM68/$G$38,IF($T$6=$W$81,AM84/$G$38,IF($T$6=$W$97,AM100/$G$38,IF($T$6=$W$113,AM116/$G$38,IF($T$6=$W$129,AM132/$G$38,IF($T$6=$W$145,AM148/$G$38,IF($T$6=$W$161,AM164/$G$38,"N/A"))))))))))) -> 0.02604166667 | S71: Your Farm Line-Operating Profit Margin Ratio
E72: -0.3 | F72: 0.08762886598 | G72: 0.02083333333 | S72: X's | T72: =B25 -> -0.1718115234 | U72: =T72 -> -0.1718115234
E73: -0.15 | F73: 0.1804123711 | G73: 0.04166666667 | S73: Y's | T73: 0 | U73: 0.6
E74: 0 | F74: 0.1907216495 | G74: 0.09375 | S74: =IF(B25=F81,U1 &" Average","Your Farm") -> 2015 Average
E75: 0.15 | F75: 0.1701030928 | G75: 0.3802083333
E76: 0.3 | F76: 0.0412371134 | G76: 0.359375
E77: 0.45 | F77: 0.01546391753 | G77: 0.046875 | V77: Count | AI77: Count
E78: 0.6 | F78: 0.005154639175 | G78: 0 | V78: Average | AI78: Average
E79: More | F79: 0.01030927835 | G79: 0 | V79: Non-ratio average | AI79: Non-ratio average
E80: Count | F80: =F58 -> 194 | G80: =G58 -> 192
E81: Average | F81: =IF($T$6=$W$1,$Z$14,IF($T$6=$W$17,$Z$30,IF($T$6=$W$33,$Z$46,IF($T$6=$W$49,$Z$62,IF($T$6=$W$65,$Z$78,IF($T$6=$W$81,$Z$94,IF($T$6=$W$97,$Z$110,IF($T$6=$W$113,$Z$126,IF($T$6=$W$129,$Z$142,IF($T$6=$W$145,$Z$158,IF($T$6=W161,Z174,"N/A"))))))))))) -> -0.1718115234 | G81: =IF($T$6=$W$1,$AM$14,IF($T$6=$W$17,$AM$30,IF($T$6=$W$33,$AM$46,IF($T$6=$W$49,$AM$62,IF($T$6=$W$65,$AM$78,IF($T$6=$W$81,$AM$94,IF($T$6=$W$97,$AM$110,IF($T$6=$W$113,$AM$126,IF($T$6=$W$129,$AM$142,IF($T$6=$W$145,$AM$158,IF($T$6=$W$161,$AM$174,"N/A"))))))))))) -> 0.1514254919 | W81: Greater than 1000No
W82: Current Ratio | X82: Working Capital Ratio | Y82: Debt to Asset Ratio | Z82: Operating Profit Margin | AA82: ROA | AB82: ROE | AC82: Asset Turnover | AD82: Operating Expense Ratio | AE82: Depr Expense Ratio | AF82: Interest Expense Ratio | AG82: NFI Ratio | AJ82: Current Ratio | AK82: Working Capital Ratio | AL82: Debt to Asset Ratio | AM82: Operating Profit Margin | AN82: ROA | AO82: ROE | AP82: Asset Turnover | AQ82: Operating Expense Ratio | AR82: Depr Expense Ratio | AS82: Interest Expense Ratio | AT82: NFI Ratio
W83: 0 | X83: 0 | Y83: 1 | Z83: 2 | AA83: 4 | AB83: 8 | AC83: 0 | AD83: 0 | AE83: 0 | AF83: 0 | AG83: 3 | AJ83: 0 | AK83: 0 | AL83: 0 | AM83: 0 | AN83: 0 | AO83: 0 | AP83: 0 | AQ83: 1 | AR83: 0 | AS83: 0 | AT83: 0
W84: 2 | X84: 2 | Y84: 4 | Z84: 1 | AA84: 4 | AB84: 6 | AC84: 2 | AD84: 0 | AE84: 0 | AF84: 20 | AG84: 1 | AJ84: 0 | AK84: 0 | AL84: 7 | AM84: 0 | AN84: 0 | AO84: 0 | AP84: 0 | AQ84: 0 | AR84: 1 | AS84: 23 | AT84: 0
F85: =IF(B25=F81,"","Your Farm") ->  | G85: =IF(B25=F81,"",B25) ->  | W85: 2 | X85: 2 | Y85: 6 | Z85: 1 | AA85: 10 | AB85: 9 | AC85: 5 | AD85: 3 | AE85: 1 | AF85: 7 | AG85: 2 | AJ85: 1 | AK85: 1 | AL85: 7 | AM85: 0 | AN85: 0 | AO85: 2 | AP85: 2 | AQ85: 11 | AR85: 5 | AS85: 8 | AT85: 0
W86: 6 | X86: 7 | Y86: 8 | Z86: 7 | AA86: 7 | AB86: 5 | AC86: 5 | AD86: 7 | AE86: 6 | AF86: 4 | AG86: 7 | AJ86: 2 | AK86: 7 | AL86: 6 | AM86: 0 | AN86: 2 | AO86: 7 | AP86: 4 | AQ86: 14 | AR86: 15 | AS86: 2 | AT86: 0
W87: 3 | X87: 8 | Y87: 5 | Z87: 10 | AA87: 7 | AB87: 4 | AC87: 4 | AD87: 6 | AE87: 11 | AF87: 0 | AG87: 9 | AJ87: 5 | AK87: 10 | AL87: 5 | AM87: 0 | AN87: 9 | AO87: 8 | AP87: 4 | AQ87: 5 | AR87: 10 | AS87: 1 | AT87: 7
W88: 1 | X88: 6 | Y88: 5 | Z88: 8 | AA88: 0 | AB88: 0 | AC88: 5 | AD88: 7 | AE88: 5 | AF88: 0 | AG88: 9 | AJ88: 4 | AK88: 7 | AL88: 7 | AM88: 15 | AN88: 11 | AO88: 8 | AP88: 7 | AQ88: 3 | AR88: 2 | AS88: 0 | AT88: 17
E89: Rate of Return on Farm Assets | W89: 1 | X89: 2 | Y89: 0 | Z89: 3 | AA89: 0 | AB89: 0 | AC89: 8 | AD89: 3 | AE89: 4 | AF89: 1 | AG89: 1 | AJ89: 3 | AK89: 7 | AL89: 2 | AM89: 18 | AN89: 6 | AO89: 5 | AP89: 4 | AQ89: 0 | AR89: 1 | AS89: 0 | AT89: 9
F90: 2015 | G90: 10-Year | W90: 1 | X90: 2 | Y90: 3 | Z90: 0 | AA90: 0 | AB90: 0 | AC90: 0 | AD90: 3 | AE90: 3 | AF90: 0 | AG90: 0 | AJ90: 2 | AK90: 1 | AL90: 0 | AM90: 1 | AN90: 5 | AO90: 3 | AP90: 4 | AQ90: 0 | AR90: 0 | AS90: 0 | AT90: 1
E91: -0.1 | F91: =IF($T$6=$W$1,AA3/$F$101,IF($T$6=$W$17,AA19/$F$101,IF($T$6=$W$33,AA35/$F$101,IF($T$6=$W$49,AA51/$F$101,IF($T$6=$W$65,AA67/$F$101,IF($T$6=$W$81,AA83/$F$101,IF($T$6=$W$97,AA99/$F$101,IF($T$6=$W$113,AA115/$F$101,IF($T$6=$W$129,AA131/$F$101,IF($T$6=$W$145,AA147/$F$101,IF($T$6=$W$161,AA163/$F$101,"N/A"))))))))))) -> 0.1443298969 | G91: =IF($T$6=$W$1,AN3/$G$38,IF($T$6=$W$17,AN19/$G$38,IF($T$6=$W$33,AN35/$G$38,IF($T$6=$W$49,AN51/$G$38,IF($T$6=$W$65,AN67/$G$38,IF($T$6=$W$81,AN83/$G$38,IF($T$6=$W$97,AN99/$G$38,IF($T$6=$W$113,AN115/$G$38,IF($T$6=$W$129,AN131/$G$38,IF($T$6=$W$145,AN147/$G$38,IF($T$6=$W$161,AN163/$G$38,"N/A"))))))))))) -> 0.02083333333 | W91: 2 | X91: 2 | Y91: 0 | Z91: 0 | AA91: 0 | AB91: 0 | AC91: 1 | AD91: 3 | AE91: 2 | AF91: 0 | AG91: 0 | AJ91: 1 | AK91: 1 | AL91: 0 | AM91: 0 | AN91: 1 | AO91: 1 | AP91: 4 | AQ91: 0 | AR91: 0 | AS91: 0 | AT91: 0
E92: -0.06 | F92: =IF($T$6=$W$1,AA4/$F$101,IF($T$6=$W$17,AA20/$F$101,IF($T$6=$W$33,AA36/$F$101,IF($T$6=$W$49,AA52/$F$101,IF($T$6=$W$65,AA68/$F$101,IF($T$6=$W$81,AA84/$F$101,IF($T$6=$W$97,AA100/$F$101,IF($T$6=$W$113,AA116/$F$101,IF($T$6=$W$129,AA132/$F$101,IF($T$6=$W$145,AA148/$F$101,IF($T$6=$W$161,AA164/$F$101,"N/A"))))))))))) -> 0.1546391753 | G92: =IF($T$6=$W$1,AN4/$G$38,IF($T$6=$W$17,AN20/$G$38,IF($T$6=$W$33,AN36/$G$38,IF($T$6=$W$49,AN52/$G$38,IF($T$6=$W$65,AN68/$G$38,IF($T$6=$W$81,AN84/$G$38,IF($T$6=$W$97,AN100/$G$38,IF($T$6=$W$113,AN116/$G$38,IF($T$6=$W$129,AN132/$G$38,IF($T$6=$W$145,AN148/$G$38,IF($T$6=$W$161,AN164/$G$38,"N/A"))))))))))) -> 0.03125 | W92: 14 | X92: 1 | Z92: 0 | AA92: 0 | AB92: 0 | AC92: 2 | AG92: 0 | AJ92: 16 | AK92: 0 | AM92: 0 | AN92: 0 | AO92: 0 | AP92: 5 | AT92: 0
E93: -0.02 | F93: 0.2731958763 | G93: 0.07291666667 | S93: Your Farm Line-Return on Assets | V93: Count | W93: 32 | X93: 32 | Y93: 32 | Z93: 32 | AA93: 32 | AB93: 32 | AC93: 32 | AD93: 32 | AE93: 32 | AF93: 32 | AG93: 32 | AI93: Count | AJ93: 34 | AK93: 34 | AL93: 34 | AM93: 34 | AN93: 34 | AO93: 34 | AP93: 34 | AQ93: 34 | AR93: 34 | AS93: 34 | AT93: 34
E94: 0.02 | F94: 0.3092783505 | G94: 0.2447916667 | S94: X's | T94: =B26 -> -0.02758507149 | U94: =T94 -> -0.02758507149 | V94: Average | W94: 2.223697511 | X94: 0.3668675463 | Y94: 0.2317779168 | Z94: -0.1095386328 | AA94: -0.03290419758 | AB94: -0.05364228808 | AC94: 0.3003889745 | AD94: 0.8516224815 | AE94: 0.1331951858 | AF94: 0.0286342679 | AG94: -0.01345193515 | AI94: Average | AJ94: 3.327557731 | AK94: 0.4534929862 | AL94: 0.2448759539 | AM94: 0.1655846889 | AN94: 0.08004440241 | AO94: 0.08988764715 | AP94: 0.4834046126 | AQ94: 0.6580348707 | AR94: 0.08779276967 | AS94: 0.02480005504 | AT94: 0.2293723046
E95: 0.06 | F95: 0.07216494845 | G95: 0.3489583333 | S95: Y's | T95: 0 | U95: 0.5 | V95: Non-ratio average | X95: 271906.7988 | AG95: -9970.008688 | AI95: Non-ratio average | AK95: 364966.4729 | AT95: 184596.4624
E96: 0.1 | F96: 0.02577319588 | G96: 0.171875 | S96: =IF(B26=F102,U1 &" Average","Your Farm") -> 2015 Average
E97: 0.14 | F97: 0.01030927835 | G97: 0.0625 | W97: Greater than 1000Yes
E98: 0.18 | F98: 0.005154639175 | G98: 0.03645833333 | W98: Current Ratio | X98: Working Capital Ratio | Y98: Debt to Asset Ratio | Z98: Operating Profit Margin | AA98: ROA | AB98: ROE | AC98: Asset Turnover | AD98: Operating Expense Ratio | AE98: Depr Expense Ratio | AF98: Interest Expense Ratio | AG98: NFI Ratio | AJ98: Current Ratio | AK98: Working Capital Ratio | AL98: Debt to Asset Ratio | AM98: Operating Profit Margin | AN98: ROA | AO98: ROE | AP98: Asset Turnover | AQ98: Operating Expense Ratio | AR98: Depr Expense Ratio | AS98: Interest Expense Ratio | AT98: NFI Ratio
E99: 0.22 | F99: 0.005154639175 | G99: 0.005208333333 | W99: 0 | X99: 1 | Y99: 3 | Z99: 1 | AA99: 2 | AB99: 3 | AC99: 0 | AD99: 0 | AE99: 0 | AF99: 3 | AG99: 1 | AJ99: 0 | AK99: 0 | AL99: 0 | AM99: 0 | AN99: 0 | AO99: 1 | AP99: 0 | AQ99: 0 | AR99: 0 | AS99: 0 | AT99: 0
E100: More | F100: 0 | G100: 0.005208333333 | W100: 0 | X100: 1 | Y100: 12 | Z100: 1 | AA100: 4 | AB100: 9 | AC100: 6 | AD100: 1 | AE100: 0 | AF100: 19 | AG100: 0 | AJ100: 0 | AK100: 0 | AL100: 7 | AM100: 0 | AN100: 0 | AO100: 1 | AP100: 0 | AQ100: 1 | AR100: 1 | AS100: 14 | AT100: 0
E101: Count | F101: =F80 -> 194 | G101: =G80 -> 192 | W101: 3 | X101: 1 | Y101: 3 | Z101: 2 | AA101: 10 | AB101: 14 | AC101: 19 | AD101: 2 | AE101: 3 | AF101: 7 | AG101: 5 | AJ101: 1 | AK101: 1 | AL101: 7 | AM101: 0 | AN101: 0 | AO101: 2 | AP101: 6 | AQ101: 10 | AR101: 8 | AS101: 19 | AT101: 0
E102: Average | F102: =IF($T$6=$W$1,$AA$14,IF($T$6=$W$17,$AA$30,IF($T$6=$W$33,$AA$46,IF($T$6=$W$49,$AA$62,IF($T$6=$W$65,$AA$78,IF($T$6=$W$81,$AA$94,IF($T$6=$W$97,$AA$110,IF($T$6=$W$113,$AA$126,IF($T$6=$W$129,$AA$142,IF($T$6=$W$145,$AA$158,IF($T$6=$W$161,AA174,"N/A"))))))))))) -> -0.02758507149 | G102: =IF($T$6=$W$1,$AN$14,IF($T$6=$W$17,$AN$30,IF($T$6=$W$33,$AN$46,IF($T$6=$W$49,$AN$62,IF($T$6=$W$65,$AN$78,IF($T$6=$W$81,$AN$94,IF($T$6=$W$97,$AN$110,IF($T$6=$W$113,$AN$126,IF($T$6=$W$129,$AN$142,IF($T$6=$W$145,$AN$158,IF($T$6=$W$161,$AN$174,"N/A"))))))))))) -> 0.04544978204 | W102: 4 | X102: 3 | Y102: 12 | Z102: 11 | AA102: 16 | AB102: 9 | AC102: 6 | AD102: 9 | AE102: 8 | AF102: 3 | AG102: 11 | AJ102: 2 | AK102: 4 | AL102: 14 | AM102: 0 | AN102: 3 | AO102: 19 | AP102: 16 | AQ102: 24 | AR102: 19 | AS102: 8 | AT102: 0
W103: 3 | X103: 9 | Y103: 4 | Z103: 8 | AA103: 4 | AB103: 3 | AC103: 5 | AD103: 7 | AE103: 8 | AF103: 3 | AG103: 9 | AJ103: 9 | AK103: 15 | AL103: 9 | AM103: 0 | AN103: 26 | AO103: 17 | AP103: 8 | AQ103: 6 | AR103: 13 | AS103: 2 | AT103: 6
W104: 3 | X104: 7 | Y104: 2 | Z104: 12 | AA104: 2 | AB104: 0 | AC104: 0 | AD104: 9 | AE104: 8 | AF104: 1 | AG104: 10 | AJ104: 4 | AK104: 12 | AL104: 3 | AM104: 14 | AN104: 12 | AO104: 1 | AP104: 8 | AQ104: 2 | AR104: 2 | AS104: 0 | AT104: 26
W105: 2 | X105: 5 | Y105: 0 | Z105: 2 | AA105: 0 | AB105: 0 | AC105: 2 | AD105: 7 | AE105: 6 | AF105: 1 | AG105: 1 | AJ105: 5 | AK105: 8 | AL105: 1 | AM105: 28 | AN105: 1 | AO105: 2 | AP105: 3 | AQ105: 0 | AR105: 0 | AS105: 0 | AT105: 11
F106: =IF(B26=F102,"","Your Farm") ->  | G106: =IF(B26=F102,"",B26) ->  | W106: 1 | X106: 7 | Y106: 0 | Z106: 1 | AA106: 0 | AB106: 0 | AC106: 0 | AD106: 1 | AE106: 1 | AF106: 0 | AG106: 1 | AJ106: 3 | AK106: 2 | AL106: 1 | AM106: 1 | AN106: 1 | AO106: 0 | AP106: 1 | AQ106: 0 | AR106: 0 | AS106: 0 | AT106: 0
W107: 4 | X107: 0 | Y107: 2 | Z107: 0 | AA107: 0 | AB107: 0 | AC107: 0 | AD107: 2 | AE107: 4 | AF107: 1 | AG107: 0 | AJ107: 4 | AK107: 0 | AL107: 1 | AM107: 0 | AN107: 0 | AO107: 0 | AP107: 1 | AQ107: 0 | AR107: 0 | AS107: 0 | AT107: 0
W108: 18 | X108: 4 | Z108: 0 | AA108: 0 | AB108: 0 | AC108: 0 | AG108: 0 | AJ108: 15 | AK108: 1 | AM108: 0 | AN108: 0 | AO108: 0 | AP108: 0 | AT108: 0
V109: Count | W109: 38 | X109: 38 | Y109: 38 | Z109: 38 | AA109: 38 | AB109: 38 | AC109: 38 | AD109: 38 | AE109: 38 | AF109: 38 | AG109: 38 | AI109: Count | AJ109: 43 | AK109: 43 | AL109: 43 | AM109: 43 | AN109: 43 | AO109: 43 | AP109: 43 | AQ109: 43 | AR109: 43 | AS109: 43 | AT109: 43
E110: Rate of Return on Farm Equity | V110: Average | W110: 3.422260824 | X110: 0.6563016129 | Y110: 0.1760122975 | Z110: -0.07105125466 | AA110: -0.01184566899 | AB110: -0.02324395102 | AC110: 0.1667200537 | AD110: 0.8073837834 | AE110: 0.1200046031 | AF110: 0.04177989477 | AG110: 0.03083171876 | AI110: Average | AJ110: 3.13438147 | AK110: 0.571108344 | AL110: 0.2462229722 | AM110: 0.1874804935 | AN110: 0.05771877325 | AO110: 0.06018082647 | AP110: 0.307865486 | AQ110: 0.6601193178 | AR110: 0.07577783714 | AS110: 0.03759286346 | AT110: 0.2265099816
F111: 2015 | G111: 10-Year | V111: Non-ratio average | X111: 514375.1713 | AG111: 24164.30237 | AI111: Non-ratio average | AK111: 564562.6852 | AT111: 223913.8769
E112: -0.1 | F112: =IF($T$6=$W$1,AB3/$F$122,IF($T$6=$W$17,AB19/$F$122,IF($T$6=$W$33,AB35/$F$122,IF($T$6=$W$49,AB51/$F$122,IF($T$6=$W$65,AB67/$F$122,IF($T$6=$W$81,AB83/$F$122,IF($T$6=$W$97,AB99/$F$122,IF($T$6=$W$113,AB115/$F$122,IF($T$6=$W$129,AB131/$F$122,IF($T$6=$W$145,AB147/$F$122,IF($T$6=$W$161,AB163/$F$122,"N/A"))))))))))) -> 0.2474226804 | G112: =IF($T$6=$W$1,AO3/$G$38,IF($T$6=$W$17,AO19/$G$38,IF($T$6=$W$33,AO35/$G$38,IF($T$6=$W$49,AO51/$G$38,IF($T$6=$W$65,AO67/$G$38,IF($T$6=$W$81,AO83/$G$38,IF($T$6=$W$97,AO99/$G$38,IF($T$6=$W$113,AO115/$G$38,IF($T$6=$W$129,AO131/$G$38,IF($T$6=$W$145,AO147/$G$38,IF($T$6=$W$161,AO163/$G$38,"N/A"))))))))))) -> 0.05208333333
E113: -0.05 | F113: =IF($T$6=$W$1,AB4/$F$122,IF($T$6=$W$17,AB20/$F$122,IF($T$6=$W$33,AB36/$F$122,IF($T$6=$W$49,AB52/$F$122,IF($T$6=$W$65,AB68/$F$122,IF($T$6=$W$81,AB84/$F$122,IF($T$6=$W$97,AB100/$F$122,IF($T$6=$W$113,AB116/$F$122,IF($T$6=$W$129,AB132/$F$122,IF($T$6=$W$145,AB148/$F$122,IF($T$6=$W$161,AB164/$F$122,"N/A"))))))))))) -> 0.1958762887 | G113: =IF($T$6=$W$1,AO4/$G$38,IF($T$6=$W$17,AO20/$G$38,IF($T$6=$W$33,AO36/$G$38,IF($T$6=$W$49,AO52/$G$38,IF($T$6=$W$65,AO68/$G$38,IF($T$6=$W$81,AO84/$G$38,IF($T$6=$W$97,AO100/$G$38,IF($T$6=$W$113,AO116/$G$38,IF($T$6=$W$129,AO132/$G$38,IF($T$6=$W$145,AO148/$G$38,IF($T$6=$W$161,AO164/$G$38,"N/A"))))))))))) -> 0.08333333333 | W113: Blank
E114: 0 | F114: 0.3711340206 | G114: 0.1614583333 | W114: Current Ratio | X114: Working Capital Ratio | Y114: Debt to Asset Ratio | Z114: Operating Profit Margin | AA114: ROA | AB114: ROE | AC114: Asset Turnover | AD114: Operating Expense Ratio | AE114: Depr Expense Ratio | AF114: Interest Expense Ratio | AG114: NFI Ratio | AJ114: Current Ratio | AK114: Working Capital Ratio | AL114: Debt to Asset Ratio | AM114: Operating Profit Margin | AN114: ROA | AO114: ROE | AP114: Asset Turnover | AQ114: Operating Expense Ratio | AR114: Depr Expense Ratio | AS114: Interest Expense Ratio | AT114: NFI Ratio
E115: 0.05 | F115: 0.1082474227 | G115: 0.359375 | S115: Your Farm Line-Return on Equity
E116: 0.1 | F116: 0.05154639175 | G116: 0.1875 | S116: X's | T116: =B27 -> -0.04370811013 | U116: =T116 -> -0.04370811013
E117: 0.15 | F117: 0 | G117: 0.06770833333 | S117: Y's | T117: 0 | U117: 0.5
E118: 0.2 | F118: 0.005154639175 | G118: 0.046875 | S118: =IF(B27=F123,U1 &" Average","Your Farm") -> 2015 Average
E119: 0.25 | F119: 0.01030927835 | G119: 0.02083333333
E120: 0.3 | F120: 0.005154639175 | G120: 0.005208333333
E121: More | F121: 0.005154639175 | G121: 0.015625
E122: Count | F122: =F101 -> 194 | G122: =G101 -> 192
E123: Average | F123: =IF($T$6=$W$1,$AB$14,IF($T$6=$W$17,$AB$30,IF($T$6=$W$33,$AB$46,IF($T$6=$W$49,$AB$62,IF($T$6=$W$65,$AB$78,IF($T$6=$W$81,$AB$94,IF($T$6=$W$97,$AB$110,IF($T$6=$W$113,$AB$126,IF($T$6=$W$129,$AB$142,IF($T$6=$W$145,$AB$158,IF($T$6=W161,AB174,"N/A"))))))))))) -> -0.04370811013 | G123: =IF($T$6=$W$1,$AO$14,IF($T$6=$W$17,$AO$30,IF($T$6=$W$33,$AO$46,IF($T$6=$W$49,$AO$62,IF($T$6=$W$65,$AO$78,IF($T$6=$W$81,$AO$94,IF($T$6=$W$97,$AO$110,IF($T$6=$W$113,$AO$126,IF($T$6=$W$129,$AO$142,IF($T$6=$W$145,$AO$158,IF($T$6=$W$161,$AO$174,"N/A"))))))))))) -> 0.04344446439
V125: Count | AI125: Count
V126: Average | AI126: Average
F127: =IF(B27=F123,"","Your Farm") ->  | G127: =IF(B27=F123,"",B27) ->  | V127: Non-ratio average | AI127: Non-ratio average
W129: All Farms
W130: Current Ratio | X130: Working Capital Ratio | Y130: Debt to Asset Ratio | Z130: Operating Profit Margin | AA130: ROA | AB130: ROE | AC130: Asset Turnover | AD130: Operating Expense Ratio | AE130: Depr Expense Ratio | AF130: Interest Expense Ratio | AG130: NFI Ratio | AJ130: Current Ratio | AK130: Working Capital Ratio | AL130: Debt to Asset Ratio | AM130: Operating Profit Margin | AN130: ROA | AO130: ROE | AP130: Asset Turnover | AQ130: Operating Expense Ratio | AR130: Depr Expense Ratio | AS130: Interest Expense Ratio | AT130: NFI Ratio
E131: Asset Turnover Rate | W131: 3 | X131: 9 | Y131: 35 | Z131: 47 | AA131: 28 | AB131: 48 | AC131: 2 | AD131: 3 | AE131: 3 | AF131: 31 | AG131: 28 | AJ131: 0 | AK131: 1 | AL131: 12 | AM131: 6 | AN131: 4 | AO131: 10 | AP131: 0 | AQ131: 1 | AR131: 0 | AS131: 11 | AT131: 1
F132: 2015 | G132: 10-Year | W132: 7 | X132: 9 | Y132: 39 | Z132: 11 | AA132: 30 | AB132: 38 | AC132: 67 | AD132: 5 | AE132: 11 | AF132: 70 | AG132: 16 | AJ132: 1 | AK132: 6 | AL132: 46 | AM132: 5 | AN132: 6 | AO132: 16 | AP132: 12 | AQ132: 5 | AR132: 16 | AS132: 79 | AT132: 1
E133: 0 | F133: =IF($T$6=$W$1,AC3/$F$143,IF($T$6=$W$17,AC19/$F$143,IF($T$6=$W$33,AC35/$F$143,IF($T$6=$W$49,AC51/$F$143,IF($T$6=$W$65,AC67/$F$143,IF($T$6=$W$81,AC83/$F$143,IF($T$6=$W$97,AC99/$F$143,IF($T$6=$W$113,AC115/$F$143,IF($T$6=$W$129,AC131/$F$143,IF($T$6=$W$145,AC147/$F$143,IF($T$6=$W$161,AC163/$F$143,"N/A"))))))))))) -> 0.01030927835 | G133: =IF($T$6=$W$1,AP3/$G$38,IF($T$6=$W$17,AP19/$G$38,IF($T$6=$W$33,AP35/$G$38,IF($T$6=$W$49,AP51/$G$38,IF($T$6=$W$65,AP67/$G$38,IF($T$6=$W$81,AP83/$G$38,IF($T$6=$W$97,AP99/$G$38,IF($T$6=$W$113,AP115/$G$38,IF($T$6=$W$129,AP131/$G$38,IF($T$6=$W$145,AP147/$G$38,IF($T$6=$W$161,AP163/$G$38,"N/A"))))))))))) -> 0 | W133: 21 | X133: 11 | Y133: 22 | Z133: 17 | AA133: 53 | AB133: 72 | AC133: 62 | AD133: 15 | AE133: 19 | AF133: 41 | AG133: 18 | AJ133: 12 | AK133: 6 | AL133: 28 | AM133: 4 | AN133: 14 | AO133: 31 | AP133: 50 | AQ133: 50 | AR133: 45 | AS133: 58 | AT133: 3
E134: 0.1 | F134: =IF($T$6=$W$1,AC4/$F$143,IF($T$6=$W$17,AC20/$F$143,IF($T$6=$W$33,AC36/$F$143,IF($T$6=$W$49,AC52/$F$143,IF($T$6=$W$65,AC68/$F$143,IF($T$6=$W$81,AC84/$F$143,IF($T$6=$W$97,AC100/$F$143,IF($T$6=$W$113,AC116/$F$143,IF($T$6=$W$129,AC132/$F$143,IF($T$6=$W$145,AC148/$F$143,IF($T$6=$W$161,AC164/$F$143,"N/A"))))))))))) -> 0.3453608247 | G134: =IF($T$6=$W$1,AP4/$G$38,IF($T$6=$W$17,AP20/$G$38,IF($T$6=$W$33,AP36/$G$38,IF($T$6=$W$49,AP52/$G$38,IF($T$6=$W$65,AP68/$G$38,IF($T$6=$W$81,AP84/$G$38,IF($T$6=$W$97,AP100/$G$38,IF($T$6=$W$113,AP116/$G$38,IF($T$6=$W$129,AP132/$G$38,IF($T$6=$W$145,AP148/$G$38,IF($T$6=$W$161,AP164/$G$38,"N/A"))))))))))) -> 0.0625 | W134: 30 | X134: 23 | Y134: 37 | Z134: 35 | AA134: 60 | AB134: 21 | AC134: 21 | AD134: 24 | AE134: 34 | AF134: 18 | AG134: 44 | AJ134: 12 | AK134: 25 | AL134: 32 | AM134: 8 | AN134: 47 | AO134: 69 | AP134: 48 | AQ134: 70 | AR134: 68 | AS134: 26 | AT134: 11
E135: 0.2 | F135: 0.3195876289 | G135: 0.2604166667 | W135: 9 | X135: 32 | Y135: 24 | Z135: 37 | AA135: 14 | AB135: 10 | AC135: 15 | AD135: 32 | AE135: 43 | AF135: 10 | AG135: 38 | AJ135: 26 | AK135: 49 | AL135: 35 | AM135: 18 | AN135: 67 | AO135: 36 | AP135: 26 | AQ135: 35 | AR135: 41 | AS135: 11 | AT135: 40
E136: 0.3 | F136: 0.1082474227 | G136: 0.25 | W136: 8 | X136: 26 | Y136: 17 | Z136: 33 | AA136: 5 | AB136: 0 | AC136: 8 | AD136: 34 | AE136: 28 | AF136: 10 | AG136: 32 | AJ136: 23 | AK136: 42 | AL136: 19 | AM136: 73 | AN136: 33 | AO136: 13 | AP136: 25 | AQ136: 25 | AR136: 13 | AS136: 2 | AT136: 84
E137: 0.4 | F137: 0.07731958763 | G137: 0.1354166667 | S137: Your Farm Line-Asset Turnover Rate | W137: 6 | X137: 21 | Y137: 4 | Z137: 8 | AA137: 2 | AB137: 1 | AC137: 13 | AD137: 22 | AE137: 23 | AF137: 6 | AG137: 13 | AJ137: 13 | AK137: 26 | AL137: 9 | AM137: 69 | AN137: 12 | AO137: 9 | AP137: 10 | AQ137: 2 | AR137: 4 | AS137: 3 | AT137: 49
E138: 0.5 | F138: 0.0412371134 | G138: 0.1302083333 | S138: X's | T138: =B28 -> 0.160554257 | U138: =T138 -> 0.160554257 | W138: 4 | X138: 12 | Y138: 8 | Z138: 3 | AA138: 1 | AB138: 2 | AC138: 0 | AD138: 17 | AE138: 11 | AF138: 1 | AG138: 3 | AJ138: 9 | AK138: 6 | AL138: 6 | AM138: 9 | AN138: 7 | AO138: 4 | AP138: 7 | AQ138: 3 | AR138: 2 | AS138: 0 | AT138: 3
E139: 0.6 | F139: 0.06701030928 | G139: 0.05208333333 | S139: Y's | T139: 0 | U139: 0.6 | W139: 9 | X139: 10 | Y139: 8 | Z139: 1 | AA139: 1 | AB139: 1 | AC139: 1 | AD139: 42 | AE139: 22 | AF139: 7 | AG139: 0 | AJ139: 7 | AK139: 10 | AL139: 5 | AM139: 0 | AN139: 1 | AO139: 1 | AP139: 6 | AQ139: 1 | AR139: 3 | AS139: 2 | AT139: 0
E140: 0.7 | F140: 0 | G140: 0.03645833333 | S140: =IF(B28=F144,U1 &" Average","Your Farm") -> 2015 Average | W140: 97 | X140: 41 | Z140: 2 | AA140: 0 | AB140: 1 | AC140: 5 | AG140: 2 | AJ140: 89 | AK140: 21 | AM140: 0 | AN140: 1 | AO140: 3 | AP140: 8 | AT140: 0
E141: 0.8 | F141: 0.005154639175 | G141: 0.03125 | V141: Count | W141: 194 | X141: 194 | Y141: 194 | Z141: 194 | AA141: 194 | AB141: 194 | AC141: 194 | AD141: 194 | AE141: 194 | AF141: 194 | AG141: 194 | AI141: Count | AJ141: 192 | AK141: 192 | AL141: 192 | AM141: 192 | AN141: 192 | AO141: 192 | AP141: 192 | AQ141: 192 | AR141: 192 | AS141: 192 | AT141: 192
E142: More | F142: 0.02577319588 | G142: 0.04166666667 | V142: Average | W142: 2.475120422 | X142: 0.6360833042 | Y142: 0.1942832656 | Z142: -0.1718115234 | AA142: -0.02758507149 | AB142: -0.04370811013 | AC142: 0.160554257 | AD142: 0.8661604147 | AE142: 0.1243616558 | AF142: 0.04447235114 | AG142: -0.03499442166 | AI142: Average | AJ142: 3.080673159 | AK142: 0.5639655524 | AL142: 0.2314707532 | AM142: 0.1514254919 | AN142: 0.04544978204 | AO142: 0.04344446439 | AP142: 0.300146174 | AQ142: 0.6770660226 | AR142: 0.07646029456 | AS142: 0.0366681407 | AT142: 0.2098055421
E143: Count | F143: =F122 -> 194 | G143: =G122 -> 192 | V143: Non-ratio average | X143: 286610.2627 | AG143: -15767.99819 | AI143: Non-ratio average | AK143: 322428.3325 | AT143: 119949.2608
E144: Average | F144: =IF($T$6=$W$1,$AC$14,IF($T$6=$W$17,$AC$30,IF($T$6=$W$33,$AC$46,IF($T$6=$W$49,$AC$62,IF($T$6=$W$65,$AC$78,IF($T$6=$W$81,$AC$94,IF($T$6=$W$97,$AC$110,IF($T$6=$W$113,$AC$126,IF($T$6=$W$129,$AC$142,IF($T$6=$W$145,$AC$158,IF($T$6=W161,AC174,"N/A"))))))))))) -> 0.160554257 | G144: =IF($T$6=$W$1,$AP$14,IF($T$6=$W$17,$AP$30,IF($T$6=$W$33,$AP$46,IF($T$6=$W$49,$AP$62,IF($T$6=$W$65,$AP$78,IF($T$6=$W$81,$AP$94,IF($T$6=$W$97,$AP$110,IF($T$6=$W$113,$AP$126,IF($T$6=$W$129,$AP$142,IF($T$6=$W$145,$AP$158,IF($T$6=$W$161,$AP$174,"N/A"))))))))))) -> 0.300146174
W145: Blank
W146: Current Ratio | X146: Working Capital Ratio | Y146: Debt to Asset Ratio | Z146: Operating Profit Margin | AA146: ROA | AB146: ROE | AC146: Asset Turnover | AD146: Operating Expense Ratio | AE146: Depr Expense Ratio | AF146: Interest Expense Ratio | AG146: NFI Ratio | AJ146: Current Ratio | AK146: Working Capital Ratio | AL146: Debt to Asset Ratio | AM146: Operating Profit Margin | AN146: ROA | AO146: ROE | AP146: Asset Turnover | AQ146: Operating Expense Ratio | AR146: Depr Expense Ratio | AS146: Interest Expense Ratio | AT146: NFI Ratio
F148: =IF(B28=F144,"","Your Farm") ->  | G148: =IF(B28=F144,"",B28) -> 
E152: Operating Expense Ratio
F153: 2015 | G153: 10-Year
E154: 0.4 | F154: =IF($T$6=$W$1,AD3/$F$143,IF($T$6=$W$17,AD19/$F$143,IF($T$6=$W$33,AD35/$F$143,IF($T$6=$W$49,AD51/$F$143,IF($T$6=$W$65,AD67/$F$143,IF($T$6=$W$81,AD83/$F$143,IF($T$6=$W$97,AD99/$F$143,IF($T$6=$W$113,AD115/$F$143,IF($T$6=$W$129,AD131/$F$143,IF($T$6=$W$145,AD147/$F$143,IF($T$6=$W$161,AD163/$F$143,"N/A"))))))))))) -> 0.01546391753 | G154: =IF($T$6=$W$1,AQ3/$G$38,IF($T$6=$W$17,AQ19/$G$38,IF($T$6=$W$33,AQ35/$G$38,IF($T$6=$W$49,AQ51/$G$38,IF($T$6=$W$65,AQ67/$G$38,IF($T$6=$W$81,AQ83/$G$38,IF($T$6=$W$97,AQ99/$G$38,IF($T$6=$W$113,AQ115/$G$38,IF($T$6=$W$129,AQ131/$G$38,IF($T$6=$W$145,AQ147/$G$38,IF($T$6=$W$161,AQ163/$G$38,"N/A"))))))))))) -> 0.005208333333
E155: 0.5 | F155: =IF($T$6=$W$1,AD4/$F$143,IF($T$6=$W$17,AD20/$F$143,IF($T$6=$W$33,AD36/$F$143,IF($T$6=$W$49,AD52/$F$143,IF($T$6=$W$65,AD68/$F$143,IF($T$6=$W$81,AD84/$F$143,IF($T$6=$W$97,AD100/$F$143,IF($T$6=$W$113,AD116/$F$143,IF($T$6=$W$129,AD132/$F$143,IF($T$6=$W$145,AD148/$F$143,IF($T$6=$W$161,AD164/$F$143,"N/A"))))))))))) -> 0.02577319588 | G155: =IF($T$6=$W$1,AQ4/$G$38,IF($T$6=$W$17,AQ20/$G$38,IF($T$6=$W$33,AQ36/$G$38,IF($T$6=$W$49,AQ52/$G$38,IF($T$6=$W$65,AQ68/$G$38,IF($T$6=$W$81,AQ84/$G$38,IF($T$6=$W$97,AQ100/$G$38,IF($T$6=$W$113,AQ116/$G$38,IF($T$6=$W$129,AQ132/$G$38,IF($T$6=$W$145,AQ148/$G$38,IF($T$6=$W$161,AQ164/$G$38,"N/A"))))))))))) -> 0.02604166667
E156: 0.6 | F156: 0.07731958763 | G156: 0.2604166667
E157: 0.7 | F157: 0.1237113402 | G157: 0.3645833333 | V157: Count | AI157: Count
E158: 0.8 | F158: 0.1649484536 | G158: 0.1822916667 | V158: Average | AI158: Average
E159: 0.9 | F159: 0.175257732 | G159: 0.1302083333 | S159: Your Farm Line-Operating Expense Ratio | V159: Non-ratio average | AI159: Non-ratio average
E160: 1 | F160: 0.1134020619 | G160: 0.01041666667 | S160: X's | T160: =B29 -> 0.8661604147 | U160: =T160 -> 0.8661604147
E161: 1.1 | F161: 0.08762886598 | G161: 0.015625 | S161: Y's | T161: 0 | U161: 0.5 | W161: Blank
E162: More | F162: 0.2164948454 | G162: 0.005208333333 | S162: =IF(B29=F164,U1 &" Average","Your Farm") -> 2015 Average | W162: Current Ratio | X162: Working Capital Ratio | Y162: Debt to Asset Ratio | Z162: Operating Profit Margin | AA162: ROA | AB162: ROE | AC162: Asset Turnover | AD162: Operating Expense Ratio | AE162: Depr Expense Ratio | AF162: Interest Expense Ratio | AG162: NFI Ratio | AJ162: Current Ratio | AK162: Working Capital Ratio | AL162: Debt to Asset Ratio | AM162: Operating Profit Margin | AN162: ROA | AO162: ROE | AP162: Asset Turnover | AQ162: Operating Expense Ratio | AR162: Depr Expense Ratio | AS162: Interest Expense Ratio | AT162: NFI Ratio
E163: Count | F163: =F143 -> 194 | G163: =G143 -> 192
E164: Average | F164: =IF($T$6=$W$1,$AD$14,IF($T$6=$W$17,$AD$30,IF($T$6=$W$33,$AD$46,IF($T$6=$W$49,$AD$62,IF($T$6=$W$65,$AD$78,IF($T$6=$W$81,$AD$94,IF($T$6=$W$97,$AD$110,IF($T$6=$W$113,$AD$126,IF($T$6=$W$129,$AD$142,IF($T$6=$W$145,$AD$158,IF($T$6=W161,AD174,"N/A"))))))))))) -> 0.8661604147 | G164: =IF($T$6=$W$1,$AQ$14,IF($T$6=$W$17,$AQ$30,IF($T$6=$W$33,$AQ$46,IF($T$6=$W$49,$AQ$62,IF($T$6=$W$65,$AQ$78,IF($T$6=$W$81,$AQ$94,IF($T$6=$W$97,$AQ$110,IF($T$6=$W$113,$AQ$126,IF($T$6=$W$129,$AQ$142,IF($T$6=$W$145,$AQ$158,IF($T$6=$W$161,$AQ$174,"N/A"))))))))))) -> 0.6770660226
F168: =IF(B29=F164,"","Your Farm") ->  | G168: =IF(B29=F164,"",B29) -> 
E173: Depreciation Expense Ratio | V173: Count | AI173: Count
F174: 2015 | G174: 10-Year | V174: Average | AI174: Average
E175: 0 | F175: =IF($T$6=$W$1,AE3/$F$143,IF($T$6=$W$17,AE19/$F$143,IF($T$6=$W$33,AE35/$F$143,IF($T$6=$W$49,AE51/$F$143,IF($T$6=$W$65,AE67/$F$143,IF($T$6=$W$81,AE83/$F$143,IF($T$6=$W$97,AE99/$F$143,IF($T$6=$W$113,AE115/$F$143,IF($T$6=$W$129,AE131/$F$143,IF($T$6=$W$145,AE147/$F$143,IF($T$6=$W$161,AE163/$F$143,"N/A"))))))))))) -> 0.01546391753 | G175: =IF($T$6=$W$1,AR3/$G$38,IF($T$6=$W$17,AR19/$G$38,IF($T$6=$W$33,AR35/$G$38,IF($T$6=$W$49,AR51/$G$38,IF($T$6=$W$65,AR67/$G$38,IF($T$6=$W$81,AR83/$G$38,IF($T$6=$W$97,AR99/$G$38,IF($T$6=$W$113,AR115/$G$38,IF($T$6=$W$129,AR131/$G$38,IF($T$6=$W$145,AR147/$G$38,IF($T$6=$W$161,AR163/$G$38,"N/A"))))))))))) -> 0 | V175: Non-ratio average | AI175: Non-ratio average
E176: 0.03 | F176: =IF($T$6=$W$1,AE4/$F$143,IF($T$6=$W$17,AE20/$F$143,IF($T$6=$W$33,AE36/$F$143,IF($T$6=$W$49,AE52/$F$143,IF($T$6=$W$65,AE68/$F$143,IF($T$6=$W$81,AE84/$F$143,IF($T$6=$W$97,AE100/$F$143,IF($T$6=$W$113,AE116/$F$143,IF($T$6=$W$129,AE132/$F$143,IF($T$6=$W$145,AE148/$F$143,IF($T$6=$W$161,AE164/$F$143,"N/A"))))))))))) -> 0.05670103093 | G176: =IF($T$6=$W$1,AR4/$G$38,IF($T$6=$W$17,AR20/$G$38,IF($T$6=$W$33,AR36/$G$38,IF($T$6=$W$49,AR52/$G$38,IF($T$6=$W$65,AR68/$G$38,IF($T$6=$W$81,AR84/$G$38,IF($T$6=$W$97,AR100/$G$38,IF($T$6=$W$113,AR116/$G$38,IF($T$6=$W$129,AR132/$G$38,IF($T$6=$W$145,AR148/$G$38,IF($T$6=$W$161,AR164/$G$38,"N/A"))))))))))) -> 0.08333333333
E177: 0.06 | F177: 0.09793814433 | G177: 0.234375
E178: 0.09 | F178: 0.175257732 | G178: 0.3541666667
E179: 0.12 | F179: 0.2216494845 | G179: 0.2135416667
E180: 0.15 | F180: 0.1443298969 | G180: 0.06770833333
E181: 0.18 | F181: 0.118556701 | G181: 0.02083333333 | S181: Your Farm Line-Depreciation Expense Ratio
E182: 0.21 | F182: 0.05670103093 | G182: 0.01041666667 | S182: X's | T182: =B30 -> 0.1243616558 | U182: =T182 -> 0.1243616558
E183: More | F183: 0.1134020619 | G183: 0.015625 | S183: Y's | T183: 0 | U183: 0.5
E184: Count | F184: =F163 -> 194 | G184: =G163 -> 192 | S184: =IF(B30=F185,U1 &" Average","Your Farm") -> 2015 Average
E185: Average | F185: =IF($T$6=$W$1,$AE$14,IF($T$6=$W$17,$AE$30,IF($T$6=$W$33,$AE$46,IF($T$6=$W$49,$AE$62,IF($T$6=$W$65,$AE$78,IF($T$6=$W$81,$AE$94,IF($T$6=$W$97,$AE$110,IF($T$6=$W$113,$AE$126,IF($T$6=$W$129,$AE$142,IF($T$6=$W$145,$AE$158,IF($T$6=$W$161,AE174,"N/A"))))))))))) -> 0.1243616558 | G185: =IF($T$6=$W$1,$AR$14,IF($T$6=$W$17,$AR$30,IF($T$6=$W$33,$AR$46,IF($T$6=$W$49,$AR$62,IF($T$6=$W$65,$AR$78,IF($T$6=$W$81,$AR$94,IF($T$6=$W$97,$AR$110,IF($T$6=$W$113,$AR$126,IF($T$6=$W$129,$AR$142,IF($T$6=$W$145,$AR$158,IF($T$6=$W$161,$AR$174,"N/A"))))))))))) -> 0.07646029456
F189: =IF(B30=F185,"","Your Farm") ->  | G189: =IF(B30=F185,"",B30) -> 
E194: Interest Expense Ratio
F195: 2015 | G195: 10-Year
E196: 0 | F196: =IF($T$6=$W$1,AF3/$F$143,IF($T$6=$W$17,AF19/$F$143,IF($T$6=$W$33,AF35/$F$143,IF($T$6=$W$49,AF51/$F$143,IF($T$6=$W$65,AF67/$F$143,IF($T$6=$W$81,AF83/$F$143,IF($T$6=$W$97,AF99/$F$143,IF($T$6=$W$113,AF115/$F$143,IF($T$6=$W$129,AF131/$F$143,IF($T$6=$W$145,AF147/$F$143,IF($T$6=$W$161,AF163/$F$143,"N/A"))))))))))) -> 0.1597938144 | G196: =IF($T$6=$W$1,AS3/$G$38,IF($T$6=$W$17,AS19/$G$38,IF($T$6=$W$33,AS35/$G$38,IF($T$6=$W$49,AS51/$G$38,IF($T$6=$W$65,AS67/$G$38,IF($T$6=$W$81,AS83/$G$38,IF($T$6=$W$97,AS99/$G$38,IF($T$6=$W$113,AS115/$G$38,IF($T$6=$W$129,AS131/$G$38,IF($T$6=$W$145,AS147/$G$38,IF($T$6=$W$161,AS163/$G$38,"N/A"))))))))))) -> 0.05729166667
E197: 0.03 | F197: =IF($T$6=$W$1,AF4/$F$143,IF($T$6=$W$17,AF20/$F$143,IF($T$6=$W$33,AF36/$F$143,IF($T$6=$W$49,AF52/$F$143,IF($T$6=$W$65,AF68/$F$143,IF($T$6=$W$81,AF84/$F$143,IF($T$6=$W$97,AF100/$F$143,IF($T$6=$W$113,AF116/$F$143,IF($T$6=$W$129,AF132/$F$143,IF($T$6=$W$145,AF148/$F$143,IF($T$6=$W$161,AF164/$F$143,"N/A"))))))))))) -> 0.3608247423 | G197: =IF($T$6=$W$1,AS4/$G$38,IF($T$6=$W$17,AS20/$G$38,IF($T$6=$W$33,AS36/$G$38,IF($T$6=$W$49,AS52/$G$38,IF($T$6=$W$65,AS68/$G$38,IF($T$6=$W$81,AS84/$G$38,IF($T$6=$W$97,AS100/$G$38,IF($T$6=$W$113,AS116/$G$38,IF($T$6=$W$129,AS132/$G$38,IF($T$6=$W$145,AS148/$G$38,IF($T$6=$W$161,AS164/$G$38,"N/A"))))))))))) -> 0.4114583333
E198: 0.06 | F198: 0.2113402062 | G198: 0.3020833333
E199: 0.09 | F199: 0.09278350515 | G199: 0.1354166667
E200: 0.12 | F200: 0.05154639175 | G200: 0.05729166667
E201: 0.15 | F201: 0.05154639175 | G201: 0.01041666667
E202: 0.18 | F202: 0.03092783505 | G202: 0.015625
E203: 0.21 | F203: 0.005154639175 | G203: 0 | S203: Your Farm Line-Interest Expense Ratio
E204: More | F204: 0.03608247423 | G204: 0.01041666667 | S204: X's | T204: =B31 -> 0.04447235114 | U204: =T204 -> 0.04447235114
E205: Count | F205: =F184 -> 194 | G205: =G184 -> 192 | S205: Y's | T205: 0 | U205: 0.5
E206: Average | F206: =IF($T$6=$W$1,$AF$14,IF($T$6=$W$17,$AF$30,IF($T$6=$W$33,$AF$46,IF($T$6=$W$49,$AF$62,IF($T$6=$W$65,$AF$78,IF($T$6=$W$81,$AF$94,IF($T$6=$W$97,$AF$110,IF($T$6=$W$113,$AF$126,IF($T$6=$W$129,$AF$142,IF($T$6=$W$145,$AF$158,IF($T$6=W161,AF174,"N/A"))))))))))) -> 0.04447235114 | G206: =IF($T$6=$W$1,$AS$14,IF($T$6=$W$17,$AS$30,IF($T$6=$W$33,$AS$46,IF($T$6=$W$49,$AS$62,IF($T$6=$W$65,$AS$78,IF($T$6=$W$81,$AS$94,IF($T$6=$W$97,$AS$110,IF($T$6=$W$113,$AS$126,IF($T$6=$W$129,$AS$142,IF($T$6=$W$145,$AS$158,IF($T$6=$W$161,$AS$174,"N/A"))))))))))) -> 0.0366681407 | S206: =IF(B31=F206,U1 &" Average","Your Farm") -> 2015 Average
F210: =IF(B31=F206,"","Your Farm") ->  | G210: =IF(B31=F206,"",B31) -> 
E215: Net Farm Income Ratio
F216: 2015 | G216: 10-Year
E217: -0.45 | F217: =IF($T$6=$W$1,AG3/$F$143,IF($T$6=$W$17,AG19/$F$143,IF($T$6=$W$33,AG35/$F$143,IF($T$6=$W$49,AG51/$F$143,IF($T$6=$W$65,AG67/$F$143,IF($T$6=$W$81,AG83/$F$143,IF($T$6=$W$97,AG99/$F$143,IF($T$6=$W$113,AG115/$F$143,IF($T$6=$W$129,AG131/$F$143,IF($T$6=$W$145,AG147/$F$143,IF($T$6=$W$161,AG163/$F$143,"N/A"))))))))))) -> 0.1443298969 | G217: =IF($T$6=$W$1,AT3/$G$38,IF($T$6=$W$17,AT19/$G$38,IF($T$6=$W$33,AT35/$G$38,IF($T$6=$W$49,AT51/$G$38,IF($T$6=$W$65,AT67/$G$38,IF($T$6=$W$81,AT83/$G$38,IF($T$6=$W$97,AT99/$G$38,IF($T$6=$W$113,AT115/$G$38,IF($T$6=$W$129,AT131/$G$38,IF($T$6=$W$145,AT147/$G$38,IF($T$6=$W$161,AT163/$G$38,"N/A"))))))))))) -> 0.005208333333
E218: -0.3 | F218: =IF($T$6=$W$1,AG4/$F$143,IF($T$6=$W$17,AG20/$F$143,IF($T$6=$W$33,AG36/$F$143,IF($T$6=$W$49,AG52/$F$143,IF($T$6=$W$65,AG68/$F$143,IF($T$6=$W$81,AG84/$F$143,IF($T$6=$W$97,AG100/$F$143,IF($T$6=$W$113,AG116/$F$143,IF($T$6=$W$129,AG132/$F$143,IF($T$6=$W$145,AG148/$F$143,IF($T$6=$W$161,AG164/$F$143,"N/A"))))))))))) -> 0.0824742268 | G218: =IF($T$6=$W$1,AT4/$G$38,IF($T$6=$W$17,AT20/$G$38,IF($T$6=$W$33,AT36/$G$38,IF($T$6=$W$49,AT52/$G$38,IF($T$6=$W$65,AT68/$G$38,IF($T$6=$W$81,AT84/$G$38,IF($T$6=$W$97,AT100/$G$38,IF($T$6=$W$113,AT116/$G$38,IF($T$6=$W$129,AT132/$G$38,IF($T$6=$W$145,AT148/$G$38,IF($T$6=$W$161,AT164/$G$38,"N/A"))))))))))) -> 0.005208333333
E219: -0.15 | F219: 0.09278350515 | G219: 0.015625
E220: 0 | F220: 0.2268041237 | G220: 0.05729166667
E221: 0.15 | F221: 0.1958762887 | G221: 0.2083333333
E222: 0.3 | F222: 0.1649484536 | G222: 0.4375
E223: 0.45 | F223: 0.06701030928 | G223: 0.2552083333
E224: 0.6 | F224: 0.01546391753 | G224: 0.015625
E225: 0.75 | F225: 0 | G225: 0 | S225: Your Farm Line-Net Farm Income Ratio
E226: More | F226: 0.01030927835 | G226: 0 | S226: X's | T226: =B32 -> -0.03499442166 | U226: =T226 -> -0.03499442166
E227: Count | F227: =F205 -> 194 | G227: =G205 -> 192 | S227: Y's | T227: 0 | U227: 0.5
E228: Average | F228: =IF($T$6=$W$1,$AG$14,IF($T$6=$W$17,$AG$30,IF($T$6=$W$33,$AG$46,IF($T$6=$W$49,$AG$62,IF($T$6=$W$65,$AG$78,IF($T$6=$W$81,$AG$94,IF($T$6=$W$97,$AG$110,IF($T$6=$W$113,$AG$126,IF($T$6=$W$129,$AG$142,IF($T$6=$W$145,$AG$158,IF($T$6=W161,AG174,"N/A"))))))))))) -> -0.03499442166 | G228: =IF($T$6=$W$1,$AT$14,IF($T$6=$W$17,$AT$30,IF($T$6=$W$33,$AT$46,IF($T$6=$W$49,$AT$62,IF($T$6=$W$65,$AT$78,IF($T$6=$W$81,$AT$94,IF($T$6=$W$97,$AT$110,IF($T$6=$W$113,$AT$126,IF($T$6=$W$129,$AT$142,IF($T$6=$W$145,$AT$158,IF($T$6=$W$161,$AT$174,"N/A"))))))))))) -> 0.2098055421 | S228: =IF(B32=F228,U1 &" Average","Your Farm") -> 2015 Average
E229: Net Farm Income Avg.
... 2 more rows

Sheet SouthEast
E1: KSU FARM FINANCIAL BENCHMARKING TOOL-Southeast Kansas | S1: Acres | T1: Lookup | U1: 2015 | W1: Less than 500None | AI1: 10-Year
S2: Less than 500 | T2: LT | W2: Current Ratio | X2: Working Capital Ratio | Y2: Debt to Asset Ratio | Z2: Operating Profit Margin | AA2: ROA | AB2: ROE | AC2: Asset Turnover | AD2: Operating Expense Ratio | AE2: Depr Expense Ratio | AF2: Interest Expense Ratio | AG2: NFI Ratio | AJ2: Current Ratio | AK2: Working Capital Ratio | AL2: Debt to Asset Ratio | AM2: Operating Profit Margin | AN2: ROA | AO2: ROE | AP2: Asset Turnover | AQ2: Operating Expense Ratio | AR2: Depr Expense Ratio | AS2: Interest Expense Ratio | AT2: NFI Ratio
E3: Tillable Crop Acres: | G3: =B16 -> All Farms | I3: =A17 ->  | K3: =IF(B17="","",B17) ->  | P3: =IF(B18="","",B18) ->  | S3: 500-1500 | T3: BTW | W3: 1 | X3: 1 | Y3: 2 | Z3: 1 | AA3: 4 | AB3: 4 | AC3: 0 | AD3: 0 | AE3: 1 | AF3: 3 | AG3: 1 | AJ3: 0 | AK3: 1 | AL3: 6 | AM3: 4 | AN3: 3 | AO3: 5 | AP3: 0 | AQ3: 2 | AR3: 1 | AS3: 5 | AT3: 1
S4: Greater than 1500 | T4: GT | W4: 3 | X4: 0 | Y4: 4 | Z4: 3 | AA4: 0 | AB4: 1 | AC4: 3 | AD4: 1 | AE4: 1 | AF4: 6 | AG4: 0 | AJ4: 2 | AK4: 1 | AL4: 8 | AM4: 0 | AN4: 3 | AO4: 3 | AP4: 10 | AQ4: 1 | AR4: 2 | AS4: 8 | AT4: 1
E5: Current Ratio | S5: All Farms | T5: All | W5: 1 | X5: 5 | Y5: 2 | Z5: 1 | AA5: 2 | AB5: 8 | AC5: 7 | AD5: 1 | AE5: 4 | AF5: 0 | AG5: 3 | AJ5: 1 | AK5: 1 | AL5: 4 | AM5: 4 | AN5: 5 | AO5: 7 | AP5: 10 | AQ5: 6 | AR5: 10 | AS5: 5 | AT5: 1
F6: 2015 | G6: 10-Year | S6: LTList | T6: =B16&B17&B18 -> All Farms | W6: 2 | X6: 3 | Y6: 2 | Z6: 2 | AA6: 8 | AB6: 3 | AC6: 3 | AD6: 6 | AE6: 5 | AF6: 5 | AG6: 3 | AJ6: 2 | AK6: 5 | AL6: 1 | AM6: 3 | AN6: 8 | AO6: 7 | AP6: 1 | AQ6: 5 | AR6: 5 | AS6: 5 | AT6: 2
E7: 0 | F7: =IF($T$6=$W$1,W3/$W$13,IF($T$6=$W$17,W19/$W$29,IF($T$6=$W$33,W35/$W$45,IF($T$6=$W$49,W51/$W$61,IF($T$6=$W$65,W67/$W$77,IF($T$6=$W$81,W83/$W$93,IF($T$6=$W$97,W99/$W$109,IF($T$6=$W$113,W115/$W$125,IF($T$6=$W$129,W131/$W$141,IF($T$6=$W$145,W147/$W$157,IF($T$6=$W$161,W163/$W$173,"N/A"))))))))))) -> 0.003401360544 | G7: =IF($T$6=$W$1,AJ3/$AJ$13,IF($T$6=$W$17,AJ19/$AJ$29,IF($T$6=$W$33,AJ35/$AJ$45,IF($T$6=$W$49,AJ51/$AJ$61,IF($T$6=$W$65,AJ67/$AJ$77,IF($T$6=$W$81,AJ83/$AJ$93,IF($T$6=$W$97,AJ99/$AJ$109,IF($T$6=$W$113,AJ115/$AJ$125,IF($T$6=$W$129,AJ131/$AJ$141,IF($T$6=$W$145,AJ147/$AJ$157,IF($T$6=$W$161,AJ163/$AJ$173,"N/A"))))))))))) -> 0.007299270073 | S7: None | W7: 1 | X7: 4 | Y7: 0 | Z7: 3 | AA7: 2 | AB7: 0 | AC7: 1 | AD7: 3 | AE7: 1 | AF7: 2 | AG7: 3 | AJ7: 1 | AK7: 6 | AL7: 2 | AM7: 5 | AN7: 4 | AO7: 2 | AP7: 1 | AQ7: 7 | AR7: 2 | AS7: 1 | AT7: 3
E8: 0.5 | F8: =IF($T$6=$W$1,W4/$W$13,IF($T$6=$W$17,W20/$W$29,IF($T$6=$W$33,W36/$W$45,IF($T$6=$W$49,W52/$W$61,IF($T$6=$W$65,W68/$W$77,IF($T$6=$W$81,W84/$W$93,IF($T$6=$W$97,W100/$W$109,IF($T$6=$W$113,W116/$W$125,IF($T$6=$W$129,W132/$W$141,IF($T$6=$W$145,W148/$W$157,IF($T$6=$W$161,W164/$W$173,"N/A"))))))))))) -> 0.06802721088 | G8: =IF($T$6=$W$1,AJ4/$AJ$13,IF($T$6=$W$17,AJ20/$AJ$29,IF($T$6=$W$33,AJ36/$AJ$45,IF($T$6=$W$49,AJ52/$AJ$61,IF($T$6=$W$65,AJ68/$AJ$77,IF($T$6=$W$81,AJ84/$AJ$93,IF($T$6=$W$97,AJ100/$AJ$109,IF($T$6=$W$113,AJ116/$AJ$125,IF($T$6=$W$129,AJ132/$AJ$141,IF($T$6=$W$145,AJ148/$AJ$157,IF($T$6=$W$161,AJ164/$AJ$173,"N/A"))))))))))) -> 0.01459854015 | S8: <100 | W8: 1 | X8: 2 | Y8: 1 | Z8: 7 | AA8: 1 | AB8: 0 | AC8: 1 | AD8: 2 | AE8: 2 | AF8: 2 | AG8: 5 | AJ8: 1 | AK8: 3 | AL8: 3 | AM8: 3 | AN8: 3 | AO8: 1 | AP8: 3 | AQ8: 2 | AR8: 5 | AS8: 1 | AT8: 11
E9: 1 | F9: 0.1156462585 | G9: 0.07055961071 | S9: 100+ | W9: 1 | X9: 1 | Y9: 2 | Z9: 1 | AA9: 0 | AB9: 0 | AC9: 0 | AD9: 1 | AE9: 1 | AF9: 0 | AG9: 3 | AJ9: 0 | AK9: 3 | AL9: 1 | AM9: 4 | AN9: 0 | AO9: 0 | AP9: 1 | AQ9: 0 | AR9: 1 | AS9: 1 | AT9: 4
E10: 1.5 | F10: 0.119047619 | G10: 0.1386861314 | W10: 1 | X10: 0 | Y10: 1 | Z10: 0 | AA10: 0 | AB10: 0 | AC10: 1 | AD10: 2 | AE10: 1 | AF10: 0 | AG10: 0 | AJ10: 0 | AK10: 1 | AL10: 0 | AM10: 3 | AN10: 0 | AO10: 0 | AP10: 0 | AQ10: 3 | AR10: 0 | AS10: 0 | AT10: 4
E11: 2 | F11: 0.07823129252 | G11: 0.1143552311 | S11: BTWList | W11: 0 | X11: 0 | Y11: 4 | Z11: 0 | AA11: 0 | AB11: 1 | AC11: 0 | AD11: 2 | AE11: 2 | AF11: 0 | AG11: 0 | AJ11: 0 | AK11: 1 | AL11: 2 | AM11: 1 | AN11: 1 | AO11: 1 | AP11: 0 | AQ11: 1 | AR11: 1 | AS11: 1 | AT11: 0
E12: 2.5 | F12: 0.05102040816 | G12: 0.05109489051 | S12: None | W12: 7 | X12: 2 | Z12: 0 | AA12: 1 | AB12: 1 | AC12: 2 | AG12: 0 | AJ12: 20 | AK12: 5 | AM12: 0 | AN12: 0 | AO12: 1 | AP12: 1 | AT12: 0
E13: 3 | F13: 0.04421768707 | G13: 0.05352798054 | S13: <100 | V13: Count | W13: 18 | X13: 18 | Y13: 18 | Z13: 18 | AA13: 18 | AB13: 18 | AC13: 18 | AD13: 18 | AE13: 18 | AF13: 18 | AG13: 18 | AI13: Count | AJ13: 27 | AK13: 27 | AL13: 27 | AM13: 27 | AN13: 27 | AO13: 27 | AP13: 27 | AQ13: 27 | AR13: 27 | AS13: 27 | AT13: 27
E14: 3.5 | F14: 0.03401360544 | G14: 0.03163017032 | S14: 100+ | V14: Average | W14: 2.676883243 | X14: 0.4383017135 | Y14: 0.1994998241 | Z14: -0.0512165795 | AA14: -0.008104392916 | AB14: -0.01967500031 | AC14: 0.1582376839 | AD14: 0.7301069266 | AE14: 0.1132165481 | AF14: 0.04762612567 | AG14: 0.1090503997 | AI14: Average | AJ14: 4.752037604 | AK14: 0.6532851318 | AL14: 0.08806126307 | AM14: 0.07222335812 | AN14: 0.01018538002 | AO14: 0.005580152427 | AP14: 0.1410261207 | AQ14: 0.6000124716 | AR14: 0.07863255847 | AS14: 0.03601206531 | AT14: 0.2853429046
A15: BENCHMARK CATEGORY | E15: 4 | F15: 0.01020408163 | G15: 0.03406326034 | V15: Non-ratio average | X15: 68003.43056 | AG15: 16919.39833 | AI15: Non-ratio average | AK15: 68033.12377 | AT15: 29715.61452
A16: Tillable Crop Acres: | B16: All Farms | E16: More | F16: =IF($T$6=$W$1,W12/$W$13,IF($T$6=$W$17,W28/$W$29,IF($T$6=$W$33,W44/$W$45,IF($T$6=$W$49,W60/$W$61,IF($T$6=$W$65,W76/$W$77,IF($T$6=$W$81,W92/$W$93,IF($T$6=$W$97,W108/$W$109,IF($T$6=$W$113,W124/$W$125,IF($T$6=$W$129,W140/$W$141,IF($T$6=$W$145,W156/$W$157,IF($T$6=$W$161,W172/$W$173,"N/A"))))))))))) -> 0.4761904762 | G16: 0.4841849148 | S16: GTList
